Workbook

Sheet Toelichting
B2: Toelichting Breedtetool voor fietspaden
B4: In het voorjaar van 2022 heeft CROW-Fietsberaad geactualiseerde aanbevelingen voor de breedte van fietspaden gepubliceerd. Voor de actualisatie is onder andere gebruik gemaakt van een uitgebreid onderzoek naar de breedte van fietspaden en de waardering door fietsers. Dit onderzoek is vertaald naar een samenhangende systematiek om de gewenste breedte te bepalen. Voor de systematiek zijn zogenaamde 'breedtelabels' ontwikkeld, die vergelijkbaar zijn met energielabels voor elektrische apparaten. Breedtelabel A is een royale breedte, breedtelabel F is veel te smal. Met de breedtetool in deze excel kunnen wegbeheerders relatief eenvoudig bepalen welk breedtelabel een fietspad krijgt. Voor doorsnee-situaties bevelen we aan het tabblad "aanbevelingen" te gebruiken. Voor afwijkende situaties bieden de berekeningen in het tabblad "invoer en voorspellingen" uitkomst en inzicht. Bijvoorbeeld als er sprake is van hoge intensiteiten, grote snelheidsverschillen, veel brede voertuigen of een hoog aandeel duo-fietsers. De berekeningen kunnen ook gebruikt worden voor prioritering in de aanpak van te smalle fietspaden. Door te "spelen" met de invoer kan tot slot verkend worden wat de invloed is van andere maatregelen dan verbreden. Denk aan het verplaatsen van brom-, snor- en racefietsers naar de rijbaan, bijvoorbeeld in combinatie met GOW30. Of het verlagen van de intensiteiten op het fietspad door het aanbieden van alternatieve routes.
B7: Klik hier voor de volledige notitie met aanbevelingen
B9: We zijn benieuwd naar uw ervaringen met deze tool. Mail ze naar Fietsberaad@crow.nl.
B10: Mogelijk voeren we in de toekomst wijzigingen door in de tool. Op de website van CROW-Fietsberaad kunt u checken of er een nieuwe versie van de Breedtetool voor Fietspaden beschikbaar is.

Sheet aanbevelingen
B2: Algemene aanbevelingen voor de breedte in gemiddelde situaties
B3: Klik hier voor de volledige notitie met aanbevelingen
B5: Met de tabellen op dit tabblad is voor doorsnee-situaties eenvoudig te bepalen hoe breed een (brom-)fietspad moet zijn. De tabellen gelden voor alle soorten fietspaden: basisnetwerk, hoofdfietsroutes, recreatieve paden, solitaire fietspaden etc. Alleen voor het hoogste kwaliteitsniveau (snelle fietsroutes, doorfietsroutes) gelden aparte aanbevelingen met extra beedte. Heel belangrijk: houd rekening met de uitgangspunten Bij de toepassing van de tabellen is het essentieel om rekening te houden met de uitgangspunten die ten grondslag liggen aan de aanbevelingen: * Beide zijden van het (brom-)fietspad hebben een obstakelvrije ruimte van minimaal 50 cm. Als er wel obstakels in deze zone aanwezig zijn, moet dit gecompenseerd worden met extra fietspadbreedte. Staat er bijvoorbeeld een muur op 30 cm van de verhardingsrand, dan moet dit gecompenseerd worden met 20 cm extra verhardingsbreedte, zodat we weer op 50 cm uit komen (30 + 20 = 50); * De hoogteverschillen aan de rand van het fietspad (zoals trottoirbanden) zijn kleiner dan 5 cm. Bij grotere hoogteverschillen moet 25 cm per zijde opgeteld worden bij de aanbevolen breedte; * De karakteristieken van het gebruik komen overeen met gemiddelde situaties in 2018. Het gaat daarbij om het aandeel snelle fietsers (7 % sneller dan 25 km/uur), het aandeel duofietsers (14%), het aandeel bakfietsen (1%), de verdeling over de richtingen (66/34) etc. Voor a-typische situaties, zoals veel racefietsers of bakfietsen, kan gebruik gemaakt worden van deze Breedtetool voor Fietspaden.
B6: Eénrichtingsfietspaden | G6: Tweerichtingsfietspaden
B7: Intensiteit maatgevend uur | C7: Aandeel brom/snorfietsers | G7: Intensiteit maatgevend uur | H7: Aandeel brom/snorfietsers
C8: 0 | D8: 0.04 | E8: 0.08 | H8: 0 | I8: 0.04 | J8: 0.08
B9: < 75 | C9: 230 | D9: 230 | E9: 230 | G9: < 75 | H9: 230 | I9: 260 | J9: 270
B10: 75 - 150 | C10: 230 | D10: 230 | E10: 250 | G10: 75 - 150 | H10: 270 | I10: 270 | J10: 350
B11: 150-250 | C11: 230 | D11: 250 | E11: 270 | G11: 150-250 | H11: 270 | I11: 360 | J11: 360
B12: 250-350 *) | C12: 230 | D12: 270 | E12: 290 | G12: 250-350 | H12: 270 | I12: 360 | J12: 360
B13: 350-500 | C13: 230 | D13: 270 | E13: 330 | G13: 350-500 *) | H13: 350 | I13: 360 | J13: 400
B14: 500-700 | C14: 270 | D14: 330 | E14: 360 | G14: 500-700 | H14: 350 | I14: 440 | J14: 470
B15: 700-900 | C15: 270 | D15: 350 | E15: 360 | G15: 700-900 | H15: 350 | I15: 480 | J15: 520
B16: >900 | C16: 270 | D16: 360 | E16: 360 | G16: >900 | H16: 380 | I16: 520 | J16: >550
B17: *) Gele cellen hanteren als minimum breedte voor hoofdfietsroutes.
B18: Tabel 1: Geactualiseerde aanbevelingen voor effectieve breedte (cm) van fietspaden. Houd rekening met de uitgangspunten en bekijk de tips!
B20: Tip: aandeel brom-/snorfietsers vertalen naar type fietspad Een verschil met de “oude” aanbevelingen is dat geen onderscheid gemaakt wordt tussen fietspaden enerzijds en (brom)fietspaden anderzijds. In plaats daarvan worden aanbevelingen gegeven voor verschillende aandelen brom-/snorfietsen. Als cijfers over het aandeel brom-/snorfietsers ontbreken, kunnen de volgende vuistregels gebruikt worden: * “Onverplicht fietspad” of “verplicht fietspad met snorfietsverbod” = 0% brom-/snorfietsers; * “Verplicht fietspad”, waar dus wel snorfietsers gebruik van mogen maken = 4% brom/snorfieters; * “Verplicht bromfietspad”, waar zowel snor- als bromfietsers gebruik van mogen maken = 8% brom-/snorfietsers. Overige aandachtspunten * In bochten, op hellingen en nabij kruispunten is voldoende breedte extra belangrijk. Frontale botsingen op tweerichtingsfietspaden komen hier relatief veel voor. * Medegebruik door voetgangers stelt hogere eisen aan de breedte. Als er geen apart voetpad aanwezig is, moet altijd bekeken worden of een substantieel aantal voetgangers gebruik maakt van het fietspad (bijvoorbeeld hardlopers of hondeneigenaren). Tel dan minimaal 100 cm op bij de breedte. In de toekomst willen we nader uitwerken hoeveel extra breedte nodig is bij verschillende voetgangersintensiteiten. * Op tweerichtingsspaden kan (dubbele) asmarkering er mogelijk aan bijdragen dat (duo-)fietsers meer rechts houden, zodat de beschikbare verhardingsbreedte efficiënter gebruikt wordt. Zie ook CROW-Fietsberaadnotitie ‘Aanbevelingen markering op fietspaden’

Sheet invoer en voorspellingen
A2: Invoer om de gewenste breedte te berekenen
A3: Versie 2.1, 19 mei 2022
A5: Locatie
A7: straat, huisnummer, GPS | D7: Voor uw eigen administratie.
A8: plaatsnaam
A9: type fietspad | B9: tweerichtingsfietspad | D9: Heeft alleen invloed op label A
A12: Invoer intensiteiten en fietspadbreedte
A13: Maak globale schattingen als u geen gegevens heeft over de intensiteiten. Klik na het invoeren op de knop "bereken breedtelabel"
A15: maatgevende moment | B15: bv. werkdag 8:00-9:00 u.
A16: uurintensiteit | B16: 400 | C16: Vuistregel: spitsuur = 15% van etmaal, maar kan sterk fluctureren
A17: % richting 1 | B17: 0.66 | C17: Gemiddeld 66% bij 2 richtingen. 100% bij 1 richting zonder spookfietsers
A18: % richting 2 | B18: =1-B17 -> 0.34
A20: % duofietsers | B20: 0.14 | C20: ="("&ROUND(B20*B16/2,0)&" duo's). Gemiddeld 14%" -> (28 duo's). Gemiddeld 14%
A21: % brede fietsen | B21: 0 | C21: Bv. bakfietsen, scootmobiel. Gemiddeld 1%
A22: % brom-/snorfietsers | B22: 0.04 | C22: Gemiddeld 4%
A24: fietspadbreedte | B24: 360 | C24: centimeter
A25: obstakelvrije ruimte links | B25: 50 | C25: centimeter. Ruimte zonder obstakels hoger dan 15 cm.
A26: obstakelvrije ruimte rechts | B26: 50 | C26: centimeter. Ruimte zonder obstakels hoger dan 15 cm.
A27: trottoirband links hoger dan 5 cm | B27: nee | C27: Bij hoge banden wordt 25 cm van de effectieve breedte afgetrokken
A28: trottoirband rechts hoger dan 5 cm | B28: nee | C28: Bij hoge banden wordt 25 cm van de effectieve breedte afgetrokken
A29: effectieve fietspadbreedte | B29: =B24-IF(AND(invoer_obstakelvrij_links>25,B27="ja"),25,MAX(0,50-invoer_obstakelvrij_links))-IF(AND(invoer_obstakelvrij_rechts>25,B28="ja"),25,MAX(0,50-invoer_obstakelvrij_rechts)) -> 360 | C29: centimeter
A32: Berekening breedtelabel
A34: bij opgegeven fietspadbreedte | B34: =VLOOKUP(MIN('Details variant 1'!$C$100:$C$101),'Details variant 1'!$A$107:$B$112,2,0) -> Label B | C34: wacht tot computer uitgerekend is
A35: bepalend criterium | B35: =IF('Details variant 1'!B100<='Details variant 1'!B101,"ontmoetingencriterium","breedtecriterium") -> ontmoetingencriterium
A36: =IF('controle instellingen'!D15=0," ", "Let op: u heeft de instellingen voor de snelheidsverdeling aangepast") -> 
A37: =IF('controle instellingen'!D23+'controle instellingen'!D31=0," ","Let op: u heeft de instellingen voor het toekennen van breedtelabels aangepast.") -> 
A38: Minimaal benodigde effectieve fietspadbreedte
A40: Breedtelabel | B40: Effectieve breedte (cm) | C40: Kans op gevaarlijke situaties en/of discomfort
A41: A | B41: =_xlfn.CEILING.MATH(MAX('Details variant 1'!E68:F68)/10)*10 -> 520 | C41: Zeer klein
A42: B | B42: =_xlfn.CEILING.MATH(MAX('Details variant 1'!E67:F67)/10)*10 -> 360 | C42: Klein = aanbeveling
A43: C | B43: =_xlfn.CEILING.MATH(MAX('Details variant 1'!E66:F66)/10)*10 -> 350 | C43: Iets te groot
A44: D | B44: =_xlfn.CEILING.MATH(MAX('Details variant 1'!E65:F65)/10)*10 -> 270 | C44: Groot
A45: E | B45: =_xlfn.CEILING.MATH(MAX('Details variant 1'!E64:F64)/10)*10 -> 250 | C45: Zeer groot
A46: NB: breedtes groter dan 550 cm zijn indicatief
A47: =IF('controle instellingen'!D15=0," ", "Let op: u heeft de instellingen voor de snelheidsverdeling aangepast") -> 
A48: =IF('controle instellingen'!D23+'controle instellingen'!D31=0," ","Let op: u heeft de instellingen voor het toekennen van breedtelabels aangepast.") -> 
A57: Aantal voorspelde "onmogelijke" ontmoetingen per uur per fietser | G57: Voorspelde ontmoetingen per uur per fietser
G59: enkelvoudige inhaalbewegingen | K59: inhaalbewegingen met enkelvoudige tegemoetkoming
C60: ='Details variant 1'!B62 -> 0.05986873768 | H60: totaal | I60: waarvan met brommer | L60: totaal | M60: waarvan met brommer
G61: ruim | H61: ='Details variant 1'!B37 -> 429.8834069 | I61: ='Details variant 1'!C37 -> 67.48970596 | K61: ruim | L61: ='Details variant 1'!B49 -> 0 | M61: ='Details variant 1'!C49 -> 0
A62: Aantal voorspelde "ruime" en "krappe" ontmoetingen per uur | G62: krap | H62: ='Details variant 1'!B38 -> 8.657288128 | I62: ='Details variant 1'!C38 -> 6.401534654 | K62: krap | L62: ='Details variant 1'!B50 -> 178.5825775 | M62: ='Details variant 1'!C50 -> 29.2571766
G63: onmogelijk | H63: ='Details variant 1'!B39 -> 0 | I63: ='Details variant 1'!C39 -> 0 | K63: onmogelijk | L63: ='Details variant 1'!B51 -> 9.373624049 | M63: ='Details variant 1'!C51 -> 6.700707738
C65: ='Details variant 1'!B60 -> 6395.754516
G66: enkelvoudige tegemoetkomingen | K66: inhaalbewegingen met dubbele tegemoetkoming
A67: Voorspelde beoordeling door fietsers | H67: totaal | I67: waarvan met brommer | L67: totaal | M67: waarvan met brommer
G68: ruim | H68: ='Details variant 1'!B43 -> 5695.325706 | I68: ='Details variant 1'!C43 -> 341.6448206 | K68: ruim | L68: ='Details variant 1'!B55 -> 0 | M68: ='Details variant 1'!C55 -> 0
G69: krap | H69: ='Details variant 1'!B44 -> 68.27342477 | I69: ='Details variant 1'!C44 -> 34.94893755 | K69: krap | L69: ='Details variant 1'!B56 -> 15.0321136 | M69: ='Details variant 1'!C56 -> 0
A70: kwalificatie | C70: =VLOOKUP('Details variant 1'!B76,instellingen!$U$8:$X$11,4,TRUE) -> slechter dan gemiddeld | G70: onmogelijk | H70: ='Details variant 1'!B45 -> 0 | I70: ='Details variant 1'!C45 -> 0 | K70: onmogelijk | L70: ='Details variant 1'!B57 -> 12.89754637 | M70: ='Details variant 1'!C57 -> 7.069162251
A73: Factoren die de beoordeling bepalen
A76: aandeel brom-/snorfietsers | C76: ='Details variant 1'!B72*'Details variant 1'!C72 -> 0
A77: aantal "ruime" en "krappe" ontmoetingen | C77: ='Details variant 1'!B73*'Details variant 1'!C73 -> 0
A78: aantal "onmogelijke" ontmoetingen per fieter | C78: ='Details variant 1'!B74*'Details variant 1'!C74 -> 0

Sheet bijlage type ontmoetingen
A3: Aantal voorspelde ontmoetingen per uur per fietser
A5: onmogelijke ontmoetingen | B5: ='Details variant 1'!B62 -> 0.05986873768 | C5: koersaanpassingen zijn nodig om botsingen te voorkomen
A6: krappe ontmoetingen | B6: ='Details variant 1'!B61 -> 0.7272725914 | C6: koersaanpassingen zijn niet noodzakelijk, wel kans op hinder
A7: indicator gevaar en hinder | B7: =B5+0.25*B6 -> 0.2416868855 | C7: gewogen totaal met volgende weegfactoren: 0,2 voor krappe ontmoetingen; 5 voor ontmoetingen met brom-/snorfietsen
A10: Profiel van de ontmoetingen
B11: % inhaalbewegingen | C11: % tegemoetkomingen | D11: % complexe tegemoetkomingen *) | F11: % met brom-/snorfiets **) | G11: % met duo / brede fiets **)
A12: onmogelijke ontmoetingen | B12: ='Details variant 1'!B81 -> 0 | C12: ='Details variant 1'!B82 -> 0 | D12: ='Details variant 1'!B83 -> 1 | F12: ='Details variant 1'!B84 -> 0.6182822784 | G12: ='Details variant 1'!B85 -> 0.6881589307
A13: krappe ontmoetingen | B13: ='Details variant 1'!C81 -> 0.03199939086 | C13: ='Details variant 1'!C82 -> 0.2523547758 | D13: ='Details variant 1'!C83 -> 0.7156458334 | F13: ='Details variant 1'!C84 -> 0.2609826216 | G13: ='Details variant 1'!C85 -> 0.3731401161
A15: *) complexe ontmoetingen zijn ontmoetingen, waar meer dan twee verkeersdeelnemers bij betrokken zijn. Bijvoorbeeld een bromfietser haalt in en er komt ook een tegenligger aan.
A16: **) totaal kan hoger dan 100% zijn, omdat brom/snorfietsers, duo's en brede voertuigen bij dezelfde (complexe) ontmoetingen betrokken kunnen zijn

Sheet instellingen
A3: Parameters inhalen | E3: Snelheidsverdeling | Q3: Kritische breedtes | U3: Kwalificatie oordeel
E4: In de kolom "onderzoek DTV" staat de snelheidverdeling die in het onderzoek van DTV is gevonden. In de kolom "aangepast" kunt u dit naar eigen inzicht aanpassen, bijvoorbeeld een hoger percentage 30-35 km/uur als er veel racefietsers zijn. Het effect ziet u op het tabblad "invoer en voorspelling".
H5: =IF(I19>1.0001,"Let op: snelheidsverdeling telt op tot meer dan 100%",IF(I19<0.9999,"Let op: snelheidsverdeling telt op tot minder dan 100%","")) ->  | J5: =IF(K19>1.0001,"Let op: snelheidsverdeling telt op tot meer dan 100%",IF(K19<0.9999,"Let op: snelheidsverdeling telt op tot minder dan 100%","")) -> 
H6: snelheidsverdeling fiets | J6: snelheidsverdeling bromfiets
A7: inhaalduur | B7: 10 | C7: seconden | E7: snelheidsklasse | F7: km/u | G7: m/s | H7: onderzoek DTV | I7: aangepast | J7: onderzoek DTV | K7: aangepast | Q7: ontmoeting | R7: onmogelijk tot breedte (cm) | S7: krap tot breedte (cm) | U7: oordeel | X7: kwalificatie
A8: weglengte | B8: 1000 | C8: meter | E8: 0 - 5 | F8: 12 | G8: =F8/3.6 -> 3.333333333 | H8: 0 | I8: 0 | J8: 0 | K8: 0 | Q8: F-F | R8: 179 | S8: 266 | U8: 0 | V8: - | W8: 7.6 | X8: slechter dan gemiddeld
A9: periode | B9: 3600 | C9: seconden | E9: 5 - 10 | F9: 16 | G9: =F9/3.6 -> 4.444444444 | H9: 0.002 | I9: 0.002 | J9: 0 | K9: 0 | Q9: FF-F | R9: 261 | S9: 348 | U9: =W8 -> 7.6 | V9: - | W9: 7.8 | X9: gemiddeld
E10: 10 - 15 | F10: 20 | G10: 5.555555556 | H10: 0.149 | I10: 0.149 | J10: 0.009 | K10: 0.009 | Q10: F-FF | R10: 261 | S10: 348 | U10: =W9 -> 7.8 | V10: - | W10: 7.9 | X10: beter dan gemiddeld
E11: 15 - 20 | F11: 24 | G11: 6.666666667 | H11: 0.474 | I11: 0.474 | J11: 0.059 | K11: 0.059 | Q11: FF-FF | R11: 343 | S11: 430 | U11: 7.9 | V11: - | W11: 10 | X11: veel beter dan gemiddeld
E12: 20 - 25 | F12: 28 | G12: 7.777777778 | H12: 0.289 | I12: 0.289 | J12: 0.143 | K12: 0.143 | Q12: F-F | R12: 179 | S12: 266
E13: 25 - 30 | F13: 32 | G13: 8.888888889 | H13: 0.073 | I13: 0.073 | J13: 0.194 | K13: 0.194 | Q13: FF-F | R13: 261 | S13: 348
E14: 30 - 35 | F14: 36 | G14: 10 | H14: 0.011 | I14: 0.011 | J14: 0.188 | K14: 0.188 | Q14: FF-FF | R14: 343 | S14: 430
E15: 35 - 40 | F15: 40 | G15: 11.11111111 | H15: 0.002 | I15: 0.002 | J15: 0.148 | K15: 0.148 | Q15: F-F-F | R15: 264 | S15: 376
E16: 40 - 45 | H16: 0 | I16: 0 | J16: 0.103 | K16: 0.103
E17: 45 - 50 | H17: 0 | I17: 0 | J17: 0.065 | K17: 0.065
E18: 50+ | F18: 50 | G18: 13.88888889 | H18: 0 | I18: 0 | J18: 0.091 | K18: 0.091 | Q18: FF-F-F | R18: 346 | S18: 458
I19: =SUM(I8:I18) -> 1 | K19: =SUM(K8:K18) -> 1 | Q19: FF-FF-F | R19: 428 | S19: 558
Q20: F-F-FF | R20: 346 | S20: 458
E21: Criteria voor toekennen van breedtelabels eenrichtingsfietspaden | Q21: FF-F-FF | R21: 428 | S21: 540
E22: In deze tabel staat welk rapportcijfer cq welke verhardingsbreedte minimaal gehaald moet worden om het genoemde aantal sterren te scoren. De kolom "voorstel" betreft de minimale waarden uit de discussienotitie. In de kolom "aangepast" kunt u deze waarden naar eigen inzicht aanpassen. Het effect ziet u op het tabblad "invoer en voorspelling". | Q22: F-FF-FF | R22: 428 | S22: 558
H23: minimaal rapportcijfer voor breedte *) | J23: minimale effectieve fietspadbreedte (cm) | Q23: FF-FF-FF | R23: 510 | S23: 640
E24: breedtelabel | H24: voorstel | I24: aangepast | J24: voorstel | K24: aangepast | Q24: F-F-F-F | R24: 349 | S24: 486
H25: 0 | I25: 0 | J25: 999999 | K25: 999999
E26: A | H26: 7.7 | I26: 7.7 | J26: 300 | K26: 300 | Q26: FF-F-F-F | R26: 431 | S26: 568
E27: B | H27: 7.4 | I27: 7.4 | J27: 230 | K27: 230 | Q27: F-FF-F-F | R27: 431 | S27: 586
E28: C | H28: 7 | I28: 7 | J28: 200 | K28: 200 | Q28: FF-FF-F-F | R28: 513 | S28: 668
E29: D | H29: 6.5 | I29: 6.5 | J29: 170 | K29: 170 | Q29: FF-F-F-FF | R29: 513 | S29: 650
E30: E | H30: 6 | I30: 6 | J30: 120 | K30: 120 | Q30: F-FF-F-FF | R30: 513 | S30: 668
Q31: FF-FF-F-FF | R31: 595 | S31: 750
E32: *) Dat betreft het verwachte gemiddelde rapportcijfer voor de breedte op basis van het berekende aantal ontmoetingen | Q32: F-FF-FF-F | R32: 513 | S32: 686
E33: Criteria voor toekennen van breedtelabels tweerichtingsfietspaden | Q33: FF-FF-FF-F | R33: 595 | S33: 768
E34: Zie toelichting op vorige tabel | Q34: FF-FF-FF-FF | R34: 677 | S34: 850
H35: minimaal rapportcijfer voor breedte *) | J35: minimale effectieve fietspadbreedte (cm) | Q35: F-B | R35: 244 | S35: 356
E36: breedtelabel | H36: voorstel | I36: aangepast | J36: voorstel | K36: aangepast | Q36: FF-B | R36: 326 | S36: 438
H37: 0 | I37: 0 | J37: 999999 | K37: 999999
E38: A | H38: 7.7 | I38: 7.7 | J38: 400 | K38: 400 | Q38: F-B-F | R38: 354 | S38: 516
E39: B | H39: 7.4 | I39: 7.4 | J39: 230 | K39: 230 | Q39: FF-B-F | R39: 436 | S39: 598
E40: C | H40: 7 | I40: 7 | J40: 200 | K40: 200 | Q40: F-B-FF | R40: 436 | S40: 598
E41: D | H41: 6.5 | I41: 6.5 | J41: 170 | K41: 170 | Q41: FF-B-FF | R41: 518 | S41: 680
E42: E | H42: 6 | I42: 6 | J42: 120 | K42: 120 | Q42: F-B-F-F | R42: 439 | S42: 626
Q43: FF-B-F-F | R43: 521 | S43: 708
E44: *) Dit betreft het verwachte gemiddelde rapportcijfer voor de breedte op basis van het berekende aantal ontmoetingen | Q44: FF-B-F-FF | R44: 603 | S44: 790
Q45: FF-F-B-F | R45: 521 | S45: 708
Q46: F-FF-B-F | R46: 521 | S46: 726
Q47: FF-FF-B-F | R47: 603 | S47: 808
Q48: F-FF-B-FF | R48: 603 | S48: 808
Q49: FF-FF-B-FF | R49: 685 | S49: 890
Q50: F-B | R50: 244 | S50: 356
Q51: FF-B | R51: 326 | S51: 438
Q52: F-F-B | R52: 329 | S52: 466
Q53: FF-F-B | R53: 411 | S53: 548
Q54: F-FF-B | R54: 411 | S54: 566
Q55: FF-FF-B | R55: 493 | S55: 648
Q56: B-B | R56: 284 | S56: 396
Q57: B-B-F | R57: 394 | S57: 556
Q58: B-B-FF | R58: 476 | S58: 638
Q59: B-B-F-F | R59: 479 | S59: 666
Q60: F-B-B-F | R60: 504 | S60: 716
Q61: FF-B-B-F | R61: 586 | S61: 798
Q62: FF-B-B-FF | R62: 668 | S62: 880
Q63: FF-F-B-B | R63: 561 | S63: 748
Q64: F-FF-B-B | R64: 561 | S64: 766
Q65: FF-FF-B-B | R65: 643 | S65: 848
Q66: B-B | R66: 284 | S66: 396
Q67: F-B-B | R67: 394 | S67: 556
Q68: FF-B-B | R68: 476 | S68: 638
Q69: B-B-B-F | R69: 544 | S69: 756
Q70: B-B-B | R70: 434 | S70: 596
Q71: FF-B-B-B | R71: 626 | S71: 838
Q72: B-B-B-B | R72: 584 | S72: 796

Sheet controle instellingen
A1: Verschil tussen instellingen uit discussienotitie en aangepaste instellingen
B3: snelheidsverdeling fiets | C3: snelheidsverdeling brom/snorfiets | D3: totaal
A4: =instellingen!E8 -> 0 - 5 | B4: =ABS(instellingen!H8-instellingen!I8) -> 0 | C4: =ABS(instellingen!J8-instellingen!K8) -> 0
A5: =instellingen!E9 -> 5 - 10 | B5: =ABS(instellingen!H9-instellingen!I9) -> 0 | C5: =ABS(instellingen!J9-instellingen!K9) -> 0
A6: =instellingen!E10 -> 10 - 15 | B6: =ABS(instellingen!H10-instellingen!I10) -> 0 | C6: =ABS(instellingen!J10-instellingen!K10) -> 0
A7: =instellingen!E11 -> 15 - 20 | B7: =ABS(instellingen!H11-instellingen!I11) -> 0 | C7: =ABS(instellingen!J11-instellingen!K11) -> 0
A8: =instellingen!E12 -> 20 - 25 | B8: =ABS(instellingen!H12-instellingen!I12) -> 0 | C8: =ABS(instellingen!J12-instellingen!K12) -> 0
A9: =instellingen!E13 -> 25 - 30 | B9: =ABS(instellingen!H13-instellingen!I13) -> 0 | C9: =ABS(instellingen!J13-instellingen!K13) -> 0
A10: =instellingen!E14 -> 30 - 35 | B10: =ABS(instellingen!H14-instellingen!I14) -> 0 | C10: =ABS(instellingen!J14-instellingen!K14) -> 0
A11: =instellingen!E15 -> 35 - 40 | B11: =ABS(instellingen!H15-instellingen!I15) -> 0 | C11: =ABS(instellingen!J15-instellingen!K15) -> 0
A12: =instellingen!E16 -> 40 - 45 | B12: =ABS(instellingen!H16-instellingen!I16) -> 0 | C12: =ABS(instellingen!J16-instellingen!K16) -> 0
A13: =instellingen!E17 -> 45 - 50 | B13: =ABS(instellingen!H17-instellingen!I17) -> 0 | C13: =ABS(instellingen!J17-instellingen!K17) -> 0
A14: =instellingen!E18 -> 50+ | B14: =ABS(instellingen!H18-instellingen!I18) -> 0 | C14: =ABS(instellingen!J18-instellingen!K18) -> 0
A15: totaal | B15: =SUM(B4:B14) -> 0 | C15: =SUM(C4:C14) -> 0 | D15: =B15+C15 -> 0
B17: criterium rapportcijfer 1-richtingsverkeer | C17: criterium minimale breedte 1-richtingsverkeer
A18: =instellingen!E26 -> A | B18: =ABS(instellingen!H26-instellingen!I26) -> 0 | C18: =ABS(instellingen!J26-instellingen!K26) -> 0
A19: =instellingen!E27 -> B | B19: =ABS(instellingen!H27-instellingen!I27) -> 0 | C19: =ABS(instellingen!J27-instellingen!K27) -> 0
A20: =instellingen!E28 -> C | B20: =ABS(instellingen!H28-instellingen!I28) -> 0 | C20: =ABS(instellingen!J28-instellingen!K28) -> 0
A21: =instellingen!E29 -> D | B21: =ABS(instellingen!H29-instellingen!I29) -> 0 | C21: =ABS(instellingen!J29-instellingen!K29) -> 0
A22: =instellingen!E30 -> E | B22: =ABS(instellingen!H30-instellingen!I30) -> 0 | C22: =ABS(instellingen!J30-instellingen!K30) -> 0
B23: =SUM(B18:B22) -> 0 | C23: =SUM(C18:C22) -> 0 | D23: =B23+C23 -> 0
B25: criterium rapportcijfer 2-richtingsverkeer | C25: criterium minimale breedte 2-richtingsverkeer
A26: =instellingen!E38 -> A | B26: =ABS(instellingen!H38-instellingen!I38) -> 0 | C26: =ABS(instellingen!J38-instellingen!K38) -> 0
A27: =instellingen!E39 -> B | B27: =ABS(instellingen!H39-instellingen!I39) -> 0 | C27: =ABS(instellingen!J39-instellingen!K39) -> 0
A28: =instellingen!E40 -> C | B28: =ABS(instellingen!H40-instellingen!I40) -> 0 | C28: =ABS(instellingen!J40-instellingen!K40) -> 0
A29: =instellingen!E41 -> D | B29: =ABS(instellingen!H41-instellingen!I41) -> 0 | C29: =ABS(instellingen!J41-instellingen!K41) -> 0
A30: =instellingen!E42 -> E | B30: =ABS(instellingen!H42-instellingen!I42) -> 0 | C30: =ABS(instellingen!J42-instellingen!K42) -> 0
B31: =SUM(B26:B30) -> 0 | C31: =SUM(C26:C30) -> 0 | D31: =B31+C31 -> 0

Sheet Details variant 1 (hidden)
A1: intensiteit | B1: 372 | C1: voertuigen / uur | E1: =int_uur/3600 -> 0.1033333333 | F1: voertuigen per seconde
A2: % voertuigen richting 1 | B2: 0.66
A3: duur inhaalbeweging | B3: =instellingen!B7 -> 10 | C3: secondes
A4: wegvaklengte | B4: =instellingen!B8 -> 1000 | C4: meter
A5: wegvakbreedte | B5: =breedte/100 -> 3.6 | C5: meter | E5: 360 | F5: centimeter
A6: periode | B6: =instellingen!B9 -> 3600 | C6: secondes
A8: % duofiets | B8: 0.14
A9: % brede fiets | B9: 0
A10: % bromfiets | B10: 0.04
A12: snelheidsklasse | B12: km/u | C12: m/s | D12: snelheidsklasseverdeling fiets | E12: snelheidsklasseverdeling bromfiets | F12: % voertuigen in snelheidsklasse | G12: # ri 1 | H12: # ri 2 | I12: duur over wegvak | J12: % fiets | K12: % duofiets | L12: % brede fiets | M12: % bromfiets
A13: 0 - 5 | B13: 2.5 | C13: =B13/3.6 -> 0.6944444444 | D13: 0 | E13: 0 | F13: =(1-perc_bromfiets)*voertuigverdeling[[#This Row],[snelheidsklasseverdeling fiets]]+perc_bromfiets*voertuigverdeling[[#This Row],[snelheidsklasseverdeling bromfiets]] -> 0 | G13: =int_sec*perc_richting1*voertuigverdeling[[#This Row],[% voertuigen in snelheidsklasse]] -> 0 | H13: =int_sec*(1-perc_richting1)*voertuigverdeling[[#This Row],[% voertuigen in snelheidsklasse]] -> 0 | I13: =wegvaklengte/voertuigverdeling[[#This Row],[m/s]] -> 1440 | J13: =IF(voertuigverdeling[[#This Row],[% voertuigen in snelheidsklasse]]=0,0,voertuigverdeling[[#This Row],[snelheidsklasseverdeling fiets]]/voertuigverdeling[[#This Row],[% voertuigen in snelheidsklasse]]*(1-perc_duofiets-perc_bromfiets-perc_brede_fiets)) -> 0 | K13: =IF(voertuigverdeling[[#This Row],[% voertuigen in snelheidsklasse]]=0,0,voertuigverdeling[[#This Row],[snelheidsklasseverdeling fiets]]/voertuigverdeling[[#This Row],[% voertuigen in snelheidsklasse]]*perc_duofiets) -> 0 | L13: =IF(voertuigverdeling[[#This Row],[% voertuigen in snelheidsklasse]]=0,0,voertuigverdeling[[#This Row],[snelheidsklasseverdeling fiets]]/voertuigverdeling[[#This Row],[% voertuigen in snelheidsklasse]]*perc_brede_fiets) -> 0 | M13: =IF(voertuigverdeling[[#This Row],[% voertuigen in snelheidsklasse]]=0,0,voertuigverdeling[[#This Row],[snelheidsklasseverdeling bromfiets]]/voertuigverdeling[[#This Row],[% voertuigen in snelheidsklasse]]*perc_bromfiets) -> 0
A14: 5 - 10 | B14: 7.5 | C14: =B14/3.6 -> 2.083333333 | D14: 0.002 | E14: 0 | F14: =(1-perc_bromfiets)*voertuigverdeling[[#This Row],[snelheidsklasseverdeling fiets]]+perc_bromfiets*voertuigverdeling[[#This Row],[snelheidsklasseverdeling bromfiets]] -> 0.00192 | G14: =int_sec*perc_richting1*voertuigverdeling[[#This Row],[% voertuigen in snelheidsklasse]] -> 0.000130944 | H14: =int_sec*(1-perc_richting1)*voertuigverdeling[[#This Row],[% voertuigen in snelheidsklasse]] -> 6.7456e-05 | I14: =wegvaklengte/voertuigverdeling[[#This Row],[m/s]] -> 480 | J14: =IF(voertuigverdeling[[#This Row],[% voertuigen in snelheidsklasse]]=0,0,voertuigverdeling[[#This Row],[snelheidsklasseverdeling fiets]]/voertuigverdeling[[#This Row],[% voertuigen in snelheidsklasse]]*(1-perc_duofiets-perc_bromfiets-perc_brede_fiets)) -> 0.8541666667 | K14: =IF(voertuigverdeling[[#This Row],[% voertuigen in snelheidsklasse]]=0,0,voertuigverdeling[[#This Row],[snelheidsklasseverdeling fiets]]/voertuigverdeling[[#This Row],[% voertuigen in snelheidsklasse]]*perc_duofiets) -> 0.1458333333 | L14: =IF(voertuigverdeling[[#This Row],[% voertuigen in snelheidsklasse]]=0,0,voertuigverdeling[[#This Row],[snelheidsklasseverdeling fiets]]/voertuigverdeling[[#This Row],[% voertuigen in snelheidsklasse]]*perc_brede_fiets) -> 0 | M14: =IF(voertuigverdeling[[#This Row],[% voertuigen in snelheidsklasse]]=0,0,voertuigverdeling[[#This Row],[snelheidsklasseverdeling bromfiets]]/voertuigverdeling[[#This Row],[% voertuigen in snelheidsklasse]]*perc_bromfiets) -> 0
A15: 10 - 15 | B15: 12.5 | C15: 3.472222222 | D15: 0.149 | E15: 0.009 | F15: =(1-perc_bromfiets)*voertuigverdeling[[#This Row],[snelheidsklasseverdeling fiets]]+perc_bromfiets*voertuigverdeling[[#This Row],[snelheidsklasseverdeling bromfiets]] -> 0.1434 | G15: =int_sec*perc_richting1*voertuigverdeling[[#This Row],[% voertuigen in snelheidsklasse]] -> 0.00977988 | H15: =int_sec*(1-perc_richting1)*voertuigverdeling[[#This Row],[% voertuigen in snelheidsklasse]] -> 0.00503812 | I15: =wegvaklengte/voertuigverdeling[[#This Row],[m/s]] -> 288 | J15: =IF(voertuigverdeling[[#This Row],[% voertuigen in snelheidsklasse]]=0,0,voertuigverdeling[[#This Row],[snelheidsklasseverdeling fiets]]/voertuigverdeling[[#This Row],[% voertuigen in snelheidsklasse]]*(1-perc_duofiets-perc_bromfiets-perc_brede_fiets)) -> 0.8520223152 | K15: =IF(voertuigverdeling[[#This Row],[% voertuigen in snelheidsklasse]]=0,0,voertuigverdeling[[#This Row],[snelheidsklasseverdeling fiets]]/voertuigverdeling[[#This Row],[% voertuigen in snelheidsklasse]]*perc_duofiets) -> 0.1454672245 | L15: =IF(voertuigverdeling[[#This Row],[% voertuigen in snelheidsklasse]]=0,0,voertuigverdeling[[#This Row],[snelheidsklasseverdeling fiets]]/voertuigverdeling[[#This Row],[% voertuigen in snelheidsklasse]]*perc_brede_fiets) -> 0 | M15: =IF(voertuigverdeling[[#This Row],[% voertuigen in snelheidsklasse]]=0,0,voertuigverdeling[[#This Row],[snelheidsklasseverdeling bromfiets]]/voertuigverdeling[[#This Row],[% voertuigen in snelheidsklasse]]*perc_bromfiets) -> 0.002510460251
A16: 15 - 20 | B16: 17.5 | C16: 4.861111111 | D16: 0.474 | E16: 0.059 | F16: =(1-perc_bromfiets)*voertuigverdeling[[#This Row],[snelheidsklasseverdeling fiets]]+perc_bromfiets*voertuigverdeling[[#This Row],[snelheidsklasseverdeling bromfiets]] -> 0.4574 | G16: =int_sec*perc_richting1*voertuigverdeling[[#This Row],[% voertuigen in snelheidsklasse]] -> 0.03119468 | H16: =int_sec*(1-perc_richting1)*voertuigverdeling[[#This Row],[% voertuigen in snelheidsklasse]] -> 0.01606998667 | I16: =wegvaklengte/voertuigverdeling[[#This Row],[m/s]] -> 205.7142857 | J16: =IF(voertuigverdeling[[#This Row],[% voertuigen in snelheidsklasse]]=0,0,voertuigverdeling[[#This Row],[snelheidsklasseverdeling fiets]]/voertuigverdeling[[#This Row],[% voertuigen in snelheidsklasse]]*(1-perc_duofiets-perc_bromfiets-perc_brede_fiets)) -> 0.8497595103 | K16: =IF(voertuigverdeling[[#This Row],[% voertuigen in snelheidsklasse]]=0,0,voertuigverdeling[[#This Row],[snelheidsklasseverdeling fiets]]/voertuigverdeling[[#This Row],[% voertuigen in snelheidsklasse]]*perc_duofiets) -> 0.145080892 | L16: =IF(voertuigverdeling[[#This Row],[% voertuigen in snelheidsklasse]]=0,0,voertuigverdeling[[#This Row],[snelheidsklasseverdeling fiets]]/voertuigverdeling[[#This Row],[% voertuigen in snelheidsklasse]]*perc_brede_fiets) -> 0 | M16: =IF(voertuigverdeling[[#This Row],[% voertuigen in snelheidsklasse]]=0,0,voertuigverdeling[[#This Row],[snelheidsklasseverdeling bromfiets]]/voertuigverdeling[[#This Row],[% voertuigen in snelheidsklasse]]*perc_bromfiets) -> 0.005159597726
A17: 20 - 25 | B17: 22.5 | C17: 6.25 | D17: 0.289 | E17: 0 | F17: =(1-perc_bromfiets)*voertuigverdeling[[#This Row],[snelheidsklasseverdeling fiets]]+perc_bromfiets*voertuigverdeling[[#This Row],[snelheidsklasseverdeling bromfiets]] -> 0.27744 | G17: =int_sec*perc_richting1*voertuigverdeling[[#This Row],[% voertuigen in snelheidsklasse]] -> 0.018921408 | H17: =int_sec*(1-perc_richting1)*voertuigverdeling[[#This Row],[% voertuigen in snelheidsklasse]] -> 0.009747392 | I17: =wegvaklengte/voertuigverdeling[[#This Row],[m/s]] -> 160 | J17: =IF(voertuigverdeling[[#This Row],[% voertuigen in snelheidsklasse]]=0,0,voertuigverdeling[[#This Row],[snelheidsklasseverdeling fiets]]/voertuigverdeling[[#This Row],[% voertuigen in snelheidsklasse]]*(1-perc_duofiets-perc_bromfiets-perc_brede_fiets)) -> 0.8541666667 | K17: =IF(voertuigverdeling[[#This Row],[% voertuigen in snelheidsklasse]]=0,0,voertuigverdeling[[#This Row],[snelheidsklasseverdeling fiets]]/voertuigverdeling[[#This Row],[% voertuigen in snelheidsklasse]]*perc_duofiets) -> 0.1458333333 | L17: =IF(voertuigverdeling[[#This Row],[% voertuigen in snelheidsklasse]]=0,0,voertuigverdeling[[#This Row],[snelheidsklasseverdeling fiets]]/voertuigverdeling[[#This Row],[% voertuigen in snelheidsklasse]]*perc_brede_fiets) -> 0 | M17: =IF(voertuigverdeling[[#This Row],[% voertuigen in snelheidsklasse]]=0,0,voertuigverdeling[[#This Row],[snelheidsklasseverdeling bromfiets]]/voertuigverdeling[[#This Row],[% voertuigen in snelheidsklasse]]*perc_bromfiets) -> 0
A18: 25 - 30 | B18: 27.5 | C18: 7.638888889 | D18: 0.073 | E18: 0.194 | F18: =(1-perc_bromfiets)*voertuigverdeling[[#This Row],[snelheidsklasseverdeling fiets]]+perc_bromfiets*voertuigverdeling[[#This Row],[snelheidsklasseverdeling bromfiets]] -> 0.07784 | G18: =int_sec*perc_richting1*voertuigverdeling[[#This Row],[% voertuigen in snelheidsklasse]] -> 0.005308688 | H18: =int_sec*(1-perc_richting1)*voertuigverdeling[[#This Row],[% voertuigen in snelheidsklasse]] -> 0.002734778667 | I18: =wegvaklengte/voertuigverdeling[[#This Row],[m/s]] -> 130.9090909 | J18: =IF(voertuigverdeling[[#This Row],[% voertuigen in snelheidsklasse]]=0,0,voertuigverdeling[[#This Row],[snelheidsklasseverdeling fiets]]/voertuigverdeling[[#This Row],[% voertuigen in snelheidsklasse]]*(1-perc_duofiets-perc_bromfiets-perc_brede_fiets)) -> 0.7690133607 | K18: =IF(voertuigverdeling[[#This Row],[% voertuigen in snelheidsklasse]]=0,0,voertuigverdeling[[#This Row],[snelheidsklasseverdeling fiets]]/voertuigverdeling[[#This Row],[% voertuigen in snelheidsklasse]]*perc_duofiets) -> 0.131294964 | L18: =IF(voertuigverdeling[[#This Row],[% voertuigen in snelheidsklasse]]=0,0,voertuigverdeling[[#This Row],[snelheidsklasseverdeling fiets]]/voertuigverdeling[[#This Row],[% voertuigen in snelheidsklasse]]*perc_brede_fiets) -> 0 | M18: =IF(voertuigverdeling[[#This Row],[% voertuigen in snelheidsklasse]]=0,0,voertuigverdeling[[#This Row],[snelheidsklasseverdeling bromfiets]]/voertuigverdeling[[#This Row],[% voertuigen in snelheidsklasse]]*perc_bromfiets) -> 0.09969167523
A19: 30 - 35 | B19: 32.5 | C19: 9.027777778 | D19: 0.011 | E19: 0.188 | F19: =(1-perc_bromfiets)*voertuigverdeling[[#This Row],[snelheidsklasseverdeling fiets]]+perc_bromfiets*voertuigverdeling[[#This Row],[snelheidsklasseverdeling bromfiets]] -> 0.01808 | G19: =int_sec*perc_richting1*voertuigverdeling[[#This Row],[% voertuigen in snelheidsklasse]] -> 0.001233056 | H19: =int_sec*(1-perc_richting1)*voertuigverdeling[[#This Row],[% voertuigen in snelheidsklasse]] -> 0.0006352106667 | I19: =wegvaklengte/voertuigverdeling[[#This Row],[m/s]] -> 110.7692308 | J19: =IF(voertuigverdeling[[#This Row],[% voertuigen in snelheidsklasse]]=0,0,voertuigverdeling[[#This Row],[snelheidsklasseverdeling fiets]]/voertuigverdeling[[#This Row],[% voertuigen in snelheidsklasse]]*(1-perc_duofiets-perc_bromfiets-perc_brede_fiets)) -> 0.4988938053 | K19: =IF(voertuigverdeling[[#This Row],[% voertuigen in snelheidsklasse]]=0,0,voertuigverdeling[[#This Row],[snelheidsklasseverdeling fiets]]/voertuigverdeling[[#This Row],[% voertuigen in snelheidsklasse]]*perc_duofiets) -> 0.08517699115 | L19: =IF(voertuigverdeling[[#This Row],[% voertuigen in snelheidsklasse]]=0,0,voertuigverdeling[[#This Row],[snelheidsklasseverdeling fiets]]/voertuigverdeling[[#This Row],[% voertuigen in snelheidsklasse]]*perc_brede_fiets) -> 0 | M19: =IF(voertuigverdeling[[#This Row],[% voertuigen in snelheidsklasse]]=0,0,voertuigverdeling[[#This Row],[snelheidsklasseverdeling bromfiets]]/voertuigverdeling[[#This Row],[% voertuigen in snelheidsklasse]]*perc_bromfiets) -> 0.4159292035
A20: 35 - 40 | B20: 37.5 | C20: 10.41666667 | D20: 0.002 | E20: 0.148 | F20: =(1-perc_bromfiets)*voertuigverdeling[[#This Row],[snelheidsklasseverdeling fiets]]+perc_bromfiets*voertuigverdeling[[#This Row],[snelheidsklasseverdeling bromfiets]] -> 0.00784 | G20: =int_sec*perc_richting1*voertuigverdeling[[#This Row],[% voertuigen in snelheidsklasse]] -> 0.000534688 | H20: =int_sec*(1-perc_richting1)*voertuigverdeling[[#This Row],[% voertuigen in snelheidsklasse]] -> 0.0002754453333 | I20: =wegvaklengte/voertuigverdeling[[#This Row],[m/s]] -> 96 | J20: =IF(voertuigverdeling[[#This Row],[% voertuigen in snelheidsklasse]]=0,0,voertuigverdeling[[#This Row],[snelheidsklasseverdeling fiets]]/voertuigverdeling[[#This Row],[% voertuigen in snelheidsklasse]]*(1-perc_duofiets-perc_bromfiets-perc_brede_fiets)) -> 0.2091836735 | K20: =IF(voertuigverdeling[[#This Row],[% voertuigen in snelheidsklasse]]=0,0,voertuigverdeling[[#This Row],[snelheidsklasseverdeling fiets]]/voertuigverdeling[[#This Row],[% voertuigen in snelheidsklasse]]*perc_duofiets) -> 0.03571428571 | L20: =IF(voertuigverdeling[[#This Row],[% voertuigen in snelheidsklasse]]=0,0,voertuigverdeling[[#This Row],[snelheidsklasseverdeling fiets]]/voertuigverdeling[[#This Row],[% voertuigen in snelheidsklasse]]*perc_brede_fiets) -> 0 | M20: =IF(voertuigverdeling[[#This Row],[% voertuigen in snelheidsklasse]]=0,0,voertuigverdeling[[#This Row],[snelheidsklasseverdeling bromfiets]]/voertuigverdeling[[#This Row],[% voertuigen in snelheidsklasse]]*perc_bromfiets) -> 0.7551020408
A21: 40 - 45 | B21: 42.5 | C21: =B21/3.6 -> 11.80555556 | D21: 0 | E21: 0.103 | F21: =(1-perc_bromfiets)*voertuigverdeling[[#This Row],[snelheidsklasseverdeling fiets]]+perc_bromfiets*voertuigverdeling[[#This Row],[snelheidsklasseverdeling bromfiets]] -> 0.00412 | G21: =int_sec*perc_richting1*voertuigverdeling[[#This Row],[% voertuigen in snelheidsklasse]] -> 0.000280984 | H21: =int_sec*(1-perc_richting1)*voertuigverdeling[[#This Row],[% voertuigen in snelheidsklasse]] -> 0.0001447493333 | I21: =wegvaklengte/voertuigverdeling[[#This Row],[m/s]] -> 84.70588235 | J21: =IF(voertuigverdeling[[#This Row],[% voertuigen in snelheidsklasse]]=0,0,voertuigverdeling[[#This Row],[snelheidsklasseverdeling fiets]]/voertuigverdeling[[#This Row],[% voertuigen in snelheidsklasse]]*(1-perc_duofiets-perc_bromfiets-perc_brede_fiets)) -> 0 | K21: =IF(voertuigverdeling[[#This Row],[% voertuigen in snelheidsklasse]]=0,0,voertuigverdeling[[#This Row],[snelheidsklasseverdeling fiets]]/voertuigverdeling[[#This Row],[% voertuigen in snelheidsklasse]]*perc_duofiets) -> 0 | L21: =IF(voertuigverdeling[[#This Row],[% voertuigen in snelheidsklasse]]=0,0,voertuigverdeling[[#This Row],[snelheidsklasseverdeling fiets]]/voertuigverdeling[[#This Row],[% voertuigen in snelheidsklasse]]*perc_brede_fiets) -> 0 | M21: =IF(voertuigverdeling[[#This Row],[% voertuigen in snelheidsklasse]]=0,0,voertuigverdeling[[#This Row],[snelheidsklasseverdeling bromfiets]]/voertuigverdeling[[#This Row],[% voertuigen in snelheidsklasse]]*perc_bromfiets) -> 1
A22: 45 - 50 | B22: 47.5 | C22: 13.19444444 | D22: 0 | E22: 0.065 | F22: =(1-perc_bromfiets)*voertuigverdeling[[#This Row],[snelheidsklasseverdeling fiets]]+perc_bromfiets*voertuigverdeling[[#This Row],[snelheidsklasseverdeling bromfiets]] -> 0.0026 | G22: =int_sec*perc_richting1*voertuigverdeling[[#This Row],[% voertuigen in snelheidsklasse]] -> 0.00017732 | H22: =int_sec*(1-perc_richting1)*voertuigverdeling[[#This Row],[% voertuigen in snelheidsklasse]] -> 9.134666667e-05 | I22: =wegvaklengte/voertuigverdeling[[#This Row],[m/s]] -> 75.78947368 | J22: =IF(voertuigverdeling[[#This Row],[% voertuigen in snelheidsklasse]]=0,0,voertuigverdeling[[#This Row],[snelheidsklasseverdeling fiets]]/voertuigverdeling[[#This Row],[% voertuigen in snelheidsklasse]]*(1-perc_duofiets-perc_bromfiets-perc_brede_fiets)) -> 0 | K22: =IF(voertuigverdeling[[#This Row],[% voertuigen in snelheidsklasse]]=0,0,voertuigverdeling[[#This Row],[snelheidsklasseverdeling fiets]]/voertuigverdeling[[#This Row],[% voertuigen in snelheidsklasse]]*perc_duofiets) -> 0 | L22: =IF(voertuigverdeling[[#This Row],[% voertuigen in snelheidsklasse]]=0,0,voertuigverdeling[[#This Row],[snelheidsklasseverdeling fiets]]/voertuigverdeling[[#This Row],[% voertuigen in snelheidsklasse]]*perc_brede_fiets) -> 0 | M22: =IF(voertuigverdeling[[#This Row],[% voertuigen in snelheidsklasse]]=0,0,voertuigverdeling[[#This Row],[snelheidsklasseverdeling bromfiets]]/voertuigverdeling[[#This Row],[% voertuigen in snelheidsklasse]]*perc_bromfiets) -> 1
A23: 50 - 55 | B23: 52.5 | C23: 14.58333333 | D23: 0 | E23: 0.234 | F23: =(1-perc_bromfiets)*voertuigverdeling[[#This Row],[snelheidsklasseverdeling fiets]]+perc_bromfiets*voertuigverdeling[[#This Row],[snelheidsklasseverdeling bromfiets]] -> 0.00936 | G23: =int_sec*perc_richting1*voertuigverdeling[[#This Row],[% voertuigen in snelheidsklasse]] -> 0.000638352 | H23: =int_sec*(1-perc_richting1)*voertuigverdeling[[#This Row],[% voertuigen in snelheidsklasse]] -> 0.000328848 | I23: =wegvaklengte/voertuigverdeling[[#This Row],[m/s]] -> 68.57142857 | J23: =IF(voertuigverdeling[[#This Row],[% voertuigen in snelheidsklasse]]=0,0,voertuigverdeling[[#This Row],[snelheidsklasseverdeling fiets]]/voertuigverdeling[[#This Row],[% voertuigen in snelheidsklasse]]*(1-perc_duofiets-perc_bromfiets-perc_brede_fiets)) -> 0 | K23: =IF(voertuigverdeling[[#This Row],[% voertuigen in snelheidsklasse]]=0,0,voertuigverdeling[[#This Row],[snelheidsklasseverdeling fiets]]/voertuigverdeling[[#This Row],[% voertuigen in snelheidsklasse]]*perc_duofiets) -> 0 | L23: =IF(voertuigverdeling[[#This Row],[% voertuigen in snelheidsklasse]]=0,0,voertuigverdeling[[#This Row],[snelheidsklasseverdeling fiets]]/voertuigverdeling[[#This Row],[% voertuigen in snelheidsklasse]]*perc_brede_fiets) -> 0 | M23: =IF(voertuigverdeling[[#This Row],[% voertuigen in snelheidsklasse]]=0,0,voertuigverdeling[[#This Row],[snelheidsklasseverdeling bromfiets]]/voertuigverdeling[[#This Row],[% voertuigen in snelheidsklasse]]*perc_bromfiets) -> 1
A25: Sterren breedte | E25: Sterren ontmoetingen
A26: aantal sterren | B26: eenrichting | C26: tweerichting | E26: aantal sterren | F26: eenrichting | G26: tweerichting
A27: 0 | B27: 0 | C27: 0 | E27: 0 | F27: 9999999 | G27: 9999999
A28: 1 | B28: 120 | C28: 120 | E28: 1 | F28: 6 | G28: 6
A29: 2 | B29: 170 | C29: 170 | E29: 2 | F29: 6.5 | G29: 6.5
A30: 3 | B30: 200 | C30: 200 | E30: 3 | F30: 7 | G30: 7
A31: 4 | B31: 230 | C31: 230 | E31: 4 | F31: 7.4 | G31: 7.4
A32: 5 | B32: 300 | C32: 400 | E32: 5 | F32: 7.7 | G32: 7.7
B33: 99999 | C33: 99999
A35: Enkelvoudige inhaalbewegingen | C35: met brommer | D35: met duo/ brede fiets | E35: met fiets | J35: 5 sterren | K35: cijfer onder doel | L35: cijfer boven doel
M36: breedte
A37: groen | B37: =SUMIFS('Berekening variant 1'!$JS$1:$JX$1,'Berekening variant 1'!$JS$5:$JX$5,"<"&breedte) -> 429.8834069 | C37: =SUMIFS('Berekening variant 1'!$JS$1:$JX$1,'Berekening variant 1'!$JS$5:$JX$5,"<"&breedte,'Berekening variant 1'!$JS$8:$JX$8,TRUE) -> 67.48970596 | D37: =SUMIFS('Berekening variant 1'!$JS$1:$JX$1,'Berekening variant 1'!$JS$5:$JX$5,"<"&breedte,'Berekening variant 1'!$JS$9:$JX$9,TRUE) -> 52.84908138 | E37: =SUMIFS('Berekening variant 1'!$JS$1:$JX$1,'Berekening variant 1'!$JS$5:$JX$5,"<"&breedte,'Berekening variant 1'!$JS$7:$JX$7,TRUE) -> 429.8834069 | F37: =B37 -> 429.8834069 | G37: 67.48970596 | J37: 1 | K37: =AH42<AI42 -> FALSE | L37: TRUE | M37: 1000
A38: geel | B38: =SUMIFS('Berekening variant 1'!$JS$1:$JX$1,'Berekening variant 1'!$JS$5:$JX$5,">="&breedte,'Berekening variant 1'!$JS$6:$JX$6,"<"&breedte) -> 8.657288128 | C38: =SUMIFS('Berekening variant 1'!$JS$1:$JX$1,'Berekening variant 1'!$JS$5:$JX$5,">="&breedte,'Berekening variant 1'!$JS$6:$JX$6,"<"&breedte,'Berekening variant 1'!$JS$8:$JX$8,TRUE) -> 6.401534654 | D38: =SUMIFS('Berekening variant 1'!$JS$1:$JX$1,'Berekening variant 1'!$JS$5:$JX$5,">="&breedte,'Berekening variant 1'!$JS$6:$JX$6,"<"&breedte,'Berekening variant 1'!$JS$9:$JX$9,TRUE) -> 8.017069836 | E38: =SUMIFS('Berekening variant 1'!$JS$1:$JX$1,'Berekening variant 1'!$JS$5:$JX$5,">="&breedte,'Berekening variant 1'!$JS$6:$JX$6,"<"&breedte,'Berekening variant 1'!$JS$7:$JX$7,TRUE) -> 0 | F38: 8.657288128 | G38: 6.401534654 | J38: 2 | K38: TRUE | L38: =AH43>AI43 -> FALSE | M38: 0
A39: rood | B39: =SUMIFS('Berekening variant 1'!$JS$1:$JX$1,'Berekening variant 1'!$JS$6:$JX$6,">="&breedte) -> 0 | C39: =SUMIFS('Berekening variant 1'!$JS$1:$JX$1,'Berekening variant 1'!$JS$6:$JX$6,">="&breedte,'Berekening variant 1'!$JS$8:$JX$8,TRUE) -> 0 | D39: =SUMIFS('Berekening variant 1'!$JS$1:$JX$1,'Berekening variant 1'!$JS$6:$JX$6,">="&breedte,'Berekening variant 1'!$JS$9:$JX$9,TRUE) -> 0 | E39: =SUMIFS('Berekening variant 1'!$JS$1:$JX$1,'Berekening variant 1'!$JS$6:$JX$6,">="&breedte,'Berekening variant 1'!$JS$7:$JX$7,TRUE) -> 0 | F39: 0 | G39: 0 | J39: 3 | K39: =AH44<AI44 -> TRUE | L39: =AH44>AI44 -> FALSE | M39: =ROUND(AVERAGE(M37:M38),0) -> 500
F40: =B43 -> 5695.325706 | G40: 341.6448206 | J40: 4 | K40: =AH45<AI45 -> FALSE | L40: =AH45>AI45 -> TRUE | M40: =ROUND(AVERAGE(INDEX(M$37:M39,_xlfn.MAXIFS(J$37:J39,K$37:K39,TRUE),1),INDEX(M$37:M39,_xlfn.MAXIFS(J$37:J39,L$37:L39,TRUE),1)),0) -> 750 | N40: geel | V40: rood | AD40: zonder brommer per fietser | AF40: met brommer per fietser
A41: Enkelvoudige tegemoetkomingen | F41: 68.27342477 | G41: 34.94893755 | J41: 5 | K41: FALSE | L41: TRUE | M41: =ROUND(AVERAGE(INDEX(M$37:M40,_xlfn.MAXIFS(J$37:J40,K$37:K40,TRUE),1),INDEX(M$37:M40,_xlfn.MAXIFS(J$37:J40,L$37:L40,TRUE),1)),0) -> 625 | N41: enkelvoudige inhaalbewegingen | O41: enkelvoudige tegemoetkomingen | P41: inhaalbeweging met enkelvoudige tegemoetkomingen | Q41: inhaalbeweging met dubbele tegemoetkomingen | R41: enkelvoudige inhaalbewegingen met brommer | S41: enkelvoudige tegemoetkomingen met brommer | T41: inhaalbeweging met enkelvoudige tegemoetkomingen met brommer | U41: inhaalbeweging met dubbele tegemoetkomingen met brommer | V41: enkelvoudige inhaalbewegingen | W41: enkelvoudige tegemoetkomingen | X41: inhaalbeweging met enkelvoudige tegemoetkomingen | Y41: inhaalbeweging met dubbele tegemoetkomingen | Z41: enkelvoudige inhaalbewegingen met brommer | AA41: enkelvoudige tegemoetkomingen met brommer | AB41: inhaalbeweging met enkelvoudige tegemoetkomingen met brommer | AC41: inhaalbeweging met dubbele tegemoetkomingen met brommer | AD41: rood | AE41: geel | AF41: rood | AG41: geel | AH41: rapportcijfer | AI41: doel
C42: met brommer | D42: met duo/ brede fiets | E42: met fiets | F42: 0 | G42: 0 | J42: 6 | K42: FALSE | L42: TRUE | M42: =ROUND(AVERAGE(INDEX(M$37:M41,_xlfn.MAXIFS(J$37:J41,K$37:K41,TRUE),1),INDEX(M$37:M41,_xlfn.MAXIFS(J$37:J41,L$37:L41,TRUE),1)),0) -> 563 | N42: =SUMIFS('Berekening variant 1'!$JS$1:$JX$1,'Berekening variant 1'!$JS$5:$JX$5,">="&$M37,'Berekening variant 1'!$JS$6:$JX$6,"<"&$M37) -> 0 | O42: =SUMIFS('Berekening variant 1'!$LC$1:$LH$1,'Berekening variant 1'!$LC$5:$LH$5,">"&$M37,'Berekening variant 1'!$LC$6:$LH$6,"<="&$M37) -> 0 | P42: =SUMIFS('Berekening variant 1'!$GR$1:$IA$1,'Berekening variant 1'!$GR$5:$IA$5,">"&$M37,'Berekening variant 1'!$GR$6:$IA$6,"<="&$M37) -> 0 | Q42: =SUMIFS('Berekening variant 1'!$AG$1:$DW$1,'Berekening variant 1'!$AG$5:$DW$5,">"&$M37,'Berekening variant 1'!$AG$6:$DW$6,"<="&$M37) -> 0 | R42: =SUMIFS('Berekening variant 1'!$JS$1:$JX$1,'Berekening variant 1'!$JS$5:$JX$5,">="&$M37,'Berekening variant 1'!$JS$6:$JX$6,"<"&$M37,'Berekening variant 1'!$JS$8:$JX$8,TRUE) -> 0 | S42: =SUMIFS('Berekening variant 1'!$LC$1:$LH$1,'Berekening variant 1'!$LC$5:$LH$5,">"&$M37,'Berekening variant 1'!$LC$6:$LH$6,"<="&$M37,'Berekening variant 1'!$LC$8:$LH$8,TRUE) -> 0 | T42: =SUMIFS('Berekening variant 1'!$GR$1:$IA$1,'Berekening variant 1'!$GR$5:$IA$5,">"&$M37,'Berekening variant 1'!$GR$6:$IA$6,"<="&$M37,'Berekening variant 1'!$GR$8:$IA$8,TRUE) -> 0 | U42: =SUMIFS('Berekening variant 1'!$AG$1:$DW$1,'Berekening variant 1'!$AG$5:$DW$5,">"&$M37,'Berekening variant 1'!$AG$6:$DW$6,"<="&$M37,'Berekening variant 1'!$AG$8:$DW$8,TRUE) -> 0 | V42: =SUMIFS('Berekening variant 1'!$JS$1:$JX$1,'Berekening variant 1'!$JS$6:$JX$6,">="&$M37) -> 0 | W42: =SUMIFS('Berekening variant 1'!$LC$1:$LH$1,'Berekening variant 1'!$LC$6:$LH$6,">"&$M37) -> 0 | X42: =SUMIFS('Berekening variant 1'!$GR$1:$IA$1,'Berekening variant 1'!$GR$6:$IA$6,">"&$M37) -> 0 | Y42: =SUMIFS('Berekening variant 1'!$AG$1:$DW$1,'Berekening variant 1'!$AG$6:$DW$6,">"&$M37) -> 0 | Z42: =SUMIFS('Berekening variant 1'!$JS$1:$JX$1,'Berekening variant 1'!$JS$6:$JX$6,">="&$M37,'Berekening variant 1'!$JS$8:$JX$8,TRUE) -> 0 | AA42: =SUMIFS('Berekening variant 1'!$LC$1:$LH$1,'Berekening variant 1'!$LC$6:$LH$6,">"&$M37,'Berekening variant 1'!$LC$8:$LH$8,TRUE) -> 0 | AB42: =SUMIFS('Berekening variant 1'!$GR$1:$IA$1,'Berekening variant 1'!$GR$6:$IA$6,">"&$M37,'Berekening variant 1'!$GR$8:$IA$8,TRUE) -> 0 | AC42: =SUMIFS('Berekening variant 1'!$AG$1:$DW$1,'Berekening variant 1'!$AG$6:$DW$6,">"&$M37,'Berekening variant 1'!$AG$8:$DW$8,TRUE) -> 0 | AD42: =(SUM(V42:Y42)-SUM(Z42:AC42))/int_uur -> 0 | AE42: =(SUM(N42:Q42)-SUM(R42:U42))/int_uur -> 0 | AF42: =SUM(Z42:AC42)/int_uur -> 0 | AG42: =SUM(R42:U42)/int_uur -> 0 | AH42: =$B$97+$B$98*SQRT($B$91*AD42+$B$92*AE42+$B$93*AF42+$B$94*AG42) -> 7.867 | AI42: =$F$96 -> 7.7
A43: groen | B43: =SUMIFS('Berekening variant 1'!$LC$1:$LH$1,'Berekening variant 1'!$LC$5:$LH$5,"<="&breedte) -> 5695.325706 | C43: =SUMIFS('Berekening variant 1'!$LC$1:$LH$1,'Berekening variant 1'!$LC$5:$LH$5,"<="&breedte,'Berekening variant 1'!$LC$8:$LH$8,TRUE) -> 341.6448206 | D43: =SUMIFS('Berekening variant 1'!$LC$1:$LH$1,'Berekening variant 1'!$LC$5:$LH$5,"<="&breedte,'Berekening variant 1'!$LC$9:$LH$9,TRUE) -> 780.745129 | E43: =SUMIFS('Berekening variant 1'!$LC$1:$LH$1,'Berekening variant 1'!$LC$5:$LH$5,"<="&breedte,'Berekening variant 1'!$LC$7:$LH$7,TRUE) -> 5695.325706 | F43: =B49 -> 0 | G43: 0 | J43: 7 | K43: FALSE | L43: TRUE | M43: =ROUND(AVERAGE(INDEX(M$37:M42,_xlfn.MAXIFS(J$37:J42,K$37:K42,TRUE),1),INDEX(M$37:M42,_xlfn.MAXIFS(J$37:J42,L$37:L42,TRUE),1)),0) -> 532 | N43: =SUMIFS('Berekening variant 1'!$JS$1:$JX$1,'Berekening variant 1'!$JS$5:$JX$5,">="&$M38,'Berekening variant 1'!$JS$6:$JX$6,"<"&$M38) -> 0 | O43: =SUMIFS('Berekening variant 1'!$LC$1:$LH$1,'Berekening variant 1'!$LC$5:$LH$5,">"&$M38,'Berekening variant 1'!$LC$6:$LH$6,"<="&$M38) -> 0 | P43: =SUMIFS('Berekening variant 1'!$GR$1:$IA$1,'Berekening variant 1'!$GR$5:$IA$5,">"&$M38,'Berekening variant 1'!$GR$6:$IA$6,"<="&$M38) -> 0 | Q43: =SUMIFS('Berekening variant 1'!$AG$1:$DW$1,'Berekening variant 1'!$AG$5:$DW$5,">"&$M38,'Berekening variant 1'!$AG$6:$DW$6,"<="&$M38) -> 0 | R43: =SUMIFS('Berekening variant 1'!$JS$1:$JX$1,'Berekening variant 1'!$JS$5:$JX$5,">="&$M38,'Berekening variant 1'!$JS$6:$JX$6,"<"&$M38,'Berekening variant 1'!$JS$8:$JX$8,TRUE) -> 0 | S43: =SUMIFS('Berekening variant 1'!$LC$1:$LH$1,'Berekening variant 1'!$LC$5:$LH$5,">"&$M38,'Berekening variant 1'!$LC$6:$LH$6,"<="&$M38,'Berekening variant 1'!$LC$8:$LH$8,TRUE) -> 0 | T43: =SUMIFS('Berekening variant 1'!$GR$1:$IA$1,'Berekening variant 1'!$GR$5:$IA$5,">"&$M38,'Berekening variant 1'!$GR$6:$IA$6,"<="&$M38,'Berekening variant 1'!$GR$8:$IA$8,TRUE) -> 0 | U43: =SUMIFS('Berekening variant 1'!$AG$1:$DW$1,'Berekening variant 1'!$AG$5:$DW$5,">"&$M38,'Berekening variant 1'!$AG$6:$DW$6,"<="&$M38,'Berekening variant 1'!$AG$8:$DW$8,TRUE) -> 0 | V43: =SUMIFS('Berekening variant 1'!$JS$1:$JX$1,'Berekening variant 1'!$JS$6:$JX$6,">="&$M38) -> 438.540695 | W43: =SUMIFS('Berekening variant 1'!$LC$1:$LH$1,'Berekening variant 1'!$LC$6:$LH$6,">"&$M38) -> 5763.59913 | X43: =SUMIFS('Berekening variant 1'!$GR$1:$IA$1,'Berekening variant 1'!$GR$6:$IA$6,">"&$M38) -> 187.9562016 | Y43: =SUMIFS('Berekening variant 1'!$AG$1:$DW$1,'Berekening variant 1'!$AG$6:$DW$6,">"&$M38) -> 27.92965997 | Z43: =SUMIFS('Berekening variant 1'!$JS$1:$JX$1,'Berekening variant 1'!$JS$6:$JX$6,">="&$M38,'Berekening variant 1'!$JS$8:$JX$8,TRUE) -> 73.89124062 | AA43: =SUMIFS('Berekening variant 1'!$LC$1:$LH$1,'Berekening variant 1'!$LC$6:$LH$6,">"&$M38,'Berekening variant 1'!$LC$8:$LH$8,TRUE) -> 376.5937582 | AB43: =SUMIFS('Berekening variant 1'!$GR$1:$IA$1,'Berekening variant 1'!$GR$6:$IA$6,">"&$M38,'Berekening variant 1'!$GR$8:$IA$8,TRUE) -> 35.95788434 | AC43: =SUMIFS('Berekening variant 1'!$AG$1:$DW$1,'Berekening variant 1'!$AG$6:$DW$6,">"&$M38,'Berekening variant 1'!$AG$8:$DW$8,TRUE) -> 7.069162251 | AD43: 15.92611194 | AE43: 0 | AF43: 1.326645283 | AG43: 0 | AH43: =$B$97+$B$98*SQRT($B$91*AD43+$B$92*AE43+$B$93*AF43+$B$94*AG43) -> 5.197687043 | AI43: =$F$96 -> 7.7
A44: geel | B44: =SUMIFS('Berekening variant 1'!$LC$1:$LH$1,'Berekening variant 1'!$LC$5:$LH$5,">"&breedte,'Berekening variant 1'!$LC$6:$LH$6,"<="&breedte) -> 68.27342477 | C44: =SUMIFS('Berekening variant 1'!$LC$1:$LH$1,'Berekening variant 1'!$LC$5:$LH$5,">"&breedte,'Berekening variant 1'!$LC$6:$LH$6,"<="&breedte,'Berekening variant 1'!$LC$8:$LH$8,TRUE) -> 34.94893755 | D44: =SUMIFS('Berekening variant 1'!$LC$1:$LH$1,'Berekening variant 1'!$LC$5:$LH$5,">"&breedte,'Berekening variant 1'!$LC$6:$LH$6,"<="&breedte,'Berekening variant 1'!$LC$9:$LH$9,TRUE) -> 62.48928898 | E44: =SUMIFS('Berekening variant 1'!$LC$1:$LH$1,'Berekening variant 1'!$LC$5:$LH$5,">"&breedte,'Berekening variant 1'!$LC$6:$LH$6,"<="&breedte,'Berekening variant 1'!$LC$7:$LH$7,TRUE) -> 0 | F44: 178.5825775 | G44: 29.2571766 | J44: 8 | K44: FALSE | L44: TRUE | M44: =ROUND(AVERAGE(INDEX(M$37:M43,_xlfn.MAXIFS(J$37:J43,K$37:K43,TRUE),1),INDEX(M$37:M43,_xlfn.MAXIFS(J$37:J43,L$37:L43,TRUE),1)),0) -> 516 | N44: =SUMIFS('Berekening variant 1'!$JS$1:$JX$1,'Berekening variant 1'!$JS$5:$JX$5,">="&$M39,'Berekening variant 1'!$JS$6:$JX$6,"<"&$M39) -> 0 | O44: =SUMIFS('Berekening variant 1'!$LC$1:$LH$1,'Berekening variant 1'!$LC$5:$LH$5,">"&$M39,'Berekening variant 1'!$LC$6:$LH$6,"<="&$M39) -> 0 | P44: =SUMIFS('Berekening variant 1'!$GR$1:$IA$1,'Berekening variant 1'!$GR$5:$IA$5,">"&$M39,'Berekening variant 1'!$GR$6:$IA$6,"<="&$M39) -> 32.09322813 | Q44: =SUMIFS('Berekening variant 1'!$AG$1:$DW$1,'Berekening variant 1'!$AG$5:$DW$5,">"&$M39,'Berekening variant 1'!$AG$6:$DW$6,"<="&$M39) -> 10.30884034 | R44: =SUMIFS('Berekening variant 1'!$JS$1:$JX$1,'Berekening variant 1'!$JS$5:$JX$5,">="&$M39,'Berekening variant 1'!$JS$6:$JX$6,"<"&$M39,'Berekening variant 1'!$JS$8:$JX$8,TRUE) -> 0 | S44: =SUMIFS('Berekening variant 1'!$LC$1:$LH$1,'Berekening variant 1'!$LC$5:$LH$5,">"&$M39,'Berekening variant 1'!$LC$6:$LH$6,"<="&$M39,'Berekening variant 1'!$LC$8:$LH$8,TRUE) -> 0 | T44: =SUMIFS('Berekening variant 1'!$GR$1:$IA$1,'Berekening variant 1'!$GR$5:$IA$5,">"&$M39,'Berekening variant 1'!$GR$6:$IA$6,"<="&$M39,'Berekening variant 1'!$GR$8:$IA$8,TRUE) -> 29.49426603 | U44: =SUMIFS('Berekening variant 1'!$AG$1:$DW$1,'Berekening variant 1'!$AG$5:$DW$5,">"&$M39,'Berekening variant 1'!$AG$6:$DW$6,"<="&$M39,'Berekening variant 1'!$AG$8:$DW$8,TRUE) -> 5.175923499 | V44: =SUMIFS('Berekening variant 1'!$JS$1:$JX$1,'Berekening variant 1'!$JS$6:$JX$6,">="&$M39) -> 0 | W44: =SUMIFS('Berekening variant 1'!$LC$1:$LH$1,'Berekening variant 1'!$LC$6:$LH$6,">"&$M39) -> 0 | X44: =SUMIFS('Berekening variant 1'!$GR$1:$IA$1,'Berekening variant 1'!$GR$6:$IA$6,">"&$M39) -> 0.2412777053 | Y44: =SUMIFS('Berekening variant 1'!$AG$1:$DW$1,'Berekening variant 1'!$AG$6:$DW$6,">"&$M39) -> 2.58870603 | Z44: =SUMIFS('Berekening variant 1'!$JS$1:$JX$1,'Berekening variant 1'!$JS$6:$JX$6,">="&$M39,'Berekening variant 1'!$JS$8:$JX$8,TRUE) -> 0 | AA44: =SUMIFS('Berekening variant 1'!$LC$1:$LH$1,'Berekening variant 1'!$LC$6:$LH$6,">"&$M39,'Berekening variant 1'!$LC$8:$LH$8,TRUE) -> 0 | AB44: =SUMIFS('Berekening variant 1'!$GR$1:$IA$1,'Berekening variant 1'!$GR$6:$IA$6,">"&$M39,'Berekening variant 1'!$GR$8:$IA$8,TRUE) -> 0.167323499 | AC44: =SUMIFS('Berekening variant 1'!$AG$1:$DW$1,'Berekening variant 1'!$AG$6:$DW$6,">"&$M39,'Berekening variant 1'!$AG$8:$DW$8,TRUE) -> 1.893238752 | AD44: 0.002068337323 | AE44: 0.02078462082 | AF44: 0.005539145836 | AG44: 0.0931994342 | AH44: 7.666624793 | AI44: 7.7
A45: rood | B45: =SUMIFS('Berekening variant 1'!$LC$1:$LH$1,'Berekening variant 1'!$LC$6:$LH$6,">"&breedte) -> 0 | C45: =SUMIFS('Berekening variant 1'!$LC$1:$LH$1,'Berekening variant 1'!$LC$6:$LH$6,">"&breedte,'Berekening variant 1'!$LC$8:$LH$8,TRUE) -> 0 | D45: =SUMIFS('Berekening variant 1'!$LC$1:$LH$1,'Berekening variant 1'!$LC$6:$LH$6,">"&breedte,'Berekening variant 1'!$LC$9:$LH$9,TRUE) -> 0 | E45: =SUMIFS('Berekening variant 1'!$LC$1:$LH$1,'Berekening variant 1'!$LC$6:$LH$6,">"&breedte,'Berekening variant 1'!$LC$7:$LH$7,TRUE) -> 0 | F45: 9.373624049 | G45: 6.700707738 | J45: 9 | K45: TRUE | L45: FALSE | M45: =ROUND(AVERAGE(INDEX(M$37:M44,_xlfn.MAXIFS(J$37:J44,K$37:K44,TRUE),1),INDEX(M$37:M44,_xlfn.MAXIFS(J$37:J44,L$37:L44,TRUE),1)),0) -> 508 | N45: =SUMIFS('Berekening variant 1'!$JS$1:$JX$1,'Berekening variant 1'!$JS$5:$JX$5,">="&$M40,'Berekening variant 1'!$JS$6:$JX$6,"<"&$M40) -> 0 | O45: =SUMIFS('Berekening variant 1'!$LC$1:$LH$1,'Berekening variant 1'!$LC$5:$LH$5,">"&$M40,'Berekening variant 1'!$LC$6:$LH$6,"<="&$M40) -> 0 | P45: =SUMIFS('Berekening variant 1'!$GR$1:$IA$1,'Berekening variant 1'!$GR$5:$IA$5,">"&$M40,'Berekening variant 1'!$GR$6:$IA$6,"<="&$M40) -> 0 | Q45: =SUMIFS('Berekening variant 1'!$AG$1:$DW$1,'Berekening variant 1'!$AG$5:$DW$5,">"&$M40,'Berekening variant 1'!$AG$6:$DW$6,"<="&$M40) -> 0.2280092935 | R45: =SUMIFS('Berekening variant 1'!$JS$1:$JX$1,'Berekening variant 1'!$JS$5:$JX$5,">="&$M40,'Berekening variant 1'!$JS$6:$JX$6,"<"&$M40,'Berekening variant 1'!$JS$8:$JX$8,TRUE) -> 0 | S45: =SUMIFS('Berekening variant 1'!$LC$1:$LH$1,'Berekening variant 1'!$LC$5:$LH$5,">"&$M40,'Berekening variant 1'!$LC$6:$LH$6,"<="&$M40,'Berekening variant 1'!$LC$8:$LH$8,TRUE) -> 0 | T45: =SUMIFS('Berekening variant 1'!$GR$1:$IA$1,'Berekening variant 1'!$GR$5:$IA$5,">"&$M40,'Berekening variant 1'!$GR$6:$IA$6,"<="&$M40,'Berekening variant 1'!$GR$8:$IA$8,TRUE) -> 0 | U45: =SUMIFS('Berekening variant 1'!$AG$1:$DW$1,'Berekening variant 1'!$AG$5:$DW$5,">"&$M40,'Berekening variant 1'!$AG$6:$DW$6,"<="&$M40,'Berekening variant 1'!$AG$8:$DW$8,TRUE) -> 0.2085083839 | V45: =SUMIFS('Berekening variant 1'!$JS$1:$JX$1,'Berekening variant 1'!$JS$6:$JX$6,">="&$M40) -> 0 | W45: =SUMIFS('Berekening variant 1'!$LC$1:$LH$1,'Berekening variant 1'!$LC$6:$LH$6,">"&$M40) -> 0 | X45: =SUMIFS('Berekening variant 1'!$GR$1:$IA$1,'Berekening variant 1'!$GR$6:$IA$6,">"&$M40) -> 0 | Y45: =SUMIFS('Berekening variant 1'!$AG$1:$DW$1,'Berekening variant 1'!$AG$6:$DW$6,">"&$M40) -> 0 | Z45: =SUMIFS('Berekening variant 1'!$JS$1:$JX$1,'Berekening variant 1'!$JS$6:$JX$6,">="&$M40,'Berekening variant 1'!$JS$8:$JX$8,TRUE) -> 0 | AA45: =SUMIFS('Berekening variant 1'!$LC$1:$LH$1,'Berekening variant 1'!$LC$6:$LH$6,">"&$M40,'Berekening variant 1'!$LC$8:$LH$8,TRUE) -> 0 | AB45: =SUMIFS('Berekening variant 1'!$GR$1:$IA$1,'Berekening variant 1'!$GR$6:$IA$6,">"&$M40,'Berekening variant 1'!$GR$8:$IA$8,TRUE) -> 0 | AC45: =SUMIFS('Berekening variant 1'!$AG$1:$DW$1,'Berekening variant 1'!$AG$6:$DW$6,">"&$M40,'Berekening variant 1'!$AG$8:$DW$8,TRUE) -> 0 | AD45: 0 | AE45: 5.242180013e-05 | AF45: 0 | AG45: 0.0005605064083 | AH45: 7.853570778 | AI45: 7.7
F46: =B55 -> 0 | G46: 0 | J46: 10 | K46: TRUE | L46: FALSE | M46: =ROUND(AVERAGE(INDEX(M$37:M45,_xlfn.MAXIFS(J$37:J45,K$37:K45,TRUE),1),INDEX(M$37:M45,_xlfn.MAXIFS(J$37:J45,L$37:L45,TRUE),1)),0) -> 512 | N46: =SUMIFS('Berekening variant 1'!$JS$1:$JX$1,'Berekening variant 1'!$JS$5:$JX$5,">="&$M41,'Berekening variant 1'!$JS$6:$JX$6,"<"&$M41) -> 0 | O46: =SUMIFS('Berekening variant 1'!$LC$1:$LH$1,'Berekening variant 1'!$LC$5:$LH$5,">"&$M41,'Berekening variant 1'!$LC$6:$LH$6,"<="&$M41) -> 0 | P46: =SUMIFS('Berekening variant 1'!$GR$1:$IA$1,'Berekening variant 1'!$GR$5:$IA$5,">"&$M41,'Berekening variant 1'!$GR$6:$IA$6,"<="&$M41) -> 0.4036904642 | Q46: =SUMIFS('Berekening variant 1'!$AG$1:$DW$1,'Berekening variant 1'!$AG$5:$DW$5,">"&$M41,'Berekening variant 1'!$AG$6:$DW$6,"<="&$M41) -> 7.621952227 | R46: =SUMIFS('Berekening variant 1'!$JS$1:$JX$1,'Berekening variant 1'!$JS$5:$JX$5,">="&$M41,'Berekening variant 1'!$JS$6:$JX$6,"<"&$M41,'Berekening variant 1'!$JS$8:$JX$8,TRUE) -> 0 | S46: =SUMIFS('Berekening variant 1'!$LC$1:$LH$1,'Berekening variant 1'!$LC$5:$LH$5,">"&$M41,'Berekening variant 1'!$LC$6:$LH$6,"<="&$M41,'Berekening variant 1'!$LC$8:$LH$8,TRUE) -> 0 | T46: =SUMIFS('Berekening variant 1'!$GR$1:$IA$1,'Berekening variant 1'!$GR$5:$IA$5,">"&$M41,'Berekening variant 1'!$GR$6:$IA$6,"<="&$M41,'Berekening variant 1'!$GR$8:$IA$8,TRUE) -> 0.3297362579 | U46: =SUMIFS('Berekening variant 1'!$AG$1:$DW$1,'Berekening variant 1'!$AG$5:$DW$5,">"&$M41,'Berekening variant 1'!$AG$6:$DW$6,"<="&$M41,'Berekening variant 1'!$AG$8:$DW$8,TRUE) -> 6.927283232 | V46: =SUMIFS('Berekening variant 1'!$JS$1:$JX$1,'Berekening variant 1'!$JS$6:$JX$6,">="&$M41) -> 0 | W46: =SUMIFS('Berekening variant 1'!$LC$1:$LH$1,'Berekening variant 1'!$LC$6:$LH$6,">"&$M41) -> 0 | X46: =SUMIFS('Berekening variant 1'!$GR$1:$IA$1,'Berekening variant 1'!$GR$6:$IA$6,">"&$M41) -> 0 | Y46: =SUMIFS('Berekening variant 1'!$AG$1:$DW$1,'Berekening variant 1'!$AG$6:$DW$6,">"&$M41) -> 0.008593950292 | Z46: =SUMIFS('Berekening variant 1'!$JS$1:$JX$1,'Berekening variant 1'!$JS$6:$JX$6,">="&$M41,'Berekening variant 1'!$JS$8:$JX$8,TRUE) -> 0 | AA46: =SUMIFS('Berekening variant 1'!$LC$1:$LH$1,'Berekening variant 1'!$LC$6:$LH$6,">"&$M41,'Berekening variant 1'!$LC$8:$LH$8,TRUE) -> 0 | AB46: =SUMIFS('Berekening variant 1'!$GR$1:$IA$1,'Berekening variant 1'!$GR$6:$IA$6,">"&$M41,'Berekening variant 1'!$GR$8:$IA$8,TRUE) -> 0 | AC46: =SUMIFS('Berekening variant 1'!$AG$1:$DW$1,'Berekening variant 1'!$AG$6:$DW$6,">"&$M41,'Berekening variant 1'!$AG$8:$DW$8,TRUE) -> 0.007795667441 | AD46: 2.145921643e-06 | AE46: 0.002066191402 | AF46: 2.095609527e-05 | AG46: 0.01950811691 | AH46: 7.787465023 | AI46: 7.7
A47: Inhaalbeweging met enkelvoudige tegemoetkoming | F47: 15.0321136 | G47: 0 | J47: 11 | K47: TRUE | L47: FALSE | M47: =ROUND(AVERAGE(INDEX(M$37:M46,_xlfn.MAXIFS(J$37:J46,K$37:K46,TRUE),1),INDEX(M$37:M46,_xlfn.MAXIFS(J$37:J46,L$37:L46,TRUE),1)),0) -> 514 | N47: =SUMIFS('Berekening variant 1'!$JS$1:$JX$1,'Berekening variant 1'!$JS$5:$JX$5,">="&$M42,'Berekening variant 1'!$JS$6:$JX$6,"<"&$M42) -> 0 | O47: =SUMIFS('Berekening variant 1'!$LC$1:$LH$1,'Berekening variant 1'!$LC$5:$LH$5,">"&$M42,'Berekening variant 1'!$LC$6:$LH$6,"<="&$M42) -> 0 | P47: =SUMIFS('Berekening variant 1'!$GR$1:$IA$1,'Berekening variant 1'!$GR$5:$IA$5,">"&$M42,'Berekening variant 1'!$GR$6:$IA$6,"<="&$M42) -> 4.872112483 | Q47: =SUMIFS('Berekening variant 1'!$AG$1:$DW$1,'Berekening variant 1'!$AG$5:$DW$5,">"&$M42,'Berekening variant 1'!$AG$6:$DW$6,"<="&$M42) -> 12.66983329 | R47: =SUMIFS('Berekening variant 1'!$JS$1:$JX$1,'Berekening variant 1'!$JS$5:$JX$5,">="&$M42,'Berekening variant 1'!$JS$6:$JX$6,"<"&$M42,'Berekening variant 1'!$JS$8:$JX$8,TRUE) -> 0 | S47: =SUMIFS('Berekening variant 1'!$LC$1:$LH$1,'Berekening variant 1'!$LC$5:$LH$5,">"&$M42,'Berekening variant 1'!$LC$6:$LH$6,"<="&$M42,'Berekening variant 1'!$LC$8:$LH$8,TRUE) -> 0 | T47: =SUMIFS('Berekening variant 1'!$GR$1:$IA$1,'Berekening variant 1'!$GR$5:$IA$5,">"&$M42,'Berekening variant 1'!$GR$6:$IA$6,"<="&$M42,'Berekening variant 1'!$GR$8:$IA$8,TRUE) -> 4.798158277 | U47: =SUMIFS('Berekening variant 1'!$AG$1:$DW$1,'Berekening variant 1'!$AG$5:$DW$5,">"&$M42,'Berekening variant 1'!$AG$6:$DW$6,"<="&$M42,'Berekening variant 1'!$AG$8:$DW$8,TRUE) -> 6.879652706 | V47: =SUMIFS('Berekening variant 1'!$JS$1:$JX$1,'Berekening variant 1'!$JS$6:$JX$6,">="&$M42) -> 0 | W47: =SUMIFS('Berekening variant 1'!$LC$1:$LH$1,'Berekening variant 1'!$LC$6:$LH$6,">"&$M42) -> 0 | X47: =SUMIFS('Berekening variant 1'!$GR$1:$IA$1,'Berekening variant 1'!$GR$6:$IA$6,">"&$M42) -> 0 | Y47: =SUMIFS('Berekening variant 1'!$AG$1:$DW$1,'Berekening variant 1'!$AG$6:$DW$6,">"&$M42) -> 0.227713082 | Z47: =SUMIFS('Berekening variant 1'!$JS$1:$JX$1,'Berekening variant 1'!$JS$6:$JX$6,">="&$M42,'Berekening variant 1'!$JS$8:$JX$8,TRUE) -> 0 | AA47: =SUMIFS('Berekening variant 1'!$LC$1:$LH$1,'Berekening variant 1'!$LC$6:$LH$6,">"&$M42,'Berekening variant 1'!$LC$8:$LH$8,TRUE) -> 0 | AB47: =SUMIFS('Berekening variant 1'!$GR$1:$IA$1,'Berekening variant 1'!$GR$6:$IA$6,">"&$M42,'Berekening variant 1'!$GR$8:$IA$8,TRUE) -> 0 | AC47: =SUMIFS('Berekening variant 1'!$AG$1:$DW$1,'Berekening variant 1'!$AG$6:$DW$6,">"&$M42,'Berekening variant 1'!$AG$8:$DW$8,TRUE) -> 0.1895095456 | AD47: 0.0001026976786 | AE47: 0.01576380319 | AF47: 0.0005094342623 | AG47: 0.03139196501 | AH47: 7.758613241 | AI47: 7.7
C48: met brommer | D48: met duo/ brede fiets | E48: met fiets | F48: 12.89754637 | G48: 7.069162251 | J48: 12 | K48: TRUE | L48: FALSE | M48: =ROUND(AVERAGE(INDEX(M$37:M47,_xlfn.MAXIFS(J$37:J47,K$37:K47,TRUE),1),INDEX(M$37:M47,_xlfn.MAXIFS(J$37:J47,L$37:L47,TRUE),1)),0) -> 515 | N48: =SUMIFS('Berekening variant 1'!$JS$1:$JX$1,'Berekening variant 1'!$JS$5:$JX$5,">="&$M43,'Berekening variant 1'!$JS$6:$JX$6,"<"&$M43) -> 0 | O48: =SUMIFS('Berekening variant 1'!$LC$1:$LH$1,'Berekening variant 1'!$LC$5:$LH$5,">"&$M43,'Berekening variant 1'!$LC$6:$LH$6,"<="&$M43) -> 0 | P48: =SUMIFS('Berekening variant 1'!$GR$1:$IA$1,'Berekening variant 1'!$GR$5:$IA$5,">"&$M43,'Berekening variant 1'!$GR$6:$IA$6,"<="&$M43) -> 9.373624049 | Q48: =SUMIFS('Berekening variant 1'!$AG$1:$DW$1,'Berekening variant 1'!$AG$5:$DW$5,">"&$M43,'Berekening variant 1'!$AG$6:$DW$6,"<="&$M43) -> 12.64462645 | R48: =SUMIFS('Berekening variant 1'!$JS$1:$JX$1,'Berekening variant 1'!$JS$5:$JX$5,">="&$M43,'Berekening variant 1'!$JS$6:$JX$6,"<"&$M43,'Berekening variant 1'!$JS$8:$JX$8,TRUE) -> 0 | S48: =SUMIFS('Berekening variant 1'!$LC$1:$LH$1,'Berekening variant 1'!$LC$5:$LH$5,">"&$M43,'Berekening variant 1'!$LC$6:$LH$6,"<="&$M43,'Berekening variant 1'!$LC$8:$LH$8,TRUE) -> 0 | T48: =SUMIFS('Berekening variant 1'!$GR$1:$IA$1,'Berekening variant 1'!$GR$5:$IA$5,">"&$M43,'Berekening variant 1'!$GR$6:$IA$6,"<="&$M43,'Berekening variant 1'!$GR$8:$IA$8,TRUE) -> 6.700707738 | U48: =SUMIFS('Berekening variant 1'!$AG$1:$DW$1,'Berekening variant 1'!$AG$5:$DW$5,">"&$M43,'Berekening variant 1'!$AG$6:$DW$6,"<="&$M43,'Berekening variant 1'!$AG$8:$DW$8,TRUE) -> 6.854445866 | V48: =SUMIFS('Berekening variant 1'!$JS$1:$JX$1,'Berekening variant 1'!$JS$6:$JX$6,">="&$M43) -> 0 | W48: =SUMIFS('Berekening variant 1'!$LC$1:$LH$1,'Berekening variant 1'!$LC$6:$LH$6,">"&$M43) -> 0 | X48: =SUMIFS('Berekening variant 1'!$GR$1:$IA$1,'Berekening variant 1'!$GR$6:$IA$6,">"&$M43) -> 0 | Y48: =SUMIFS('Berekening variant 1'!$AG$1:$DW$1,'Berekening variant 1'!$AG$6:$DW$6,">"&$M43) -> 0.252919922 | Z48: =SUMIFS('Berekening variant 1'!$JS$1:$JX$1,'Berekening variant 1'!$JS$6:$JX$6,">="&$M43,'Berekening variant 1'!$JS$8:$JX$8,TRUE) -> 0 | AA48: =SUMIFS('Berekening variant 1'!$LC$1:$LH$1,'Berekening variant 1'!$LC$6:$LH$6,">"&$M43,'Berekening variant 1'!$LC$8:$LH$8,TRUE) -> 0 | AB48: =SUMIFS('Berekening variant 1'!$GR$1:$IA$1,'Berekening variant 1'!$GR$6:$IA$6,">"&$M43,'Berekening variant 1'!$GR$8:$IA$8,TRUE) -> 0 | AC48: =SUMIFS('Berekening variant 1'!$AG$1:$DW$1,'Berekening variant 1'!$AG$6:$DW$6,">"&$M43,'Berekening variant 1'!$AG$8:$DW$8,TRUE) -> 0.2147163856 | AD48: 0.0001026976786 | AE48: 0.02275026046 | AF48: 0.0005771945848 | AG48: 0.03643858496 | AH48: 7.749144288 | AI48: 7.7
A49: groen | B49: =SUMIFS('Berekening variant 1'!$GR$1:$IA$1,'Berekening variant 1'!$GR$5:$IA$5,"<="&breedte) -> 0 | C49: =SUMIFS('Berekening variant 1'!$GR$1:$IA$1,'Berekening variant 1'!$GR$5:$IA$5,"<="&breedte,'Berekening variant 1'!$GR$8:$IA$8,TRUE) -> 0 | D49: =SUMIFS('Berekening variant 1'!$GR$1:$IA$1,'Berekening variant 1'!$GR$5:$IA$5,"<="&breedte,'Berekening variant 1'!$GR$9:$IA$9,TRUE) -> 0 | E49: =SUMIFS('Berekening variant 1'!$GR$1:$IA$1,'Berekening variant 1'!$GR$5:$IA$5,"<="&breedte,'Berekening variant 1'!$GR$7:$IA$7,TRUE) -> 0 | J49: 13 | K49: FALSE | L49: TRUE | M49: =ROUND(AVERAGE(INDEX(M$37:M48,_xlfn.MAXIFS(J$37:J48,K$37:K48,TRUE),1),INDEX(M$37:M48,_xlfn.MAXIFS(J$37:J48,L$37:L48,TRUE),1)),0) -> 516 | N49: =SUMIFS('Berekening variant 1'!$JS$1:$JX$1,'Berekening variant 1'!$JS$5:$JX$5,">="&$M44,'Berekening variant 1'!$JS$6:$JX$6,"<"&$M44) -> 0 | O49: =SUMIFS('Berekening variant 1'!$LC$1:$LH$1,'Berekening variant 1'!$LC$5:$LH$5,">"&$M44,'Berekening variant 1'!$LC$6:$LH$6,"<="&$M44) -> 0 | P49: =SUMIFS('Berekening variant 1'!$GR$1:$IA$1,'Berekening variant 1'!$GR$5:$IA$5,">"&$M44,'Berekening variant 1'!$GR$6:$IA$6,"<="&$M44) -> 9.20630055 | Q49: =SUMIFS('Berekening variant 1'!$AG$1:$DW$1,'Berekening variant 1'!$AG$5:$DW$5,">"&$M44,'Berekening variant 1'!$AG$6:$DW$6,"<="&$M44) -> 11.38091761 | R49: =SUMIFS('Berekening variant 1'!$JS$1:$JX$1,'Berekening variant 1'!$JS$5:$JX$5,">="&$M44,'Berekening variant 1'!$JS$6:$JX$6,"<"&$M44,'Berekening variant 1'!$JS$8:$JX$8,TRUE) -> 0 | S49: =SUMIFS('Berekening variant 1'!$LC$1:$LH$1,'Berekening variant 1'!$LC$5:$LH$5,">"&$M44,'Berekening variant 1'!$LC$6:$LH$6,"<="&$M44,'Berekening variant 1'!$LC$8:$LH$8,TRUE) -> 0 | T49: =SUMIFS('Berekening variant 1'!$GR$1:$IA$1,'Berekening variant 1'!$GR$5:$IA$5,">"&$M44,'Berekening variant 1'!$GR$6:$IA$6,"<="&$M44,'Berekening variant 1'!$GR$8:$IA$8,TRUE) -> 6.533384239 | U49: =SUMIFS('Berekening variant 1'!$AG$1:$DW$1,'Berekening variant 1'!$AG$5:$DW$5,">"&$M44,'Berekening variant 1'!$AG$6:$DW$6,"<="&$M44,'Berekening variant 1'!$AG$8:$DW$8,TRUE) -> 5.590737024 | V49: =SUMIFS('Berekening variant 1'!$JS$1:$JX$1,'Berekening variant 1'!$JS$6:$JX$6,">="&$M44) -> 0 | W49: =SUMIFS('Berekening variant 1'!$LC$1:$LH$1,'Berekening variant 1'!$LC$6:$LH$6,">"&$M44) -> 0 | X49: =SUMIFS('Berekening variant 1'!$GR$1:$IA$1,'Berekening variant 1'!$GR$6:$IA$6,">"&$M44) -> 0.167323499 | Y49: =SUMIFS('Berekening variant 1'!$AG$1:$DW$1,'Berekening variant 1'!$AG$6:$DW$6,">"&$M44) -> 1.516628764 | Z49: =SUMIFS('Berekening variant 1'!$JS$1:$JX$1,'Berekening variant 1'!$JS$6:$JX$6,">="&$M44,'Berekening variant 1'!$JS$8:$JX$8,TRUE) -> 0 | AA49: =SUMIFS('Berekening variant 1'!$LC$1:$LH$1,'Berekening variant 1'!$LC$6:$LH$6,">"&$M44,'Berekening variant 1'!$LC$8:$LH$8,TRUE) -> 0 | AB49: =SUMIFS('Berekening variant 1'!$GR$1:$IA$1,'Berekening variant 1'!$GR$6:$IA$6,">"&$M44,'Berekening variant 1'!$GR$8:$IA$8,TRUE) -> 0.167323499 | AC49: =SUMIFS('Berekening variant 1'!$AG$1:$DW$1,'Berekening variant 1'!$AG$6:$DW$6,">"&$M44,'Berekening variant 1'!$AG$8:$DW$8,TRUE) -> 1.478425228 | AD49: 0.0001026976786 | AE49: 0.02275026046 | AF49: 0.004424055717 | AG49: 0.03259172382 | AH49: 7.730069358 | AI49: 7.7
A50: geel | B50: =SUMIFS('Berekening variant 1'!$GR$1:$IA$1,'Berekening variant 1'!$GR$5:$IA$5,">"&breedte,'Berekening variant 1'!$GR$6:$IA$6,"<="&breedte) -> 178.5825775 | C50: =SUMIFS('Berekening variant 1'!$GR$1:$IA$1,'Berekening variant 1'!$GR$5:$IA$5,">"&breedte,'Berekening variant 1'!$GR$6:$IA$6,"<="&breedte,'Berekening variant 1'!$GR$8:$IA$8,TRUE) -> 29.2571766 | D50: =SUMIFS('Berekening variant 1'!$GR$1:$IA$1,'Berekening variant 1'!$GR$5:$IA$5,">"&breedte,'Berekening variant 1'!$GR$6:$IA$6,"<="&breedte,'Berekening variant 1'!$GR$9:$IA$9,TRUE) -> 30.44498465 | E50: =SUMIFS('Berekening variant 1'!$GR$1:$IA$1,'Berekening variant 1'!$GR$5:$IA$5,">"&breedte,'Berekening variant 1'!$GR$6:$IA$6,"<="&breedte,'Berekening variant 1'!$GR$7:$IA$7,TRUE) -> 178.5825775 | J50: 14 | K50: FALSE | L50: TRUE | M50: =ROUND(AVERAGE(INDEX(M$37:M49,_xlfn.MAXIFS(J$37:J49,K$37:K49,TRUE),1),INDEX(M$37:M49,_xlfn.MAXIFS(J$37:J49,L$37:L49,TRUE),1)),0) -> 516 | N50: =SUMIFS('Berekening variant 1'!$JS$1:$JX$1,'Berekening variant 1'!$JS$5:$JX$5,">="&$M45,'Berekening variant 1'!$JS$6:$JX$6,"<"&$M45) -> 0 | O50: =SUMIFS('Berekening variant 1'!$LC$1:$LH$1,'Berekening variant 1'!$LC$5:$LH$5,">"&$M45,'Berekening variant 1'!$LC$6:$LH$6,"<="&$M45) -> 0 | P50: =SUMIFS('Berekening variant 1'!$GR$1:$IA$1,'Berekening variant 1'!$GR$5:$IA$5,">"&$M45,'Berekening variant 1'!$GR$6:$IA$6,"<="&$M45) -> 32.09322813 | Q50: =SUMIFS('Berekening variant 1'!$AG$1:$DW$1,'Berekening variant 1'!$AG$5:$DW$5,">"&$M45,'Berekening variant 1'!$AG$6:$DW$6,"<="&$M45) -> 10.72365386 | R50: =SUMIFS('Berekening variant 1'!$JS$1:$JX$1,'Berekening variant 1'!$JS$5:$JX$5,">="&$M45,'Berekening variant 1'!$JS$6:$JX$6,"<"&$M45,'Berekening variant 1'!$JS$8:$JX$8,TRUE) -> 0 | S50: =SUMIFS('Berekening variant 1'!$LC$1:$LH$1,'Berekening variant 1'!$LC$5:$LH$5,">"&$M45,'Berekening variant 1'!$LC$6:$LH$6,"<="&$M45,'Berekening variant 1'!$LC$8:$LH$8,TRUE) -> 0 | T50: =SUMIFS('Berekening variant 1'!$GR$1:$IA$1,'Berekening variant 1'!$GR$5:$IA$5,">"&$M45,'Berekening variant 1'!$GR$6:$IA$6,"<="&$M45,'Berekening variant 1'!$GR$8:$IA$8,TRUE) -> 29.49426603 | U50: =SUMIFS('Berekening variant 1'!$AG$1:$DW$1,'Berekening variant 1'!$AG$5:$DW$5,">"&$M45,'Berekening variant 1'!$AG$6:$DW$6,"<="&$M45,'Berekening variant 1'!$AG$8:$DW$8,TRUE) -> 5.590737024 | V50: =SUMIFS('Berekening variant 1'!$JS$1:$JX$1,'Berekening variant 1'!$JS$6:$JX$6,">="&$M45) -> 0 | W50: =SUMIFS('Berekening variant 1'!$LC$1:$LH$1,'Berekening variant 1'!$LC$6:$LH$6,">"&$M45) -> 0 | X50: =SUMIFS('Berekening variant 1'!$GR$1:$IA$1,'Berekening variant 1'!$GR$6:$IA$6,">"&$M45) -> 0.2412777053 | Y50: =SUMIFS('Berekening variant 1'!$AG$1:$DW$1,'Berekening variant 1'!$AG$6:$DW$6,">"&$M45) -> 2.173892506 | Z50: =SUMIFS('Berekening variant 1'!$JS$1:$JX$1,'Berekening variant 1'!$JS$6:$JX$6,">="&$M45,'Berekening variant 1'!$JS$8:$JX$8,TRUE) -> 0 | AA50: =SUMIFS('Berekening variant 1'!$LC$1:$LH$1,'Berekening variant 1'!$LC$6:$LH$6,">"&$M45,'Berekening variant 1'!$LC$8:$LH$8,TRUE) -> 0 | AB50: =SUMIFS('Berekening variant 1'!$GR$1:$IA$1,'Berekening variant 1'!$GR$6:$IA$6,">"&$M45,'Berekening variant 1'!$GR$8:$IA$8,TRUE) -> 0.167323499 | AC50: =SUMIFS('Berekening variant 1'!$AG$1:$DW$1,'Berekening variant 1'!$AG$6:$DW$6,">"&$M45,'Berekening variant 1'!$AG$8:$DW$8,TRUE) -> 1.478425228 | AD50: 0.002068337323 | AE50: 0.02078462082 | AF50: 0.004424055717 | AG50: 0.09431452432 | AH50: 7.670171533 | AI50: 7.7
A51: rood | B51: =SUMIFS('Berekening variant 1'!$GR$1:$IA$1,'Berekening variant 1'!$GR$6:$IA$6,">"&breedte) -> 9.373624049 | C51: =SUMIFS('Berekening variant 1'!$GR$1:$IA$1,'Berekening variant 1'!$GR$6:$IA$6,">"&breedte,'Berekening variant 1'!$GR$8:$IA$8,TRUE) -> 6.700707738 | D51: =SUMIFS('Berekening variant 1'!$GR$1:$IA$1,'Berekening variant 1'!$GR$6:$IA$6,">"&breedte,'Berekening variant 1'!$GR$9:$IA$9,TRUE) -> 7.997780282 | E51: =SUMIFS('Berekening variant 1'!$GR$1:$IA$1,'Berekening variant 1'!$GR$6:$IA$6,">"&breedte,'Berekening variant 1'!$GR$7:$IA$7,TRUE) -> 8.959150697 | J51: 15 | K51: FALSE | L51: TRUE | M51: =ROUND(AVERAGE(INDEX(M$37:M50,_xlfn.MAXIFS(J$37:J50,K$37:K50,TRUE),1),INDEX(M$37:M50,_xlfn.MAXIFS(J$37:J50,L$37:L50,TRUE),1)),0) -> 516 | N51: =SUMIFS('Berekening variant 1'!$JS$1:$JX$1,'Berekening variant 1'!$JS$5:$JX$5,">="&$M46,'Berekening variant 1'!$JS$6:$JX$6,"<"&$M46) -> 0 | O51: =SUMIFS('Berekening variant 1'!$LC$1:$LH$1,'Berekening variant 1'!$LC$5:$LH$5,">"&$M46,'Berekening variant 1'!$LC$6:$LH$6,"<="&$M46) -> 0 | P51: =SUMIFS('Berekening variant 1'!$GR$1:$IA$1,'Berekening variant 1'!$GR$5:$IA$5,">"&$M46,'Berekening variant 1'!$GR$6:$IA$6,"<="&$M46) -> 32.16718234 | Q51: =SUMIFS('Berekening variant 1'!$AG$1:$DW$1,'Berekening variant 1'!$AG$5:$DW$5,">"&$M46,'Berekening variant 1'!$AG$6:$DW$6,"<="&$M46) -> 10.72365386 | R51: =SUMIFS('Berekening variant 1'!$JS$1:$JX$1,'Berekening variant 1'!$JS$5:$JX$5,">="&$M46,'Berekening variant 1'!$JS$6:$JX$6,"<"&$M46,'Berekening variant 1'!$JS$8:$JX$8,TRUE) -> 0 | S51: =SUMIFS('Berekening variant 1'!$LC$1:$LH$1,'Berekening variant 1'!$LC$5:$LH$5,">"&$M46,'Berekening variant 1'!$LC$6:$LH$6,"<="&$M46,'Berekening variant 1'!$LC$8:$LH$8,TRUE) -> 0 | T51: =SUMIFS('Berekening variant 1'!$GR$1:$IA$1,'Berekening variant 1'!$GR$5:$IA$5,">"&$M46,'Berekening variant 1'!$GR$6:$IA$6,"<="&$M46,'Berekening variant 1'!$GR$8:$IA$8,TRUE) -> 29.49426603 | U51: =SUMIFS('Berekening variant 1'!$AG$1:$DW$1,'Berekening variant 1'!$AG$5:$DW$5,">"&$M46,'Berekening variant 1'!$AG$6:$DW$6,"<="&$M46,'Berekening variant 1'!$AG$8:$DW$8,TRUE) -> 5.590737024 | V51: =SUMIFS('Berekening variant 1'!$JS$1:$JX$1,'Berekening variant 1'!$JS$6:$JX$6,">="&$M46) -> 0 | W51: =SUMIFS('Berekening variant 1'!$LC$1:$LH$1,'Berekening variant 1'!$LC$6:$LH$6,">"&$M46) -> 0 | X51: =SUMIFS('Berekening variant 1'!$GR$1:$IA$1,'Berekening variant 1'!$GR$6:$IA$6,">"&$M46) -> 0.167323499 | Y51: =SUMIFS('Berekening variant 1'!$AG$1:$DW$1,'Berekening variant 1'!$AG$6:$DW$6,">"&$M46) -> 2.173892506 | Z51: =SUMIFS('Berekening variant 1'!$JS$1:$JX$1,'Berekening variant 1'!$JS$6:$JX$6,">="&$M46,'Berekening variant 1'!$JS$8:$JX$8,TRUE) -> 0 | AA51: =SUMIFS('Berekening variant 1'!$LC$1:$LH$1,'Berekening variant 1'!$LC$6:$LH$6,">"&$M46,'Berekening variant 1'!$LC$8:$LH$8,TRUE) -> 0 | AB51: =SUMIFS('Berekening variant 1'!$GR$1:$IA$1,'Berekening variant 1'!$GR$6:$IA$6,">"&$M46,'Berekening variant 1'!$GR$8:$IA$8,TRUE) -> 0.167323499 | AC51: =SUMIFS('Berekening variant 1'!$AG$1:$DW$1,'Berekening variant 1'!$AG$6:$DW$6,">"&$M46,'Berekening variant 1'!$AG$8:$DW$8,TRUE) -> 1.478425228 | AD51: 0.001869535694 | AE51: 0.02098342245 | AF51: 0.004424055717 | AG51: 0.09431452432 | AH51: 7.670299179 | AI51: 7.7
J52: 16 | K52: FALSE | L52: TRUE | M52: =ROUND(AVERAGE(INDEX(M$37:M51,_xlfn.MAXIFS(J$37:J51,K$37:K51,TRUE),1),INDEX(M$37:M51,_xlfn.MAXIFS(J$37:J51,L$37:L51,TRUE),1)),0) -> 516 | N52: =SUMIFS('Berekening variant 1'!$JS$1:$JX$1,'Berekening variant 1'!$JS$5:$JX$5,">="&$M47,'Berekening variant 1'!$JS$6:$JX$6,"<"&$M47) -> 0 | O52: =SUMIFS('Berekening variant 1'!$LC$1:$LH$1,'Berekening variant 1'!$LC$5:$LH$5,">"&$M47,'Berekening variant 1'!$LC$6:$LH$6,"<="&$M47) -> 0 | P52: =SUMIFS('Berekening variant 1'!$GR$1:$IA$1,'Berekening variant 1'!$GR$5:$IA$5,">"&$M47,'Berekening variant 1'!$GR$6:$IA$6,"<="&$M47) -> 32.16718234 | Q52: =SUMIFS('Berekening variant 1'!$AG$1:$DW$1,'Berekening variant 1'!$AG$5:$DW$5,">"&$M47,'Berekening variant 1'!$AG$6:$DW$6,"<="&$M47) -> 11.38091761 | R52: =SUMIFS('Berekening variant 1'!$JS$1:$JX$1,'Berekening variant 1'!$JS$5:$JX$5,">="&$M47,'Berekening variant 1'!$JS$6:$JX$6,"<"&$M47,'Berekening variant 1'!$JS$8:$JX$8,TRUE) -> 0 | S52: =SUMIFS('Berekening variant 1'!$LC$1:$LH$1,'Berekening variant 1'!$LC$5:$LH$5,">"&$M47,'Berekening variant 1'!$LC$6:$LH$6,"<="&$M47,'Berekening variant 1'!$LC$8:$LH$8,TRUE) -> 0 | T52: =SUMIFS('Berekening variant 1'!$GR$1:$IA$1,'Berekening variant 1'!$GR$5:$IA$5,">"&$M47,'Berekening variant 1'!$GR$6:$IA$6,"<="&$M47,'Berekening variant 1'!$GR$8:$IA$8,TRUE) -> 29.49426603 | U52: =SUMIFS('Berekening variant 1'!$AG$1:$DW$1,'Berekening variant 1'!$AG$5:$DW$5,">"&$M47,'Berekening variant 1'!$AG$6:$DW$6,"<="&$M47,'Berekening variant 1'!$AG$8:$DW$8,TRUE) -> 5.590737024 | V52: =SUMIFS('Berekening variant 1'!$JS$1:$JX$1,'Berekening variant 1'!$JS$6:$JX$6,">="&$M47) -> 0 | W52: =SUMIFS('Berekening variant 1'!$LC$1:$LH$1,'Berekening variant 1'!$LC$6:$LH$6,">"&$M47) -> 0 | X52: =SUMIFS('Berekening variant 1'!$GR$1:$IA$1,'Berekening variant 1'!$GR$6:$IA$6,">"&$M47) -> 0.167323499 | Y52: =SUMIFS('Berekening variant 1'!$AG$1:$DW$1,'Berekening variant 1'!$AG$6:$DW$6,">"&$M47) -> 1.516628764 | Z52: =SUMIFS('Berekening variant 1'!$JS$1:$JX$1,'Berekening variant 1'!$JS$6:$JX$6,">="&$M47,'Berekening variant 1'!$JS$8:$JX$8,TRUE) -> 0 | AA52: =SUMIFS('Berekening variant 1'!$LC$1:$LH$1,'Berekening variant 1'!$LC$6:$LH$6,">"&$M47,'Berekening variant 1'!$LC$8:$LH$8,TRUE) -> 0 | AB52: =SUMIFS('Berekening variant 1'!$GR$1:$IA$1,'Berekening variant 1'!$GR$6:$IA$6,">"&$M47,'Berekening variant 1'!$GR$8:$IA$8,TRUE) -> 0.167323499 | AC52: =SUMIFS('Berekening variant 1'!$AG$1:$DW$1,'Berekening variant 1'!$AG$6:$DW$6,">"&$M47,'Berekening variant 1'!$AG$8:$DW$8,TRUE) -> 1.478425228 | AD52: 0.0001026976786 | AE52: 0.02275026046 | AF52: 0.004424055717 | AG52: 0.09431452432 | AH52: 7.671437281 | AI52: 7.7
A53: Inhaalbeweging met dubbele tegemoetkoming | J53: 17 | K53: FALSE | L53: TRUE | M53: =ROUND(AVERAGE(INDEX(M$37:M52,_xlfn.MAXIFS(J$37:J52,K$37:K52,TRUE),1),INDEX(M$37:M52,_xlfn.MAXIFS(J$37:J52,L$37:L52,TRUE),1)),0) -> 516 | N53: =SUMIFS('Berekening variant 1'!$JS$1:$JX$1,'Berekening variant 1'!$JS$5:$JX$5,">="&$M48,'Berekening variant 1'!$JS$6:$JX$6,"<"&$M48) -> 0 | O53: =SUMIFS('Berekening variant 1'!$LC$1:$LH$1,'Berekening variant 1'!$LC$5:$LH$5,">"&$M48,'Berekening variant 1'!$LC$6:$LH$6,"<="&$M48) -> 0 | P53: =SUMIFS('Berekening variant 1'!$GR$1:$IA$1,'Berekening variant 1'!$GR$5:$IA$5,">"&$M48,'Berekening variant 1'!$GR$6:$IA$6,"<="&$M48) -> 32.16718234 | Q53: =SUMIFS('Berekening variant 1'!$AG$1:$DW$1,'Berekening variant 1'!$AG$5:$DW$5,">"&$M48,'Berekening variant 1'!$AG$6:$DW$6,"<="&$M48) -> 11.38091761 | R53: =SUMIFS('Berekening variant 1'!$JS$1:$JX$1,'Berekening variant 1'!$JS$5:$JX$5,">="&$M48,'Berekening variant 1'!$JS$6:$JX$6,"<"&$M48,'Berekening variant 1'!$JS$8:$JX$8,TRUE) -> 0 | S53: =SUMIFS('Berekening variant 1'!$LC$1:$LH$1,'Berekening variant 1'!$LC$5:$LH$5,">"&$M48,'Berekening variant 1'!$LC$6:$LH$6,"<="&$M48,'Berekening variant 1'!$LC$8:$LH$8,TRUE) -> 0 | T53: =SUMIFS('Berekening variant 1'!$GR$1:$IA$1,'Berekening variant 1'!$GR$5:$IA$5,">"&$M48,'Berekening variant 1'!$GR$6:$IA$6,"<="&$M48,'Berekening variant 1'!$GR$8:$IA$8,TRUE) -> 29.49426603 | U53: =SUMIFS('Berekening variant 1'!$AG$1:$DW$1,'Berekening variant 1'!$AG$5:$DW$5,">"&$M48,'Berekening variant 1'!$AG$6:$DW$6,"<="&$M48,'Berekening variant 1'!$AG$8:$DW$8,TRUE) -> 5.590737024 | V53: =SUMIFS('Berekening variant 1'!$JS$1:$JX$1,'Berekening variant 1'!$JS$6:$JX$6,">="&$M48) -> 0 | W53: =SUMIFS('Berekening variant 1'!$LC$1:$LH$1,'Berekening variant 1'!$LC$6:$LH$6,">"&$M48) -> 0 | X53: =SUMIFS('Berekening variant 1'!$GR$1:$IA$1,'Berekening variant 1'!$GR$6:$IA$6,">"&$M48) -> 0.167323499 | Y53: =SUMIFS('Berekening variant 1'!$AG$1:$DW$1,'Berekening variant 1'!$AG$6:$DW$6,">"&$M48) -> 1.516628764 | Z53: =SUMIFS('Berekening variant 1'!$JS$1:$JX$1,'Berekening variant 1'!$JS$6:$JX$6,">="&$M48,'Berekening variant 1'!$JS$8:$JX$8,TRUE) -> 0 | AA53: =SUMIFS('Berekening variant 1'!$LC$1:$LH$1,'Berekening variant 1'!$LC$6:$LH$6,">"&$M48,'Berekening variant 1'!$LC$8:$LH$8,TRUE) -> 0 | AB53: =SUMIFS('Berekening variant 1'!$GR$1:$IA$1,'Berekening variant 1'!$GR$6:$IA$6,">"&$M48,'Berekening variant 1'!$GR$8:$IA$8,TRUE) -> 0.167323499 | AC53: =SUMIFS('Berekening variant 1'!$AG$1:$DW$1,'Berekening variant 1'!$AG$6:$DW$6,">"&$M48,'Berekening variant 1'!$AG$8:$DW$8,TRUE) -> 1.478425228 | AD53: 0.0001026976786 | AE53: 0.02275026046 | AF53: 0.004424055717 | AG53: 0.09431452432 | AH53: 7.671437281 | AI53: 7.7
C54: met brommer | D54: met duo/ brede fiets | E54: met fiets | J54: 18 | K54: FALSE | L54: TRUE | M54: =ROUND(AVERAGE(INDEX(M$37:M53,_xlfn.MAXIFS(J$37:J53,K$37:K53,TRUE),1),INDEX(M$37:M53,_xlfn.MAXIFS(J$37:J53,L$37:L53,TRUE),1)),0) -> 516 | N54: =SUMIFS('Berekening variant 1'!$JS$1:$JX$1,'Berekening variant 1'!$JS$5:$JX$5,">="&$M49,'Berekening variant 1'!$JS$6:$JX$6,"<"&$M49) -> 0 | O54: =SUMIFS('Berekening variant 1'!$LC$1:$LH$1,'Berekening variant 1'!$LC$5:$LH$5,">"&$M49,'Berekening variant 1'!$LC$6:$LH$6,"<="&$M49) -> 0 | P54: =SUMIFS('Berekening variant 1'!$GR$1:$IA$1,'Berekening variant 1'!$GR$5:$IA$5,">"&$M49,'Berekening variant 1'!$GR$6:$IA$6,"<="&$M49) -> 9.20630055 | Q54: =SUMIFS('Berekening variant 1'!$AG$1:$DW$1,'Berekening variant 1'!$AG$5:$DW$5,">"&$M49,'Berekening variant 1'!$AG$6:$DW$6,"<="&$M49) -> 11.38091761 | R54: =SUMIFS('Berekening variant 1'!$JS$1:$JX$1,'Berekening variant 1'!$JS$5:$JX$5,">="&$M49,'Berekening variant 1'!$JS$6:$JX$6,"<"&$M49,'Berekening variant 1'!$JS$8:$JX$8,TRUE) -> 0 | S54: =SUMIFS('Berekening variant 1'!$LC$1:$LH$1,'Berekening variant 1'!$LC$5:$LH$5,">"&$M49,'Berekening variant 1'!$LC$6:$LH$6,"<="&$M49,'Berekening variant 1'!$LC$8:$LH$8,TRUE) -> 0 | T54: =SUMIFS('Berekening variant 1'!$GR$1:$IA$1,'Berekening variant 1'!$GR$5:$IA$5,">"&$M49,'Berekening variant 1'!$GR$6:$IA$6,"<="&$M49,'Berekening variant 1'!$GR$8:$IA$8,TRUE) -> 6.533384239 | U54: =SUMIFS('Berekening variant 1'!$AG$1:$DW$1,'Berekening variant 1'!$AG$5:$DW$5,">"&$M49,'Berekening variant 1'!$AG$6:$DW$6,"<="&$M49,'Berekening variant 1'!$AG$8:$DW$8,TRUE) -> 5.590737024 | V54: =SUMIFS('Berekening variant 1'!$JS$1:$JX$1,'Berekening variant 1'!$JS$6:$JX$6,">="&$M49) -> 0 | W54: =SUMIFS('Berekening variant 1'!$LC$1:$LH$1,'Berekening variant 1'!$LC$6:$LH$6,">"&$M49) -> 0 | X54: =SUMIFS('Berekening variant 1'!$GR$1:$IA$1,'Berekening variant 1'!$GR$6:$IA$6,">"&$M49) -> 0.167323499 | Y54: =SUMIFS('Berekening variant 1'!$AG$1:$DW$1,'Berekening variant 1'!$AG$6:$DW$6,">"&$M49) -> 1.516628764 | Z54: =SUMIFS('Berekening variant 1'!$JS$1:$JX$1,'Berekening variant 1'!$JS$6:$JX$6,">="&$M49,'Berekening variant 1'!$JS$8:$JX$8,TRUE) -> 0 | AA54: =SUMIFS('Berekening variant 1'!$LC$1:$LH$1,'Berekening variant 1'!$LC$6:$LH$6,">"&$M49,'Berekening variant 1'!$LC$8:$LH$8,TRUE) -> 0 | AB54: =SUMIFS('Berekening variant 1'!$GR$1:$IA$1,'Berekening variant 1'!$GR$6:$IA$6,">"&$M49,'Berekening variant 1'!$GR$8:$IA$8,TRUE) -> 0.167323499 | AC54: =SUMIFS('Berekening variant 1'!$AG$1:$DW$1,'Berekening variant 1'!$AG$6:$DW$6,">"&$M49,'Berekening variant 1'!$AG$8:$DW$8,TRUE) -> 1.478425228 | AD54: 0.0001026976786 | AE54: 0.02275026046 | AF54: 0.004424055717 | AG54: 0.03259172382 | AH54: 7.730069358 | AI54: 7.7
A55: groen | B55: =SUMIFS('Berekening variant 1'!$AG$1:$DW$1,'Berekening variant 1'!$AG$5:$DW$5,"<="&breedte) -> 0 | C55: =SUMIFS('Berekening variant 1'!$AG$1:$DW$1,'Berekening variant 1'!$AG$5:$DW$5,"<="&breedte,'Berekening variant 1'!$AG$8:$DW$8,TRUE) -> 0 | D55: =SUMIFS('Berekening variant 1'!$AG$1:$DW$1,'Berekening variant 1'!$AG$5:$DW$5,"<="&breedte,'Berekening variant 1'!$AG$9:$DW$9,TRUE) -> 0 | E55: =SUMIFS('Berekening variant 1'!$AG$1:$DW$1,'Berekening variant 1'!$AG$5:$DW$5,"<="&breedte,'Berekening variant 1'!$AG$7:$DW$7,TRUE) -> 0 | J55: 19 | K55: FALSE | L55: TRUE | M55: =ROUND(AVERAGE(INDEX(M$37:M54,_xlfn.MAXIFS(J$37:J54,K$37:K54,TRUE),1),INDEX(M$37:M54,_xlfn.MAXIFS(J$37:J54,L$37:L54,TRUE),1)),0) -> 516 | N55: =SUMIFS('Berekening variant 1'!$JS$1:$JX$1,'Berekening variant 1'!$JS$5:$JX$5,">="&$M50,'Berekening variant 1'!$JS$6:$JX$6,"<"&$M50) -> 0 | O55: =SUMIFS('Berekening variant 1'!$LC$1:$LH$1,'Berekening variant 1'!$LC$5:$LH$5,">"&$M50,'Berekening variant 1'!$LC$6:$LH$6,"<="&$M50) -> 0 | P55: =SUMIFS('Berekening variant 1'!$GR$1:$IA$1,'Berekening variant 1'!$GR$5:$IA$5,">"&$M50,'Berekening variant 1'!$GR$6:$IA$6,"<="&$M50) -> 9.20630055 | Q55: =SUMIFS('Berekening variant 1'!$AG$1:$DW$1,'Berekening variant 1'!$AG$5:$DW$5,">"&$M50,'Berekening variant 1'!$AG$6:$DW$6,"<="&$M50) -> 11.38091761 | R55: =SUMIFS('Berekening variant 1'!$JS$1:$JX$1,'Berekening variant 1'!$JS$5:$JX$5,">="&$M50,'Berekening variant 1'!$JS$6:$JX$6,"<"&$M50,'Berekening variant 1'!$JS$8:$JX$8,TRUE) -> 0 | S55: =SUMIFS('Berekening variant 1'!$LC$1:$LH$1,'Berekening variant 1'!$LC$5:$LH$5,">"&$M50,'Berekening variant 1'!$LC$6:$LH$6,"<="&$M50,'Berekening variant 1'!$LC$8:$LH$8,TRUE) -> 0 | T55: =SUMIFS('Berekening variant 1'!$GR$1:$IA$1,'Berekening variant 1'!$GR$5:$IA$5,">"&$M50,'Berekening variant 1'!$GR$6:$IA$6,"<="&$M50,'Berekening variant 1'!$GR$8:$IA$8,TRUE) -> 6.533384239 | U55: =SUMIFS('Berekening variant 1'!$AG$1:$DW$1,'Berekening variant 1'!$AG$5:$DW$5,">"&$M50,'Berekening variant 1'!$AG$6:$DW$6,"<="&$M50,'Berekening variant 1'!$AG$8:$DW$8,TRUE) -> 5.590737024 | V55: =SUMIFS('Berekening variant 1'!$JS$1:$JX$1,'Berekening variant 1'!$JS$6:$JX$6,">="&$M50) -> 0 | W55: =SUMIFS('Berekening variant 1'!$LC$1:$LH$1,'Berekening variant 1'!$LC$6:$LH$6,">"&$M50) -> 0 | X55: =SUMIFS('Berekening variant 1'!$GR$1:$IA$1,'Berekening variant 1'!$GR$6:$IA$6,">"&$M50) -> 0.167323499 | Y55: =SUMIFS('Berekening variant 1'!$AG$1:$DW$1,'Berekening variant 1'!$AG$6:$DW$6,">"&$M50) -> 1.516628764 | Z55: =SUMIFS('Berekening variant 1'!$JS$1:$JX$1,'Berekening variant 1'!$JS$6:$JX$6,">="&$M50,'Berekening variant 1'!$JS$8:$JX$8,TRUE) -> 0 | AA55: =SUMIFS('Berekening variant 1'!$LC$1:$LH$1,'Berekening variant 1'!$LC$6:$LH$6,">"&$M50,'Berekening variant 1'!$LC$8:$LH$8,TRUE) -> 0 | AB55: =SUMIFS('Berekening variant 1'!$GR$1:$IA$1,'Berekening variant 1'!$GR$6:$IA$6,">"&$M50,'Berekening variant 1'!$GR$8:$IA$8,TRUE) -> 0.167323499 | AC55: =SUMIFS('Berekening variant 1'!$AG$1:$DW$1,'Berekening variant 1'!$AG$6:$DW$6,">"&$M50,'Berekening variant 1'!$AG$8:$DW$8,TRUE) -> 1.478425228 | AD55: 0.0001026976786 | AE55: 0.02275026046 | AF55: 0.004424055717 | AG55: 0.03259172382 | AH55: 7.730069358 | AI55: 7.7
A56: geel | B56: =SUMIFS('Berekening variant 1'!$AG$1:$DW$1,'Berekening variant 1'!$AG$5:$DW$5,">"&breedte,'Berekening variant 1'!$AG$6:$DW$6,"<="&breedte) -> 15.0321136 | C56: =SUMIFS('Berekening variant 1'!$AG$1:$DW$1,'Berekening variant 1'!$AG$5:$DW$5,">"&breedte,'Berekening variant 1'!$AG$6:$DW$6,"<="&breedte,'Berekening variant 1'!$AG$8:$DW$8,TRUE) -> 0 | D56: =SUMIFS('Berekening variant 1'!$AG$1:$DW$1,'Berekening variant 1'!$AG$5:$DW$5,">"&breedte,'Berekening variant 1'!$AG$6:$DW$6,"<="&breedte,'Berekening variant 1'!$AG$9:$DW$9,TRUE) -> 0 | E56: =SUMIFS('Berekening variant 1'!$AG$1:$DW$1,'Berekening variant 1'!$AG$5:$DW$5,">"&breedte,'Berekening variant 1'!$AG$6:$DW$6,"<="&breedte,'Berekening variant 1'!$AG$7:$DW$7,TRUE) -> 15.0321136 | J56: 20 | K56: FALSE | L56: TRUE | M56: =ROUND(AVERAGE(INDEX(M$37:M55,_xlfn.MAXIFS(J$37:J55,K$37:K55,TRUE),1),INDEX(M$37:M55,_xlfn.MAXIFS(J$37:J55,L$37:L55,TRUE),1)),0) -> 516 | N56: =SUMIFS('Berekening variant 1'!$JS$1:$JX$1,'Berekening variant 1'!$JS$5:$JX$5,">="&$M51,'Berekening variant 1'!$JS$6:$JX$6,"<"&$M51) -> 0 | O56: =SUMIFS('Berekening variant 1'!$LC$1:$LH$1,'Berekening variant 1'!$LC$5:$LH$5,">"&$M51,'Berekening variant 1'!$LC$6:$LH$6,"<="&$M51) -> 0 | P56: =SUMIFS('Berekening variant 1'!$GR$1:$IA$1,'Berekening variant 1'!$GR$5:$IA$5,">"&$M51,'Berekening variant 1'!$GR$6:$IA$6,"<="&$M51) -> 9.20630055 | Q56: =SUMIFS('Berekening variant 1'!$AG$1:$DW$1,'Berekening variant 1'!$AG$5:$DW$5,">"&$M51,'Berekening variant 1'!$AG$6:$DW$6,"<="&$M51) -> 11.38091761 | R56: =SUMIFS('Berekening variant 1'!$JS$1:$JX$1,'Berekening variant 1'!$JS$5:$JX$5,">="&$M51,'Berekening variant 1'!$JS$6:$JX$6,"<"&$M51,'Berekening variant 1'!$JS$8:$JX$8,TRUE) -> 0 | S56: =SUMIFS('Berekening variant 1'!$LC$1:$LH$1,'Berekening variant 1'!$LC$5:$LH$5,">"&$M51,'Berekening variant 1'!$LC$6:$LH$6,"<="&$M51,'Berekening variant 1'!$LC$8:$LH$8,TRUE) -> 0 | T56: =SUMIFS('Berekening variant 1'!$GR$1:$IA$1,'Berekening variant 1'!$GR$5:$IA$5,">"&$M51,'Berekening variant 1'!$GR$6:$IA$6,"<="&$M51,'Berekening variant 1'!$GR$8:$IA$8,TRUE) -> 6.533384239 | U56: =SUMIFS('Berekening variant 1'!$AG$1:$DW$1,'Berekening variant 1'!$AG$5:$DW$5,">"&$M51,'Berekening variant 1'!$AG$6:$DW$6,"<="&$M51,'Berekening variant 1'!$AG$8:$DW$8,TRUE) -> 5.590737024 | V56: =SUMIFS('Berekening variant 1'!$JS$1:$JX$1,'Berekening variant 1'!$JS$6:$JX$6,">="&$M51) -> 0 | W56: =SUMIFS('Berekening variant 1'!$LC$1:$LH$1,'Berekening variant 1'!$LC$6:$LH$6,">"&$M51) -> 0 | X56: =SUMIFS('Berekening variant 1'!$GR$1:$IA$1,'Berekening variant 1'!$GR$6:$IA$6,">"&$M51) -> 0.167323499 | Y56: =SUMIFS('Berekening variant 1'!$AG$1:$DW$1,'Berekening variant 1'!$AG$6:$DW$6,">"&$M51) -> 1.516628764 | Z56: =SUMIFS('Berekening variant 1'!$JS$1:$JX$1,'Berekening variant 1'!$JS$6:$JX$6,">="&$M51,'Berekening variant 1'!$JS$8:$JX$8,TRUE) -> 0 | AA56: =SUMIFS('Berekening variant 1'!$LC$1:$LH$1,'Berekening variant 1'!$LC$6:$LH$6,">"&$M51,'Berekening variant 1'!$LC$8:$LH$8,TRUE) -> 0 | AB56: =SUMIFS('Berekening variant 1'!$GR$1:$IA$1,'Berekening variant 1'!$GR$6:$IA$6,">"&$M51,'Berekening variant 1'!$GR$8:$IA$8,TRUE) -> 0.167323499 | AC56: =SUMIFS('Berekening variant 1'!$AG$1:$DW$1,'Berekening variant 1'!$AG$6:$DW$6,">"&$M51,'Berekening variant 1'!$AG$8:$DW$8,TRUE) -> 1.478425228 | AD56: 0.0001026976786 | AE56: 0.02275026046 | AF56: 0.004424055717 | AG56: 0.03259172382 | AH56: 7.730069358 | AI56: 7.7
A57: rood | B57: =SUMIFS('Berekening variant 1'!$AG$1:$DW$1,'Berekening variant 1'!$AG$6:$DW$6,">"&breedte) -> 12.89754637 | C57: =SUMIFS('Berekening variant 1'!$AG$1:$DW$1,'Berekening variant 1'!$AG$6:$DW$6,">"&breedte,'Berekening variant 1'!$AG$8:$DW$8,TRUE) -> 7.069162251 | D57: =SUMIFS('Berekening variant 1'!$AG$1:$DW$1,'Berekening variant 1'!$AG$6:$DW$6,">"&breedte,'Berekening variant 1'!$AG$9:$DW$9,TRUE) -> 7.328324539 | E57: =SUMIFS('Berekening variant 1'!$AG$1:$DW$1,'Berekening variant 1'!$AG$6:$DW$6,">"&breedte,'Berekening variant 1'!$AG$7:$DW$7,TRUE) -> 12.88886927 | J57: 21 | K57: FALSE | L57: TRUE | M57: =ROUND(AVERAGE(INDEX(M$37:M56,_xlfn.MAXIFS(J$37:J56,K$37:K56,TRUE),1),INDEX(M$37:M56,_xlfn.MAXIFS(J$37:J56,L$37:L56,TRUE),1)),0) -> 516 | N57: =SUMIFS('Berekening variant 1'!$JS$1:$JX$1,'Berekening variant 1'!$JS$5:$JX$5,">="&$M52,'Berekening variant 1'!$JS$6:$JX$6,"<"&$M52) -> 0 | O57: =SUMIFS('Berekening variant 1'!$LC$1:$LH$1,'Berekening variant 1'!$LC$5:$LH$5,">"&$M52,'Berekening variant 1'!$LC$6:$LH$6,"<="&$M52) -> 0 | P57: =SUMIFS('Berekening variant 1'!$GR$1:$IA$1,'Berekening variant 1'!$GR$5:$IA$5,">"&$M52,'Berekening variant 1'!$GR$6:$IA$6,"<="&$M52) -> 9.20630055 | Q57: =SUMIFS('Berekening variant 1'!$AG$1:$DW$1,'Berekening variant 1'!$AG$5:$DW$5,">"&$M52,'Berekening variant 1'!$AG$6:$DW$6,"<="&$M52) -> 11.38091761 | R57: =SUMIFS('Berekening variant 1'!$JS$1:$JX$1,'Berekening variant 1'!$JS$5:$JX$5,">="&$M52,'Berekening variant 1'!$JS$6:$JX$6,"<"&$M52,'Berekening variant 1'!$JS$8:$JX$8,TRUE) -> 0 | S57: =SUMIFS('Berekening variant 1'!$LC$1:$LH$1,'Berekening variant 1'!$LC$5:$LH$5,">"&$M52,'Berekening variant 1'!$LC$6:$LH$6,"<="&$M52,'Berekening variant 1'!$LC$8:$LH$8,TRUE) -> 0 | T57: =SUMIFS('Berekening variant 1'!$GR$1:$IA$1,'Berekening variant 1'!$GR$5:$IA$5,">"&$M52,'Berekening variant 1'!$GR$6:$IA$6,"<="&$M52,'Berekening variant 1'!$GR$8:$IA$8,TRUE) -> 6.533384239 | U57: =SUMIFS('Berekening variant 1'!$AG$1:$DW$1,'Berekening variant 1'!$AG$5:$DW$5,">"&$M52,'Berekening variant 1'!$AG$6:$DW$6,"<="&$M52,'Berekening variant 1'!$AG$8:$DW$8,TRUE) -> 5.590737024 | V57: =SUMIFS('Berekening variant 1'!$JS$1:$JX$1,'Berekening variant 1'!$JS$6:$JX$6,">="&$M52) -> 0 | W57: =SUMIFS('Berekening variant 1'!$LC$1:$LH$1,'Berekening variant 1'!$LC$6:$LH$6,">"&$M52) -> 0 | X57: =SUMIFS('Berekening variant 1'!$GR$1:$IA$1,'Berekening variant 1'!$GR$6:$IA$6,">"&$M52) -> 0.167323499 | Y57: =SUMIFS('Berekening variant 1'!$AG$1:$DW$1,'Berekening variant 1'!$AG$6:$DW$6,">"&$M52) -> 1.516628764 | Z57: =SUMIFS('Berekening variant 1'!$JS$1:$JX$1,'Berekening variant 1'!$JS$6:$JX$6,">="&$M52,'Berekening variant 1'!$JS$8:$JX$8,TRUE) -> 0 | AA57: =SUMIFS('Berekening variant 1'!$LC$1:$LH$1,'Berekening variant 1'!$LC$6:$LH$6,">"&$M52,'Berekening variant 1'!$LC$8:$LH$8,TRUE) -> 0 | AB57: =SUMIFS('Berekening variant 1'!$GR$1:$IA$1,'Berekening variant 1'!$GR$6:$IA$6,">"&$M52,'Berekening variant 1'!$GR$8:$IA$8,TRUE) -> 0.167323499 | AC57: =SUMIFS('Berekening variant 1'!$AG$1:$DW$1,'Berekening variant 1'!$AG$6:$DW$6,">"&$M52,'Berekening variant 1'!$AG$8:$DW$8,TRUE) -> 1.478425228 | AD57: 0.0001026976786 | AE57: 0.02275026046 | AF57: 0.004424055717 | AG57: 0.03259172382 | AH57: 7.730069358 | AI57: 7.7
J58: 22 | K58: FALSE | L58: TRUE | M58: =ROUND(AVERAGE(INDEX(M$37:M57,_xlfn.MAXIFS(J$37:J57,K$37:K57,TRUE),1),INDEX(M$37:M57,_xlfn.MAXIFS(J$37:J57,L$37:L57,TRUE),1)),0) -> 516 | N58: =SUMIFS('Berekening variant 1'!$JS$1:$JX$1,'Berekening variant 1'!$JS$5:$JX$5,">="&$M53,'Berekening variant 1'!$JS$6:$JX$6,"<"&$M53) -> 0 | O58: =SUMIFS('Berekening variant 1'!$LC$1:$LH$1,'Berekening variant 1'!$LC$5:$LH$5,">"&$M53,'Berekening variant 1'!$LC$6:$LH$6,"<="&$M53) -> 0 | P58: =SUMIFS('Berekening variant 1'!$GR$1:$IA$1,'Berekening variant 1'!$GR$5:$IA$5,">"&$M53,'Berekening variant 1'!$GR$6:$IA$6,"<="&$M53) -> 9.20630055 | Q58: =SUMIFS('Berekening variant 1'!$AG$1:$DW$1,'Berekening variant 1'!$AG$5:$DW$5,">"&$M53,'Berekening variant 1'!$AG$6:$DW$6,"<="&$M53) -> 11.38091761 | R58: =SUMIFS('Berekening variant 1'!$JS$1:$JX$1,'Berekening variant 1'!$JS$5:$JX$5,">="&$M53,'Berekening variant 1'!$JS$6:$JX$6,"<"&$M53,'Berekening variant 1'!$JS$8:$JX$8,TRUE) -> 0 | S58: =SUMIFS('Berekening variant 1'!$LC$1:$LH$1,'Berekening variant 1'!$LC$5:$LH$5,">"&$M53,'Berekening variant 1'!$LC$6:$LH$6,"<="&$M53,'Berekening variant 1'!$LC$8:$LH$8,TRUE) -> 0 | T58: =SUMIFS('Berekening variant 1'!$GR$1:$IA$1,'Berekening variant 1'!$GR$5:$IA$5,">"&$M53,'Berekening variant 1'!$GR$6:$IA$6,"<="&$M53,'Berekening variant 1'!$GR$8:$IA$8,TRUE) -> 6.533384239 | U58: =SUMIFS('Berekening variant 1'!$AG$1:$DW$1,'Berekening variant 1'!$AG$5:$DW$5,">"&$M53,'Berekening variant 1'!$AG$6:$DW$6,"<="&$M53,'Berekening variant 1'!$AG$8:$DW$8,TRUE) -> 5.590737024 | V58: =SUMIFS('Berekening variant 1'!$JS$1:$JX$1,'Berekening variant 1'!$JS$6:$JX$6,">="&$M53) -> 0 | W58: =SUMIFS('Berekening variant 1'!$LC$1:$LH$1,'Berekening variant 1'!$LC$6:$LH$6,">"&$M53) -> 0 | X58: =SUMIFS('Berekening variant 1'!$GR$1:$IA$1,'Berekening variant 1'!$GR$6:$IA$6,">"&$M53) -> 0.167323499 | Y58: =SUMIFS('Berekening variant 1'!$AG$1:$DW$1,'Berekening variant 1'!$AG$6:$DW$6,">"&$M53) -> 1.516628764 | Z58: =SUMIFS('Berekening variant 1'!$JS$1:$JX$1,'Berekening variant 1'!$JS$6:$JX$6,">="&$M53,'Berekening variant 1'!$JS$8:$JX$8,TRUE) -> 0 | AA58: =SUMIFS('Berekening variant 1'!$LC$1:$LH$1,'Berekening variant 1'!$LC$6:$LH$6,">"&$M53,'Berekening variant 1'!$LC$8:$LH$8,TRUE) -> 0 | AB58: =SUMIFS('Berekening variant 1'!$GR$1:$IA$1,'Berekening variant 1'!$GR$6:$IA$6,">"&$M53,'Berekening variant 1'!$GR$8:$IA$8,TRUE) -> 0.167323499 | AC58: =SUMIFS('Berekening variant 1'!$AG$1:$DW$1,'Berekening variant 1'!$AG$6:$DW$6,">"&$M53,'Berekening variant 1'!$AG$8:$DW$8,TRUE) -> 1.478425228 | AD58: 0.0001026976786 | AE58: 0.02275026046 | AF58: 0.004424055717 | AG58: 0.03259172382 | AH58: 7.730069358 | AI58: 7.7
J59: 23 | K59: FALSE | L59: TRUE | M59: =ROUND(AVERAGE(INDEX(M$37:M58,_xlfn.MAXIFS(J$37:J58,K$37:K58,TRUE),1),INDEX(M$37:M58,_xlfn.MAXIFS(J$37:J58,L$37:L58,TRUE),1)),0) -> 516 | N59: =SUMIFS('Berekening variant 1'!$JS$1:$JX$1,'Berekening variant 1'!$JS$5:$JX$5,">="&$M54,'Berekening variant 1'!$JS$6:$JX$6,"<"&$M54) -> 0 | O59: =SUMIFS('Berekening variant 1'!$LC$1:$LH$1,'Berekening variant 1'!$LC$5:$LH$5,">"&$M54,'Berekening variant 1'!$LC$6:$LH$6,"<="&$M54) -> 0 | P59: =SUMIFS('Berekening variant 1'!$GR$1:$IA$1,'Berekening variant 1'!$GR$5:$IA$5,">"&$M54,'Berekening variant 1'!$GR$6:$IA$6,"<="&$M54) -> 9.20630055 | Q59: =SUMIFS('Berekening variant 1'!$AG$1:$DW$1,'Berekening variant 1'!$AG$5:$DW$5,">"&$M54,'Berekening variant 1'!$AG$6:$DW$6,"<="&$M54) -> 11.38091761 | R59: =SUMIFS('Berekening variant 1'!$JS$1:$JX$1,'Berekening variant 1'!$JS$5:$JX$5,">="&$M54,'Berekening variant 1'!$JS$6:$JX$6,"<"&$M54,'Berekening variant 1'!$JS$8:$JX$8,TRUE) -> 0 | S59: =SUMIFS('Berekening variant 1'!$LC$1:$LH$1,'Berekening variant 1'!$LC$5:$LH$5,">"&$M54,'Berekening variant 1'!$LC$6:$LH$6,"<="&$M54,'Berekening variant 1'!$LC$8:$LH$8,TRUE) -> 0 | T59: =SUMIFS('Berekening variant 1'!$GR$1:$IA$1,'Berekening variant 1'!$GR$5:$IA$5,">"&$M54,'Berekening variant 1'!$GR$6:$IA$6,"<="&$M54,'Berekening variant 1'!$GR$8:$IA$8,TRUE) -> 6.533384239 | U59: =SUMIFS('Berekening variant 1'!$AG$1:$DW$1,'Berekening variant 1'!$AG$5:$DW$5,">"&$M54,'Berekening variant 1'!$AG$6:$DW$6,"<="&$M54,'Berekening variant 1'!$AG$8:$DW$8,TRUE) -> 5.590737024 | V59: =SUMIFS('Berekening variant 1'!$JS$1:$JX$1,'Berekening variant 1'!$JS$6:$JX$6,">="&$M54) -> 0 | W59: =SUMIFS('Berekening variant 1'!$LC$1:$LH$1,'Berekening variant 1'!$LC$6:$LH$6,">"&$M54) -> 0 | X59: =SUMIFS('Berekening variant 1'!$GR$1:$IA$1,'Berekening variant 1'!$GR$6:$IA$6,">"&$M54) -> 0.167323499 | Y59: =SUMIFS('Berekening variant 1'!$AG$1:$DW$1,'Berekening variant 1'!$AG$6:$DW$6,">"&$M54) -> 1.516628764 | Z59: =SUMIFS('Berekening variant 1'!$JS$1:$JX$1,'Berekening variant 1'!$JS$6:$JX$6,">="&$M54,'Berekening variant 1'!$JS$8:$JX$8,TRUE) -> 0 | AA59: =SUMIFS('Berekening variant 1'!$LC$1:$LH$1,'Berekening variant 1'!$LC$6:$LH$6,">"&$M54,'Berekening variant 1'!$LC$8:$LH$8,TRUE) -> 0 | AB59: =SUMIFS('Berekening variant 1'!$GR$1:$IA$1,'Berekening variant 1'!$GR$6:$IA$6,">"&$M54,'Berekening variant 1'!$GR$8:$IA$8,TRUE) -> 0.167323499 | AC59: =SUMIFS('Berekening variant 1'!$AG$1:$DW$1,'Berekening variant 1'!$AG$6:$DW$6,">"&$M54,'Berekening variant 1'!$AG$8:$DW$8,TRUE) -> 1.478425228 | AD59: 0.0001026976786 | AE59: 0.02275026046 | AF59: 0.004424055717 | AG59: 0.03259172382 | AH59: 7.730069358 | AI59: 7.7
A60: groen + geel | B60: =SUM(B37:B38,B43:B44,B49:B50,B55:B56) -> 6395.754516 | J60: 24 | K60: FALSE | L60: TRUE | M60: =ROUND(AVERAGE(INDEX(M$37:M59,_xlfn.MAXIFS(J$37:J59,K$37:K59,TRUE),1),INDEX(M$37:M59,_xlfn.MAXIFS(J$37:J59,L$37:L59,TRUE),1)),0) -> 516 | N60: =SUMIFS('Berekening variant 1'!$JS$1:$JX$1,'Berekening variant 1'!$JS$5:$JX$5,">="&$M55,'Berekening variant 1'!$JS$6:$JX$6,"<"&$M55) -> 0 | O60: =SUMIFS('Berekening variant 1'!$LC$1:$LH$1,'Berekening variant 1'!$LC$5:$LH$5,">"&$M55,'Berekening variant 1'!$LC$6:$LH$6,"<="&$M55) -> 0 | P60: =SUMIFS('Berekening variant 1'!$GR$1:$IA$1,'Berekening variant 1'!$GR$5:$IA$5,">"&$M55,'Berekening variant 1'!$GR$6:$IA$6,"<="&$M55) -> 9.20630055 | Q60: =SUMIFS('Berekening variant 1'!$AG$1:$DW$1,'Berekening variant 1'!$AG$5:$DW$5,">"&$M55,'Berekening variant 1'!$AG$6:$DW$6,"<="&$M55) -> 11.38091761 | R60: =SUMIFS('Berekening variant 1'!$JS$1:$JX$1,'Berekening variant 1'!$JS$5:$JX$5,">="&$M55,'Berekening variant 1'!$JS$6:$JX$6,"<"&$M55,'Berekening variant 1'!$JS$8:$JX$8,TRUE) -> 0 | S60: =SUMIFS('Berekening variant 1'!$LC$1:$LH$1,'Berekening variant 1'!$LC$5:$LH$5,">"&$M55,'Berekening variant 1'!$LC$6:$LH$6,"<="&$M55,'Berekening variant 1'!$LC$8:$LH$8,TRUE) -> 0 | T60: =SUMIFS('Berekening variant 1'!$GR$1:$IA$1,'Berekening variant 1'!$GR$5:$IA$5,">"&$M55,'Berekening variant 1'!$GR$6:$IA$6,"<="&$M55,'Berekening variant 1'!$GR$8:$IA$8,TRUE) -> 6.533384239 | U60: =SUMIFS('Berekening variant 1'!$AG$1:$DW$1,'Berekening variant 1'!$AG$5:$DW$5,">"&$M55,'Berekening variant 1'!$AG$6:$DW$6,"<="&$M55,'Berekening variant 1'!$AG$8:$DW$8,TRUE) -> 5.590737024 | V60: =SUMIFS('Berekening variant 1'!$JS$1:$JX$1,'Berekening variant 1'!$JS$6:$JX$6,">="&$M55) -> 0 | W60: =SUMIFS('Berekening variant 1'!$LC$1:$LH$1,'Berekening variant 1'!$LC$6:$LH$6,">"&$M55) -> 0 | X60: =SUMIFS('Berekening variant 1'!$GR$1:$IA$1,'Berekening variant 1'!$GR$6:$IA$6,">"&$M55) -> 0.167323499 | Y60: =SUMIFS('Berekening variant 1'!$AG$1:$DW$1,'Berekening variant 1'!$AG$6:$DW$6,">"&$M55) -> 1.516628764 | Z60: =SUMIFS('Berekening variant 1'!$JS$1:$JX$1,'Berekening variant 1'!$JS$6:$JX$6,">="&$M55,'Berekening variant 1'!$JS$8:$JX$8,TRUE) -> 0 | AA60: =SUMIFS('Berekening variant 1'!$LC$1:$LH$1,'Berekening variant 1'!$LC$6:$LH$6,">"&$M55,'Berekening variant 1'!$LC$8:$LH$8,TRUE) -> 0 | AB60: =SUMIFS('Berekening variant 1'!$GR$1:$IA$1,'Berekening variant 1'!$GR$6:$IA$6,">"&$M55,'Berekening variant 1'!$GR$8:$IA$8,TRUE) -> 0.167323499 | AC60: =SUMIFS('Berekening variant 1'!$AG$1:$DW$1,'Berekening variant 1'!$AG$6:$DW$6,">"&$M55,'Berekening variant 1'!$AG$8:$DW$8,TRUE) -> 1.478425228 | AD60: 0.0001026976786 | AE60: 0.02275026046 | AF60: 0.004424055717 | AG60: 0.03259172382 | AH60: 7.730069358 | AI60: 7.7
A61: geel per fietser | B61: =SUM(B38,B44,B50,B56)/int_uur -> 0.7272725914 | J61: 25 | K61: FALSE | L61: TRUE | M61: =ROUND(AVERAGE(INDEX(M$37:M60,_xlfn.MAXIFS(J$37:J60,K$37:K60,TRUE),1),INDEX(M$37:M60,_xlfn.MAXIFS(J$37:J60,L$37:L60,TRUE),1)),0) -> 516 | N61: =SUMIFS('Berekening variant 1'!$JS$1:$JX$1,'Berekening variant 1'!$JS$5:$JX$5,">="&$M56,'Berekening variant 1'!$JS$6:$JX$6,"<"&$M56) -> 0 | O61: =SUMIFS('Berekening variant 1'!$LC$1:$LH$1,'Berekening variant 1'!$LC$5:$LH$5,">"&$M56,'Berekening variant 1'!$LC$6:$LH$6,"<="&$M56) -> 0 | P61: =SUMIFS('Berekening variant 1'!$GR$1:$IA$1,'Berekening variant 1'!$GR$5:$IA$5,">"&$M56,'Berekening variant 1'!$GR$6:$IA$6,"<="&$M56) -> 9.20630055 | Q61: =SUMIFS('Berekening variant 1'!$AG$1:$DW$1,'Berekening variant 1'!$AG$5:$DW$5,">"&$M56,'Berekening variant 1'!$AG$6:$DW$6,"<="&$M56) -> 11.38091761 | R61: =SUMIFS('Berekening variant 1'!$JS$1:$JX$1,'Berekening variant 1'!$JS$5:$JX$5,">="&$M56,'Berekening variant 1'!$JS$6:$JX$6,"<"&$M56,'Berekening variant 1'!$JS$8:$JX$8,TRUE) -> 0 | S61: =SUMIFS('Berekening variant 1'!$LC$1:$LH$1,'Berekening variant 1'!$LC$5:$LH$5,">"&$M56,'Berekening variant 1'!$LC$6:$LH$6,"<="&$M56,'Berekening variant 1'!$LC$8:$LH$8,TRUE) -> 0 | T61: =SUMIFS('Berekening variant 1'!$GR$1:$IA$1,'Berekening variant 1'!$GR$5:$IA$5,">"&$M56,'Berekening variant 1'!$GR$6:$IA$6,"<="&$M56,'Berekening variant 1'!$GR$8:$IA$8,TRUE) -> 6.533384239 | U61: =SUMIFS('Berekening variant 1'!$AG$1:$DW$1,'Berekening variant 1'!$AG$5:$DW$5,">"&$M56,'Berekening variant 1'!$AG$6:$DW$6,"<="&$M56,'Berekening variant 1'!$AG$8:$DW$8,TRUE) -> 5.590737024 | V61: =SUMIFS('Berekening variant 1'!$JS$1:$JX$1,'Berekening variant 1'!$JS$6:$JX$6,">="&$M56) -> 0 | W61: =SUMIFS('Berekening variant 1'!$LC$1:$LH$1,'Berekening variant 1'!$LC$6:$LH$6,">"&$M56) -> 0 | X61: =SUMIFS('Berekening variant 1'!$GR$1:$IA$1,'Berekening variant 1'!$GR$6:$IA$6,">"&$M56) -> 0.167323499 | Y61: =SUMIFS('Berekening variant 1'!$AG$1:$DW$1,'Berekening variant 1'!$AG$6:$DW$6,">"&$M56) -> 1.516628764 | Z61: =SUMIFS('Berekening variant 1'!$JS$1:$JX$1,'Berekening variant 1'!$JS$6:$JX$6,">="&$M56,'Berekening variant 1'!$JS$8:$JX$8,TRUE) -> 0 | AA61: =SUMIFS('Berekening variant 1'!$LC$1:$LH$1,'Berekening variant 1'!$LC$6:$LH$6,">"&$M56,'Berekening variant 1'!$LC$8:$LH$8,TRUE) -> 0 | AB61: =SUMIFS('Berekening variant 1'!$GR$1:$IA$1,'Berekening variant 1'!$GR$6:$IA$6,">"&$M56,'Berekening variant 1'!$GR$8:$IA$8,TRUE) -> 0.167323499 | AC61: =SUMIFS('Berekening variant 1'!$AG$1:$DW$1,'Berekening variant 1'!$AG$6:$DW$6,">"&$M56,'Berekening variant 1'!$AG$8:$DW$8,TRUE) -> 1.478425228 | AD61: 0.0001026976786 | AE61: 0.02275026046 | AF61: 0.004424055717 | AG61: 0.03259172382 | AH61: 7.730069358 | AI61: 7.7
A62: rood per fietser | B62: =SUM(B39,B45,B51,B57)/int_uur -> 0.05986873768 | N62: =SUMIFS('Berekening variant 1'!$JS$1:$JX$1,'Berekening variant 1'!$JS$5:$JX$5,">="&$M57,'Berekening variant 1'!$JS$6:$JX$6,"<"&$M57) -> 0 | O62: =SUMIFS('Berekening variant 1'!$LC$1:$LH$1,'Berekening variant 1'!$LC$5:$LH$5,">"&$M57,'Berekening variant 1'!$LC$6:$LH$6,"<="&$M57) -> 0 | P62: =SUMIFS('Berekening variant 1'!$GR$1:$IA$1,'Berekening variant 1'!$GR$5:$IA$5,">"&$M57,'Berekening variant 1'!$GR$6:$IA$6,"<="&$M57) -> 9.20630055 | Q62: =SUMIFS('Berekening variant 1'!$AG$1:$DW$1,'Berekening variant 1'!$AG$5:$DW$5,">"&$M57,'Berekening variant 1'!$AG$6:$DW$6,"<="&$M57) -> 11.38091761 | R62: =SUMIFS('Berekening variant 1'!$JS$1:$JX$1,'Berekening variant 1'!$JS$5:$JX$5,">="&$M57,'Berekening variant 1'!$JS$6:$JX$6,"<"&$M57,'Berekening variant 1'!$JS$8:$JX$8,TRUE) -> 0 | S62: =SUMIFS('Berekening variant 1'!$LC$1:$LH$1,'Berekening variant 1'!$LC$5:$LH$5,">"&$M57,'Berekening variant 1'!$LC$6:$LH$6,"<="&$M57,'Berekening variant 1'!$LC$8:$LH$8,TRUE) -> 0 | T62: =SUMIFS('Berekening variant 1'!$GR$1:$IA$1,'Berekening variant 1'!$GR$5:$IA$5,">"&$M57,'Berekening variant 1'!$GR$6:$IA$6,"<="&$M57,'Berekening variant 1'!$GR$8:$IA$8,TRUE) -> 6.533384239 | U62: =SUMIFS('Berekening variant 1'!$AG$1:$DW$1,'Berekening variant 1'!$AG$5:$DW$5,">"&$M57,'Berekening variant 1'!$AG$6:$DW$6,"<="&$M57,'Berekening variant 1'!$AG$8:$DW$8,TRUE) -> 5.590737024 | V62: =SUMIFS('Berekening variant 1'!$JS$1:$JX$1,'Berekening variant 1'!$JS$6:$JX$6,">="&$M57) -> 0 | W62: =SUMIFS('Berekening variant 1'!$LC$1:$LH$1,'Berekening variant 1'!$LC$6:$LH$6,">"&$M57) -> 0 | X62: =SUMIFS('Berekening variant 1'!$GR$1:$IA$1,'Berekening variant 1'!$GR$6:$IA$6,">"&$M57) -> 0.167323499 | Y62: =SUMIFS('Berekening variant 1'!$AG$1:$DW$1,'Berekening variant 1'!$AG$6:$DW$6,">"&$M57) -> 1.516628764 | Z62: =SUMIFS('Berekening variant 1'!$JS$1:$JX$1,'Berekening variant 1'!$JS$6:$JX$6,">="&$M57,'Berekening variant 1'!$JS$8:$JX$8,TRUE) -> 0 | AA62: =SUMIFS('Berekening variant 1'!$LC$1:$LH$1,'Berekening variant 1'!$LC$6:$LH$6,">"&$M57,'Berekening variant 1'!$LC$8:$LH$8,TRUE) -> 0 | AB62: =SUMIFS('Berekening variant 1'!$GR$1:$IA$1,'Berekening variant 1'!$GR$6:$IA$6,">"&$M57,'Berekening variant 1'!$GR$8:$IA$8,TRUE) -> 0.167323499 | AC62: =SUMIFS('Berekening variant 1'!$AG$1:$DW$1,'Berekening variant 1'!$AG$6:$DW$6,">"&$M57,'Berekening variant 1'!$AG$8:$DW$8,TRUE) -> 1.478425228 | AD62: 0.0001026976786 | AE62: 0.02275026046 | AF62: 0.004424055717 | AG62: 0.03259172382 | AH62: 7.730069358 | AI62: 7.7
D63: minimaal benodigd voor | E63: breedtecriterium | F63: ontmoetingencriterium | N63: =SUMIFS('Berekening variant 1'!$JS$1:$JX$1,'Berekening variant 1'!$JS$5:$JX$5,">="&$M58,'Berekening variant 1'!$JS$6:$JX$6,"<"&$M58) -> 0 | O63: =SUMIFS('Berekening variant 1'!$LC$1:$LH$1,'Berekening variant 1'!$LC$5:$LH$5,">"&$M58,'Berekening variant 1'!$LC$6:$LH$6,"<="&$M58) -> 0 | P63: =SUMIFS('Berekening variant 1'!$GR$1:$IA$1,'Berekening variant 1'!$GR$5:$IA$5,">"&$M58,'Berekening variant 1'!$GR$6:$IA$6,"<="&$M58) -> 9.20630055 | Q63: =SUMIFS('Berekening variant 1'!$AG$1:$DW$1,'Berekening variant 1'!$AG$5:$DW$5,">"&$M58,'Berekening variant 1'!$AG$6:$DW$6,"<="&$M58) -> 11.38091761 | R63: =SUMIFS('Berekening variant 1'!$JS$1:$JX$1,'Berekening variant 1'!$JS$5:$JX$5,">="&$M58,'Berekening variant 1'!$JS$6:$JX$6,"<"&$M58,'Berekening variant 1'!$JS$8:$JX$8,TRUE) -> 0 | S63: =SUMIFS('Berekening variant 1'!$LC$1:$LH$1,'Berekening variant 1'!$LC$5:$LH$5,">"&$M58,'Berekening variant 1'!$LC$6:$LH$6,"<="&$M58,'Berekening variant 1'!$LC$8:$LH$8,TRUE) -> 0 | T63: =SUMIFS('Berekening variant 1'!$GR$1:$IA$1,'Berekening variant 1'!$GR$5:$IA$5,">"&$M58,'Berekening variant 1'!$GR$6:$IA$6,"<="&$M58,'Berekening variant 1'!$GR$8:$IA$8,TRUE) -> 6.533384239 | U63: =SUMIFS('Berekening variant 1'!$AG$1:$DW$1,'Berekening variant 1'!$AG$5:$DW$5,">"&$M58,'Berekening variant 1'!$AG$6:$DW$6,"<="&$M58,'Berekening variant 1'!$AG$8:$DW$8,TRUE) -> 5.590737024 | V63: =SUMIFS('Berekening variant 1'!$JS$1:$JX$1,'Berekening variant 1'!$JS$6:$JX$6,">="&$M58) -> 0 | W63: =SUMIFS('Berekening variant 1'!$LC$1:$LH$1,'Berekening variant 1'!$LC$6:$LH$6,">"&$M58) -> 0 | X63: =SUMIFS('Berekening variant 1'!$GR$1:$IA$1,'Berekening variant 1'!$GR$6:$IA$6,">"&$M58) -> 0.167323499 | Y63: =SUMIFS('Berekening variant 1'!$AG$1:$DW$1,'Berekening variant 1'!$AG$6:$DW$6,">"&$M58) -> 1.516628764 | Z63: =SUMIFS('Berekening variant 1'!$JS$1:$JX$1,'Berekening variant 1'!$JS$6:$JX$6,">="&$M58,'Berekening variant 1'!$JS$8:$JX$8,TRUE) -> 0 | AA63: =SUMIFS('Berekening variant 1'!$LC$1:$LH$1,'Berekening variant 1'!$LC$6:$LH$6,">"&$M58,'Berekening variant 1'!$LC$8:$LH$8,TRUE) -> 0 | AB63: =SUMIFS('Berekening variant 1'!$GR$1:$IA$1,'Berekening variant 1'!$GR$6:$IA$6,">"&$M58,'Berekening variant 1'!$GR$8:$IA$8,TRUE) -> 0.167323499 | AC63: =SUMIFS('Berekening variant 1'!$AG$1:$DW$1,'Berekening variant 1'!$AG$6:$DW$6,">"&$M58,'Berekening variant 1'!$AG$8:$DW$8,TRUE) -> 1.478425228 | AD63: 0.0001026976786 | AE63: 0.02275026046 | AF63: 0.004424055717 | AG63: 0.03259172382 | AH63: 7.730069358 | AI63: 7.7
A64: rood + 0.25 x geel | B64: =B62+0.25*B61 -> 0.2416868855 | D64: 1 | E64: =IF('invoer en voorspellingen'!$B$9="eenrichtingsfietspad",B28,C28) -> 120 | F64: =M177 -> 244 | J64: 4 sterren | N64: =SUMIFS('Berekening variant 1'!$JS$1:$JX$1,'Berekening variant 1'!$JS$5:$JX$5,">="&$M59,'Berekening variant 1'!$JS$6:$JX$6,"<"&$M59) -> 0 | O64: =SUMIFS('Berekening variant 1'!$LC$1:$LH$1,'Berekening variant 1'!$LC$5:$LH$5,">"&$M59,'Berekening variant 1'!$LC$6:$LH$6,"<="&$M59) -> 0 | P64: =SUMIFS('Berekening variant 1'!$GR$1:$IA$1,'Berekening variant 1'!$GR$5:$IA$5,">"&$M59,'Berekening variant 1'!$GR$6:$IA$6,"<="&$M59) -> 9.20630055 | Q64: =SUMIFS('Berekening variant 1'!$AG$1:$DW$1,'Berekening variant 1'!$AG$5:$DW$5,">"&$M59,'Berekening variant 1'!$AG$6:$DW$6,"<="&$M59) -> 11.38091761 | R64: =SUMIFS('Berekening variant 1'!$JS$1:$JX$1,'Berekening variant 1'!$JS$5:$JX$5,">="&$M59,'Berekening variant 1'!$JS$6:$JX$6,"<"&$M59,'Berekening variant 1'!$JS$8:$JX$8,TRUE) -> 0 | S64: =SUMIFS('Berekening variant 1'!$LC$1:$LH$1,'Berekening variant 1'!$LC$5:$LH$5,">"&$M59,'Berekening variant 1'!$LC$6:$LH$6,"<="&$M59,'Berekening variant 1'!$LC$8:$LH$8,TRUE) -> 0 | T64: =SUMIFS('Berekening variant 1'!$GR$1:$IA$1,'Berekening variant 1'!$GR$5:$IA$5,">"&$M59,'Berekening variant 1'!$GR$6:$IA$6,"<="&$M59,'Berekening variant 1'!$GR$8:$IA$8,TRUE) -> 6.533384239 | U64: =SUMIFS('Berekening variant 1'!$AG$1:$DW$1,'Berekening variant 1'!$AG$5:$DW$5,">"&$M59,'Berekening variant 1'!$AG$6:$DW$6,"<="&$M59,'Berekening variant 1'!$AG$8:$DW$8,TRUE) -> 5.590737024 | V64: =SUMIFS('Berekening variant 1'!$JS$1:$JX$1,'Berekening variant 1'!$JS$6:$JX$6,">="&$M59) -> 0 | W64: =SUMIFS('Berekening variant 1'!$LC$1:$LH$1,'Berekening variant 1'!$LC$6:$LH$6,">"&$M59) -> 0 | X64: =SUMIFS('Berekening variant 1'!$GR$1:$IA$1,'Berekening variant 1'!$GR$6:$IA$6,">"&$M59) -> 0.167323499 | Y64: =SUMIFS('Berekening variant 1'!$AG$1:$DW$1,'Berekening variant 1'!$AG$6:$DW$6,">"&$M59) -> 1.516628764 | Z64: =SUMIFS('Berekening variant 1'!$JS$1:$JX$1,'Berekening variant 1'!$JS$6:$JX$6,">="&$M59,'Berekening variant 1'!$JS$8:$JX$8,TRUE) -> 0 | AA64: =SUMIFS('Berekening variant 1'!$LC$1:$LH$1,'Berekening variant 1'!$LC$6:$LH$6,">"&$M59,'Berekening variant 1'!$LC$8:$LH$8,TRUE) -> 0 | AB64: =SUMIFS('Berekening variant 1'!$GR$1:$IA$1,'Berekening variant 1'!$GR$6:$IA$6,">"&$M59,'Berekening variant 1'!$GR$8:$IA$8,TRUE) -> 0.167323499 | AC64: =SUMIFS('Berekening variant 1'!$AG$1:$DW$1,'Berekening variant 1'!$AG$6:$DW$6,">"&$M59,'Berekening variant 1'!$AG$8:$DW$8,TRUE) -> 1.478425228 | AD64: 0.0001026976786 | AE64: 0.02275026046 | AF64: 0.004424055717 | AG64: 0.03259172382 | AH64: 7.730069358 | AI64: 7.7
A65: sterren ontmoetingen | B65: =MATCH(B$64,IF('invoer en voorspellingen'!B9="eenrichtingsfietspad",$F$27:$F$32,$G$27:$G$32),-1)-1 -> 5 | D65: 2 | E65: =IF('invoer en voorspellingen'!$B$9="eenrichtingsfietspad",B29,C29) -> 170 | F65: =M148 -> 262 | M65: breedte | N65: =SUMIFS('Berekening variant 1'!$JS$1:$JX$1,'Berekening variant 1'!$JS$5:$JX$5,">="&$M60,'Berekening variant 1'!$JS$6:$JX$6,"<"&$M60) -> 0 | O65: =SUMIFS('Berekening variant 1'!$LC$1:$LH$1,'Berekening variant 1'!$LC$5:$LH$5,">"&$M60,'Berekening variant 1'!$LC$6:$LH$6,"<="&$M60) -> 0 | P65: =SUMIFS('Berekening variant 1'!$GR$1:$IA$1,'Berekening variant 1'!$GR$5:$IA$5,">"&$M60,'Berekening variant 1'!$GR$6:$IA$6,"<="&$M60) -> 9.20630055 | Q65: =SUMIFS('Berekening variant 1'!$AG$1:$DW$1,'Berekening variant 1'!$AG$5:$DW$5,">"&$M60,'Berekening variant 1'!$AG$6:$DW$6,"<="&$M60) -> 11.38091761 | R65: =SUMIFS('Berekening variant 1'!$JS$1:$JX$1,'Berekening variant 1'!$JS$5:$JX$5,">="&$M60,'Berekening variant 1'!$JS$6:$JX$6,"<"&$M60,'Berekening variant 1'!$JS$8:$JX$8,TRUE) -> 0 | S65: =SUMIFS('Berekening variant 1'!$LC$1:$LH$1,'Berekening variant 1'!$LC$5:$LH$5,">"&$M60,'Berekening variant 1'!$LC$6:$LH$6,"<="&$M60,'Berekening variant 1'!$LC$8:$LH$8,TRUE) -> 0 | T65: =SUMIFS('Berekening variant 1'!$GR$1:$IA$1,'Berekening variant 1'!$GR$5:$IA$5,">"&$M60,'Berekening variant 1'!$GR$6:$IA$6,"<="&$M60,'Berekening variant 1'!$GR$8:$IA$8,TRUE) -> 6.533384239 | U65: =SUMIFS('Berekening variant 1'!$AG$1:$DW$1,'Berekening variant 1'!$AG$5:$DW$5,">"&$M60,'Berekening variant 1'!$AG$6:$DW$6,"<="&$M60,'Berekening variant 1'!$AG$8:$DW$8,TRUE) -> 5.590737024 | V65: =SUMIFS('Berekening variant 1'!$JS$1:$JX$1,'Berekening variant 1'!$JS$6:$JX$6,">="&$M60) -> 0 | W65: =SUMIFS('Berekening variant 1'!$LC$1:$LH$1,'Berekening variant 1'!$LC$6:$LH$6,">"&$M60) -> 0 | X65: =SUMIFS('Berekening variant 1'!$GR$1:$IA$1,'Berekening variant 1'!$GR$6:$IA$6,">"&$M60) -> 0.167323499 | Y65: =SUMIFS('Berekening variant 1'!$AG$1:$DW$1,'Berekening variant 1'!$AG$6:$DW$6,">"&$M60) -> 1.516628764 | Z65: =SUMIFS('Berekening variant 1'!$JS$1:$JX$1,'Berekening variant 1'!$JS$6:$JX$6,">="&$M60,'Berekening variant 1'!$JS$8:$JX$8,TRUE) -> 0 | AA65: =SUMIFS('Berekening variant 1'!$LC$1:$LH$1,'Berekening variant 1'!$LC$6:$LH$6,">"&$M60,'Berekening variant 1'!$LC$8:$LH$8,TRUE) -> 0 | AB65: =SUMIFS('Berekening variant 1'!$GR$1:$IA$1,'Berekening variant 1'!$GR$6:$IA$6,">"&$M60,'Berekening variant 1'!$GR$8:$IA$8,TRUE) -> 0.167323499 | AC65: =SUMIFS('Berekening variant 1'!$AG$1:$DW$1,'Berekening variant 1'!$AG$6:$DW$6,">"&$M60,'Berekening variant 1'!$AG$8:$DW$8,TRUE) -> 1.478425228 | AD65: 0.0001026976786 | AE65: 0.02275026046 | AF65: 0.004424055717 | AG65: 0.03259172382 | AH65: 7.730069358 | AI65: 7.7
A66: sterren breedte | B66: =MATCH(breedte,IF('invoer en voorspellingen'!$B$9="eenrichtingsfietspad",$B$27:$B$33,$C$27:$C$33),1)-1 -> 4 | D66: 3 | E66: =IF('invoer en voorspellingen'!$B$9="eenrichtingsfietspad",B30,C30) -> 200 | F66: =M119 -> 346 | J66: 1 | K66: =AH71<AI71 -> FALSE | L66: TRUE | M66: 1000 | N66: =SUMIFS('Berekening variant 1'!$JS$1:$JX$1,'Berekening variant 1'!$JS$5:$JX$5,">="&$M61,'Berekening variant 1'!$JS$6:$JX$6,"<"&$M61) -> 0 | O66: =SUMIFS('Berekening variant 1'!$LC$1:$LH$1,'Berekening variant 1'!$LC$5:$LH$5,">"&$M61,'Berekening variant 1'!$LC$6:$LH$6,"<="&$M61) -> 0 | P66: =SUMIFS('Berekening variant 1'!$GR$1:$IA$1,'Berekening variant 1'!$GR$5:$IA$5,">"&$M61,'Berekening variant 1'!$GR$6:$IA$6,"<="&$M61) -> 9.20630055 | Q66: =SUMIFS('Berekening variant 1'!$AG$1:$DW$1,'Berekening variant 1'!$AG$5:$DW$5,">"&$M61,'Berekening variant 1'!$AG$6:$DW$6,"<="&$M61) -> 11.38091761 | R66: =SUMIFS('Berekening variant 1'!$JS$1:$JX$1,'Berekening variant 1'!$JS$5:$JX$5,">="&$M61,'Berekening variant 1'!$JS$6:$JX$6,"<"&$M61,'Berekening variant 1'!$JS$8:$JX$8,TRUE) -> 0 | S66: =SUMIFS('Berekening variant 1'!$LC$1:$LH$1,'Berekening variant 1'!$LC$5:$LH$5,">"&$M61,'Berekening variant 1'!$LC$6:$LH$6,"<="&$M61,'Berekening variant 1'!$LC$8:$LH$8,TRUE) -> 0 | T66: =SUMIFS('Berekening variant 1'!$GR$1:$IA$1,'Berekening variant 1'!$GR$5:$IA$5,">"&$M61,'Berekening variant 1'!$GR$6:$IA$6,"<="&$M61,'Berekening variant 1'!$GR$8:$IA$8,TRUE) -> 6.533384239 | U66: =SUMIFS('Berekening variant 1'!$AG$1:$DW$1,'Berekening variant 1'!$AG$5:$DW$5,">"&$M61,'Berekening variant 1'!$AG$6:$DW$6,"<="&$M61,'Berekening variant 1'!$AG$8:$DW$8,TRUE) -> 5.590737024 | V66: =SUMIFS('Berekening variant 1'!$JS$1:$JX$1,'Berekening variant 1'!$JS$6:$JX$6,">="&$M61) -> 0 | W66: =SUMIFS('Berekening variant 1'!$LC$1:$LH$1,'Berekening variant 1'!$LC$6:$LH$6,">"&$M61) -> 0 | X66: =SUMIFS('Berekening variant 1'!$GR$1:$IA$1,'Berekening variant 1'!$GR$6:$IA$6,">"&$M61) -> 0.167323499 | Y66: =SUMIFS('Berekening variant 1'!$AG$1:$DW$1,'Berekening variant 1'!$AG$6:$DW$6,">"&$M61) -> 1.516628764 | Z66: =SUMIFS('Berekening variant 1'!$JS$1:$JX$1,'Berekening variant 1'!$JS$6:$JX$6,">="&$M61,'Berekening variant 1'!$JS$8:$JX$8,TRUE) -> 0 | AA66: =SUMIFS('Berekening variant 1'!$LC$1:$LH$1,'Berekening variant 1'!$LC$6:$LH$6,">"&$M61,'Berekening variant 1'!$LC$8:$LH$8,TRUE) -> 0 | AB66: =SUMIFS('Berekening variant 1'!$GR$1:$IA$1,'Berekening variant 1'!$GR$6:$IA$6,">"&$M61,'Berekening variant 1'!$GR$8:$IA$8,TRUE) -> 0.167323499 | AC66: =SUMIFS('Berekening variant 1'!$AG$1:$DW$1,'Berekening variant 1'!$AG$6:$DW$6,">"&$M61,'Berekening variant 1'!$AG$8:$DW$8,TRUE) -> 1.478425228 | AD66: 0.0001026976786 | AE66: 0.02275026046 | AF66: 0.004424055717 | AG66: 0.03259172382 | AH66: 7.730069358 | AI66: 7.7
D67: 4 | E67: =IF('invoer en voorspellingen'!$B$9="eenrichtingsfietspad",B31,C31) -> 230 | F67: =M90 -> 356 | J67: 2 | K67: TRUE | L67: =AH72>AI72 -> FALSE | M67: 0
D68: 5 | E68: =IF('invoer en voorspellingen'!$B$9="eenrichtingsfietspad",B32,C32) -> 400 | F68: =M61 -> 516 | J68: 3 | K68: =AH73<AI73 -> FALSE | L68: =AH73>AI73 -> TRUE | M68: =ROUND(AVERAGE(M66:M67),0) -> 500
J69: 4 | K69: =AH74<AI74 -> TRUE | L69: =AH74>AI74 -> FALSE | M69: =ROUND(AVERAGE(INDEX(M$66:M68,_xlfn.MAXIFS(J$66:J68,K$66:K68,TRUE),1),INDEX(M$66:M68,_xlfn.MAXIFS(J$66:J68,L$66:L68,TRUE),1)),0) -> 250 | N69: geel | V69: rood | AD69: zonder brommer per fietser | AF69: met brommer per fietser
J70: 5 | K70: FALSE | L70: TRUE | M70: =ROUND(AVERAGE(INDEX(M$66:M69,_xlfn.MAXIFS(J$66:J69,K$66:K69,TRUE),1),INDEX(M$66:M69,_xlfn.MAXIFS(J$66:J69,L$66:L69,TRUE),1)),0) -> 375 | N70: enkelvoudige inhaalbewegingen | O70: enkelvoudige tegemoetkomingen | P70: inhaalbeweging met enkelvoudige tegemoetkomingen | Q70: inhaalbeweging met dubbele tegemoetkomingen | R70: enkelvoudige inhaalbewegingen met brommer | S70: enkelvoudige tegemoetkomingen met brommer | T70: inhaalbeweging met enkelvoudige tegemoetkomingen met brommer | U70: inhaalbeweging met dubbele tegemoetkomingen met brommer | V70: enkelvoudige inhaalbewegingen | W70: enkelvoudige tegemoetkomingen | X70: inhaalbeweging met enkelvoudige tegemoetkomingen | Y70: inhaalbeweging met dubbele tegemoetkomingen | Z70: enkelvoudige inhaalbewegingen met brommer | AA70: enkelvoudige tegemoetkomingen met brommer | AB70: inhaalbeweging met enkelvoudige tegemoetkomingen met brommer | AC70: inhaalbeweging met dubbele tegemoetkomingen met brommer | AD70: rood | AE70: geel | AF70: rood | AG70: geel | AH70: rapportcijfer | AI70: doel
J71: 6 | K71: TRUE | L71: FALSE | M71: =ROUND(AVERAGE(INDEX(M$66:M70,_xlfn.MAXIFS(J$66:J70,K$66:K70,TRUE),1),INDEX(M$66:M70,_xlfn.MAXIFS(J$66:J70,L$66:L70,TRUE),1)),0) -> 313 | N71: =SUMIFS('Berekening variant 1'!$JS$1:$JX$1,'Berekening variant 1'!$JS$5:$JX$5,">="&$M66,'Berekening variant 1'!$JS$6:$JX$6,"<"&$M66) -> 0 | O71: =SUMIFS('Berekening variant 1'!$LC$1:$LH$1,'Berekening variant 1'!$LC$5:$LH$5,">"&$M66,'Berekening variant 1'!$LC$6:$LH$6,"<="&$M66) -> 0 | P71: =SUMIFS('Berekening variant 1'!$GR$1:$IA$1,'Berekening variant 1'!$GR$5:$IA$5,">"&$M66,'Berekening variant 1'!$GR$6:$IA$6,"<="&$M66) -> 0 | Q71: =SUMIFS('Berekening variant 1'!$AG$1:$DW$1,'Berekening variant 1'!$AG$5:$DW$5,">"&$M66,'Berekening variant 1'!$AG$6:$DW$6,"<="&$M66) -> 0 | R71: =SUMIFS('Berekening variant 1'!$JS$1:$JX$1,'Berekening variant 1'!$JS$5:$JX$5,">="&$M66,'Berekening variant 1'!$JS$6:$JX$6,"<"&$M66,'Berekening variant 1'!$JS$8:$JX$8,TRUE) -> 0 | S71: =SUMIFS('Berekening variant 1'!$LC$1:$LH$1,'Berekening variant 1'!$LC$5:$LH$5,">"&$M66,'Berekening variant 1'!$LC$6:$LH$6,"<="&$M66,'Berekening variant 1'!$LC$8:$LH$8,TRUE) -> 0 | T71: =SUMIFS('Berekening variant 1'!$GR$1:$IA$1,'Berekening variant 1'!$GR$5:$IA$5,">"&$M66,'Berekening variant 1'!$GR$6:$IA$6,"<="&$M66,'Berekening variant 1'!$GR$8:$IA$8,TRUE) -> 0 | U71: =SUMIFS('Berekening variant 1'!$AG$1:$DW$1,'Berekening variant 1'!$AG$5:$DW$5,">"&$M66,'Berekening variant 1'!$AG$6:$DW$6,"<="&$M66,'Berekening variant 1'!$AG$8:$DW$8,TRUE) -> 0 | V71: =SUMIFS('Berekening variant 1'!$JS$1:$JX$1,'Berekening variant 1'!$JS$6:$JX$6,">="&$M66) -> 0 | W71: =SUMIFS('Berekening variant 1'!$LC$1:$LH$1,'Berekening variant 1'!$LC$6:$LH$6,">"&$M66) -> 0 | X71: =SUMIFS('Berekening variant 1'!$GR$1:$IA$1,'Berekening variant 1'!$GR$6:$IA$6,">"&$M66) -> 0 | Y71: =SUMIFS('Berekening variant 1'!$AG$1:$DW$1,'Berekening variant 1'!$AG$6:$DW$6,">"&$M66) -> 0 | Z71: =SUMIFS('Berekening variant 1'!$JS$1:$JX$1,'Berekening variant 1'!$JS$6:$JX$6,">="&$M66,'Berekening variant 1'!$JS$8:$JX$8,TRUE) -> 0 | AA71: =SUMIFS('Berekening variant 1'!$LC$1:$LH$1,'Berekening variant 1'!$LC$6:$LH$6,">"&$M66,'Berekening variant 1'!$LC$8:$LH$8,TRUE) -> 0 | AB71: =SUMIFS('Berekening variant 1'!$GR$1:$IA$1,'Berekening variant 1'!$GR$6:$IA$6,">"&$M66,'Berekening variant 1'!$GR$8:$IA$8,TRUE) -> 0 | AC71: =SUMIFS('Berekening variant 1'!$AG$1:$DW$1,'Berekening variant 1'!$AG$6:$DW$6,">"&$M66,'Berekening variant 1'!$AG$8:$DW$8,TRUE) -> 0 | AD71: =(SUM(V71:Y71)-SUM(Z71:AC71))/int_uur -> 0 | AE71: =(SUM(N71:Q71)-SUM(R71:U71))/int_uur -> 0 | AF71: =SUM(Z71:AC71)/int_uur -> 0 | AG71: =SUM(R71:U71)/int_uur -> 0 | AH71: =$B$97+$B$98*SQRT($B$91*AD71+$B$92*AE71+$B$93*AF71+$B$94*AG71) -> 7.867 | AI71: =$F$95 -> 7.4
J72: 7 | K72: TRUE | L72: FALSE | M72: =ROUND(AVERAGE(INDEX(M$66:M71,_xlfn.MAXIFS(J$66:J71,K$66:K71,TRUE),1),INDEX(M$66:M71,_xlfn.MAXIFS(J$66:J71,L$66:L71,TRUE),1)),0) -> 344 | N72: =SUMIFS('Berekening variant 1'!$JS$1:$JX$1,'Berekening variant 1'!$JS$5:$JX$5,">="&$M67,'Berekening variant 1'!$JS$6:$JX$6,"<"&$M67) -> 0 | O72: =SUMIFS('Berekening variant 1'!$LC$1:$LH$1,'Berekening variant 1'!$LC$5:$LH$5,">"&$M67,'Berekening variant 1'!$LC$6:$LH$6,"<="&$M67) -> 0 | P72: =SUMIFS('Berekening variant 1'!$GR$1:$IA$1,'Berekening variant 1'!$GR$5:$IA$5,">"&$M67,'Berekening variant 1'!$GR$6:$IA$6,"<="&$M67) -> 0 | Q72: =SUMIFS('Berekening variant 1'!$AG$1:$DW$1,'Berekening variant 1'!$AG$5:$DW$5,">"&$M67,'Berekening variant 1'!$AG$6:$DW$6,"<="&$M67) -> 0 | R72: =SUMIFS('Berekening variant 1'!$JS$1:$JX$1,'Berekening variant 1'!$JS$5:$JX$5,">="&$M67,'Berekening variant 1'!$JS$6:$JX$6,"<"&$M67,'Berekening variant 1'!$JS$8:$JX$8,TRUE) -> 0 | S72: =SUMIFS('Berekening variant 1'!$LC$1:$LH$1,'Berekening variant 1'!$LC$5:$LH$5,">"&$M67,'Berekening variant 1'!$LC$6:$LH$6,"<="&$M67,'Berekening variant 1'!$LC$8:$LH$8,TRUE) -> 0 | T72: =SUMIFS('Berekening variant 1'!$GR$1:$IA$1,'Berekening variant 1'!$GR$5:$IA$5,">"&$M67,'Berekening variant 1'!$GR$6:$IA$6,"<="&$M67,'Berekening variant 1'!$GR$8:$IA$8,TRUE) -> 0 | U72: =SUMIFS('Berekening variant 1'!$AG$1:$DW$1,'Berekening variant 1'!$AG$5:$DW$5,">"&$M67,'Berekening variant 1'!$AG$6:$DW$6,"<="&$M67,'Berekening variant 1'!$AG$8:$DW$8,TRUE) -> 0 | V72: =SUMIFS('Berekening variant 1'!$JS$1:$JX$1,'Berekening variant 1'!$JS$6:$JX$6,">="&$M67) -> 438.540695 | W72: =SUMIFS('Berekening variant 1'!$LC$1:$LH$1,'Berekening variant 1'!$LC$6:$LH$6,">"&$M67) -> 5763.59913 | X72: =SUMIFS('Berekening variant 1'!$GR$1:$IA$1,'Berekening variant 1'!$GR$6:$IA$6,">"&$M67) -> 187.9562016 | Y72: =SUMIFS('Berekening variant 1'!$AG$1:$DW$1,'Berekening variant 1'!$AG$6:$DW$6,">"&$M67) -> 27.92965997 | Z72: =SUMIFS('Berekening variant 1'!$JS$1:$JX$1,'Berekening variant 1'!$JS$6:$JX$6,">="&$M67,'Berekening variant 1'!$JS$8:$JX$8,TRUE) -> 73.89124062 | AA72: =SUMIFS('Berekening variant 1'!$LC$1:$LH$1,'Berekening variant 1'!$LC$6:$LH$6,">"&$M67,'Berekening variant 1'!$LC$8:$LH$8,TRUE) -> 376.5937582 | AB72: =SUMIFS('Berekening variant 1'!$GR$1:$IA$1,'Berekening variant 1'!$GR$6:$IA$6,">"&$M67,'Berekening variant 1'!$GR$8:$IA$8,TRUE) -> 35.95788434 | AC72: =SUMIFS('Berekening variant 1'!$AG$1:$DW$1,'Berekening variant 1'!$AG$6:$DW$6,">"&$M67,'Berekening variant 1'!$AG$8:$DW$8,TRUE) -> 7.069162251 | AD72: 15.92611194 | AE72: 0 | AF72: 1.326645283 | AG72: 0 | AH72: =$B$97+$B$98*SQRT($B$91*AD72+$B$92*AE72+$B$93*AF72+$B$94*AG72) -> 5.197687043 | AI72: =$F$95 -> 7.4
J73: 8 | K73: FALSE | L73: TRUE | M73: =ROUND(AVERAGE(INDEX(M$66:M72,_xlfn.MAXIFS(J$66:J72,K$66:K72,TRUE),1),INDEX(M$66:M72,_xlfn.MAXIFS(J$66:J72,L$66:L72,TRUE),1)),0) -> 360 | N73: =SUMIFS('Berekening variant 1'!$JS$1:$JX$1,'Berekening variant 1'!$JS$5:$JX$5,">="&$M68,'Berekening variant 1'!$JS$6:$JX$6,"<"&$M68) -> 0 | O73: =SUMIFS('Berekening variant 1'!$LC$1:$LH$1,'Berekening variant 1'!$LC$5:$LH$5,">"&$M68,'Berekening variant 1'!$LC$6:$LH$6,"<="&$M68) -> 0 | P73: =SUMIFS('Berekening variant 1'!$GR$1:$IA$1,'Berekening variant 1'!$GR$5:$IA$5,">"&$M68,'Berekening variant 1'!$GR$6:$IA$6,"<="&$M68) -> 32.09322813 | Q73: =SUMIFS('Berekening variant 1'!$AG$1:$DW$1,'Berekening variant 1'!$AG$5:$DW$5,">"&$M68,'Berekening variant 1'!$AG$6:$DW$6,"<="&$M68) -> 10.30884034 | R73: =SUMIFS('Berekening variant 1'!$JS$1:$JX$1,'Berekening variant 1'!$JS$5:$JX$5,">="&$M68,'Berekening variant 1'!$JS$6:$JX$6,"<"&$M68,'Berekening variant 1'!$JS$8:$JX$8,TRUE) -> 0 | S73: =SUMIFS('Berekening variant 1'!$LC$1:$LH$1,'Berekening variant 1'!$LC$5:$LH$5,">"&$M68,'Berekening variant 1'!$LC$6:$LH$6,"<="&$M68,'Berekening variant 1'!$LC$8:$LH$8,TRUE) -> 0 | T73: =SUMIFS('Berekening variant 1'!$GR$1:$IA$1,'Berekening variant 1'!$GR$5:$IA$5,">"&$M68,'Berekening variant 1'!$GR$6:$IA$6,"<="&$M68,'Berekening variant 1'!$GR$8:$IA$8,TRUE) -> 29.49426603 | U73: =SUMIFS('Berekening variant 1'!$AG$1:$DW$1,'Berekening variant 1'!$AG$5:$DW$5,">"&$M68,'Berekening variant 1'!$AG$6:$DW$6,"<="&$M68,'Berekening variant 1'!$AG$8:$DW$8,TRUE) -> 5.175923499 | V73: =SUMIFS('Berekening variant 1'!$JS$1:$JX$1,'Berekening variant 1'!$JS$6:$JX$6,">="&$M68) -> 0 | W73: =SUMIFS('Berekening variant 1'!$LC$1:$LH$1,'Berekening variant 1'!$LC$6:$LH$6,">"&$M68) -> 0 | X73: =SUMIFS('Berekening variant 1'!$GR$1:$IA$1,'Berekening variant 1'!$GR$6:$IA$6,">"&$M68) -> 0.2412777053 | Y73: =SUMIFS('Berekening variant 1'!$AG$1:$DW$1,'Berekening variant 1'!$AG$6:$DW$6,">"&$M68) -> 2.58870603 | Z73: =SUMIFS('Berekening variant 1'!$JS$1:$JX$1,'Berekening variant 1'!$JS$6:$JX$6,">="&$M68,'Berekening variant 1'!$JS$8:$JX$8,TRUE) -> 0 | AA73: =SUMIFS('Berekening variant 1'!$LC$1:$LH$1,'Berekening variant 1'!$LC$6:$LH$6,">"&$M68,'Berekening variant 1'!$LC$8:$LH$8,TRUE) -> 0 | AB73: =SUMIFS('Berekening variant 1'!$GR$1:$IA$1,'Berekening variant 1'!$GR$6:$IA$6,">"&$M68,'Berekening variant 1'!$GR$8:$IA$8,TRUE) -> 0.167323499 | AC73: =SUMIFS('Berekening variant 1'!$AG$1:$DW$1,'Berekening variant 1'!$AG$6:$DW$6,">"&$M68,'Berekening variant 1'!$AG$8:$DW$8,TRUE) -> 1.893238752 | AD73: 0.002068337323 | AE73: 0.02078462082 | AF73: 0.005539145836 | AG73: 0.0931994342 | AH73: 7.666624793 | AI73: 7.4
J74: 9 | K74: TRUE | L74: FALSE | M74: =ROUND(AVERAGE(INDEX(M$66:M73,_xlfn.MAXIFS(J$66:J73,K$66:K73,TRUE),1),INDEX(M$66:M73,_xlfn.MAXIFS(J$66:J73,L$66:L73,TRUE),1)),0) -> 352 | N74: =SUMIFS('Berekening variant 1'!$JS$1:$JX$1,'Berekening variant 1'!$JS$5:$JX$5,">="&$M69,'Berekening variant 1'!$JS$6:$JX$6,"<"&$M69) -> 377.0343255 | O74: =SUMIFS('Berekening variant 1'!$LC$1:$LH$1,'Berekening variant 1'!$LC$5:$LH$5,">"&$M69,'Berekening variant 1'!$LC$6:$LH$6,"<="&$M69) -> 4914.580576 | P74: =SUMIFS('Berekening variant 1'!$GR$1:$IA$1,'Berekening variant 1'!$GR$5:$IA$5,">"&$M69,'Berekening variant 1'!$GR$6:$IA$6,"<="&$M69) -> 0 | Q74: =SUMIFS('Berekening variant 1'!$AG$1:$DW$1,'Berekening variant 1'!$AG$5:$DW$5,">"&$M69,'Berekening variant 1'!$AG$6:$DW$6,"<="&$M69) -> 0 | R74: =SUMIFS('Berekening variant 1'!$JS$1:$JX$1,'Berekening variant 1'!$JS$5:$JX$5,">="&$M69,'Berekening variant 1'!$JS$6:$JX$6,"<"&$M69,'Berekening variant 1'!$JS$8:$JX$8,TRUE) -> 67.48970596 | S74: =SUMIFS('Berekening variant 1'!$LC$1:$LH$1,'Berekening variant 1'!$LC$5:$LH$5,">"&$M69,'Berekening variant 1'!$LC$6:$LH$6,"<="&$M69,'Berekening variant 1'!$LC$8:$LH$8,TRUE) -> 341.6448206 | T74: =SUMIFS('Berekening variant 1'!$GR$1:$IA$1,'Berekening variant 1'!$GR$5:$IA$5,">"&$M69,'Berekening variant 1'!$GR$6:$IA$6,"<="&$M69,'Berekening variant 1'!$GR$8:$IA$8,TRUE) -> 0 | U74: =SUMIFS('Berekening variant 1'!$AG$1:$DW$1,'Berekening variant 1'!$AG$5:$DW$5,">"&$M69,'Berekening variant 1'!$AG$6:$DW$6,"<="&$M69,'Berekening variant 1'!$AG$8:$DW$8,TRUE) -> 0 | V74: =SUMIFS('Berekening variant 1'!$JS$1:$JX$1,'Berekening variant 1'!$JS$6:$JX$6,">="&$M69) -> 61.50636951 | W74: =SUMIFS('Berekening variant 1'!$LC$1:$LH$1,'Berekening variant 1'!$LC$6:$LH$6,">"&$M69) -> 849.0185538 | X74: =SUMIFS('Berekening variant 1'!$GR$1:$IA$1,'Berekening variant 1'!$GR$6:$IA$6,">"&$M69) -> 187.9562016 | Y74: =SUMIFS('Berekening variant 1'!$AG$1:$DW$1,'Berekening variant 1'!$AG$6:$DW$6,">"&$M69) -> 27.92965997 | Z74: =SUMIFS('Berekening variant 1'!$JS$1:$JX$1,'Berekening variant 1'!$JS$6:$JX$6,">="&$M69,'Berekening variant 1'!$JS$8:$JX$8,TRUE) -> 6.401534654 | AA74: =SUMIFS('Berekening variant 1'!$LC$1:$LH$1,'Berekening variant 1'!$LC$6:$LH$6,">"&$M69,'Berekening variant 1'!$LC$8:$LH$8,TRUE) -> 34.94893755 | AB74: =SUMIFS('Berekening variant 1'!$GR$1:$IA$1,'Berekening variant 1'!$GR$6:$IA$6,">"&$M69,'Berekening variant 1'!$GR$8:$IA$8,TRUE) -> 35.95788434 | AC74: =SUMIFS('Berekening variant 1'!$AG$1:$DW$1,'Berekening variant 1'!$AG$6:$DW$6,">"&$M69,'Berekening variant 1'!$AG$8:$DW$8,TRUE) -> 7.069162251 | AD74: 2.801164694 | AE74: 13.12494725 | AF74: 0.2268212871 | AG74: 1.099823996 | AH74: 6.311560592 | AI74: 7.4
J75: 10 | K75: FALSE | L75: TRUE | M75: =ROUND(AVERAGE(INDEX(M$66:M74,_xlfn.MAXIFS(J$66:J74,K$66:K74,TRUE),1),INDEX(M$66:M74,_xlfn.MAXIFS(J$66:J74,L$66:L74,TRUE),1)),0) -> 356 | N75: =SUMIFS('Berekening variant 1'!$JS$1:$JX$1,'Berekening variant 1'!$JS$5:$JX$5,">="&$M70,'Berekening variant 1'!$JS$6:$JX$6,"<"&$M70) -> 8.657288128 | O75: =SUMIFS('Berekening variant 1'!$LC$1:$LH$1,'Berekening variant 1'!$LC$5:$LH$5,">"&$M70,'Berekening variant 1'!$LC$6:$LH$6,"<="&$M70) -> 68.27342477 | P75: =SUMIFS('Berekening variant 1'!$GR$1:$IA$1,'Berekening variant 1'!$GR$5:$IA$5,">"&$M70,'Berekening variant 1'!$GR$6:$IA$6,"<="&$M70) -> 178.5825775 | Q75: =SUMIFS('Berekening variant 1'!$AG$1:$DW$1,'Berekening variant 1'!$AG$5:$DW$5,">"&$M70,'Berekening variant 1'!$AG$6:$DW$6,"<="&$M70) -> 15.0321136 | R75: =SUMIFS('Berekening variant 1'!$JS$1:$JX$1,'Berekening variant 1'!$JS$5:$JX$5,">="&$M70,'Berekening variant 1'!$JS$6:$JX$6,"<"&$M70,'Berekening variant 1'!$JS$8:$JX$8,TRUE) -> 6.401534654 | S75: =SUMIFS('Berekening variant 1'!$LC$1:$LH$1,'Berekening variant 1'!$LC$5:$LH$5,">"&$M70,'Berekening variant 1'!$LC$6:$LH$6,"<="&$M70,'Berekening variant 1'!$LC$8:$LH$8,TRUE) -> 34.94893755 | T75: =SUMIFS('Berekening variant 1'!$GR$1:$IA$1,'Berekening variant 1'!$GR$5:$IA$5,">"&$M70,'Berekening variant 1'!$GR$6:$IA$6,"<="&$M70,'Berekening variant 1'!$GR$8:$IA$8,TRUE) -> 29.2571766 | U75: =SUMIFS('Berekening variant 1'!$AG$1:$DW$1,'Berekening variant 1'!$AG$5:$DW$5,">"&$M70,'Berekening variant 1'!$AG$6:$DW$6,"<="&$M70,'Berekening variant 1'!$AG$8:$DW$8,TRUE) -> 0 | V75: =SUMIFS('Berekening variant 1'!$JS$1:$JX$1,'Berekening variant 1'!$JS$6:$JX$6,">="&$M70) -> 0 | W75: =SUMIFS('Berekening variant 1'!$LC$1:$LH$1,'Berekening variant 1'!$LC$6:$LH$6,">"&$M70) -> 0 | X75: =SUMIFS('Berekening variant 1'!$GR$1:$IA$1,'Berekening variant 1'!$GR$6:$IA$6,">"&$M70) -> 9.373624049 | Y75: =SUMIFS('Berekening variant 1'!$AG$1:$DW$1,'Berekening variant 1'!$AG$6:$DW$6,">"&$M70) -> 12.89754637 | Z75: =SUMIFS('Berekening variant 1'!$JS$1:$JX$1,'Berekening variant 1'!$JS$6:$JX$6,">="&$M70,'Berekening variant 1'!$JS$8:$JX$8,TRUE) -> 0 | AA75: =SUMIFS('Berekening variant 1'!$LC$1:$LH$1,'Berekening variant 1'!$LC$6:$LH$6,">"&$M70,'Berekening variant 1'!$LC$8:$LH$8,TRUE) -> 0 | AB75: =SUMIFS('Berekening variant 1'!$GR$1:$IA$1,'Berekening variant 1'!$GR$6:$IA$6,">"&$M70,'Berekening variant 1'!$GR$8:$IA$8,TRUE) -> 6.700707738 | AC75: =SUMIFS('Berekening variant 1'!$AG$1:$DW$1,'Berekening variant 1'!$AG$6:$DW$6,">"&$M70,'Berekening variant 1'!$AG$8:$DW$8,TRUE) -> 7.069162251 | AD75: 0.02285295814 | AE75: 0.5374670839 | AF75: 0.03701577954 | AG75: 0.1898055076 | AH75: 7.467532717 | AI75: 7.4
J76: 11 | K76: TRUE | L76: FALSE | M76: =ROUND(AVERAGE(INDEX(M$66:M75,_xlfn.MAXIFS(J$66:J75,K$66:K75,TRUE),1),INDEX(M$66:M75,_xlfn.MAXIFS(J$66:J75,L$66:L75,TRUE),1)),0) -> 354 | N76: =SUMIFS('Berekening variant 1'!$JS$1:$JX$1,'Berekening variant 1'!$JS$5:$JX$5,">="&$M71,'Berekening variant 1'!$JS$6:$JX$6,"<"&$M71) -> 120.9790056 | O76: =SUMIFS('Berekening variant 1'!$LC$1:$LH$1,'Berekening variant 1'!$LC$5:$LH$5,">"&$M71,'Berekening variant 1'!$LC$6:$LH$6,"<="&$M71) -> 1128.174085 | P76: =SUMIFS('Berekening variant 1'!$GR$1:$IA$1,'Berekening variant 1'!$GR$5:$IA$5,">"&$M71,'Berekening variant 1'!$GR$6:$IA$6,"<="&$M71) -> 118.8804163 | Q76: =SUMIFS('Berekening variant 1'!$AG$1:$DW$1,'Berekening variant 1'!$AG$5:$DW$5,">"&$M71,'Berekening variant 1'!$AG$6:$DW$6,"<="&$M71) -> 0 | R76: =SUMIFS('Berekening variant 1'!$JS$1:$JX$1,'Berekening variant 1'!$JS$5:$JX$5,">="&$M71,'Berekening variant 1'!$JS$6:$JX$6,"<"&$M71,'Berekening variant 1'!$JS$8:$JX$8,TRUE) -> 68.12992425 | S76: =SUMIFS('Berekening variant 1'!$LC$1:$LH$1,'Berekening variant 1'!$LC$5:$LH$5,">"&$M71,'Berekening variant 1'!$LC$6:$LH$6,"<="&$M71,'Berekening variant 1'!$LC$8:$LH$8,TRUE) -> 347.4289564 | T76: =SUMIFS('Berekening variant 1'!$GR$1:$IA$1,'Berekening variant 1'!$GR$5:$IA$5,">"&$M71,'Berekening variant 1'!$GR$6:$IA$6,"<="&$M71,'Berekening variant 1'!$GR$8:$IA$8,TRUE) -> 0 | U76: =SUMIFS('Berekening variant 1'!$AG$1:$DW$1,'Berekening variant 1'!$AG$5:$DW$5,">"&$M71,'Berekening variant 1'!$AG$6:$DW$6,"<="&$M71,'Berekening variant 1'!$AG$8:$DW$8,TRUE) -> 0 | V76: =SUMIFS('Berekening variant 1'!$JS$1:$JX$1,'Berekening variant 1'!$JS$6:$JX$6,">="&$M71) -> 8.017069836 | W76: =SUMIFS('Berekening variant 1'!$LC$1:$LH$1,'Berekening variant 1'!$LC$6:$LH$6,">"&$M71) -> 62.48928898 | X76: =SUMIFS('Berekening variant 1'!$GR$1:$IA$1,'Berekening variant 1'!$GR$6:$IA$6,">"&$M71) -> 69.0757853 | Y76: =SUMIFS('Berekening variant 1'!$AG$1:$DW$1,'Berekening variant 1'!$AG$6:$DW$6,">"&$M71) -> 27.92965997 | Z76: =SUMIFS('Berekening variant 1'!$JS$1:$JX$1,'Berekening variant 1'!$JS$6:$JX$6,">="&$M71,'Berekening variant 1'!$JS$8:$JX$8,TRUE) -> 5.761316363 | AA76: =SUMIFS('Berekening variant 1'!$LC$1:$LH$1,'Berekening variant 1'!$LC$6:$LH$6,">"&$M71,'Berekening variant 1'!$LC$8:$LH$8,TRUE) -> 29.16480176 | AB76: =SUMIFS('Berekening variant 1'!$GR$1:$IA$1,'Berekening variant 1'!$GR$6:$IA$6,">"&$M71,'Berekening variant 1'!$GR$8:$IA$8,TRUE) -> 35.95788434 | AC76: =SUMIFS('Berekening variant 1'!$AG$1:$DW$1,'Berekening variant 1'!$AG$6:$DW$6,">"&$M71,'Berekening variant 1'!$AG$8:$DW$8,TRUE) -> 7.069162251 | AD76: 0.2407490306 | AE76: 2.560415663 | AF76: 0.2095515181 | AG76: 1.117093765 | AH76: 6.907034983 | AI76: 7.4
J77: 12 | K77: TRUE | L77: FALSE | M77: =ROUND(AVERAGE(INDEX(M$66:M76,_xlfn.MAXIFS(J$66:J76,K$66:K76,TRUE),1),INDEX(M$66:M76,_xlfn.MAXIFS(J$66:J76,L$66:L76,TRUE),1)),0) -> 355 | N77: =SUMIFS('Berekening variant 1'!$JS$1:$JX$1,'Berekening variant 1'!$JS$5:$JX$5,">="&$M72,'Berekening variant 1'!$JS$6:$JX$6,"<"&$M72) -> 128.9960755 | O77: =SUMIFS('Berekening variant 1'!$LC$1:$LH$1,'Berekening variant 1'!$LC$5:$LH$5,">"&$M72,'Berekening variant 1'!$LC$6:$LH$6,"<="&$M72) -> 1190.663374 | P77: =SUMIFS('Berekening variant 1'!$GR$1:$IA$1,'Berekening variant 1'!$GR$5:$IA$5,">"&$M72,'Berekening variant 1'!$GR$6:$IA$6,"<="&$M72) -> 125.1767111 | Q77: =SUMIFS('Berekening variant 1'!$AG$1:$DW$1,'Berekening variant 1'!$AG$5:$DW$5,">"&$M72,'Berekening variant 1'!$AG$6:$DW$6,"<="&$M72) -> 0 | R77: =SUMIFS('Berekening variant 1'!$JS$1:$JX$1,'Berekening variant 1'!$JS$5:$JX$5,">="&$M72,'Berekening variant 1'!$JS$6:$JX$6,"<"&$M72,'Berekening variant 1'!$JS$8:$JX$8,TRUE) -> 73.89124062 | S77: =SUMIFS('Berekening variant 1'!$LC$1:$LH$1,'Berekening variant 1'!$LC$5:$LH$5,">"&$M72,'Berekening variant 1'!$LC$6:$LH$6,"<="&$M72,'Berekening variant 1'!$LC$8:$LH$8,TRUE) -> 376.5937582 | T77: =SUMIFS('Berekening variant 1'!$GR$1:$IA$1,'Berekening variant 1'!$GR$5:$IA$5,">"&$M72,'Berekening variant 1'!$GR$6:$IA$6,"<="&$M72,'Berekening variant 1'!$GR$8:$IA$8,TRUE) -> 6.296294819 | U77: =SUMIFS('Berekening variant 1'!$AG$1:$DW$1,'Berekening variant 1'!$AG$5:$DW$5,">"&$M72,'Berekening variant 1'!$AG$6:$DW$6,"<="&$M72,'Berekening variant 1'!$AG$8:$DW$8,TRUE) -> 0 | V77: =SUMIFS('Berekening variant 1'!$JS$1:$JX$1,'Berekening variant 1'!$JS$6:$JX$6,">="&$M72) -> 0 | W77: =SUMIFS('Berekening variant 1'!$LC$1:$LH$1,'Berekening variant 1'!$LC$6:$LH$6,">"&$M72) -> 0 | X77: =SUMIFS('Berekening variant 1'!$GR$1:$IA$1,'Berekening variant 1'!$GR$6:$IA$6,">"&$M72) -> 62.77949049 | Y77: =SUMIFS('Berekening variant 1'!$AG$1:$DW$1,'Berekening variant 1'!$AG$6:$DW$6,">"&$M72) -> 27.92965997 | Z77: =SUMIFS('Berekening variant 1'!$JS$1:$JX$1,'Berekening variant 1'!$JS$6:$JX$6,">="&$M72,'Berekening variant 1'!$JS$8:$JX$8,TRUE) -> 0 | AA77: =SUMIFS('Berekening variant 1'!$LC$1:$LH$1,'Berekening variant 1'!$LC$6:$LH$6,">"&$M72,'Berekening variant 1'!$LC$8:$LH$8,TRUE) -> 0 | AB77: =SUMIFS('Berekening variant 1'!$GR$1:$IA$1,'Berekening variant 1'!$GR$6:$IA$6,">"&$M72,'Berekening variant 1'!$GR$8:$IA$8,TRUE) -> 29.66158952 | AC77: =SUMIFS('Berekening variant 1'!$AG$1:$DW$1,'Berekening variant 1'!$AG$6:$DW$6,">"&$M72,'Berekening variant 1'!$AG$8:$DW$8,TRUE) -> 7.069162251 | AD77: 0.1451032223 | AE77: 2.656061471 | AF77: 0.09873858004 | AG77: 1.227906703 | AH77: 6.996731591 | AI77: 7.4
J78: 13 | K78: FALSE | L78: TRUE | M78: =ROUND(AVERAGE(INDEX(M$66:M77,_xlfn.MAXIFS(J$66:J77,K$66:K77,TRUE),1),INDEX(M$66:M77,_xlfn.MAXIFS(J$66:J77,L$66:L77,TRUE),1)),0) -> 356 | N78: =SUMIFS('Berekening variant 1'!$JS$1:$JX$1,'Berekening variant 1'!$JS$5:$JX$5,">="&$M73,'Berekening variant 1'!$JS$6:$JX$6,"<"&$M73) -> 8.657288128 | O78: =SUMIFS('Berekening variant 1'!$LC$1:$LH$1,'Berekening variant 1'!$LC$5:$LH$5,">"&$M73,'Berekening variant 1'!$LC$6:$LH$6,"<="&$M73) -> 68.27342477 | P78: =SUMIFS('Berekening variant 1'!$GR$1:$IA$1,'Berekening variant 1'!$GR$5:$IA$5,">"&$M73,'Berekening variant 1'!$GR$6:$IA$6,"<="&$M73) -> 178.5825775 | Q78: =SUMIFS('Berekening variant 1'!$AG$1:$DW$1,'Berekening variant 1'!$AG$5:$DW$5,">"&$M73,'Berekening variant 1'!$AG$6:$DW$6,"<="&$M73) -> 15.0321136 | R78: =SUMIFS('Berekening variant 1'!$JS$1:$JX$1,'Berekening variant 1'!$JS$5:$JX$5,">="&$M73,'Berekening variant 1'!$JS$6:$JX$6,"<"&$M73,'Berekening variant 1'!$JS$8:$JX$8,TRUE) -> 6.401534654 | S78: =SUMIFS('Berekening variant 1'!$LC$1:$LH$1,'Berekening variant 1'!$LC$5:$LH$5,">"&$M73,'Berekening variant 1'!$LC$6:$LH$6,"<="&$M73,'Berekening variant 1'!$LC$8:$LH$8,TRUE) -> 34.94893755 | T78: =SUMIFS('Berekening variant 1'!$GR$1:$IA$1,'Berekening variant 1'!$GR$5:$IA$5,">"&$M73,'Berekening variant 1'!$GR$6:$IA$6,"<="&$M73,'Berekening variant 1'!$GR$8:$IA$8,TRUE) -> 29.2571766 | U78: =SUMIFS('Berekening variant 1'!$AG$1:$DW$1,'Berekening variant 1'!$AG$5:$DW$5,">"&$M73,'Berekening variant 1'!$AG$6:$DW$6,"<="&$M73,'Berekening variant 1'!$AG$8:$DW$8,TRUE) -> 0 | V78: =SUMIFS('Berekening variant 1'!$JS$1:$JX$1,'Berekening variant 1'!$JS$6:$JX$6,">="&$M73) -> 0 | W78: =SUMIFS('Berekening variant 1'!$LC$1:$LH$1,'Berekening variant 1'!$LC$6:$LH$6,">"&$M73) -> 0 | X78: =SUMIFS('Berekening variant 1'!$GR$1:$IA$1,'Berekening variant 1'!$GR$6:$IA$6,">"&$M73) -> 9.373624049 | Y78: =SUMIFS('Berekening variant 1'!$AG$1:$DW$1,'Berekening variant 1'!$AG$6:$DW$6,">"&$M73) -> 12.89754637 | Z78: =SUMIFS('Berekening variant 1'!$JS$1:$JX$1,'Berekening variant 1'!$JS$6:$JX$6,">="&$M73,'Berekening variant 1'!$JS$8:$JX$8,TRUE) -> 0 | AA78: =SUMIFS('Berekening variant 1'!$LC$1:$LH$1,'Berekening variant 1'!$LC$6:$LH$6,">"&$M73,'Berekening variant 1'!$LC$8:$LH$8,TRUE) -> 0 | AB78: =SUMIFS('Berekening variant 1'!$GR$1:$IA$1,'Berekening variant 1'!$GR$6:$IA$6,">"&$M73,'Berekening variant 1'!$GR$8:$IA$8,TRUE) -> 6.700707738 | AC78: =SUMIFS('Berekening variant 1'!$AG$1:$DW$1,'Berekening variant 1'!$AG$6:$DW$6,">"&$M73,'Berekening variant 1'!$AG$8:$DW$8,TRUE) -> 7.069162251 | AD78: 0.02285295814 | AE78: 0.5374670839 | AF78: 0.03701577954 | AG78: 0.1898055076 | AH78: 7.467532717 | AI78: 7.4
J79: 14 | K79: FALSE | L79: TRUE | M79: =ROUND(AVERAGE(INDEX(M$66:M78,_xlfn.MAXIFS(J$66:J78,K$66:K78,TRUE),1),INDEX(M$66:M78,_xlfn.MAXIFS(J$66:J78,L$66:L78,TRUE),1)),0) -> 356 | N79: =SUMIFS('Berekening variant 1'!$JS$1:$JX$1,'Berekening variant 1'!$JS$5:$JX$5,">="&$M74,'Berekening variant 1'!$JS$6:$JX$6,"<"&$M74) -> 76.14699409 | O79: =SUMIFS('Berekening variant 1'!$LC$1:$LH$1,'Berekening variant 1'!$LC$5:$LH$5,">"&$M74,'Berekening variant 1'!$LC$6:$LH$6,"<="&$M74) -> 409.9182454 | P79: =SUMIFS('Berekening variant 1'!$GR$1:$IA$1,'Berekening variant 1'!$GR$5:$IA$5,">"&$M74,'Berekening variant 1'!$GR$6:$IA$6,"<="&$M74) -> 155.6216957 | Q79: =SUMIFS('Berekening variant 1'!$AG$1:$DW$1,'Berekening variant 1'!$AG$5:$DW$5,">"&$M74,'Berekening variant 1'!$AG$6:$DW$6,"<="&$M74) -> 15.0321136 | R79: =SUMIFS('Berekening variant 1'!$JS$1:$JX$1,'Berekening variant 1'!$JS$5:$JX$5,">="&$M74,'Berekening variant 1'!$JS$6:$JX$6,"<"&$M74,'Berekening variant 1'!$JS$8:$JX$8,TRUE) -> 73.89124062 | S79: =SUMIFS('Berekening variant 1'!$LC$1:$LH$1,'Berekening variant 1'!$LC$5:$LH$5,">"&$M74,'Berekening variant 1'!$LC$6:$LH$6,"<="&$M74,'Berekening variant 1'!$LC$8:$LH$8,TRUE) -> 376.5937582 | T79: =SUMIFS('Berekening variant 1'!$GR$1:$IA$1,'Berekening variant 1'!$GR$5:$IA$5,">"&$M74,'Berekening variant 1'!$GR$6:$IA$6,"<="&$M74,'Berekening variant 1'!$GR$8:$IA$8,TRUE) -> 6.296294819 | U79: =SUMIFS('Berekening variant 1'!$AG$1:$DW$1,'Berekening variant 1'!$AG$5:$DW$5,">"&$M74,'Berekening variant 1'!$AG$6:$DW$6,"<="&$M74,'Berekening variant 1'!$AG$8:$DW$8,TRUE) -> 0 | V79: =SUMIFS('Berekening variant 1'!$JS$1:$JX$1,'Berekening variant 1'!$JS$6:$JX$6,">="&$M74) -> 0 | W79: =SUMIFS('Berekening variant 1'!$LC$1:$LH$1,'Berekening variant 1'!$LC$6:$LH$6,">"&$M74) -> 0 | X79: =SUMIFS('Berekening variant 1'!$GR$1:$IA$1,'Berekening variant 1'!$GR$6:$IA$6,">"&$M74) -> 32.33450583 | Y79: =SUMIFS('Berekening variant 1'!$AG$1:$DW$1,'Berekening variant 1'!$AG$6:$DW$6,">"&$M74) -> 12.89754637 | Z79: =SUMIFS('Berekening variant 1'!$JS$1:$JX$1,'Berekening variant 1'!$JS$6:$JX$6,">="&$M74,'Berekening variant 1'!$JS$8:$JX$8,TRUE) -> 0 | AA79: =SUMIFS('Berekening variant 1'!$LC$1:$LH$1,'Berekening variant 1'!$LC$6:$LH$6,">"&$M74,'Berekening variant 1'!$LC$8:$LH$8,TRUE) -> 0 | AB79: =SUMIFS('Berekening variant 1'!$GR$1:$IA$1,'Berekening variant 1'!$GR$6:$IA$6,">"&$M74,'Berekening variant 1'!$GR$8:$IA$8,TRUE) -> 29.66158952 | AC79: =SUMIFS('Berekening variant 1'!$AG$1:$DW$1,'Berekening variant 1'!$AG$6:$DW$6,">"&$M74,'Berekening variant 1'!$AG$8:$DW$8,TRUE) -> 7.069162251 | AD79: 0.02285295814 | AE79: 0.5374670839 | AF79: 0.09873858004 | AG79: 1.227906703 | AH79: 7.102195433 | AI79: 7.4
B80: rood | C80: geel | J80: 15 | K80: FALSE | L80: TRUE | M80: =ROUND(AVERAGE(INDEX(M$66:M79,_xlfn.MAXIFS(J$66:J79,K$66:K79,TRUE),1),INDEX(M$66:M79,_xlfn.MAXIFS(J$66:J79,L$66:L79,TRUE),1)),0) -> 356 | N80: =SUMIFS('Berekening variant 1'!$JS$1:$JX$1,'Berekening variant 1'!$JS$5:$JX$5,">="&$M75,'Berekening variant 1'!$JS$6:$JX$6,"<"&$M75) -> 76.14699409 | O80: =SUMIFS('Berekening variant 1'!$LC$1:$LH$1,'Berekening variant 1'!$LC$5:$LH$5,">"&$M75,'Berekening variant 1'!$LC$6:$LH$6,"<="&$M75) -> 68.27342477 | P80: =SUMIFS('Berekening variant 1'!$GR$1:$IA$1,'Berekening variant 1'!$GR$5:$IA$5,">"&$M75,'Berekening variant 1'!$GR$6:$IA$6,"<="&$M75) -> 178.5825775 | Q80: =SUMIFS('Berekening variant 1'!$AG$1:$DW$1,'Berekening variant 1'!$AG$5:$DW$5,">"&$M75,'Berekening variant 1'!$AG$6:$DW$6,"<="&$M75) -> 15.0321136 | R80: =SUMIFS('Berekening variant 1'!$JS$1:$JX$1,'Berekening variant 1'!$JS$5:$JX$5,">="&$M75,'Berekening variant 1'!$JS$6:$JX$6,"<"&$M75,'Berekening variant 1'!$JS$8:$JX$8,TRUE) -> 73.89124062 | S80: =SUMIFS('Berekening variant 1'!$LC$1:$LH$1,'Berekening variant 1'!$LC$5:$LH$5,">"&$M75,'Berekening variant 1'!$LC$6:$LH$6,"<="&$M75,'Berekening variant 1'!$LC$8:$LH$8,TRUE) -> 34.94893755 | T80: =SUMIFS('Berekening variant 1'!$GR$1:$IA$1,'Berekening variant 1'!$GR$5:$IA$5,">"&$M75,'Berekening variant 1'!$GR$6:$IA$6,"<="&$M75,'Berekening variant 1'!$GR$8:$IA$8,TRUE) -> 29.2571766 | U80: =SUMIFS('Berekening variant 1'!$AG$1:$DW$1,'Berekening variant 1'!$AG$5:$DW$5,">"&$M75,'Berekening variant 1'!$AG$6:$DW$6,"<="&$M75,'Berekening variant 1'!$AG$8:$DW$8,TRUE) -> 0 | V80: =SUMIFS('Berekening variant 1'!$JS$1:$JX$1,'Berekening variant 1'!$JS$6:$JX$6,">="&$M75) -> 0 | W80: =SUMIFS('Berekening variant 1'!$LC$1:$LH$1,'Berekening variant 1'!$LC$6:$LH$6,">"&$M75) -> 0 | X80: =SUMIFS('Berekening variant 1'!$GR$1:$IA$1,'Berekening variant 1'!$GR$6:$IA$6,">"&$M75) -> 9.373624049 | Y80: =SUMIFS('Berekening variant 1'!$AG$1:$DW$1,'Berekening variant 1'!$AG$6:$DW$6,">"&$M75) -> 12.89754637 | Z80: =SUMIFS('Berekening variant 1'!$JS$1:$JX$1,'Berekening variant 1'!$JS$6:$JX$6,">="&$M75,'Berekening variant 1'!$JS$8:$JX$8,TRUE) -> 0 | AA80: =SUMIFS('Berekening variant 1'!$LC$1:$LH$1,'Berekening variant 1'!$LC$6:$LH$6,">"&$M75,'Berekening variant 1'!$LC$8:$LH$8,TRUE) -> 0 | AB80: =SUMIFS('Berekening variant 1'!$GR$1:$IA$1,'Berekening variant 1'!$GR$6:$IA$6,">"&$M75,'Berekening variant 1'!$GR$8:$IA$8,TRUE) -> 6.700707738 | AC80: =SUMIFS('Berekening variant 1'!$AG$1:$DW$1,'Berekening variant 1'!$AG$6:$DW$6,">"&$M75,'Berekening variant 1'!$AG$8:$DW$8,TRUE) -> 7.069162251 | AD80: 0.02285295814 | AE80: 0.5374670839 | AF80: 0.03701577954 | AG80: 0.3712294483 | AH80: 7.401300769 | AI80: 7.4
A81: % inhaalbewegingen | B81: =IF(B39+B45+B51+B57=0,"--",B39/(B39+B45+B51+B57)) -> 0 | C81: =IF(B38+B44+B50+B56=0,"--",B38/(B38+B44+B50+B56)) -> 0.03199939086 | J81: 16 | K81: FALSE | L81: TRUE | M81: =ROUND(AVERAGE(INDEX(M$66:M80,_xlfn.MAXIFS(J$66:J80,K$66:K80,TRUE),1),INDEX(M$66:M80,_xlfn.MAXIFS(J$66:J80,L$66:L80,TRUE),1)),0) -> 356 | N81: =SUMIFS('Berekening variant 1'!$JS$1:$JX$1,'Berekening variant 1'!$JS$5:$JX$5,">="&$M76,'Berekening variant 1'!$JS$6:$JX$6,"<"&$M76) -> 76.14699409 | O81: =SUMIFS('Berekening variant 1'!$LC$1:$LH$1,'Berekening variant 1'!$LC$5:$LH$5,">"&$M76,'Berekening variant 1'!$LC$6:$LH$6,"<="&$M76) -> 409.9182454 | P81: =SUMIFS('Berekening variant 1'!$GR$1:$IA$1,'Berekening variant 1'!$GR$5:$IA$5,">"&$M76,'Berekening variant 1'!$GR$6:$IA$6,"<="&$M76) -> 178.5825775 | Q81: =SUMIFS('Berekening variant 1'!$AG$1:$DW$1,'Berekening variant 1'!$AG$5:$DW$5,">"&$M76,'Berekening variant 1'!$AG$6:$DW$6,"<="&$M76) -> 15.0321136 | R81: =SUMIFS('Berekening variant 1'!$JS$1:$JX$1,'Berekening variant 1'!$JS$5:$JX$5,">="&$M76,'Berekening variant 1'!$JS$6:$JX$6,"<"&$M76,'Berekening variant 1'!$JS$8:$JX$8,TRUE) -> 73.89124062 | S81: =SUMIFS('Berekening variant 1'!$LC$1:$LH$1,'Berekening variant 1'!$LC$5:$LH$5,">"&$M76,'Berekening variant 1'!$LC$6:$LH$6,"<="&$M76,'Berekening variant 1'!$LC$8:$LH$8,TRUE) -> 376.5937582 | T81: =SUMIFS('Berekening variant 1'!$GR$1:$IA$1,'Berekening variant 1'!$GR$5:$IA$5,">"&$M76,'Berekening variant 1'!$GR$6:$IA$6,"<="&$M76,'Berekening variant 1'!$GR$8:$IA$8,TRUE) -> 29.2571766 | U81: =SUMIFS('Berekening variant 1'!$AG$1:$DW$1,'Berekening variant 1'!$AG$5:$DW$5,">"&$M76,'Berekening variant 1'!$AG$6:$DW$6,"<="&$M76,'Berekening variant 1'!$AG$8:$DW$8,TRUE) -> 0 | V81: =SUMIFS('Berekening variant 1'!$JS$1:$JX$1,'Berekening variant 1'!$JS$6:$JX$6,">="&$M76) -> 0 | W81: =SUMIFS('Berekening variant 1'!$LC$1:$LH$1,'Berekening variant 1'!$LC$6:$LH$6,">"&$M76) -> 0 | X81: =SUMIFS('Berekening variant 1'!$GR$1:$IA$1,'Berekening variant 1'!$GR$6:$IA$6,">"&$M76) -> 9.373624049 | Y81: =SUMIFS('Berekening variant 1'!$AG$1:$DW$1,'Berekening variant 1'!$AG$6:$DW$6,">"&$M76) -> 12.89754637 | Z81: =SUMIFS('Berekening variant 1'!$JS$1:$JX$1,'Berekening variant 1'!$JS$6:$JX$6,">="&$M76,'Berekening variant 1'!$JS$8:$JX$8,TRUE) -> 0 | AA81: =SUMIFS('Berekening variant 1'!$LC$1:$LH$1,'Berekening variant 1'!$LC$6:$LH$6,">"&$M76,'Berekening variant 1'!$LC$8:$LH$8,TRUE) -> 0 | AB81: =SUMIFS('Berekening variant 1'!$GR$1:$IA$1,'Berekening variant 1'!$GR$6:$IA$6,">"&$M76,'Berekening variant 1'!$GR$8:$IA$8,TRUE) -> 6.700707738 | AC81: =SUMIFS('Berekening variant 1'!$AG$1:$DW$1,'Berekening variant 1'!$AG$6:$DW$6,">"&$M76,'Berekening variant 1'!$AG$8:$DW$8,TRUE) -> 7.069162251 | AD81: 0.02285295814 | AE81: 0.5374670839 | AF81: 0.03701577954 | AG81: 1.289629504 | AH81: 7.154997949 | AI81: 7.4
A82: % tegemoetkomingen | B82: =IF(B39+B45+B51+B57=0,"--",B45/(B39+B45+B51+B57)) -> 0 | C82: =IF(B38+B44+B50+B56=0,"--",B44/(B38+B44+B50+B56)) -> 0.2523547758 | J82: 17 | K82: FALSE | L82: TRUE | M82: =ROUND(AVERAGE(INDEX(M$66:M81,_xlfn.MAXIFS(J$66:J81,K$66:K81,TRUE),1),INDEX(M$66:M81,_xlfn.MAXIFS(J$66:J81,L$66:L81,TRUE),1)),0) -> 356 | N82: =SUMIFS('Berekening variant 1'!$JS$1:$JX$1,'Berekening variant 1'!$JS$5:$JX$5,">="&$M77,'Berekening variant 1'!$JS$6:$JX$6,"<"&$M77) -> 76.14699409 | O82: =SUMIFS('Berekening variant 1'!$LC$1:$LH$1,'Berekening variant 1'!$LC$5:$LH$5,">"&$M77,'Berekening variant 1'!$LC$6:$LH$6,"<="&$M77) -> 409.9182454 | P82: =SUMIFS('Berekening variant 1'!$GR$1:$IA$1,'Berekening variant 1'!$GR$5:$IA$5,">"&$M77,'Berekening variant 1'!$GR$6:$IA$6,"<="&$M77) -> 178.5825775 | Q82: =SUMIFS('Berekening variant 1'!$AG$1:$DW$1,'Berekening variant 1'!$AG$5:$DW$5,">"&$M77,'Berekening variant 1'!$AG$6:$DW$6,"<="&$M77) -> 15.0321136 | R82: =SUMIFS('Berekening variant 1'!$JS$1:$JX$1,'Berekening variant 1'!$JS$5:$JX$5,">="&$M77,'Berekening variant 1'!$JS$6:$JX$6,"<"&$M77,'Berekening variant 1'!$JS$8:$JX$8,TRUE) -> 73.89124062 | S82: =SUMIFS('Berekening variant 1'!$LC$1:$LH$1,'Berekening variant 1'!$LC$5:$LH$5,">"&$M77,'Berekening variant 1'!$LC$6:$LH$6,"<="&$M77,'Berekening variant 1'!$LC$8:$LH$8,TRUE) -> 376.5937582 | T82: =SUMIFS('Berekening variant 1'!$GR$1:$IA$1,'Berekening variant 1'!$GR$5:$IA$5,">"&$M77,'Berekening variant 1'!$GR$6:$IA$6,"<="&$M77,'Berekening variant 1'!$GR$8:$IA$8,TRUE) -> 29.2571766 | U82: =SUMIFS('Berekening variant 1'!$AG$1:$DW$1,'Berekening variant 1'!$AG$5:$DW$5,">"&$M77,'Berekening variant 1'!$AG$6:$DW$6,"<="&$M77,'Berekening variant 1'!$AG$8:$DW$8,TRUE) -> 0 | V82: =SUMIFS('Berekening variant 1'!$JS$1:$JX$1,'Berekening variant 1'!$JS$6:$JX$6,">="&$M77) -> 0 | W82: =SUMIFS('Berekening variant 1'!$LC$1:$LH$1,'Berekening variant 1'!$LC$6:$LH$6,">"&$M77) -> 0 | X82: =SUMIFS('Berekening variant 1'!$GR$1:$IA$1,'Berekening variant 1'!$GR$6:$IA$6,">"&$M77) -> 9.373624049 | Y82: =SUMIFS('Berekening variant 1'!$AG$1:$DW$1,'Berekening variant 1'!$AG$6:$DW$6,">"&$M77) -> 12.89754637 | Z82: =SUMIFS('Berekening variant 1'!$JS$1:$JX$1,'Berekening variant 1'!$JS$6:$JX$6,">="&$M77,'Berekening variant 1'!$JS$8:$JX$8,TRUE) -> 0 | AA82: =SUMIFS('Berekening variant 1'!$LC$1:$LH$1,'Berekening variant 1'!$LC$6:$LH$6,">"&$M77,'Berekening variant 1'!$LC$8:$LH$8,TRUE) -> 0 | AB82: =SUMIFS('Berekening variant 1'!$GR$1:$IA$1,'Berekening variant 1'!$GR$6:$IA$6,">"&$M77,'Berekening variant 1'!$GR$8:$IA$8,TRUE) -> 6.700707738 | AC82: =SUMIFS('Berekening variant 1'!$AG$1:$DW$1,'Berekening variant 1'!$AG$6:$DW$6,">"&$M77,'Berekening variant 1'!$AG$8:$DW$8,TRUE) -> 7.069162251 | AD82: 0.02285295814 | AE82: 0.5374670839 | AF82: 0.03701577954 | AG82: 1.289629504 | AH82: 7.154997949 | AI82: 7.4
A83: % combinatie | B83: =IF(B39+B45+B51+B57=0,"--",(B51+B57)/(B39+B45+B51+B57)) -> 1 | C83: =IF(B38+B44+B50+B56=0,"--",(B50+B56)/(B38+B44+B50+B56)) -> 0.7156458334 | J83: 18 | K83: FALSE | L83: TRUE | M83: =ROUND(AVERAGE(INDEX(M$66:M82,_xlfn.MAXIFS(J$66:J82,K$66:K82,TRUE),1),INDEX(M$66:M82,_xlfn.MAXIFS(J$66:J82,L$66:L82,TRUE),1)),0) -> 356 | N83: =SUMIFS('Berekening variant 1'!$JS$1:$JX$1,'Berekening variant 1'!$JS$5:$JX$5,">="&$M78,'Berekening variant 1'!$JS$6:$JX$6,"<"&$M78) -> 76.14699409 | O83: =SUMIFS('Berekening variant 1'!$LC$1:$LH$1,'Berekening variant 1'!$LC$5:$LH$5,">"&$M78,'Berekening variant 1'!$LC$6:$LH$6,"<="&$M78) -> 68.27342477 | P83: =SUMIFS('Berekening variant 1'!$GR$1:$IA$1,'Berekening variant 1'!$GR$5:$IA$5,">"&$M78,'Berekening variant 1'!$GR$6:$IA$6,"<="&$M78) -> 178.5825775 | Q83: =SUMIFS('Berekening variant 1'!$AG$1:$DW$1,'Berekening variant 1'!$AG$5:$DW$5,">"&$M78,'Berekening variant 1'!$AG$6:$DW$6,"<="&$M78) -> 15.0321136 | R83: =SUMIFS('Berekening variant 1'!$JS$1:$JX$1,'Berekening variant 1'!$JS$5:$JX$5,">="&$M78,'Berekening variant 1'!$JS$6:$JX$6,"<"&$M78,'Berekening variant 1'!$JS$8:$JX$8,TRUE) -> 73.89124062 | S83: =SUMIFS('Berekening variant 1'!$LC$1:$LH$1,'Berekening variant 1'!$LC$5:$LH$5,">"&$M78,'Berekening variant 1'!$LC$6:$LH$6,"<="&$M78,'Berekening variant 1'!$LC$8:$LH$8,TRUE) -> 34.94893755 | T83: =SUMIFS('Berekening variant 1'!$GR$1:$IA$1,'Berekening variant 1'!$GR$5:$IA$5,">"&$M78,'Berekening variant 1'!$GR$6:$IA$6,"<="&$M78,'Berekening variant 1'!$GR$8:$IA$8,TRUE) -> 29.2571766 | U83: =SUMIFS('Berekening variant 1'!$AG$1:$DW$1,'Berekening variant 1'!$AG$5:$DW$5,">"&$M78,'Berekening variant 1'!$AG$6:$DW$6,"<="&$M78,'Berekening variant 1'!$AG$8:$DW$8,TRUE) -> 0 | V83: =SUMIFS('Berekening variant 1'!$JS$1:$JX$1,'Berekening variant 1'!$JS$6:$JX$6,">="&$M78) -> 0 | W83: =SUMIFS('Berekening variant 1'!$LC$1:$LH$1,'Berekening variant 1'!$LC$6:$LH$6,">"&$M78) -> 0 | X83: =SUMIFS('Berekening variant 1'!$GR$1:$IA$1,'Berekening variant 1'!$GR$6:$IA$6,">"&$M78) -> 9.373624049 | Y83: =SUMIFS('Berekening variant 1'!$AG$1:$DW$1,'Berekening variant 1'!$AG$6:$DW$6,">"&$M78) -> 12.89754637 | Z83: =SUMIFS('Berekening variant 1'!$JS$1:$JX$1,'Berekening variant 1'!$JS$6:$JX$6,">="&$M78,'Berekening variant 1'!$JS$8:$JX$8,TRUE) -> 0 | AA83: =SUMIFS('Berekening variant 1'!$LC$1:$LH$1,'Berekening variant 1'!$LC$6:$LH$6,">"&$M78,'Berekening variant 1'!$LC$8:$LH$8,TRUE) -> 0 | AB83: =SUMIFS('Berekening variant 1'!$GR$1:$IA$1,'Berekening variant 1'!$GR$6:$IA$6,">"&$M78,'Berekening variant 1'!$GR$8:$IA$8,TRUE) -> 6.700707738 | AC83: =SUMIFS('Berekening variant 1'!$AG$1:$DW$1,'Berekening variant 1'!$AG$6:$DW$6,">"&$M78,'Berekening variant 1'!$AG$8:$DW$8,TRUE) -> 7.069162251 | AD83: 0.02285295814 | AE83: 0.5374670839 | AF83: 0.03701577954 | AG83: 0.3712294483 | AH83: 7.401300769 | AI83: 7.4
A84: % met brommer | B84: =IF(B39+B45+B51+B57=0,"--",(C39+C45+C51+C57)/(B39+B45+B51+B57)) -> 0.6182822784 | C84: =IF(B38+B44+B50+B56=0,"--",(C38+C44+C50+C56)/(B38+B44+B50+B56)) -> 0.2609826216 | J84: 19 | K84: FALSE | L84: TRUE | M84: =ROUND(AVERAGE(INDEX(M$66:M83,_xlfn.MAXIFS(J$66:J83,K$66:K83,TRUE),1),INDEX(M$66:M83,_xlfn.MAXIFS(J$66:J83,L$66:L83,TRUE),1)),0) -> 356 | N84: =SUMIFS('Berekening variant 1'!$JS$1:$JX$1,'Berekening variant 1'!$JS$5:$JX$5,">="&$M79,'Berekening variant 1'!$JS$6:$JX$6,"<"&$M79) -> 76.14699409 | O84: =SUMIFS('Berekening variant 1'!$LC$1:$LH$1,'Berekening variant 1'!$LC$5:$LH$5,">"&$M79,'Berekening variant 1'!$LC$6:$LH$6,"<="&$M79) -> 68.27342477 | P84: =SUMIFS('Berekening variant 1'!$GR$1:$IA$1,'Berekening variant 1'!$GR$5:$IA$5,">"&$M79,'Berekening variant 1'!$GR$6:$IA$6,"<="&$M79) -> 178.5825775 | Q84: =SUMIFS('Berekening variant 1'!$AG$1:$DW$1,'Berekening variant 1'!$AG$5:$DW$5,">"&$M79,'Berekening variant 1'!$AG$6:$DW$6,"<="&$M79) -> 15.0321136 | R84: =SUMIFS('Berekening variant 1'!$JS$1:$JX$1,'Berekening variant 1'!$JS$5:$JX$5,">="&$M79,'Berekening variant 1'!$JS$6:$JX$6,"<"&$M79,'Berekening variant 1'!$JS$8:$JX$8,TRUE) -> 73.89124062 | S84: =SUMIFS('Berekening variant 1'!$LC$1:$LH$1,'Berekening variant 1'!$LC$5:$LH$5,">"&$M79,'Berekening variant 1'!$LC$6:$LH$6,"<="&$M79,'Berekening variant 1'!$LC$8:$LH$8,TRUE) -> 34.94893755 | T84: =SUMIFS('Berekening variant 1'!$GR$1:$IA$1,'Berekening variant 1'!$GR$5:$IA$5,">"&$M79,'Berekening variant 1'!$GR$6:$IA$6,"<="&$M79,'Berekening variant 1'!$GR$8:$IA$8,TRUE) -> 29.2571766 | U84: =SUMIFS('Berekening variant 1'!$AG$1:$DW$1,'Berekening variant 1'!$AG$5:$DW$5,">"&$M79,'Berekening variant 1'!$AG$6:$DW$6,"<="&$M79,'Berekening variant 1'!$AG$8:$DW$8,TRUE) -> 0 | V84: =SUMIFS('Berekening variant 1'!$JS$1:$JX$1,'Berekening variant 1'!$JS$6:$JX$6,">="&$M79) -> 0 | W84: =SUMIFS('Berekening variant 1'!$LC$1:$LH$1,'Berekening variant 1'!$LC$6:$LH$6,">"&$M79) -> 0 | X84: =SUMIFS('Berekening variant 1'!$GR$1:$IA$1,'Berekening variant 1'!$GR$6:$IA$6,">"&$M79) -> 9.373624049 | Y84: =SUMIFS('Berekening variant 1'!$AG$1:$DW$1,'Berekening variant 1'!$AG$6:$DW$6,">"&$M79) -> 12.89754637 | Z84: =SUMIFS('Berekening variant 1'!$JS$1:$JX$1,'Berekening variant 1'!$JS$6:$JX$6,">="&$M79,'Berekening variant 1'!$JS$8:$JX$8,TRUE) -> 0 | AA84: =SUMIFS('Berekening variant 1'!$LC$1:$LH$1,'Berekening variant 1'!$LC$6:$LH$6,">"&$M79,'Berekening variant 1'!$LC$8:$LH$8,TRUE) -> 0 | AB84: =SUMIFS('Berekening variant 1'!$GR$1:$IA$1,'Berekening variant 1'!$GR$6:$IA$6,">"&$M79,'Berekening variant 1'!$GR$8:$IA$8,TRUE) -> 6.700707738 | AC84: =SUMIFS('Berekening variant 1'!$AG$1:$DW$1,'Berekening variant 1'!$AG$6:$DW$6,">"&$M79,'Berekening variant 1'!$AG$8:$DW$8,TRUE) -> 7.069162251 | AD84: 0.02285295814 | AE84: 0.5374670839 | AF84: 0.03701577954 | AG84: 0.3712294483 | AH84: 7.401300769 | AI84: 7.4
A85: % met duo / brede fiets | B85: =IF(B39+B45+B51+B57=0,"--",(D39+D45+D51+D57)/(B39+B45+B51+B57)) -> 0.6881589307 | C85: =IF(B38+B44+B50+B56=0,"--",(D38+D44+D50+D56)/(B38+B44+B50+B56)) -> 0.3731401161 | J85: 20 | K85: FALSE | L85: TRUE | M85: =ROUND(AVERAGE(INDEX(M$66:M84,_xlfn.MAXIFS(J$66:J84,K$66:K84,TRUE),1),INDEX(M$66:M84,_xlfn.MAXIFS(J$66:J84,L$66:L84,TRUE),1)),0) -> 356 | N85: =SUMIFS('Berekening variant 1'!$JS$1:$JX$1,'Berekening variant 1'!$JS$5:$JX$5,">="&$M80,'Berekening variant 1'!$JS$6:$JX$6,"<"&$M80) -> 76.14699409 | O85: =SUMIFS('Berekening variant 1'!$LC$1:$LH$1,'Berekening variant 1'!$LC$5:$LH$5,">"&$M80,'Berekening variant 1'!$LC$6:$LH$6,"<="&$M80) -> 68.27342477 | P85: =SUMIFS('Berekening variant 1'!$GR$1:$IA$1,'Berekening variant 1'!$GR$5:$IA$5,">"&$M80,'Berekening variant 1'!$GR$6:$IA$6,"<="&$M80) -> 178.5825775 | Q85: =SUMIFS('Berekening variant 1'!$AG$1:$DW$1,'Berekening variant 1'!$AG$5:$DW$5,">"&$M80,'Berekening variant 1'!$AG$6:$DW$6,"<="&$M80) -> 15.0321136 | R85: =SUMIFS('Berekening variant 1'!$JS$1:$JX$1,'Berekening variant 1'!$JS$5:$JX$5,">="&$M80,'Berekening variant 1'!$JS$6:$JX$6,"<"&$M80,'Berekening variant 1'!$JS$8:$JX$8,TRUE) -> 73.89124062 | S85: =SUMIFS('Berekening variant 1'!$LC$1:$LH$1,'Berekening variant 1'!$LC$5:$LH$5,">"&$M80,'Berekening variant 1'!$LC$6:$LH$6,"<="&$M80,'Berekening variant 1'!$LC$8:$LH$8,TRUE) -> 34.94893755 | T85: =SUMIFS('Berekening variant 1'!$GR$1:$IA$1,'Berekening variant 1'!$GR$5:$IA$5,">"&$M80,'Berekening variant 1'!$GR$6:$IA$6,"<="&$M80,'Berekening variant 1'!$GR$8:$IA$8,TRUE) -> 29.2571766 | U85: =SUMIFS('Berekening variant 1'!$AG$1:$DW$1,'Berekening variant 1'!$AG$5:$DW$5,">"&$M80,'Berekening variant 1'!$AG$6:$DW$6,"<="&$M80,'Berekening variant 1'!$AG$8:$DW$8,TRUE) -> 0 | V85: =SUMIFS('Berekening variant 1'!$JS$1:$JX$1,'Berekening variant 1'!$JS$6:$JX$6,">="&$M80) -> 0 | W85: =SUMIFS('Berekening variant 1'!$LC$1:$LH$1,'Berekening variant 1'!$LC$6:$LH$6,">"&$M80) -> 0 | X85: =SUMIFS('Berekening variant 1'!$GR$1:$IA$1,'Berekening variant 1'!$GR$6:$IA$6,">"&$M80) -> 9.373624049 | Y85: =SUMIFS('Berekening variant 1'!$AG$1:$DW$1,'Berekening variant 1'!$AG$6:$DW$6,">"&$M80) -> 12.89754637 | Z85: =SUMIFS('Berekening variant 1'!$JS$1:$JX$1,'Berekening variant 1'!$JS$6:$JX$6,">="&$M80,'Berekening variant 1'!$JS$8:$JX$8,TRUE) -> 0 | AA85: =SUMIFS('Berekening variant 1'!$LC$1:$LH$1,'Berekening variant 1'!$LC$6:$LH$6,">"&$M80,'Berekening variant 1'!$LC$8:$LH$8,TRUE) -> 0 | AB85: =SUMIFS('Berekening variant 1'!$GR$1:$IA$1,'Berekening variant 1'!$GR$6:$IA$6,">"&$M80,'Berekening variant 1'!$GR$8:$IA$8,TRUE) -> 6.700707738 | AC85: =SUMIFS('Berekening variant 1'!$AG$1:$DW$1,'Berekening variant 1'!$AG$6:$DW$6,">"&$M80,'Berekening variant 1'!$AG$8:$DW$8,TRUE) -> 7.069162251 | AD85: 0.02285295814 | AE85: 0.5374670839 | AF85: 0.03701577954 | AG85: 0.3712294483 | AH85: 7.401300769 | AI85: 7.4
A86: % met fiets | B86: =IF(B39+B45+B51+B57=0,"--",(E39+E45+E51+E57)/(B39+B45+B51+B57)) -> 0.9810000804 | C86: =IF(B38+B44+B50+B56=0,"--",(E38+E44+E50+E56)/(B38+B44+B50+B56)) -> 0.7156458334 | J86: 21 | K86: FALSE | L86: TRUE | M86: =ROUND(AVERAGE(INDEX(M$66:M85,_xlfn.MAXIFS(J$66:J85,K$66:K85,TRUE),1),INDEX(M$66:M85,_xlfn.MAXIFS(J$66:J85,L$66:L85,TRUE),1)),0) -> 356 | N86: =SUMIFS('Berekening variant 1'!$JS$1:$JX$1,'Berekening variant 1'!$JS$5:$JX$5,">="&$M81,'Berekening variant 1'!$JS$6:$JX$6,"<"&$M81) -> 76.14699409 | O86: =SUMIFS('Berekening variant 1'!$LC$1:$LH$1,'Berekening variant 1'!$LC$5:$LH$5,">"&$M81,'Berekening variant 1'!$LC$6:$LH$6,"<="&$M81) -> 68.27342477 | P86: =SUMIFS('Berekening variant 1'!$GR$1:$IA$1,'Berekening variant 1'!$GR$5:$IA$5,">"&$M81,'Berekening variant 1'!$GR$6:$IA$6,"<="&$M81) -> 178.5825775 | Q86: =SUMIFS('Berekening variant 1'!$AG$1:$DW$1,'Berekening variant 1'!$AG$5:$DW$5,">"&$M81,'Berekening variant 1'!$AG$6:$DW$6,"<="&$M81) -> 15.0321136 | R86: =SUMIFS('Berekening variant 1'!$JS$1:$JX$1,'Berekening variant 1'!$JS$5:$JX$5,">="&$M81,'Berekening variant 1'!$JS$6:$JX$6,"<"&$M81,'Berekening variant 1'!$JS$8:$JX$8,TRUE) -> 73.89124062 | S86: =SUMIFS('Berekening variant 1'!$LC$1:$LH$1,'Berekening variant 1'!$LC$5:$LH$5,">"&$M81,'Berekening variant 1'!$LC$6:$LH$6,"<="&$M81,'Berekening variant 1'!$LC$8:$LH$8,TRUE) -> 34.94893755 | T86: =SUMIFS('Berekening variant 1'!$GR$1:$IA$1,'Berekening variant 1'!$GR$5:$IA$5,">"&$M81,'Berekening variant 1'!$GR$6:$IA$6,"<="&$M81,'Berekening variant 1'!$GR$8:$IA$8,TRUE) -> 29.2571766 | U86: =SUMIFS('Berekening variant 1'!$AG$1:$DW$1,'Berekening variant 1'!$AG$5:$DW$5,">"&$M81,'Berekening variant 1'!$AG$6:$DW$6,"<="&$M81,'Berekening variant 1'!$AG$8:$DW$8,TRUE) -> 0 | V86: =SUMIFS('Berekening variant 1'!$JS$1:$JX$1,'Berekening variant 1'!$JS$6:$JX$6,">="&$M81) -> 0 | W86: =SUMIFS('Berekening variant 1'!$LC$1:$LH$1,'Berekening variant 1'!$LC$6:$LH$6,">"&$M81) -> 0 | X86: =SUMIFS('Berekening variant 1'!$GR$1:$IA$1,'Berekening variant 1'!$GR$6:$IA$6,">"&$M81) -> 9.373624049 | Y86: =SUMIFS('Berekening variant 1'!$AG$1:$DW$1,'Berekening variant 1'!$AG$6:$DW$6,">"&$M81) -> 12.89754637 | Z86: =SUMIFS('Berekening variant 1'!$JS$1:$JX$1,'Berekening variant 1'!$JS$6:$JX$6,">="&$M81,'Berekening variant 1'!$JS$8:$JX$8,TRUE) -> 0 | AA86: =SUMIFS('Berekening variant 1'!$LC$1:$LH$1,'Berekening variant 1'!$LC$6:$LH$6,">"&$M81,'Berekening variant 1'!$LC$8:$LH$8,TRUE) -> 0 | AB86: =SUMIFS('Berekening variant 1'!$GR$1:$IA$1,'Berekening variant 1'!$GR$6:$IA$6,">"&$M81,'Berekening variant 1'!$GR$8:$IA$8,TRUE) -> 6.700707738 | AC86: =SUMIFS('Berekening variant 1'!$AG$1:$DW$1,'Berekening variant 1'!$AG$6:$DW$6,">"&$M81,'Berekening variant 1'!$AG$8:$DW$8,TRUE) -> 7.069162251 | AD86: 0.02285295814 | AE86: 0.5374670839 | AF86: 0.03701577954 | AG86: 0.3712294483 | AH86: 7.401300769 | AI86: 7.4
J87: 22 | K87: FALSE | L87: TRUE | M87: =ROUND(AVERAGE(INDEX(M$66:M86,_xlfn.MAXIFS(J$66:J86,K$66:K86,TRUE),1),INDEX(M$66:M86,_xlfn.MAXIFS(J$66:J86,L$66:L86,TRUE),1)),0) -> 356 | N87: =SUMIFS('Berekening variant 1'!$JS$1:$JX$1,'Berekening variant 1'!$JS$5:$JX$5,">="&$M82,'Berekening variant 1'!$JS$6:$JX$6,"<"&$M82) -> 76.14699409 | O87: =SUMIFS('Berekening variant 1'!$LC$1:$LH$1,'Berekening variant 1'!$LC$5:$LH$5,">"&$M82,'Berekening variant 1'!$LC$6:$LH$6,"<="&$M82) -> 68.27342477 | P87: =SUMIFS('Berekening variant 1'!$GR$1:$IA$1,'Berekening variant 1'!$GR$5:$IA$5,">"&$M82,'Berekening variant 1'!$GR$6:$IA$6,"<="&$M82) -> 178.5825775 | Q87: =SUMIFS('Berekening variant 1'!$AG$1:$DW$1,'Berekening variant 1'!$AG$5:$DW$5,">"&$M82,'Berekening variant 1'!$AG$6:$DW$6,"<="&$M82) -> 15.0321136 | R87: =SUMIFS('Berekening variant 1'!$JS$1:$JX$1,'Berekening variant 1'!$JS$5:$JX$5,">="&$M82,'Berekening variant 1'!$JS$6:$JX$6,"<"&$M82,'Berekening variant 1'!$JS$8:$JX$8,TRUE) -> 73.89124062 | S87: =SUMIFS('Berekening variant 1'!$LC$1:$LH$1,'Berekening variant 1'!$LC$5:$LH$5,">"&$M82,'Berekening variant 1'!$LC$6:$LH$6,"<="&$M82,'Berekening variant 1'!$LC$8:$LH$8,TRUE) -> 34.94893755 | T87: =SUMIFS('Berekening variant 1'!$GR$1:$IA$1,'Berekening variant 1'!$GR$5:$IA$5,">"&$M82,'Berekening variant 1'!$GR$6:$IA$6,"<="&$M82,'Berekening variant 1'!$GR$8:$IA$8,TRUE) -> 29.2571766 | U87: =SUMIFS('Berekening variant 1'!$AG$1:$DW$1,'Berekening variant 1'!$AG$5:$DW$5,">"&$M82,'Berekening variant 1'!$AG$6:$DW$6,"<="&$M82,'Berekening variant 1'!$AG$8:$DW$8,TRUE) -> 0 | V87: =SUMIFS('Berekening variant 1'!$JS$1:$JX$1,'Berekening variant 1'!$JS$6:$JX$6,">="&$M82) -> 0 | W87: =SUMIFS('Berekening variant 1'!$LC$1:$LH$1,'Berekening variant 1'!$LC$6:$LH$6,">"&$M82) -> 0 | X87: =SUMIFS('Berekening variant 1'!$GR$1:$IA$1,'Berekening variant 1'!$GR$6:$IA$6,">"&$M82) -> 9.373624049 | Y87: =SUMIFS('Berekening variant 1'!$AG$1:$DW$1,'Berekening variant 1'!$AG$6:$DW$6,">"&$M82) -> 12.89754637 | Z87: =SUMIFS('Berekening variant 1'!$JS$1:$JX$1,'Berekening variant 1'!$JS$6:$JX$6,">="&$M82,'Berekening variant 1'!$JS$8:$JX$8,TRUE) -> 0 | AA87: =SUMIFS('Berekening variant 1'!$LC$1:$LH$1,'Berekening variant 1'!$LC$6:$LH$6,">"&$M82,'Berekening variant 1'!$LC$8:$LH$8,TRUE) -> 0 | AB87: =SUMIFS('Berekening variant 1'!$GR$1:$IA$1,'Berekening variant 1'!$GR$6:$IA$6,">"&$M82,'Berekening variant 1'!$GR$8:$IA$8,TRUE) -> 6.700707738 | AC87: =SUMIFS('Berekening variant 1'!$AG$1:$DW$1,'Berekening variant 1'!$AG$6:$DW$6,">"&$M82,'Berekening variant 1'!$AG$8:$DW$8,TRUE) -> 7.069162251 | AD87: 0.02285295814 | AE87: 0.5374670839 | AF87: 0.03701577954 | AG87: 0.3712294483 | AH87: 7.401300769 | AI87: 7.4
J88: 23 | K88: FALSE | L88: TRUE | M88: =ROUND(AVERAGE(INDEX(M$66:M87,_xlfn.MAXIFS(J$66:J87,K$66:K87,TRUE),1),INDEX(M$66:M87,_xlfn.MAXIFS(J$66:J87,L$66:L87,TRUE),1)),0) -> 356 | N88: =SUMIFS('Berekening variant 1'!$JS$1:$JX$1,'Berekening variant 1'!$JS$5:$JX$5,">="&$M83,'Berekening variant 1'!$JS$6:$JX$6,"<"&$M83) -> 76.14699409 | O88: =SUMIFS('Berekening variant 1'!$LC$1:$LH$1,'Berekening variant 1'!$LC$5:$LH$5,">"&$M83,'Berekening variant 1'!$LC$6:$LH$6,"<="&$M83) -> 68.27342477 | P88: =SUMIFS('Berekening variant 1'!$GR$1:$IA$1,'Berekening variant 1'!$GR$5:$IA$5,">"&$M83,'Berekening variant 1'!$GR$6:$IA$6,"<="&$M83) -> 178.5825775 | Q88: =SUMIFS('Berekening variant 1'!$AG$1:$DW$1,'Berekening variant 1'!$AG$5:$DW$5,">"&$M83,'Berekening variant 1'!$AG$6:$DW$6,"<="&$M83) -> 15.0321136 | R88: =SUMIFS('Berekening variant 1'!$JS$1:$JX$1,'Berekening variant 1'!$JS$5:$JX$5,">="&$M83,'Berekening variant 1'!$JS$6:$JX$6,"<"&$M83,'Berekening variant 1'!$JS$8:$JX$8,TRUE) -> 73.89124062 | S88: =SUMIFS('Berekening variant 1'!$LC$1:$LH$1,'Berekening variant 1'!$LC$5:$LH$5,">"&$M83,'Berekening variant 1'!$LC$6:$LH$6,"<="&$M83,'Berekening variant 1'!$LC$8:$LH$8,TRUE) -> 34.94893755 | T88: =SUMIFS('Berekening variant 1'!$GR$1:$IA$1,'Berekening variant 1'!$GR$5:$IA$5,">"&$M83,'Berekening variant 1'!$GR$6:$IA$6,"<="&$M83,'Berekening variant 1'!$GR$8:$IA$8,TRUE) -> 29.2571766 | U88: =SUMIFS('Berekening variant 1'!$AG$1:$DW$1,'Berekening variant 1'!$AG$5:$DW$5,">"&$M83,'Berekening variant 1'!$AG$6:$DW$6,"<="&$M83,'Berekening variant 1'!$AG$8:$DW$8,TRUE) -> 0 | V88: =SUMIFS('Berekening variant 1'!$JS$1:$JX$1,'Berekening variant 1'!$JS$6:$JX$6,">="&$M83) -> 0 | W88: =SUMIFS('Berekening variant 1'!$LC$1:$LH$1,'Berekening variant 1'!$LC$6:$LH$6,">"&$M83) -> 0 | X88: =SUMIFS('Berekening variant 1'!$GR$1:$IA$1,'Berekening variant 1'!$GR$6:$IA$6,">"&$M83) -> 9.373624049 | Y88: =SUMIFS('Berekening variant 1'!$AG$1:$DW$1,'Berekening variant 1'!$AG$6:$DW$6,">"&$M83) -> 12.89754637 | Z88: =SUMIFS('Berekening variant 1'!$JS$1:$JX$1,'Berekening variant 1'!$JS$6:$JX$6,">="&$M83,'Berekening variant 1'!$JS$8:$JX$8,TRUE) -> 0 | AA88: =SUMIFS('Berekening variant 1'!$LC$1:$LH$1,'Berekening variant 1'!$LC$6:$LH$6,">"&$M83,'Berekening variant 1'!$LC$8:$LH$8,TRUE) -> 0 | AB88: =SUMIFS('Berekening variant 1'!$GR$1:$IA$1,'Berekening variant 1'!$GR$6:$IA$6,">"&$M83,'Berekening variant 1'!$GR$8:$IA$8,TRUE) -> 6.700707738 | AC88: =SUMIFS('Berekening variant 1'!$AG$1:$DW$1,'Berekening variant 1'!$AG$6:$DW$6,">"&$M83,'Berekening variant 1'!$AG$8:$DW$8,TRUE) -> 7.069162251 | AD88: 0.02285295814 | AE88: 0.5374670839 | AF88: 0.03701577954 | AG88: 0.3712294483 | AH88: 7.401300769 | AI88: 7.4
A89: regressiemodel rapportcijfer breedte | E89: Sterren ontmoetingen o.b.v. rapportcijfer breedte | J89: 24 | K89: FALSE | L89: TRUE | M89: =ROUND(AVERAGE(INDEX(M$66:M88,_xlfn.MAXIFS(J$66:J88,K$66:K88,TRUE),1),INDEX(M$66:M88,_xlfn.MAXIFS(J$66:J88,L$66:L88,TRUE),1)),0) -> 356 | N89: =SUMIFS('Berekening variant 1'!$JS$1:$JX$1,'Berekening variant 1'!$JS$5:$JX$5,">="&$M84,'Berekening variant 1'!$JS$6:$JX$6,"<"&$M84) -> 76.14699409 | O89: =SUMIFS('Berekening variant 1'!$LC$1:$LH$1,'Berekening variant 1'!$LC$5:$LH$5,">"&$M84,'Berekening variant 1'!$LC$6:$LH$6,"<="&$M84) -> 68.27342477 | P89: =SUMIFS('Berekening variant 1'!$GR$1:$IA$1,'Berekening variant 1'!$GR$5:$IA$5,">"&$M84,'Berekening variant 1'!$GR$6:$IA$6,"<="&$M84) -> 178.5825775 | Q89: =SUMIFS('Berekening variant 1'!$AG$1:$DW$1,'Berekening variant 1'!$AG$5:$DW$5,">"&$M84,'Berekening variant 1'!$AG$6:$DW$6,"<="&$M84) -> 15.0321136 | R89: =SUMIFS('Berekening variant 1'!$JS$1:$JX$1,'Berekening variant 1'!$JS$5:$JX$5,">="&$M84,'Berekening variant 1'!$JS$6:$JX$6,"<"&$M84,'Berekening variant 1'!$JS$8:$JX$8,TRUE) -> 73.89124062 | S89: =SUMIFS('Berekening variant 1'!$LC$1:$LH$1,'Berekening variant 1'!$LC$5:$LH$5,">"&$M84,'Berekening variant 1'!$LC$6:$LH$6,"<="&$M84,'Berekening variant 1'!$LC$8:$LH$8,TRUE) -> 34.94893755 | T89: =SUMIFS('Berekening variant 1'!$GR$1:$IA$1,'Berekening variant 1'!$GR$5:$IA$5,">"&$M84,'Berekening variant 1'!$GR$6:$IA$6,"<="&$M84,'Berekening variant 1'!$GR$8:$IA$8,TRUE) -> 29.2571766 | U89: =SUMIFS('Berekening variant 1'!$AG$1:$DW$1,'Berekening variant 1'!$AG$5:$DW$5,">"&$M84,'Berekening variant 1'!$AG$6:$DW$6,"<="&$M84,'Berekening variant 1'!$AG$8:$DW$8,TRUE) -> 0 | V89: =SUMIFS('Berekening variant 1'!$JS$1:$JX$1,'Berekening variant 1'!$JS$6:$JX$6,">="&$M84) -> 0 | W89: =SUMIFS('Berekening variant 1'!$LC$1:$LH$1,'Berekening variant 1'!$LC$6:$LH$6,">"&$M84) -> 0 | X89: =SUMIFS('Berekening variant 1'!$GR$1:$IA$1,'Berekening variant 1'!$GR$6:$IA$6,">"&$M84) -> 9.373624049 | Y89: =SUMIFS('Berekening variant 1'!$AG$1:$DW$1,'Berekening variant 1'!$AG$6:$DW$6,">"&$M84) -> 12.89754637 | Z89: =SUMIFS('Berekening variant 1'!$JS$1:$JX$1,'Berekening variant 1'!$JS$6:$JX$6,">="&$M84,'Berekening variant 1'!$JS$8:$JX$8,TRUE) -> 0 | AA89: =SUMIFS('Berekening variant 1'!$LC$1:$LH$1,'Berekening variant 1'!$LC$6:$LH$6,">"&$M84,'Berekening variant 1'!$LC$8:$LH$8,TRUE) -> 0 | AB89: =SUMIFS('Berekening variant 1'!$GR$1:$IA$1,'Berekening variant 1'!$GR$6:$IA$6,">"&$M84,'Berekening variant 1'!$GR$8:$IA$8,TRUE) -> 6.700707738 | AC89: =SUMIFS('Berekening variant 1'!$AG$1:$DW$1,'Berekening variant 1'!$AG$6:$DW$6,">"&$M84,'Berekening variant 1'!$AG$8:$DW$8,TRUE) -> 7.069162251 | AD89: 0.02285295814 | AE89: 0.5374670839 | AF89: 0.03701577954 | AG89: 0.3712294483 | AH89: 7.401300769 | AI89: 7.4
B90: factor | C90: waarde | E90: aantal sterren | F90: eenrichtingsfietspad | G90: tweerichtingsfietspad | J90: 25 | K90: FALSE | L90: TRUE | M90: =ROUND(AVERAGE(INDEX(M$66:M89,_xlfn.MAXIFS(J$66:J89,K$66:K89,TRUE),1),INDEX(M$66:M89,_xlfn.MAXIFS(J$66:J89,L$66:L89,TRUE),1)),0) -> 356 | N90: =SUMIFS('Berekening variant 1'!$JS$1:$JX$1,'Berekening variant 1'!$JS$5:$JX$5,">="&$M85,'Berekening variant 1'!$JS$6:$JX$6,"<"&$M85) -> 76.14699409 | O90: =SUMIFS('Berekening variant 1'!$LC$1:$LH$1,'Berekening variant 1'!$LC$5:$LH$5,">"&$M85,'Berekening variant 1'!$LC$6:$LH$6,"<="&$M85) -> 68.27342477 | P90: =SUMIFS('Berekening variant 1'!$GR$1:$IA$1,'Berekening variant 1'!$GR$5:$IA$5,">"&$M85,'Berekening variant 1'!$GR$6:$IA$6,"<="&$M85) -> 178.5825775 | Q90: =SUMIFS('Berekening variant 1'!$AG$1:$DW$1,'Berekening variant 1'!$AG$5:$DW$5,">"&$M85,'Berekening variant 1'!$AG$6:$DW$6,"<="&$M85) -> 15.0321136 | R90: =SUMIFS('Berekening variant 1'!$JS$1:$JX$1,'Berekening variant 1'!$JS$5:$JX$5,">="&$M85,'Berekening variant 1'!$JS$6:$JX$6,"<"&$M85,'Berekening variant 1'!$JS$8:$JX$8,TRUE) -> 73.89124062 | S90: =SUMIFS('Berekening variant 1'!$LC$1:$LH$1,'Berekening variant 1'!$LC$5:$LH$5,">"&$M85,'Berekening variant 1'!$LC$6:$LH$6,"<="&$M85,'Berekening variant 1'!$LC$8:$LH$8,TRUE) -> 34.94893755 | T90: =SUMIFS('Berekening variant 1'!$GR$1:$IA$1,'Berekening variant 1'!$GR$5:$IA$5,">"&$M85,'Berekening variant 1'!$GR$6:$IA$6,"<="&$M85,'Berekening variant 1'!$GR$8:$IA$8,TRUE) -> 29.2571766 | U90: =SUMIFS('Berekening variant 1'!$AG$1:$DW$1,'Berekening variant 1'!$AG$5:$DW$5,">"&$M85,'Berekening variant 1'!$AG$6:$DW$6,"<="&$M85,'Berekening variant 1'!$AG$8:$DW$8,TRUE) -> 0 | V90: =SUMIFS('Berekening variant 1'!$JS$1:$JX$1,'Berekening variant 1'!$JS$6:$JX$6,">="&$M85) -> 0 | W90: =SUMIFS('Berekening variant 1'!$LC$1:$LH$1,'Berekening variant 1'!$LC$6:$LH$6,">"&$M85) -> 0 | X90: =SUMIFS('Berekening variant 1'!$GR$1:$IA$1,'Berekening variant 1'!$GR$6:$IA$6,">"&$M85) -> 9.373624049 | Y90: =SUMIFS('Berekening variant 1'!$AG$1:$DW$1,'Berekening variant 1'!$AG$6:$DW$6,">"&$M85) -> 12.89754637 | Z90: =SUMIFS('Berekening variant 1'!$JS$1:$JX$1,'Berekening variant 1'!$JS$6:$JX$6,">="&$M85,'Berekening variant 1'!$JS$8:$JX$8,TRUE) -> 0 | AA90: =SUMIFS('Berekening variant 1'!$LC$1:$LH$1,'Berekening variant 1'!$LC$6:$LH$6,">"&$M85,'Berekening variant 1'!$LC$8:$LH$8,TRUE) -> 0 | AB90: =SUMIFS('Berekening variant 1'!$GR$1:$IA$1,'Berekening variant 1'!$GR$6:$IA$6,">"&$M85,'Berekening variant 1'!$GR$8:$IA$8,TRUE) -> 6.700707738 | AC90: =SUMIFS('Berekening variant 1'!$AG$1:$DW$1,'Berekening variant 1'!$AG$6:$DW$6,">"&$M85,'Berekening variant 1'!$AG$8:$DW$8,TRUE) -> 7.069162251 | AD90: 0.02285295814 | AE90: 0.5374670839 | AF90: 0.03701577954 | AG90: 0.3712294483 | AH90: 7.401300769 | AI90: 7.4
A91: koersaanpassingen zonder brommer per rijwiel | B91: 1 | C91: =(SUM(B39,B45,B51,B57)-SUM(C39,C45,C51,C57))/int_uur -> 0.02285295814 | E91: 0 | F91: 0 | G91: 0 | N91: =SUMIFS('Berekening variant 1'!$JS$1:$JX$1,'Berekening variant 1'!$JS$5:$JX$5,">="&$M86,'Berekening variant 1'!$JS$6:$JX$6,"<"&$M86) -> 76.14699409 | O91: =SUMIFS('Berekening variant 1'!$LC$1:$LH$1,'Berekening variant 1'!$LC$5:$LH$5,">"&$M86,'Berekening variant 1'!$LC$6:$LH$6,"<="&$M86) -> 68.27342477 | P91: =SUMIFS('Berekening variant 1'!$GR$1:$IA$1,'Berekening variant 1'!$GR$5:$IA$5,">"&$M86,'Berekening variant 1'!$GR$6:$IA$6,"<="&$M86) -> 178.5825775 | Q91: =SUMIFS('Berekening variant 1'!$AG$1:$DW$1,'Berekening variant 1'!$AG$5:$DW$5,">"&$M86,'Berekening variant 1'!$AG$6:$DW$6,"<="&$M86) -> 15.0321136 | R91: =SUMIFS('Berekening variant 1'!$JS$1:$JX$1,'Berekening variant 1'!$JS$5:$JX$5,">="&$M86,'Berekening variant 1'!$JS$6:$JX$6,"<"&$M86,'Berekening variant 1'!$JS$8:$JX$8,TRUE) -> 73.89124062 | S91: =SUMIFS('Berekening variant 1'!$LC$1:$LH$1,'Berekening variant 1'!$LC$5:$LH$5,">"&$M86,'Berekening variant 1'!$LC$6:$LH$6,"<="&$M86,'Berekening variant 1'!$LC$8:$LH$8,TRUE) -> 34.94893755 | T91: =SUMIFS('Berekening variant 1'!$GR$1:$IA$1,'Berekening variant 1'!$GR$5:$IA$5,">"&$M86,'Berekening variant 1'!$GR$6:$IA$6,"<="&$M86,'Berekening variant 1'!$GR$8:$IA$8,TRUE) -> 29.2571766 | U91: =SUMIFS('Berekening variant 1'!$AG$1:$DW$1,'Berekening variant 1'!$AG$5:$DW$5,">"&$M86,'Berekening variant 1'!$AG$6:$DW$6,"<="&$M86,'Berekening variant 1'!$AG$8:$DW$8,TRUE) -> 0 | V91: =SUMIFS('Berekening variant 1'!$JS$1:$JX$1,'Berekening variant 1'!$JS$6:$JX$6,">="&$M86) -> 0 | W91: =SUMIFS('Berekening variant 1'!$LC$1:$LH$1,'Berekening variant 1'!$LC$6:$LH$6,">"&$M86) -> 0 | X91: =SUMIFS('Berekening variant 1'!$GR$1:$IA$1,'Berekening variant 1'!$GR$6:$IA$6,">"&$M86) -> 9.373624049 | Y91: =SUMIFS('Berekening variant 1'!$AG$1:$DW$1,'Berekening variant 1'!$AG$6:$DW$6,">"&$M86) -> 12.89754637 | Z91: =SUMIFS('Berekening variant 1'!$JS$1:$JX$1,'Berekening variant 1'!$JS$6:$JX$6,">="&$M86,'Berekening variant 1'!$JS$8:$JX$8,TRUE) -> 0 | AA91: =SUMIFS('Berekening variant 1'!$LC$1:$LH$1,'Berekening variant 1'!$LC$6:$LH$6,">"&$M86,'Berekening variant 1'!$LC$8:$LH$8,TRUE) -> 0 | AB91: =SUMIFS('Berekening variant 1'!$GR$1:$IA$1,'Berekening variant 1'!$GR$6:$IA$6,">"&$M86,'Berekening variant 1'!$GR$8:$IA$8,TRUE) -> 6.700707738 | AC91: =SUMIFS('Berekening variant 1'!$AG$1:$DW$1,'Berekening variant 1'!$AG$6:$DW$6,">"&$M86,'Berekening variant 1'!$AG$8:$DW$8,TRUE) -> 7.069162251 | AD91: 0.02285295814 | AE91: 0.5374670839 | AF91: 0.03701577954 | AG91: 0.3712294483 | AH91: 7.401300769 | AI91: 7.4
A92: hinderlijke ontmoetingen zonder brommer per rijwiel | B92: 0.2 | C92: =(SUM(B38,B44,B50,B56)-SUM(C38,C44,C50,C56))/int_uur -> 0.5374670839 | E92: 1 | F92: =eenrichting_rapportcijfer_1 -> 6 | G92: =tweerichting_rapportcijfer_1 -> 6 | N92: =SUMIFS('Berekening variant 1'!$JS$1:$JX$1,'Berekening variant 1'!$JS$5:$JX$5,">="&$M87,'Berekening variant 1'!$JS$6:$JX$6,"<"&$M87) -> 76.14699409 | O92: =SUMIFS('Berekening variant 1'!$LC$1:$LH$1,'Berekening variant 1'!$LC$5:$LH$5,">"&$M87,'Berekening variant 1'!$LC$6:$LH$6,"<="&$M87) -> 68.27342477 | P92: =SUMIFS('Berekening variant 1'!$GR$1:$IA$1,'Berekening variant 1'!$GR$5:$IA$5,">"&$M87,'Berekening variant 1'!$GR$6:$IA$6,"<="&$M87) -> 178.5825775 | Q92: =SUMIFS('Berekening variant 1'!$AG$1:$DW$1,'Berekening variant 1'!$AG$5:$DW$5,">"&$M87,'Berekening variant 1'!$AG$6:$DW$6,"<="&$M87) -> 15.0321136 | R92: =SUMIFS('Berekening variant 1'!$JS$1:$JX$1,'Berekening variant 1'!$JS$5:$JX$5,">="&$M87,'Berekening variant 1'!$JS$6:$JX$6,"<"&$M87,'Berekening variant 1'!$JS$8:$JX$8,TRUE) -> 73.89124062 | S92: =SUMIFS('Berekening variant 1'!$LC$1:$LH$1,'Berekening variant 1'!$LC$5:$LH$5,">"&$M87,'Berekening variant 1'!$LC$6:$LH$6,"<="&$M87,'Berekening variant 1'!$LC$8:$LH$8,TRUE) -> 34.94893755 | T92: =SUMIFS('Berekening variant 1'!$GR$1:$IA$1,'Berekening variant 1'!$GR$5:$IA$5,">"&$M87,'Berekening variant 1'!$GR$6:$IA$6,"<="&$M87,'Berekening variant 1'!$GR$8:$IA$8,TRUE) -> 29.2571766 | U92: =SUMIFS('Berekening variant 1'!$AG$1:$DW$1,'Berekening variant 1'!$AG$5:$DW$5,">"&$M87,'Berekening variant 1'!$AG$6:$DW$6,"<="&$M87,'Berekening variant 1'!$AG$8:$DW$8,TRUE) -> 0 | V92: =SUMIFS('Berekening variant 1'!$JS$1:$JX$1,'Berekening variant 1'!$JS$6:$JX$6,">="&$M87) -> 0 | W92: =SUMIFS('Berekening variant 1'!$LC$1:$LH$1,'Berekening variant 1'!$LC$6:$LH$6,">"&$M87) -> 0 | X92: =SUMIFS('Berekening variant 1'!$GR$1:$IA$1,'Berekening variant 1'!$GR$6:$IA$6,">"&$M87) -> 9.373624049 | Y92: =SUMIFS('Berekening variant 1'!$AG$1:$DW$1,'Berekening variant 1'!$AG$6:$DW$6,">"&$M87) -> 12.89754637 | Z92: =SUMIFS('Berekening variant 1'!$JS$1:$JX$1,'Berekening variant 1'!$JS$6:$JX$6,">="&$M87,'Berekening variant 1'!$JS$8:$JX$8,TRUE) -> 0 | AA92: =SUMIFS('Berekening variant 1'!$LC$1:$LH$1,'Berekening variant 1'!$LC$6:$LH$6,">"&$M87,'Berekening variant 1'!$LC$8:$LH$8,TRUE) -> 0 | AB92: =SUMIFS('Berekening variant 1'!$GR$1:$IA$1,'Berekening variant 1'!$GR$6:$IA$6,">"&$M87,'Berekening variant 1'!$GR$8:$IA$8,TRUE) -> 6.700707738 | AC92: =SUMIFS('Berekening variant 1'!$AG$1:$DW$1,'Berekening variant 1'!$AG$6:$DW$6,">"&$M87,'Berekening variant 1'!$AG$8:$DW$8,TRUE) -> 7.069162251 | AD92: 0.02285295814 | AE92: 0.5374670839 | AF92: 0.03701577954 | AG92: 0.3712294483 | AH92: 7.401300769 | AI92: 7.4
A93: koersaanpassingen met brommer per rijwiel | B93: 5 | C93: =SUM(C39,C45,C51,C57)/int_uur -> 0.03701577954 | E93: 2 | F93: =eenrichting_rapportcijfer_2 -> 6.5 | G93: =tweerichting_rapportcijfer_2 -> 6.5 | J93: 3 sterren | N93: =SUMIFS('Berekening variant 1'!$JS$1:$JX$1,'Berekening variant 1'!$JS$5:$JX$5,">="&$M88,'Berekening variant 1'!$JS$6:$JX$6,"<"&$M88) -> 76.14699409 | O93: =SUMIFS('Berekening variant 1'!$LC$1:$LH$1,'Berekening variant 1'!$LC$5:$LH$5,">"&$M88,'Berekening variant 1'!$LC$6:$LH$6,"<="&$M88) -> 68.27342477 | P93: =SUMIFS('Berekening variant 1'!$GR$1:$IA$1,'Berekening variant 1'!$GR$5:$IA$5,">"&$M88,'Berekening variant 1'!$GR$6:$IA$6,"<="&$M88) -> 178.5825775 | Q93: =SUMIFS('Berekening variant 1'!$AG$1:$DW$1,'Berekening variant 1'!$AG$5:$DW$5,">"&$M88,'Berekening variant 1'!$AG$6:$DW$6,"<="&$M88) -> 15.0321136 | R93: =SUMIFS('Berekening variant 1'!$JS$1:$JX$1,'Berekening variant 1'!$JS$5:$JX$5,">="&$M88,'Berekening variant 1'!$JS$6:$JX$6,"<"&$M88,'Berekening variant 1'!$JS$8:$JX$8,TRUE) -> 73.89124062 | S93: =SUMIFS('Berekening variant 1'!$LC$1:$LH$1,'Berekening variant 1'!$LC$5:$LH$5,">"&$M88,'Berekening variant 1'!$LC$6:$LH$6,"<="&$M88,'Berekening variant 1'!$LC$8:$LH$8,TRUE) -> 34.94893755 | T93: =SUMIFS('Berekening variant 1'!$GR$1:$IA$1,'Berekening variant 1'!$GR$5:$IA$5,">"&$M88,'Berekening variant 1'!$GR$6:$IA$6,"<="&$M88,'Berekening variant 1'!$GR$8:$IA$8,TRUE) -> 29.2571766 | U93: =SUMIFS('Berekening variant 1'!$AG$1:$DW$1,'Berekening variant 1'!$AG$5:$DW$5,">"&$M88,'Berekening variant 1'!$AG$6:$DW$6,"<="&$M88,'Berekening variant 1'!$AG$8:$DW$8,TRUE) -> 0 | V93: =SUMIFS('Berekening variant 1'!$JS$1:$JX$1,'Berekening variant 1'!$JS$6:$JX$6,">="&$M88) -> 0 | W93: =SUMIFS('Berekening variant 1'!$LC$1:$LH$1,'Berekening variant 1'!$LC$6:$LH$6,">"&$M88) -> 0 | X93: =SUMIFS('Berekening variant 1'!$GR$1:$IA$1,'Berekening variant 1'!$GR$6:$IA$6,">"&$M88) -> 9.373624049 | Y93: =SUMIFS('Berekening variant 1'!$AG$1:$DW$1,'Berekening variant 1'!$AG$6:$DW$6,">"&$M88) -> 12.89754637 | Z93: =SUMIFS('Berekening variant 1'!$JS$1:$JX$1,'Berekening variant 1'!$JS$6:$JX$6,">="&$M88,'Berekening variant 1'!$JS$8:$JX$8,TRUE) -> 0 | AA93: =SUMIFS('Berekening variant 1'!$LC$1:$LH$1,'Berekening variant 1'!$LC$6:$LH$6,">"&$M88,'Berekening variant 1'!$LC$8:$LH$8,TRUE) -> 0 | AB93: =SUMIFS('Berekening variant 1'!$GR$1:$IA$1,'Berekening variant 1'!$GR$6:$IA$6,">"&$M88,'Berekening variant 1'!$GR$8:$IA$8,TRUE) -> 6.700707738 | AC93: =SUMIFS('Berekening variant 1'!$AG$1:$DW$1,'Berekening variant 1'!$AG$6:$DW$6,">"&$M88,'Berekening variant 1'!$AG$8:$DW$8,TRUE) -> 7.069162251 | AD93: 0.02285295814 | AE93: 0.5374670839 | AF93: 0.03701577954 | AG93: 0.3712294483 | AH93: 7.401300769 | AI93: 7.4
A94: hinderlijke ontmoetingen met brommer per rijwiel | B94: 1 | C94: =SUM(C38,C44,C50,C56)/int_uur -> 0.1898055076 | E94: 3 | F94: =eenrichting_rapportcijfer_3 -> 7 | G94: =tweerichting_rapportcijfer_3 -> 7 | M94: breedte | N94: =SUMIFS('Berekening variant 1'!$JS$1:$JX$1,'Berekening variant 1'!$JS$5:$JX$5,">="&$M89,'Berekening variant 1'!$JS$6:$JX$6,"<"&$M89) -> 76.14699409 | O94: =SUMIFS('Berekening variant 1'!$LC$1:$LH$1,'Berekening variant 1'!$LC$5:$LH$5,">"&$M89,'Berekening variant 1'!$LC$6:$LH$6,"<="&$M89) -> 68.27342477 | P94: =SUMIFS('Berekening variant 1'!$GR$1:$IA$1,'Berekening variant 1'!$GR$5:$IA$5,">"&$M89,'Berekening variant 1'!$GR$6:$IA$6,"<="&$M89) -> 178.5825775 | Q94: =SUMIFS('Berekening variant 1'!$AG$1:$DW$1,'Berekening variant 1'!$AG$5:$DW$5,">"&$M89,'Berekening variant 1'!$AG$6:$DW$6,"<="&$M89) -> 15.0321136 | R94: =SUMIFS('Berekening variant 1'!$JS$1:$JX$1,'Berekening variant 1'!$JS$5:$JX$5,">="&$M89,'Berekening variant 1'!$JS$6:$JX$6,"<"&$M89,'Berekening variant 1'!$JS$8:$JX$8,TRUE) -> 73.89124062 | S94: =SUMIFS('Berekening variant 1'!$LC$1:$LH$1,'Berekening variant 1'!$LC$5:$LH$5,">"&$M89,'Berekening variant 1'!$LC$6:$LH$6,"<="&$M89,'Berekening variant 1'!$LC$8:$LH$8,TRUE) -> 34.94893755 | T94: =SUMIFS('Berekening variant 1'!$GR$1:$IA$1,'Berekening variant 1'!$GR$5:$IA$5,">"&$M89,'Berekening variant 1'!$GR$6:$IA$6,"<="&$M89,'Berekening variant 1'!$GR$8:$IA$8,TRUE) -> 29.2571766 | U94: =SUMIFS('Berekening variant 1'!$AG$1:$DW$1,'Berekening variant 1'!$AG$5:$DW$5,">"&$M89,'Berekening variant 1'!$AG$6:$DW$6,"<="&$M89,'Berekening variant 1'!$AG$8:$DW$8,TRUE) -> 0 | V94: =SUMIFS('Berekening variant 1'!$JS$1:$JX$1,'Berekening variant 1'!$JS$6:$JX$6,">="&$M89) -> 0 | W94: =SUMIFS('Berekening variant 1'!$LC$1:$LH$1,'Berekening variant 1'!$LC$6:$LH$6,">"&$M89) -> 0 | X94: =SUMIFS('Berekening variant 1'!$GR$1:$IA$1,'Berekening variant 1'!$GR$6:$IA$6,">"&$M89) -> 9.373624049 | Y94: =SUMIFS('Berekening variant 1'!$AG$1:$DW$1,'Berekening variant 1'!$AG$6:$DW$6,">"&$M89) -> 12.89754637 | Z94: =SUMIFS('Berekening variant 1'!$JS$1:$JX$1,'Berekening variant 1'!$JS$6:$JX$6,">="&$M89,'Berekening variant 1'!$JS$8:$JX$8,TRUE) -> 0 | AA94: =SUMIFS('Berekening variant 1'!$LC$1:$LH$1,'Berekening variant 1'!$LC$6:$LH$6,">"&$M89,'Berekening variant 1'!$LC$8:$LH$8,TRUE) -> 0 | AB94: =SUMIFS('Berekening variant 1'!$GR$1:$IA$1,'Berekening variant 1'!$GR$6:$IA$6,">"&$M89,'Berekening variant 1'!$GR$8:$IA$8,TRUE) -> 6.700707738 | AC94: =SUMIFS('Berekening variant 1'!$AG$1:$DW$1,'Berekening variant 1'!$AG$6:$DW$6,">"&$M89,'Berekening variant 1'!$AG$8:$DW$8,TRUE) -> 7.069162251 | AD94: 0.02285295814 | AE94: 0.5374670839 | AF94: 0.03701577954 | AG94: 0.3712294483 | AH94: 7.401300769 | AI94: 7.4
C95: =SUMPRODUCT(B91:B94,C91:C94) -> 0.5052307802 | E95: 4 | F95: =eenrichting_rapportcijfer_4 -> 7.4 | G95: =tweerichting_rapportcijfer_4 -> 7.4 | J95: 1 | K95: =AH100<AI100 -> FALSE | L95: TRUE | M95: 1000 | N95: =SUMIFS('Berekening variant 1'!$JS$1:$JX$1,'Berekening variant 1'!$JS$5:$JX$5,">="&$M90,'Berekening variant 1'!$JS$6:$JX$6,"<"&$M90) -> 76.14699409 | O95: =SUMIFS('Berekening variant 1'!$LC$1:$LH$1,'Berekening variant 1'!$LC$5:$LH$5,">"&$M90,'Berekening variant 1'!$LC$6:$LH$6,"<="&$M90) -> 68.27342477 | P95: =SUMIFS('Berekening variant 1'!$GR$1:$IA$1,'Berekening variant 1'!$GR$5:$IA$5,">"&$M90,'Berekening variant 1'!$GR$6:$IA$6,"<="&$M90) -> 178.5825775 | Q95: =SUMIFS('Berekening variant 1'!$AG$1:$DW$1,'Berekening variant 1'!$AG$5:$DW$5,">"&$M90,'Berekening variant 1'!$AG$6:$DW$6,"<="&$M90) -> 15.0321136 | R95: =SUMIFS('Berekening variant 1'!$JS$1:$JX$1,'Berekening variant 1'!$JS$5:$JX$5,">="&$M90,'Berekening variant 1'!$JS$6:$JX$6,"<"&$M90,'Berekening variant 1'!$JS$8:$JX$8,TRUE) -> 73.89124062 | S95: =SUMIFS('Berekening variant 1'!$LC$1:$LH$1,'Berekening variant 1'!$LC$5:$LH$5,">"&$M90,'Berekening variant 1'!$LC$6:$LH$6,"<="&$M90,'Berekening variant 1'!$LC$8:$LH$8,TRUE) -> 34.94893755 | T95: =SUMIFS('Berekening variant 1'!$GR$1:$IA$1,'Berekening variant 1'!$GR$5:$IA$5,">"&$M90,'Berekening variant 1'!$GR$6:$IA$6,"<="&$M90,'Berekening variant 1'!$GR$8:$IA$8,TRUE) -> 29.2571766 | U95: =SUMIFS('Berekening variant 1'!$AG$1:$DW$1,'Berekening variant 1'!$AG$5:$DW$5,">"&$M90,'Berekening variant 1'!$AG$6:$DW$6,"<="&$M90,'Berekening variant 1'!$AG$8:$DW$8,TRUE) -> 0 | V95: =SUMIFS('Berekening variant 1'!$JS$1:$JX$1,'Berekening variant 1'!$JS$6:$JX$6,">="&$M90) -> 0 | W95: =SUMIFS('Berekening variant 1'!$LC$1:$LH$1,'Berekening variant 1'!$LC$6:$LH$6,">"&$M90) -> 0 | X95: =SUMIFS('Berekening variant 1'!$GR$1:$IA$1,'Berekening variant 1'!$GR$6:$IA$6,">"&$M90) -> 9.373624049 | Y95: =SUMIFS('Berekening variant 1'!$AG$1:$DW$1,'Berekening variant 1'!$AG$6:$DW$6,">"&$M90) -> 12.89754637 | Z95: =SUMIFS('Berekening variant 1'!$JS$1:$JX$1,'Berekening variant 1'!$JS$6:$JX$6,">="&$M90,'Berekening variant 1'!$JS$8:$JX$8,TRUE) -> 0 | AA95: =SUMIFS('Berekening variant 1'!$LC$1:$LH$1,'Berekening variant 1'!$LC$6:$LH$6,">"&$M90,'Berekening variant 1'!$LC$8:$LH$8,TRUE) -> 0 | AB95: =SUMIFS('Berekening variant 1'!$GR$1:$IA$1,'Berekening variant 1'!$GR$6:$IA$6,">"&$M90,'Berekening variant 1'!$GR$8:$IA$8,TRUE) -> 6.700707738 | AC95: =SUMIFS('Berekening variant 1'!$AG$1:$DW$1,'Berekening variant 1'!$AG$6:$DW$6,">"&$M90,'Berekening variant 1'!$AG$8:$DW$8,TRUE) -> 7.069162251 | AD95: 0.02285295814 | AE95: 0.5374670839 | AF95: 0.03701577954 | AG95: 0.3712294483 | AH95: 7.401300769 | AI95: 7.4
B96: factor | C96: waarde | E96: 5 | F96: =eenrichting_rapportcijfer_5 -> 7.7 | G96: =tweerichting_rapportcijfer_5 -> 7.7 | J96: 2 | K96: TRUE | L96: =AH101>AI101 -> FALSE | M96: 0
A97: constante | B97: 7.867 | C97: 1 | J97: 3 | K97: =AH102<AI102 -> FALSE | L97: =AH102>AI102 -> TRUE | M97: =ROUND(AVERAGE(M95:M96),0) -> 500
A98: wortel koersaanpassingen, hinderlijk met en zonder brommer per rijwiel | B98: -0.562 | C98: =SQRT(C95) -> 0.710795878 | J98: 4 | K98: =AH103<AI103 -> TRUE | L98: =AH103>AI103 -> FALSE | M98: =ROUND(AVERAGE(INDEX(M$95:M97,_xlfn.MAXIFS(J$95:J97,K$95:K97,TRUE),1),INDEX(M$95:M97,_xlfn.MAXIFS(J$95:J97,L$95:L97,TRUE),1)),0) -> 250 | N98: geel | V98: rood | AD98: zonder brommer per fietser | AF98: met brommer per fietser
A99: rapportcijfer breedte | C99: =SUMPRODUCT(B97:B98,C97:C98) -> 7.467532717 | J99: 5 | K99: FALSE | L99: TRUE | M99: =ROUND(AVERAGE(INDEX(M$95:M98,_xlfn.MAXIFS(J$95:J98,K$95:K98,TRUE),1),INDEX(M$95:M98,_xlfn.MAXIFS(J$95:J98,L$95:L98,TRUE),1)),0) -> 375 | N99: enkelvoudige inhaalbewegingen | O99: enkelvoudige tegemoetkomingen | P99: inhaalbeweging met enkelvoudige tegemoetkomingen | Q99: inhaalbeweging met dubbele tegemoetkomingen | R99: enkelvoudige inhaalbewegingen met brommer | S99: enkelvoudige tegemoetkomingen met brommer | T99: inhaalbeweging met enkelvoudige tegemoetkomingen met brommer | U99: inhaalbeweging met dubbele tegemoetkomingen met brommer | V99: enkelvoudige inhaalbewegingen | W99: enkelvoudige tegemoetkomingen | X99: inhaalbeweging met enkelvoudige tegemoetkomingen | Y99: inhaalbeweging met dubbele tegemoetkomingen | Z99: enkelvoudige inhaalbewegingen met brommer | AA99: enkelvoudige tegemoetkomingen met brommer | AB99: inhaalbeweging met enkelvoudige tegemoetkomingen met brommer | AC99: inhaalbeweging met dubbele tegemoetkomingen met brommer | AD99: rood | AE99: geel | AF99: rood | AG99: geel | AH99: rapportcijfer | AI99: doel
A100: sterren ontmoetingen | C100: =INDEX($E$91:$E$96,MATCH($C$99,$F$91:$F$96,1),1) -> 4 | J100: 6 | K100: TRUE | L100: FALSE | M100: =ROUND(AVERAGE(INDEX(M$95:M99,_xlfn.MAXIFS(J$95:J99,K$95:K99,TRUE),1),INDEX(M$95:M99,_xlfn.MAXIFS(J$95:J99,L$95:L99,TRUE),1)),0) -> 313 | N100: =SUMIFS('Berekening variant 1'!$JS$1:$JX$1,'Berekening variant 1'!$JS$5:$JX$5,">="&$M95,'Berekening variant 1'!$JS$6:$JX$6,"<"&$M95) -> 0 | O100: =SUMIFS('Berekening variant 1'!$LC$1:$LH$1,'Berekening variant 1'!$LC$5:$LH$5,">"&$M95,'Berekening variant 1'!$LC$6:$LH$6,"<="&$M95) -> 0 | P100: =SUMIFS('Berekening variant 1'!$GR$1:$IA$1,'Berekening variant 1'!$GR$5:$IA$5,">"&$M95,'Berekening variant 1'!$GR$6:$IA$6,"<="&$M95) -> 0 | Q100: =SUMIFS('Berekening variant 1'!$AG$1:$DW$1,'Berekening variant 1'!$AG$5:$DW$5,">"&$M95,'Berekening variant 1'!$AG$6:$DW$6,"<="&$M95) -> 0 | R100: =SUMIFS('Berekening variant 1'!$JS$1:$JX$1,'Berekening variant 1'!$JS$5:$JX$5,">="&$M95,'Berekening variant 1'!$JS$6:$JX$6,"<"&$M95,'Berekening variant 1'!$JS$8:$JX$8,TRUE) -> 0 | S100: =SUMIFS('Berekening variant 1'!$LC$1:$LH$1,'Berekening variant 1'!$LC$5:$LH$5,">"&$M95,'Berekening variant 1'!$LC$6:$LH$6,"<="&$M95,'Berekening variant 1'!$LC$8:$LH$8,TRUE) -> 0 | T100: =SUMIFS('Berekening variant 1'!$GR$1:$IA$1,'Berekening variant 1'!$GR$5:$IA$5,">"&$M95,'Berekening variant 1'!$GR$6:$IA$6,"<="&$M95,'Berekening variant 1'!$GR$8:$IA$8,TRUE) -> 0 | U100: =SUMIFS('Berekening variant 1'!$AG$1:$DW$1,'Berekening variant 1'!$AG$5:$DW$5,">"&$M95,'Berekening variant 1'!$AG$6:$DW$6,"<="&$M95,'Berekening variant 1'!$AG$8:$DW$8,TRUE) -> 0 | V100: =SUMIFS('Berekening variant 1'!$JS$1:$JX$1,'Berekening variant 1'!$JS$6:$JX$6,">="&$M95) -> 0 | W100: =SUMIFS('Berekening variant 1'!$LC$1:$LH$1,'Berekening variant 1'!$LC$6:$LH$6,">"&$M95) -> 0 | X100: =SUMIFS('Berekening variant 1'!$GR$1:$IA$1,'Berekening variant 1'!$GR$6:$IA$6,">"&$M95) -> 0 | Y100: =SUMIFS('Berekening variant 1'!$AG$1:$DW$1,'Berekening variant 1'!$AG$6:$DW$6,">"&$M95) -> 0 | Z100: =SUMIFS('Berekening variant 1'!$JS$1:$JX$1,'Berekening variant 1'!$JS$6:$JX$6,">="&$M95,'Berekening variant 1'!$JS$8:$JX$8,TRUE) -> 0 | AA100: =SUMIFS('Berekening variant 1'!$LC$1:$LH$1,'Berekening variant 1'!$LC$6:$LH$6,">"&$M95,'Berekening variant 1'!$LC$8:$LH$8,TRUE) -> 0 | AB100: =SUMIFS('Berekening variant 1'!$GR$1:$IA$1,'Berekening variant 1'!$GR$6:$IA$6,">"&$M95,'Berekening variant 1'!$GR$8:$IA$8,TRUE) -> 0 | AC100: =SUMIFS('Berekening variant 1'!$AG$1:$DW$1,'Berekening variant 1'!$AG$6:$DW$6,">"&$M95,'Berekening variant 1'!$AG$8:$DW$8,TRUE) -> 0 | AD100: =(SUM(V100:Y100)-SUM(Z100:AC100))/int_uur -> 0 | AE100: =(SUM(N100:Q100)-SUM(R100:U100))/int_uur -> 0 | AF100: =SUM(Z100:AC100)/int_uur -> 0 | AG100: =SUM(R100:U100)/int_uur -> 0 | AH100: =$B$97+$B$98*SQRT($B$91*AD100+$B$92*AE100+$B$93*AF100+$B$94*AG100) -> 7.867 | AI100: =$F$94 -> 7
A101: sterren breedte | C101: =MATCH(breedte,IF('invoer en voorspellingen'!$B$9="eenrichtingsfietspad",$B$27:$B$33,$C$27:$C$33),1)-1 -> 4 | J101: 7 | K101: TRUE | L101: FALSE | M101: =ROUND(AVERAGE(INDEX(M$95:M100,_xlfn.MAXIFS(J$95:J100,K$95:K100,TRUE),1),INDEX(M$95:M100,_xlfn.MAXIFS(J$95:J100,L$95:L100,TRUE),1)),0) -> 344 | N101: =SUMIFS('Berekening variant 1'!$JS$1:$JX$1,'Berekening variant 1'!$JS$5:$JX$5,">="&$M96,'Berekening variant 1'!$JS$6:$JX$6,"<"&$M96) -> 0 | O101: =SUMIFS('Berekening variant 1'!$LC$1:$LH$1,'Berekening variant 1'!$LC$5:$LH$5,">"&$M96,'Berekening variant 1'!$LC$6:$LH$6,"<="&$M96) -> 0 | P101: =SUMIFS('Berekening variant 1'!$GR$1:$IA$1,'Berekening variant 1'!$GR$5:$IA$5,">"&$M96,'Berekening variant 1'!$GR$6:$IA$6,"<="&$M96) -> 0 | Q101: =SUMIFS('Berekening variant 1'!$AG$1:$DW$1,'Berekening variant 1'!$AG$5:$DW$5,">"&$M96,'Berekening variant 1'!$AG$6:$DW$6,"<="&$M96) -> 0 | R101: =SUMIFS('Berekening variant 1'!$JS$1:$JX$1,'Berekening variant 1'!$JS$5:$JX$5,">="&$M96,'Berekening variant 1'!$JS$6:$JX$6,"<"&$M96,'Berekening variant 1'!$JS$8:$JX$8,TRUE) -> 0 | S101: =SUMIFS('Berekening variant 1'!$LC$1:$LH$1,'Berekening variant 1'!$LC$5:$LH$5,">"&$M96,'Berekening variant 1'!$LC$6:$LH$6,"<="&$M96,'Berekening variant 1'!$LC$8:$LH$8,TRUE) -> 0 | T101: =SUMIFS('Berekening variant 1'!$GR$1:$IA$1,'Berekening variant 1'!$GR$5:$IA$5,">"&$M96,'Berekening variant 1'!$GR$6:$IA$6,"<="&$M96,'Berekening variant 1'!$GR$8:$IA$8,TRUE) -> 0 | U101: =SUMIFS('Berekening variant 1'!$AG$1:$DW$1,'Berekening variant 1'!$AG$5:$DW$5,">"&$M96,'Berekening variant 1'!$AG$6:$DW$6,"<="&$M96,'Berekening variant 1'!$AG$8:$DW$8,TRUE) -> 0 | V101: =SUMIFS('Berekening variant 1'!$JS$1:$JX$1,'Berekening variant 1'!$JS$6:$JX$6,">="&$M96) -> 438.540695 | W101: =SUMIFS('Berekening variant 1'!$LC$1:$LH$1,'Berekening variant 1'!$LC$6:$LH$6,">"&$M96) -> 5763.59913 | X101: =SUMIFS('Berekening variant 1'!$GR$1:$IA$1,'Berekening variant 1'!$GR$6:$IA$6,">"&$M96) -> 187.9562016 | Y101: =SUMIFS('Berekening variant 1'!$AG$1:$DW$1,'Berekening variant 1'!$AG$6:$DW$6,">"&$M96) -> 27.92965997 | Z101: =SUMIFS('Berekening variant 1'!$JS$1:$JX$1,'Berekening variant 1'!$JS$6:$JX$6,">="&$M96,'Berekening variant 1'!$JS$8:$JX$8,TRUE) -> 73.89124062 | AA101: =SUMIFS('Berekening variant 1'!$LC$1:$LH$1,'Berekening variant 1'!$LC$6:$LH$6,">"&$M96,'Berekening variant 1'!$LC$8:$LH$8,TRUE) -> 376.5937582 | AB101: =SUMIFS('Berekening variant 1'!$GR$1:$IA$1,'Berekening variant 1'!$GR$6:$IA$6,">"&$M96,'Berekening variant 1'!$GR$8:$IA$8,TRUE) -> 35.95788434 | AC101: =SUMIFS('Berekening variant 1'!$AG$1:$DW$1,'Berekening variant 1'!$AG$6:$DW$6,">"&$M96,'Berekening variant 1'!$AG$8:$DW$8,TRUE) -> 7.069162251 | AD101: 15.92611194 | AE101: 0 | AF101: 1.326645283 | AG101: 0 | AH101: =$B$97+$B$98*SQRT($B$91*AD101+$B$92*AE101+$B$93*AF101+$B$94*AG101) -> 5.197687043 | AI101: =$F$94 -> 7
J102: 8 | K102: FALSE | L102: TRUE | M102: =ROUND(AVERAGE(INDEX(M$95:M101,_xlfn.MAXIFS(J$95:J101,K$95:K101,TRUE),1),INDEX(M$95:M101,_xlfn.MAXIFS(J$95:J101,L$95:L101,TRUE),1)),0) -> 360 | N102: =SUMIFS('Berekening variant 1'!$JS$1:$JX$1,'Berekening variant 1'!$JS$5:$JX$5,">="&$M97,'Berekening variant 1'!$JS$6:$JX$6,"<"&$M97) -> 0 | O102: =SUMIFS('Berekening variant 1'!$LC$1:$LH$1,'Berekening variant 1'!$LC$5:$LH$5,">"&$M97,'Berekening variant 1'!$LC$6:$LH$6,"<="&$M97) -> 0 | P102: =SUMIFS('Berekening variant 1'!$GR$1:$IA$1,'Berekening variant 1'!$GR$5:$IA$5,">"&$M97,'Berekening variant 1'!$GR$6:$IA$6,"<="&$M97) -> 32.09322813 | Q102: =SUMIFS('Berekening variant 1'!$AG$1:$DW$1,'Berekening variant 1'!$AG$5:$DW$5,">"&$M97,'Berekening variant 1'!$AG$6:$DW$6,"<="&$M97) -> 10.30884034 | R102: =SUMIFS('Berekening variant 1'!$JS$1:$JX$1,'Berekening variant 1'!$JS$5:$JX$5,">="&$M97,'Berekening variant 1'!$JS$6:$JX$6,"<"&$M97,'Berekening variant 1'!$JS$8:$JX$8,TRUE) -> 0 | S102: =SUMIFS('Berekening variant 1'!$LC$1:$LH$1,'Berekening variant 1'!$LC$5:$LH$5,">"&$M97,'Berekening variant 1'!$LC$6:$LH$6,"<="&$M97,'Berekening variant 1'!$LC$8:$LH$8,TRUE) -> 0 | T102: =SUMIFS('Berekening variant 1'!$GR$1:$IA$1,'Berekening variant 1'!$GR$5:$IA$5,">"&$M97,'Berekening variant 1'!$GR$6:$IA$6,"<="&$M97,'Berekening variant 1'!$GR$8:$IA$8,TRUE) -> 29.49426603 | U102: =SUMIFS('Berekening variant 1'!$AG$1:$DW$1,'Berekening variant 1'!$AG$5:$DW$5,">"&$M97,'Berekening variant 1'!$AG$6:$DW$6,"<="&$M97,'Berekening variant 1'!$AG$8:$DW$8,TRUE) -> 5.175923499 | V102: =SUMIFS('Berekening variant 1'!$JS$1:$JX$1,'Berekening variant 1'!$JS$6:$JX$6,">="&$M97) -> 0 | W102: =SUMIFS('Berekening variant 1'!$LC$1:$LH$1,'Berekening variant 1'!$LC$6:$LH$6,">"&$M97) -> 0 | X102: =SUMIFS('Berekening variant 1'!$GR$1:$IA$1,'Berekening variant 1'!$GR$6:$IA$6,">"&$M97) -> 0.2412777053 | Y102: =SUMIFS('Berekening variant 1'!$AG$1:$DW$1,'Berekening variant 1'!$AG$6:$DW$6,">"&$M97) -> 2.58870603 | Z102: =SUMIFS('Berekening variant 1'!$JS$1:$JX$1,'Berekening variant 1'!$JS$6:$JX$6,">="&$M97,'Berekening variant 1'!$JS$8:$JX$8,TRUE) -> 0 | AA102: =SUMIFS('Berekening variant 1'!$LC$1:$LH$1,'Berekening variant 1'!$LC$6:$LH$6,">"&$M97,'Berekening variant 1'!$LC$8:$LH$8,TRUE) -> 0 | AB102: =SUMIFS('Berekening variant 1'!$GR$1:$IA$1,'Berekening variant 1'!$GR$6:$IA$6,">"&$M97,'Berekening variant 1'!$GR$8:$IA$8,TRUE) -> 0.167323499 | AC102: =SUMIFS('Berekening variant 1'!$AG$1:$DW$1,'Berekening variant 1'!$AG$6:$DW$6,">"&$M97,'Berekening variant 1'!$AG$8:$DW$8,TRUE) -> 1.893238752 | AD102: 0.002068337323 | AE102: 0.02078462082 | AF102: 0.005539145836 | AG102: 0.0931994342 | AH102: 7.666624793 | AI102: 7
A103: % > 7 = -1,97054 + 0,33827 * verwacht oordeel rit | C103: =MIN(1,MAX(0,-1.97054+0.33827*C99)) -> 0.555502292 | J103: 9 | K103: FALSE | L103: TRUE | M103: =ROUND(AVERAGE(INDEX(M$95:M102,_xlfn.MAXIFS(J$95:J102,K$95:K102,TRUE),1),INDEX(M$95:M102,_xlfn.MAXIFS(J$95:J102,L$95:L102,TRUE),1)),0) -> 352 | N103: =SUMIFS('Berekening variant 1'!$JS$1:$JX$1,'Berekening variant 1'!$JS$5:$JX$5,">="&$M98,'Berekening variant 1'!$JS$6:$JX$6,"<"&$M98) -> 377.0343255 | O103: =SUMIFS('Berekening variant 1'!$LC$1:$LH$1,'Berekening variant 1'!$LC$5:$LH$5,">"&$M98,'Berekening variant 1'!$LC$6:$LH$6,"<="&$M98) -> 4914.580576 | P103: =SUMIFS('Berekening variant 1'!$GR$1:$IA$1,'Berekening variant 1'!$GR$5:$IA$5,">"&$M98,'Berekening variant 1'!$GR$6:$IA$6,"<="&$M98) -> 0 | Q103: =SUMIFS('Berekening variant 1'!$AG$1:$DW$1,'Berekening variant 1'!$AG$5:$DW$5,">"&$M98,'Berekening variant 1'!$AG$6:$DW$6,"<="&$M98) -> 0 | R103: =SUMIFS('Berekening variant 1'!$JS$1:$JX$1,'Berekening variant 1'!$JS$5:$JX$5,">="&$M98,'Berekening variant 1'!$JS$6:$JX$6,"<"&$M98,'Berekening variant 1'!$JS$8:$JX$8,TRUE) -> 67.48970596 | S103: =SUMIFS('Berekening variant 1'!$LC$1:$LH$1,'Berekening variant 1'!$LC$5:$LH$5,">"&$M98,'Berekening variant 1'!$LC$6:$LH$6,"<="&$M98,'Berekening variant 1'!$LC$8:$LH$8,TRUE) -> 341.6448206 | T103: =SUMIFS('Berekening variant 1'!$GR$1:$IA$1,'Berekening variant 1'!$GR$5:$IA$5,">"&$M98,'Berekening variant 1'!$GR$6:$IA$6,"<="&$M98,'Berekening variant 1'!$GR$8:$IA$8,TRUE) -> 0 | U103: =SUMIFS('Berekening variant 1'!$AG$1:$DW$1,'Berekening variant 1'!$AG$5:$DW$5,">"&$M98,'Berekening variant 1'!$AG$6:$DW$6,"<="&$M98,'Berekening variant 1'!$AG$8:$DW$8,TRUE) -> 0 | V103: =SUMIFS('Berekening variant 1'!$JS$1:$JX$1,'Berekening variant 1'!$JS$6:$JX$6,">="&$M98) -> 61.50636951 | W103: =SUMIFS('Berekening variant 1'!$LC$1:$LH$1,'Berekening variant 1'!$LC$6:$LH$6,">"&$M98) -> 849.0185538 | X103: =SUMIFS('Berekening variant 1'!$GR$1:$IA$1,'Berekening variant 1'!$GR$6:$IA$6,">"&$M98) -> 187.9562016 | Y103: =SUMIFS('Berekening variant 1'!$AG$1:$DW$1,'Berekening variant 1'!$AG$6:$DW$6,">"&$M98) -> 27.92965997 | Z103: =SUMIFS('Berekening variant 1'!$JS$1:$JX$1,'Berekening variant 1'!$JS$6:$JX$6,">="&$M98,'Berekening variant 1'!$JS$8:$JX$8,TRUE) -> 6.401534654 | AA103: =SUMIFS('Berekening variant 1'!$LC$1:$LH$1,'Berekening variant 1'!$LC$6:$LH$6,">"&$M98,'Berekening variant 1'!$LC$8:$LH$8,TRUE) -> 34.94893755 | AB103: =SUMIFS('Berekening variant 1'!$GR$1:$IA$1,'Berekening variant 1'!$GR$6:$IA$6,">"&$M98,'Berekening variant 1'!$GR$8:$IA$8,TRUE) -> 35.95788434 | AC103: =SUMIFS('Berekening variant 1'!$AG$1:$DW$1,'Berekening variant 1'!$AG$6:$DW$6,">"&$M98,'Berekening variant 1'!$AG$8:$DW$8,TRUE) -> 7.069162251 | AD103: 2.801164694 | AE103: 13.12494725 | AF103: 0.2268212871 | AG103: 1.099823996 | AH103: 6.311560592 | AI103: 7
A104: % < 6 = 0,716489 - 0,087708 * verwacht oordeel fietser | C104: =MIN(1,MAX(0,0.716489-0.087708*C99)) -> 0.0615266405 | J104: 10 | K104: FALSE | L104: TRUE | M104: =ROUND(AVERAGE(INDEX(M$95:M103,_xlfn.MAXIFS(J$95:J103,K$95:K103,TRUE),1),INDEX(M$95:M103,_xlfn.MAXIFS(J$95:J103,L$95:L103,TRUE),1)),0) -> 348 | N104: =SUMIFS('Berekening variant 1'!$JS$1:$JX$1,'Berekening variant 1'!$JS$5:$JX$5,">="&$M99,'Berekening variant 1'!$JS$6:$JX$6,"<"&$M99) -> 8.657288128 | O104: =SUMIFS('Berekening variant 1'!$LC$1:$LH$1,'Berekening variant 1'!$LC$5:$LH$5,">"&$M99,'Berekening variant 1'!$LC$6:$LH$6,"<="&$M99) -> 68.27342477 | P104: =SUMIFS('Berekening variant 1'!$GR$1:$IA$1,'Berekening variant 1'!$GR$5:$IA$5,">"&$M99,'Berekening variant 1'!$GR$6:$IA$6,"<="&$M99) -> 178.5825775 | Q104: =SUMIFS('Berekening variant 1'!$AG$1:$DW$1,'Berekening variant 1'!$AG$5:$DW$5,">"&$M99,'Berekening variant 1'!$AG$6:$DW$6,"<="&$M99) -> 15.0321136 | R104: =SUMIFS('Berekening variant 1'!$JS$1:$JX$1,'Berekening variant 1'!$JS$5:$JX$5,">="&$M99,'Berekening variant 1'!$JS$6:$JX$6,"<"&$M99,'Berekening variant 1'!$JS$8:$JX$8,TRUE) -> 6.401534654 | S104: =SUMIFS('Berekening variant 1'!$LC$1:$LH$1,'Berekening variant 1'!$LC$5:$LH$5,">"&$M99,'Berekening variant 1'!$LC$6:$LH$6,"<="&$M99,'Berekening variant 1'!$LC$8:$LH$8,TRUE) -> 34.94893755 | T104: =SUMIFS('Berekening variant 1'!$GR$1:$IA$1,'Berekening variant 1'!$GR$5:$IA$5,">"&$M99,'Berekening variant 1'!$GR$6:$IA$6,"<="&$M99,'Berekening variant 1'!$GR$8:$IA$8,TRUE) -> 29.2571766 | U104: =SUMIFS('Berekening variant 1'!$AG$1:$DW$1,'Berekening variant 1'!$AG$5:$DW$5,">"&$M99,'Berekening variant 1'!$AG$6:$DW$6,"<="&$M99,'Berekening variant 1'!$AG$8:$DW$8,TRUE) -> 0 | V104: =SUMIFS('Berekening variant 1'!$JS$1:$JX$1,'Berekening variant 1'!$JS$6:$JX$6,">="&$M99) -> 0 | W104: =SUMIFS('Berekening variant 1'!$LC$1:$LH$1,'Berekening variant 1'!$LC$6:$LH$6,">"&$M99) -> 0 | X104: =SUMIFS('Berekening variant 1'!$GR$1:$IA$1,'Berekening variant 1'!$GR$6:$IA$6,">"&$M99) -> 9.373624049 | Y104: =SUMIFS('Berekening variant 1'!$AG$1:$DW$1,'Berekening variant 1'!$AG$6:$DW$6,">"&$M99) -> 12.89754637 | Z104: =SUMIFS('Berekening variant 1'!$JS$1:$JX$1,'Berekening variant 1'!$JS$6:$JX$6,">="&$M99,'Berekening variant 1'!$JS$8:$JX$8,TRUE) -> 0 | AA104: =SUMIFS('Berekening variant 1'!$LC$1:$LH$1,'Berekening variant 1'!$LC$6:$LH$6,">"&$M99,'Berekening variant 1'!$LC$8:$LH$8,TRUE) -> 0 | AB104: =SUMIFS('Berekening variant 1'!$GR$1:$IA$1,'Berekening variant 1'!$GR$6:$IA$6,">"&$M99,'Berekening variant 1'!$GR$8:$IA$8,TRUE) -> 6.700707738 | AC104: =SUMIFS('Berekening variant 1'!$AG$1:$DW$1,'Berekening variant 1'!$AG$6:$DW$6,">"&$M99,'Berekening variant 1'!$AG$8:$DW$8,TRUE) -> 7.069162251 | AD104: 0.02285295814 | AE104: 0.5374670839 | AF104: 0.03701577954 | AG104: 0.1898055076 | AH104: 7.467532717 | AI104: 7
J105: 11 | K105: FALSE | L105: TRUE | M105: =ROUND(AVERAGE(INDEX(M$95:M104,_xlfn.MAXIFS(J$95:J104,K$95:K104,TRUE),1),INDEX(M$95:M104,_xlfn.MAXIFS(J$95:J104,L$95:L104,TRUE),1)),0) -> 346 | N105: =SUMIFS('Berekening variant 1'!$JS$1:$JX$1,'Berekening variant 1'!$JS$5:$JX$5,">="&$M100,'Berekening variant 1'!$JS$6:$JX$6,"<"&$M100) -> 120.9790056 | O105: =SUMIFS('Berekening variant 1'!$LC$1:$LH$1,'Berekening variant 1'!$LC$5:$LH$5,">"&$M100,'Berekening variant 1'!$LC$6:$LH$6,"<="&$M100) -> 1128.174085 | P105: =SUMIFS('Berekening variant 1'!$GR$1:$IA$1,'Berekening variant 1'!$GR$5:$IA$5,">"&$M100,'Berekening variant 1'!$GR$6:$IA$6,"<="&$M100) -> 118.8804163 | Q105: =SUMIFS('Berekening variant 1'!$AG$1:$DW$1,'Berekening variant 1'!$AG$5:$DW$5,">"&$M100,'Berekening variant 1'!$AG$6:$DW$6,"<="&$M100) -> 0 | R105: =SUMIFS('Berekening variant 1'!$JS$1:$JX$1,'Berekening variant 1'!$JS$5:$JX$5,">="&$M100,'Berekening variant 1'!$JS$6:$JX$6,"<"&$M100,'Berekening variant 1'!$JS$8:$JX$8,TRUE) -> 68.12992425 | S105: =SUMIFS('Berekening variant 1'!$LC$1:$LH$1,'Berekening variant 1'!$LC$5:$LH$5,">"&$M100,'Berekening variant 1'!$LC$6:$LH$6,"<="&$M100,'Berekening variant 1'!$LC$8:$LH$8,TRUE) -> 347.4289564 | T105: =SUMIFS('Berekening variant 1'!$GR$1:$IA$1,'Berekening variant 1'!$GR$5:$IA$5,">"&$M100,'Berekening variant 1'!$GR$6:$IA$6,"<="&$M100,'Berekening variant 1'!$GR$8:$IA$8,TRUE) -> 0 | U105: =SUMIFS('Berekening variant 1'!$AG$1:$DW$1,'Berekening variant 1'!$AG$5:$DW$5,">"&$M100,'Berekening variant 1'!$AG$6:$DW$6,"<="&$M100,'Berekening variant 1'!$AG$8:$DW$8,TRUE) -> 0 | V105: =SUMIFS('Berekening variant 1'!$JS$1:$JX$1,'Berekening variant 1'!$JS$6:$JX$6,">="&$M100) -> 8.017069836 | W105: =SUMIFS('Berekening variant 1'!$LC$1:$LH$1,'Berekening variant 1'!$LC$6:$LH$6,">"&$M100) -> 62.48928898 | X105: =SUMIFS('Berekening variant 1'!$GR$1:$IA$1,'Berekening variant 1'!$GR$6:$IA$6,">"&$M100) -> 69.0757853 | Y105: =SUMIFS('Berekening variant 1'!$AG$1:$DW$1,'Berekening variant 1'!$AG$6:$DW$6,">"&$M100) -> 27.92965997 | Z105: =SUMIFS('Berekening variant 1'!$JS$1:$JX$1,'Berekening variant 1'!$JS$6:$JX$6,">="&$M100,'Berekening variant 1'!$JS$8:$JX$8,TRUE) -> 5.761316363 | AA105: =SUMIFS('Berekening variant 1'!$LC$1:$LH$1,'Berekening variant 1'!$LC$6:$LH$6,">"&$M100,'Berekening variant 1'!$LC$8:$LH$8,TRUE) -> 29.16480176 | AB105: =SUMIFS('Berekening variant 1'!$GR$1:$IA$1,'Berekening variant 1'!$GR$6:$IA$6,">"&$M100,'Berekening variant 1'!$GR$8:$IA$8,TRUE) -> 35.95788434 | AC105: =SUMIFS('Berekening variant 1'!$AG$1:$DW$1,'Berekening variant 1'!$AG$6:$DW$6,">"&$M100,'Berekening variant 1'!$AG$8:$DW$8,TRUE) -> 7.069162251 | AD105: 0.2407490306 | AE105: 2.560415663 | AF105: 0.2095515181 | AG105: 1.117093765 | AH105: 6.907034983 | AI105: 7
A106: sterren | B106: kans op gevaarlijke situaties en/of discomfort | J106: 12 | K106: TRUE | L106: FALSE | M106: =ROUND(AVERAGE(INDEX(M$95:M105,_xlfn.MAXIFS(J$95:J105,K$95:K105,TRUE),1),INDEX(M$95:M105,_xlfn.MAXIFS(J$95:J105,L$95:L105,TRUE),1)),0) -> 345 | N106: =SUMIFS('Berekening variant 1'!$JS$1:$JX$1,'Berekening variant 1'!$JS$5:$JX$5,">="&$M101,'Berekening variant 1'!$JS$6:$JX$6,"<"&$M101) -> 128.9960755 | O106: =SUMIFS('Berekening variant 1'!$LC$1:$LH$1,'Berekening variant 1'!$LC$5:$LH$5,">"&$M101,'Berekening variant 1'!$LC$6:$LH$6,"<="&$M101) -> 1190.663374 | P106: =SUMIFS('Berekening variant 1'!$GR$1:$IA$1,'Berekening variant 1'!$GR$5:$IA$5,">"&$M101,'Berekening variant 1'!$GR$6:$IA$6,"<="&$M101) -> 125.1767111 | Q106: =SUMIFS('Berekening variant 1'!$AG$1:$DW$1,'Berekening variant 1'!$AG$5:$DW$5,">"&$M101,'Berekening variant 1'!$AG$6:$DW$6,"<="&$M101) -> 0 | R106: =SUMIFS('Berekening variant 1'!$JS$1:$JX$1,'Berekening variant 1'!$JS$5:$JX$5,">="&$M101,'Berekening variant 1'!$JS$6:$JX$6,"<"&$M101,'Berekening variant 1'!$JS$8:$JX$8,TRUE) -> 73.89124062 | S106: =SUMIFS('Berekening variant 1'!$LC$1:$LH$1,'Berekening variant 1'!$LC$5:$LH$5,">"&$M101,'Berekening variant 1'!$LC$6:$LH$6,"<="&$M101,'Berekening variant 1'!$LC$8:$LH$8,TRUE) -> 376.5937582 | T106: =SUMIFS('Berekening variant 1'!$GR$1:$IA$1,'Berekening variant 1'!$GR$5:$IA$5,">"&$M101,'Berekening variant 1'!$GR$6:$IA$6,"<="&$M101,'Berekening variant 1'!$GR$8:$IA$8,TRUE) -> 6.296294819 | U106: =SUMIFS('Berekening variant 1'!$AG$1:$DW$1,'Berekening variant 1'!$AG$5:$DW$5,">"&$M101,'Berekening variant 1'!$AG$6:$DW$6,"<="&$M101,'Berekening variant 1'!$AG$8:$DW$8,TRUE) -> 0 | V106: =SUMIFS('Berekening variant 1'!$JS$1:$JX$1,'Berekening variant 1'!$JS$6:$JX$6,">="&$M101) -> 0 | W106: =SUMIFS('Berekening variant 1'!$LC$1:$LH$1,'Berekening variant 1'!$LC$6:$LH$6,">"&$M101) -> 0 | X106: =SUMIFS('Berekening variant 1'!$GR$1:$IA$1,'Berekening variant 1'!$GR$6:$IA$6,">"&$M101) -> 62.77949049 | Y106: =SUMIFS('Berekening variant 1'!$AG$1:$DW$1,'Berekening variant 1'!$AG$6:$DW$6,">"&$M101) -> 27.92965997 | Z106: =SUMIFS('Berekening variant 1'!$JS$1:$JX$1,'Berekening variant 1'!$JS$6:$JX$6,">="&$M101,'Berekening variant 1'!$JS$8:$JX$8,TRUE) -> 0 | AA106: =SUMIFS('Berekening variant 1'!$LC$1:$LH$1,'Berekening variant 1'!$LC$6:$LH$6,">"&$M101,'Berekening variant 1'!$LC$8:$LH$8,TRUE) -> 0 | AB106: =SUMIFS('Berekening variant 1'!$GR$1:$IA$1,'Berekening variant 1'!$GR$6:$IA$6,">"&$M101,'Berekening variant 1'!$GR$8:$IA$8,TRUE) -> 29.66158952 | AC106: =SUMIFS('Berekening variant 1'!$AG$1:$DW$1,'Berekening variant 1'!$AG$6:$DW$6,">"&$M101,'Berekening variant 1'!$AG$8:$DW$8,TRUE) -> 7.069162251 | AD106: 0.1451032223 | AE106: 2.656061471 | AF106: 0.09873858004 | AG106: 1.227906703 | AH106: 6.996731591 | AI106: 7
A107: 5 | B107: Label A | J107: 13 | K107: FALSE | L107: TRUE | M107: =ROUND(AVERAGE(INDEX(M$95:M106,_xlfn.MAXIFS(J$95:J106,K$95:K106,TRUE),1),INDEX(M$95:M106,_xlfn.MAXIFS(J$95:J106,L$95:L106,TRUE),1)),0) -> 346 | N107: =SUMIFS('Berekening variant 1'!$JS$1:$JX$1,'Berekening variant 1'!$JS$5:$JX$5,">="&$M102,'Berekening variant 1'!$JS$6:$JX$6,"<"&$M102) -> 8.657288128 | O107: =SUMIFS('Berekening variant 1'!$LC$1:$LH$1,'Berekening variant 1'!$LC$5:$LH$5,">"&$M102,'Berekening variant 1'!$LC$6:$LH$6,"<="&$M102) -> 68.27342477 | P107: =SUMIFS('Berekening variant 1'!$GR$1:$IA$1,'Berekening variant 1'!$GR$5:$IA$5,">"&$M102,'Berekening variant 1'!$GR$6:$IA$6,"<="&$M102) -> 178.5825775 | Q107: =SUMIFS('Berekening variant 1'!$AG$1:$DW$1,'Berekening variant 1'!$AG$5:$DW$5,">"&$M102,'Berekening variant 1'!$AG$6:$DW$6,"<="&$M102) -> 15.0321136 | R107: =SUMIFS('Berekening variant 1'!$JS$1:$JX$1,'Berekening variant 1'!$JS$5:$JX$5,">="&$M102,'Berekening variant 1'!$JS$6:$JX$6,"<"&$M102,'Berekening variant 1'!$JS$8:$JX$8,TRUE) -> 6.401534654 | S107: =SUMIFS('Berekening variant 1'!$LC$1:$LH$1,'Berekening variant 1'!$LC$5:$LH$5,">"&$M102,'Berekening variant 1'!$LC$6:$LH$6,"<="&$M102,'Berekening variant 1'!$LC$8:$LH$8,TRUE) -> 34.94893755 | T107: =SUMIFS('Berekening variant 1'!$GR$1:$IA$1,'Berekening variant 1'!$GR$5:$IA$5,">"&$M102,'Berekening variant 1'!$GR$6:$IA$6,"<="&$M102,'Berekening variant 1'!$GR$8:$IA$8,TRUE) -> 29.2571766 | U107: =SUMIFS('Berekening variant 1'!$AG$1:$DW$1,'Berekening variant 1'!$AG$5:$DW$5,">"&$M102,'Berekening variant 1'!$AG$6:$DW$6,"<="&$M102,'Berekening variant 1'!$AG$8:$DW$8,TRUE) -> 0 | V107: =SUMIFS('Berekening variant 1'!$JS$1:$JX$1,'Berekening variant 1'!$JS$6:$JX$6,">="&$M102) -> 0 | W107: =SUMIFS('Berekening variant 1'!$LC$1:$LH$1,'Berekening variant 1'!$LC$6:$LH$6,">"&$M102) -> 0 | X107: =SUMIFS('Berekening variant 1'!$GR$1:$IA$1,'Berekening variant 1'!$GR$6:$IA$6,">"&$M102) -> 9.373624049 | Y107: =SUMIFS('Berekening variant 1'!$AG$1:$DW$1,'Berekening variant 1'!$AG$6:$DW$6,">"&$M102) -> 12.89754637 | Z107: =SUMIFS('Berekening variant 1'!$JS$1:$JX$1,'Berekening variant 1'!$JS$6:$JX$6,">="&$M102,'Berekening variant 1'!$JS$8:$JX$8,TRUE) -> 0 | AA107: =SUMIFS('Berekening variant 1'!$LC$1:$LH$1,'Berekening variant 1'!$LC$6:$LH$6,">"&$M102,'Berekening variant 1'!$LC$8:$LH$8,TRUE) -> 0 | AB107: =SUMIFS('Berekening variant 1'!$GR$1:$IA$1,'Berekening variant 1'!$GR$6:$IA$6,">"&$M102,'Berekening variant 1'!$GR$8:$IA$8,TRUE) -> 6.700707738 | AC107: =SUMIFS('Berekening variant 1'!$AG$1:$DW$1,'Berekening variant 1'!$AG$6:$DW$6,">"&$M102,'Berekening variant 1'!$AG$8:$DW$8,TRUE) -> 7.069162251 | AD107: 0.02285295814 | AE107: 0.5374670839 | AF107: 0.03701577954 | AG107: 0.1898055076 | AH107: 7.467532717 | AI107: 7
A108: 4 | B108: Label B | J108: 14 | K108: FALSE | L108: TRUE | M108: =ROUND(AVERAGE(INDEX(M$95:M107,_xlfn.MAXIFS(J$95:J107,K$95:K107,TRUE),1),INDEX(M$95:M107,_xlfn.MAXIFS(J$95:J107,L$95:L107,TRUE),1)),0) -> 346 | N108: =SUMIFS('Berekening variant 1'!$JS$1:$JX$1,'Berekening variant 1'!$JS$5:$JX$5,">="&$M103,'Berekening variant 1'!$JS$6:$JX$6,"<"&$M103) -> 76.14699409 | O108: =SUMIFS('Berekening variant 1'!$LC$1:$LH$1,'Berekening variant 1'!$LC$5:$LH$5,">"&$M103,'Berekening variant 1'!$LC$6:$LH$6,"<="&$M103) -> 409.9182454 | P108: =SUMIFS('Berekening variant 1'!$GR$1:$IA$1,'Berekening variant 1'!$GR$5:$IA$5,">"&$M103,'Berekening variant 1'!$GR$6:$IA$6,"<="&$M103) -> 155.6216957 | Q108: =SUMIFS('Berekening variant 1'!$AG$1:$DW$1,'Berekening variant 1'!$AG$5:$DW$5,">"&$M103,'Berekening variant 1'!$AG$6:$DW$6,"<="&$M103) -> 15.0321136 | R108: =SUMIFS('Berekening variant 1'!$JS$1:$JX$1,'Berekening variant 1'!$JS$5:$JX$5,">="&$M103,'Berekening variant 1'!$JS$6:$JX$6,"<"&$M103,'Berekening variant 1'!$JS$8:$JX$8,TRUE) -> 73.89124062 | S108: =SUMIFS('Berekening variant 1'!$LC$1:$LH$1,'Berekening variant 1'!$LC$5:$LH$5,">"&$M103,'Berekening variant 1'!$LC$6:$LH$6,"<="&$M103,'Berekening variant 1'!$LC$8:$LH$8,TRUE) -> 376.5937582 | T108: =SUMIFS('Berekening variant 1'!$GR$1:$IA$1,'Berekening variant 1'!$GR$5:$IA$5,">"&$M103,'Berekening variant 1'!$GR$6:$IA$6,"<="&$M103,'Berekening variant 1'!$GR$8:$IA$8,TRUE) -> 6.296294819 | U108: =SUMIFS('Berekening variant 1'!$AG$1:$DW$1,'Berekening variant 1'!$AG$5:$DW$5,">"&$M103,'Berekening variant 1'!$AG$6:$DW$6,"<="&$M103,'Berekening variant 1'!$AG$8:$DW$8,TRUE) -> 0 | V108: =SUMIFS('Berekening variant 1'!$JS$1:$JX$1,'Berekening variant 1'!$JS$6:$JX$6,">="&$M103) -> 0 | W108: =SUMIFS('Berekening variant 1'!$LC$1:$LH$1,'Berekening variant 1'!$LC$6:$LH$6,">"&$M103) -> 0 | X108: =SUMIFS('Berekening variant 1'!$GR$1:$IA$1,'Berekening variant 1'!$GR$6:$IA$6,">"&$M103) -> 32.33450583 | Y108: =SUMIFS('Berekening variant 1'!$AG$1:$DW$1,'Berekening variant 1'!$AG$6:$DW$6,">"&$M103) -> 12.89754637 | Z108: =SUMIFS('Berekening variant 1'!$JS$1:$JX$1,'Berekening variant 1'!$JS$6:$JX$6,">="&$M103,'Berekening variant 1'!$JS$8:$JX$8,TRUE) -> 0 | AA108: =SUMIFS('Berekening variant 1'!$LC$1:$LH$1,'Berekening variant 1'!$LC$6:$LH$6,">"&$M103,'Berekening variant 1'!$LC$8:$LH$8,TRUE) -> 0 | AB108: =SUMIFS('Berekening variant 1'!$GR$1:$IA$1,'Berekening variant 1'!$GR$6:$IA$6,">"&$M103,'Berekening variant 1'!$GR$8:$IA$8,TRUE) -> 29.66158952 | AC108: =SUMIFS('Berekening variant 1'!$AG$1:$DW$1,'Berekening variant 1'!$AG$6:$DW$6,">"&$M103,'Berekening variant 1'!$AG$8:$DW$8,TRUE) -> 7.069162251 | AD108: 0.02285295814 | AE108: 0.5374670839 | AF108: 0.09873858004 | AG108: 1.227906703 | AH108: 7.102195433 | AI108: 7
A109: 3 | B109: Label C | J109: 15 | K109: FALSE | L109: TRUE | M109: =ROUND(AVERAGE(INDEX(M$95:M108,_xlfn.MAXIFS(J$95:J108,K$95:K108,TRUE),1),INDEX(M$95:M108,_xlfn.MAXIFS(J$95:J108,L$95:L108,TRUE),1)),0) -> 346 | N109: =SUMIFS('Berekening variant 1'!$JS$1:$JX$1,'Berekening variant 1'!$JS$5:$JX$5,">="&$M104,'Berekening variant 1'!$JS$6:$JX$6,"<"&$M104) -> 128.9960755 | O109: =SUMIFS('Berekening variant 1'!$LC$1:$LH$1,'Berekening variant 1'!$LC$5:$LH$5,">"&$M104,'Berekening variant 1'!$LC$6:$LH$6,"<="&$M104) -> 409.9182454 | P109: =SUMIFS('Berekening variant 1'!$GR$1:$IA$1,'Berekening variant 1'!$GR$5:$IA$5,">"&$M104,'Berekening variant 1'!$GR$6:$IA$6,"<="&$M104) -> 155.6216957 | Q109: =SUMIFS('Berekening variant 1'!$AG$1:$DW$1,'Berekening variant 1'!$AG$5:$DW$5,">"&$M104,'Berekening variant 1'!$AG$6:$DW$6,"<="&$M104) -> 0 | R109: =SUMIFS('Berekening variant 1'!$JS$1:$JX$1,'Berekening variant 1'!$JS$5:$JX$5,">="&$M104,'Berekening variant 1'!$JS$6:$JX$6,"<"&$M104,'Berekening variant 1'!$JS$8:$JX$8,TRUE) -> 73.89124062 | S109: =SUMIFS('Berekening variant 1'!$LC$1:$LH$1,'Berekening variant 1'!$LC$5:$LH$5,">"&$M104,'Berekening variant 1'!$LC$6:$LH$6,"<="&$M104,'Berekening variant 1'!$LC$8:$LH$8,TRUE) -> 376.5937582 | T109: =SUMIFS('Berekening variant 1'!$GR$1:$IA$1,'Berekening variant 1'!$GR$5:$IA$5,">"&$M104,'Berekening variant 1'!$GR$6:$IA$6,"<="&$M104,'Berekening variant 1'!$GR$8:$IA$8,TRUE) -> 6.296294819 | U109: =SUMIFS('Berekening variant 1'!$AG$1:$DW$1,'Berekening variant 1'!$AG$5:$DW$5,">"&$M104,'Berekening variant 1'!$AG$6:$DW$6,"<="&$M104,'Berekening variant 1'!$AG$8:$DW$8,TRUE) -> 0 | V109: =SUMIFS('Berekening variant 1'!$JS$1:$JX$1,'Berekening variant 1'!$JS$6:$JX$6,">="&$M104) -> 0 | W109: =SUMIFS('Berekening variant 1'!$LC$1:$LH$1,'Berekening variant 1'!$LC$6:$LH$6,">"&$M104) -> 0 | X109: =SUMIFS('Berekening variant 1'!$GR$1:$IA$1,'Berekening variant 1'!$GR$6:$IA$6,">"&$M104) -> 32.33450583 | Y109: =SUMIFS('Berekening variant 1'!$AG$1:$DW$1,'Berekening variant 1'!$AG$6:$DW$6,">"&$M104) -> 27.92965997 | Z109: =SUMIFS('Berekening variant 1'!$JS$1:$JX$1,'Berekening variant 1'!$JS$6:$JX$6,">="&$M104,'Berekening variant 1'!$JS$8:$JX$8,TRUE) -> 0 | AA109: =SUMIFS('Berekening variant 1'!$LC$1:$LH$1,'Berekening variant 1'!$LC$6:$LH$6,">"&$M104,'Berekening variant 1'!$LC$8:$LH$8,TRUE) -> 0 | AB109: =SUMIFS('Berekening variant 1'!$GR$1:$IA$1,'Berekening variant 1'!$GR$6:$IA$6,">"&$M104,'Berekening variant 1'!$GR$8:$IA$8,TRUE) -> 29.66158952 | AC109: =SUMIFS('Berekening variant 1'!$AG$1:$DW$1,'Berekening variant 1'!$AG$6:$DW$6,">"&$M104,'Berekening variant 1'!$AG$8:$DW$8,TRUE) -> 7.069162251 | AD109: 0.06326186567 | AE109: 0.6391255994 | AF109: 0.09873858004 | AG109: 1.227906703 | AH109: 7.08975449 | AI109: 7
A110: 2 | B110: Label D | J110: 16 | K110: FALSE | L110: TRUE | M110: =ROUND(AVERAGE(INDEX(M$95:M109,_xlfn.MAXIFS(J$95:J109,K$95:K109,TRUE),1),INDEX(M$95:M109,_xlfn.MAXIFS(J$95:J109,L$95:L109,TRUE),1)),0) -> 346 | N110: =SUMIFS('Berekening variant 1'!$JS$1:$JX$1,'Berekening variant 1'!$JS$5:$JX$5,">="&$M105,'Berekening variant 1'!$JS$6:$JX$6,"<"&$M105) -> 128.9960755 | O110: =SUMIFS('Berekening variant 1'!$LC$1:$LH$1,'Berekening variant 1'!$LC$5:$LH$5,">"&$M105,'Berekening variant 1'!$LC$6:$LH$6,"<="&$M105) -> 1190.663374 | P110: =SUMIFS('Berekening variant 1'!$GR$1:$IA$1,'Berekening variant 1'!$GR$5:$IA$5,">"&$M105,'Berekening variant 1'!$GR$6:$IA$6,"<="&$M105) -> 155.6216957 | Q110: =SUMIFS('Berekening variant 1'!$AG$1:$DW$1,'Berekening variant 1'!$AG$5:$DW$5,">"&$M105,'Berekening variant 1'!$AG$6:$DW$6,"<="&$M105) -> 0 | R110: =SUMIFS('Berekening variant 1'!$JS$1:$JX$1,'Berekening variant 1'!$JS$5:$JX$5,">="&$M105,'Berekening variant 1'!$JS$6:$JX$6,"<"&$M105,'Berekening variant 1'!$JS$8:$JX$8,TRUE) -> 73.89124062 | S110: =SUMIFS('Berekening variant 1'!$LC$1:$LH$1,'Berekening variant 1'!$LC$5:$LH$5,">"&$M105,'Berekening variant 1'!$LC$6:$LH$6,"<="&$M105,'Berekening variant 1'!$LC$8:$LH$8,TRUE) -> 376.5937582 | T110: =SUMIFS('Berekening variant 1'!$GR$1:$IA$1,'Berekening variant 1'!$GR$5:$IA$5,">"&$M105,'Berekening variant 1'!$GR$6:$IA$6,"<="&$M105,'Berekening variant 1'!$GR$8:$IA$8,TRUE) -> 6.296294819 | U110: =SUMIFS('Berekening variant 1'!$AG$1:$DW$1,'Berekening variant 1'!$AG$5:$DW$5,">"&$M105,'Berekening variant 1'!$AG$6:$DW$6,"<="&$M105,'Berekening variant 1'!$AG$8:$DW$8,TRUE) -> 0 | V110: =SUMIFS('Berekening variant 1'!$JS$1:$JX$1,'Berekening variant 1'!$JS$6:$JX$6,">="&$M105) -> 0 | W110: =SUMIFS('Berekening variant 1'!$LC$1:$LH$1,'Berekening variant 1'!$LC$6:$LH$6,">"&$M105) -> 0 | X110: =SUMIFS('Berekening variant 1'!$GR$1:$IA$1,'Berekening variant 1'!$GR$6:$IA$6,">"&$M105) -> 32.33450583 | Y110: =SUMIFS('Berekening variant 1'!$AG$1:$DW$1,'Berekening variant 1'!$AG$6:$DW$6,">"&$M105) -> 27.92965997 | Z110: =SUMIFS('Berekening variant 1'!$JS$1:$JX$1,'Berekening variant 1'!$JS$6:$JX$6,">="&$M105,'Berekening variant 1'!$JS$8:$JX$8,TRUE) -> 0 | AA110: =SUMIFS('Berekening variant 1'!$LC$1:$LH$1,'Berekening variant 1'!$LC$6:$LH$6,">"&$M105,'Berekening variant 1'!$LC$8:$LH$8,TRUE) -> 0 | AB110: =SUMIFS('Berekening variant 1'!$GR$1:$IA$1,'Berekening variant 1'!$GR$6:$IA$6,">"&$M105,'Berekening variant 1'!$GR$8:$IA$8,TRUE) -> 29.66158952 | AC110: =SUMIFS('Berekening variant 1'!$AG$1:$DW$1,'Berekening variant 1'!$AG$6:$DW$6,">"&$M105,'Berekening variant 1'!$AG$8:$DW$8,TRUE) -> 7.069162251 | AD110: 0.06326186567 | AE110: 2.737902828 | AF110: 0.09873858004 | AG110: 1.227906703 | AH110: 7.008694797 | AI110: 7
A111: 1 | B111: Label E | J111: 17 | K111: FALSE | L111: TRUE | M111: =ROUND(AVERAGE(INDEX(M$95:M110,_xlfn.MAXIFS(J$95:J110,K$95:K110,TRUE),1),INDEX(M$95:M110,_xlfn.MAXIFS(J$95:J110,L$95:L110,TRUE),1)),0) -> 346 | N111: =SUMIFS('Berekening variant 1'!$JS$1:$JX$1,'Berekening variant 1'!$JS$5:$JX$5,">="&$M106,'Berekening variant 1'!$JS$6:$JX$6,"<"&$M106) -> 128.9960755 | O111: =SUMIFS('Berekening variant 1'!$LC$1:$LH$1,'Berekening variant 1'!$LC$5:$LH$5,">"&$M106,'Berekening variant 1'!$LC$6:$LH$6,"<="&$M106) -> 1190.663374 | P111: =SUMIFS('Berekening variant 1'!$GR$1:$IA$1,'Berekening variant 1'!$GR$5:$IA$5,">"&$M106,'Berekening variant 1'!$GR$6:$IA$6,"<="&$M106) -> 125.1767111 | Q111: =SUMIFS('Berekening variant 1'!$AG$1:$DW$1,'Berekening variant 1'!$AG$5:$DW$5,">"&$M106,'Berekening variant 1'!$AG$6:$DW$6,"<="&$M106) -> 0 | R111: =SUMIFS('Berekening variant 1'!$JS$1:$JX$1,'Berekening variant 1'!$JS$5:$JX$5,">="&$M106,'Berekening variant 1'!$JS$6:$JX$6,"<"&$M106,'Berekening variant 1'!$JS$8:$JX$8,TRUE) -> 73.89124062 | S111: =SUMIFS('Berekening variant 1'!$LC$1:$LH$1,'Berekening variant 1'!$LC$5:$LH$5,">"&$M106,'Berekening variant 1'!$LC$6:$LH$6,"<="&$M106,'Berekening variant 1'!$LC$8:$LH$8,TRUE) -> 376.5937582 | T111: =SUMIFS('Berekening variant 1'!$GR$1:$IA$1,'Berekening variant 1'!$GR$5:$IA$5,">"&$M106,'Berekening variant 1'!$GR$6:$IA$6,"<="&$M106,'Berekening variant 1'!$GR$8:$IA$8,TRUE) -> 6.296294819 | U111: =SUMIFS('Berekening variant 1'!$AG$1:$DW$1,'Berekening variant 1'!$AG$5:$DW$5,">"&$M106,'Berekening variant 1'!$AG$6:$DW$6,"<="&$M106,'Berekening variant 1'!$AG$8:$DW$8,TRUE) -> 0 | V111: =SUMIFS('Berekening variant 1'!$JS$1:$JX$1,'Berekening variant 1'!$JS$6:$JX$6,">="&$M106) -> 0 | W111: =SUMIFS('Berekening variant 1'!$LC$1:$LH$1,'Berekening variant 1'!$LC$6:$LH$6,">"&$M106) -> 0 | X111: =SUMIFS('Berekening variant 1'!$GR$1:$IA$1,'Berekening variant 1'!$GR$6:$IA$6,">"&$M106) -> 62.77949049 | Y111: =SUMIFS('Berekening variant 1'!$AG$1:$DW$1,'Berekening variant 1'!$AG$6:$DW$6,">"&$M106) -> 27.92965997 | Z111: =SUMIFS('Berekening variant 1'!$JS$1:$JX$1,'Berekening variant 1'!$JS$6:$JX$6,">="&$M106,'Berekening variant 1'!$JS$8:$JX$8,TRUE) -> 0 | AA111: =SUMIFS('Berekening variant 1'!$LC$1:$LH$1,'Berekening variant 1'!$LC$6:$LH$6,">"&$M106,'Berekening variant 1'!$LC$8:$LH$8,TRUE) -> 0 | AB111: =SUMIFS('Berekening variant 1'!$GR$1:$IA$1,'Berekening variant 1'!$GR$6:$IA$6,">"&$M106,'Berekening variant 1'!$GR$8:$IA$8,TRUE) -> 29.66158952 | AC111: =SUMIFS('Berekening variant 1'!$AG$1:$DW$1,'Berekening variant 1'!$AG$6:$DW$6,">"&$M106,'Berekening variant 1'!$AG$8:$DW$8,TRUE) -> 7.069162251 | AD111: 0.1451032223 | AE111: 2.656061471 | AF111: 0.09873858004 | AG111: 1.227906703 | AH111: 6.996731591 | AI111: 7
A112: 0 | B112: Label F | J112: 18 | K112: FALSE | L112: TRUE | M112: =ROUND(AVERAGE(INDEX(M$95:M111,_xlfn.MAXIFS(J$95:J111,K$95:K111,TRUE),1),INDEX(M$95:M111,_xlfn.MAXIFS(J$95:J111,L$95:L111,TRUE),1)),0) -> 346 | N112: =SUMIFS('Berekening variant 1'!$JS$1:$JX$1,'Berekening variant 1'!$JS$5:$JX$5,">="&$M107,'Berekening variant 1'!$JS$6:$JX$6,"<"&$M107) -> 128.9960755 | O112: =SUMIFS('Berekening variant 1'!$LC$1:$LH$1,'Berekening variant 1'!$LC$5:$LH$5,">"&$M107,'Berekening variant 1'!$LC$6:$LH$6,"<="&$M107) -> 1190.663374 | P112: =SUMIFS('Berekening variant 1'!$GR$1:$IA$1,'Berekening variant 1'!$GR$5:$IA$5,">"&$M107,'Berekening variant 1'!$GR$6:$IA$6,"<="&$M107) -> 155.6216957 | Q112: =SUMIFS('Berekening variant 1'!$AG$1:$DW$1,'Berekening variant 1'!$AG$5:$DW$5,">"&$M107,'Berekening variant 1'!$AG$6:$DW$6,"<="&$M107) -> 0 | R112: =SUMIFS('Berekening variant 1'!$JS$1:$JX$1,'Berekening variant 1'!$JS$5:$JX$5,">="&$M107,'Berekening variant 1'!$JS$6:$JX$6,"<"&$M107,'Berekening variant 1'!$JS$8:$JX$8,TRUE) -> 73.89124062 | S112: =SUMIFS('Berekening variant 1'!$LC$1:$LH$1,'Berekening variant 1'!$LC$5:$LH$5,">"&$M107,'Berekening variant 1'!$LC$6:$LH$6,"<="&$M107,'Berekening variant 1'!$LC$8:$LH$8,TRUE) -> 376.5937582 | T112: =SUMIFS('Berekening variant 1'!$GR$1:$IA$1,'Berekening variant 1'!$GR$5:$IA$5,">"&$M107,'Berekening variant 1'!$GR$6:$IA$6,"<="&$M107,'Berekening variant 1'!$GR$8:$IA$8,TRUE) -> 6.296294819 | U112: =SUMIFS('Berekening variant 1'!$AG$1:$DW$1,'Berekening variant 1'!$AG$5:$DW$5,">"&$M107,'Berekening variant 1'!$AG$6:$DW$6,"<="&$M107,'Berekening variant 1'!$AG$8:$DW$8,TRUE) -> 0 | V112: =SUMIFS('Berekening variant 1'!$JS$1:$JX$1,'Berekening variant 1'!$JS$6:$JX$6,">="&$M107) -> 0 | W112: =SUMIFS('Berekening variant 1'!$LC$1:$LH$1,'Berekening variant 1'!$LC$6:$LH$6,">"&$M107) -> 0 | X112: =SUMIFS('Berekening variant 1'!$GR$1:$IA$1,'Berekening variant 1'!$GR$6:$IA$6,">"&$M107) -> 32.33450583 | Y112: =SUMIFS('Berekening variant 1'!$AG$1:$DW$1,'Berekening variant 1'!$AG$6:$DW$6,">"&$M107) -> 27.92965997 | Z112: =SUMIFS('Berekening variant 1'!$JS$1:$JX$1,'Berekening variant 1'!$JS$6:$JX$6,">="&$M107,'Berekening variant 1'!$JS$8:$JX$8,TRUE) -> 0 | AA112: =SUMIFS('Berekening variant 1'!$LC$1:$LH$1,'Berekening variant 1'!$LC$6:$LH$6,">"&$M107,'Berekening variant 1'!$LC$8:$LH$8,TRUE) -> 0 | AB112: =SUMIFS('Berekening variant 1'!$GR$1:$IA$1,'Berekening variant 1'!$GR$6:$IA$6,">"&$M107,'Berekening variant 1'!$GR$8:$IA$8,TRUE) -> 29.66158952 | AC112: =SUMIFS('Berekening variant 1'!$AG$1:$DW$1,'Berekening variant 1'!$AG$6:$DW$6,">"&$M107,'Berekening variant 1'!$AG$8:$DW$8,TRUE) -> 7.069162251 | AD112: 0.06326186567 | AE112: 2.737902828 | AF112: 0.09873858004 | AG112: 1.227906703 | AH112: 7.008694797 | AI112: 7
J113: 19 | K113: FALSE | L113: TRUE | M113: =ROUND(AVERAGE(INDEX(M$95:M112,_xlfn.MAXIFS(J$95:J112,K$95:K112,TRUE),1),INDEX(M$95:M112,_xlfn.MAXIFS(J$95:J112,L$95:L112,TRUE),1)),0) -> 346 | N113: =SUMIFS('Berekening variant 1'!$JS$1:$JX$1,'Berekening variant 1'!$JS$5:$JX$5,">="&$M108,'Berekening variant 1'!$JS$6:$JX$6,"<"&$M108) -> 128.9960755 | O113: =SUMIFS('Berekening variant 1'!$LC$1:$LH$1,'Berekening variant 1'!$LC$5:$LH$5,">"&$M108,'Berekening variant 1'!$LC$6:$LH$6,"<="&$M108) -> 1190.663374 | P113: =SUMIFS('Berekening variant 1'!$GR$1:$IA$1,'Berekening variant 1'!$GR$5:$IA$5,">"&$M108,'Berekening variant 1'!$GR$6:$IA$6,"<="&$M108) -> 155.6216957 | Q113: =SUMIFS('Berekening variant 1'!$AG$1:$DW$1,'Berekening variant 1'!$AG$5:$DW$5,">"&$M108,'Berekening variant 1'!$AG$6:$DW$6,"<="&$M108) -> 0 | R113: =SUMIFS('Berekening variant 1'!$JS$1:$JX$1,'Berekening variant 1'!$JS$5:$JX$5,">="&$M108,'Berekening variant 1'!$JS$6:$JX$6,"<"&$M108,'Berekening variant 1'!$JS$8:$JX$8,TRUE) -> 73.89124062 | S113: =SUMIFS('Berekening variant 1'!$LC$1:$LH$1,'Berekening variant 1'!$LC$5:$LH$5,">"&$M108,'Berekening variant 1'!$LC$6:$LH$6,"<="&$M108,'Berekening variant 1'!$LC$8:$LH$8,TRUE) -> 376.5937582 | T113: =SUMIFS('Berekening variant 1'!$GR$1:$IA$1,'Berekening variant 1'!$GR$5:$IA$5,">"&$M108,'Berekening variant 1'!$GR$6:$IA$6,"<="&$M108,'Berekening variant 1'!$GR$8:$IA$8,TRUE) -> 6.296294819 | U113: =SUMIFS('Berekening variant 1'!$AG$1:$DW$1,'Berekening variant 1'!$AG$5:$DW$5,">"&$M108,'Berekening variant 1'!$AG$6:$DW$6,"<="&$M108,'Berekening variant 1'!$AG$8:$DW$8,TRUE) -> 0 | V113: =SUMIFS('Berekening variant 1'!$JS$1:$JX$1,'Berekening variant 1'!$JS$6:$JX$6,">="&$M108) -> 0 | W113: =SUMIFS('Berekening variant 1'!$LC$1:$LH$1,'Berekening variant 1'!$LC$6:$LH$6,">"&$M108) -> 0 | X113: =SUMIFS('Berekening variant 1'!$GR$1:$IA$1,'Berekening variant 1'!$GR$6:$IA$6,">"&$M108) -> 32.33450583 | Y113: =SUMIFS('Berekening variant 1'!$AG$1:$DW$1,'Berekening variant 1'!$AG$6:$DW$6,">"&$M108) -> 27.92965997 | Z113: =SUMIFS('Berekening variant 1'!$JS$1:$JX$1,'Berekening variant 1'!$JS$6:$JX$6,">="&$M108,'Berekening variant 1'!$JS$8:$JX$8,TRUE) -> 0 | AA113: =SUMIFS('Berekening variant 1'!$LC$1:$LH$1,'Berekening variant 1'!$LC$6:$LH$6,">"&$M108,'Berekening variant 1'!$LC$8:$LH$8,TRUE) -> 0 | AB113: =SUMIFS('Berekening variant 1'!$GR$1:$IA$1,'Berekening variant 1'!$GR$6:$IA$6,">"&$M108,'Berekening variant 1'!$GR$8:$IA$8,TRUE) -> 29.66158952 | AC113: =SUMIFS('Berekening variant 1'!$AG$1:$DW$1,'Berekening variant 1'!$AG$6:$DW$6,">"&$M108,'Berekening variant 1'!$AG$8:$DW$8,TRUE) -> 7.069162251 | AD113: 0.06326186567 | AE113: 2.737902828 | AF113: 0.09873858004 | AG113: 1.227906703 | AH113: 7.008694797 | AI113: 7
J114: 20 | K114: FALSE | L114: TRUE | M114: =ROUND(AVERAGE(INDEX(M$95:M113,_xlfn.MAXIFS(J$95:J113,K$95:K113,TRUE),1),INDEX(M$95:M113,_xlfn.MAXIFS(J$95:J113,L$95:L113,TRUE),1)),0) -> 346 | N114: =SUMIFS('Berekening variant 1'!$JS$1:$JX$1,'Berekening variant 1'!$JS$5:$JX$5,">="&$M109,'Berekening variant 1'!$JS$6:$JX$6,"<"&$M109) -> 128.9960755 | O114: =SUMIFS('Berekening variant 1'!$LC$1:$LH$1,'Berekening variant 1'!$LC$5:$LH$5,">"&$M109,'Berekening variant 1'!$LC$6:$LH$6,"<="&$M109) -> 1190.663374 | P114: =SUMIFS('Berekening variant 1'!$GR$1:$IA$1,'Berekening variant 1'!$GR$5:$IA$5,">"&$M109,'Berekening variant 1'!$GR$6:$IA$6,"<="&$M109) -> 155.6216957 | Q114: =SUMIFS('Berekening variant 1'!$AG$1:$DW$1,'Berekening variant 1'!$AG$5:$DW$5,">"&$M109,'Berekening variant 1'!$AG$6:$DW$6,"<="&$M109) -> 0 | R114: =SUMIFS('Berekening variant 1'!$JS$1:$JX$1,'Berekening variant 1'!$JS$5:$JX$5,">="&$M109,'Berekening variant 1'!$JS$6:$JX$6,"<"&$M109,'Berekening variant 1'!$JS$8:$JX$8,TRUE) -> 73.89124062 | S114: =SUMIFS('Berekening variant 1'!$LC$1:$LH$1,'Berekening variant 1'!$LC$5:$LH$5,">"&$M109,'Berekening variant 1'!$LC$6:$LH$6,"<="&$M109,'Berekening variant 1'!$LC$8:$LH$8,TRUE) -> 376.5937582 | T114: =SUMIFS('Berekening variant 1'!$GR$1:$IA$1,'Berekening variant 1'!$GR$5:$IA$5,">"&$M109,'Berekening variant 1'!$GR$6:$IA$6,"<="&$M109,'Berekening variant 1'!$GR$8:$IA$8,TRUE) -> 6.296294819 | U114: =SUMIFS('Berekening variant 1'!$AG$1:$DW$1,'Berekening variant 1'!$AG$5:$DW$5,">"&$M109,'Berekening variant 1'!$AG$6:$DW$6,"<="&$M109,'Berekening variant 1'!$AG$8:$DW$8,TRUE) -> 0 | V114: =SUMIFS('Berekening variant 1'!$JS$1:$JX$1,'Berekening variant 1'!$JS$6:$JX$6,">="&$M109) -> 0 | W114: =SUMIFS('Berekening variant 1'!$LC$1:$LH$1,'Berekening variant 1'!$LC$6:$LH$6,">"&$M109) -> 0 | X114: =SUMIFS('Berekening variant 1'!$GR$1:$IA$1,'Berekening variant 1'!$GR$6:$IA$6,">"&$M109) -> 32.33450583 | Y114: =SUMIFS('Berekening variant 1'!$AG$1:$DW$1,'Berekening variant 1'!$AG$6:$DW$6,">"&$M109) -> 27.92965997 | Z114: =SUMIFS('Berekening variant 1'!$JS$1:$JX$1,'Berekening variant 1'!$JS$6:$JX$6,">="&$M109,'Berekening variant 1'!$JS$8:$JX$8,TRUE) -> 0 | AA114: =SUMIFS('Berekening variant 1'!$LC$1:$LH$1,'Berekening variant 1'!$LC$6:$LH$6,">"&$M109,'Berekening variant 1'!$LC$8:$LH$8,TRUE) -> 0 | AB114: =SUMIFS('Berekening variant 1'!$GR$1:$IA$1,'Berekening variant 1'!$GR$6:$IA$6,">"&$M109,'Berekening variant 1'!$GR$8:$IA$8,TRUE) -> 29.66158952 | AC114: =SUMIFS('Berekening variant 1'!$AG$1:$DW$1,'Berekening variant 1'!$AG$6:$DW$6,">"&$M109,'Berekening variant 1'!$AG$8:$DW$8,TRUE) -> 7.069162251 | AD114: 0.06326186567 | AE114: 2.737902828 | AF114: 0.09873858004 | AG114: 1.227906703 | AH114: 7.008694797 | AI114: 7
J115: 21 | K115: FALSE | L115: TRUE | M115: =ROUND(AVERAGE(INDEX(M$95:M114,_xlfn.MAXIFS(J$95:J114,K$95:K114,TRUE),1),INDEX(M$95:M114,_xlfn.MAXIFS(J$95:J114,L$95:L114,TRUE),1)),0) -> 346 | N115: =SUMIFS('Berekening variant 1'!$JS$1:$JX$1,'Berekening variant 1'!$JS$5:$JX$5,">="&$M110,'Berekening variant 1'!$JS$6:$JX$6,"<"&$M110) -> 128.9960755 | O115: =SUMIFS('Berekening variant 1'!$LC$1:$LH$1,'Berekening variant 1'!$LC$5:$LH$5,">"&$M110,'Berekening variant 1'!$LC$6:$LH$6,"<="&$M110) -> 1190.663374 | P115: =SUMIFS('Berekening variant 1'!$GR$1:$IA$1,'Berekening variant 1'!$GR$5:$IA$5,">"&$M110,'Berekening variant 1'!$GR$6:$IA$6,"<="&$M110) -> 155.6216957 | Q115: =SUMIFS('Berekening variant 1'!$AG$1:$DW$1,'Berekening variant 1'!$AG$5:$DW$5,">"&$M110,'Berekening variant 1'!$AG$6:$DW$6,"<="&$M110) -> 0 | R115: =SUMIFS('Berekening variant 1'!$JS$1:$JX$1,'Berekening variant 1'!$JS$5:$JX$5,">="&$M110,'Berekening variant 1'!$JS$6:$JX$6,"<"&$M110,'Berekening variant 1'!$JS$8:$JX$8,TRUE) -> 73.89124062 | S115: =SUMIFS('Berekening variant 1'!$LC$1:$LH$1,'Berekening variant 1'!$LC$5:$LH$5,">"&$M110,'Berekening variant 1'!$LC$6:$LH$6,"<="&$M110,'Berekening variant 1'!$LC$8:$LH$8,TRUE) -> 376.5937582 | T115: =SUMIFS('Berekening variant 1'!$GR$1:$IA$1,'Berekening variant 1'!$GR$5:$IA$5,">"&$M110,'Berekening variant 1'!$GR$6:$IA$6,"<="&$M110,'Berekening variant 1'!$GR$8:$IA$8,TRUE) -> 6.296294819 | U115: =SUMIFS('Berekening variant 1'!$AG$1:$DW$1,'Berekening variant 1'!$AG$5:$DW$5,">"&$M110,'Berekening variant 1'!$AG$6:$DW$6,"<="&$M110,'Berekening variant 1'!$AG$8:$DW$8,TRUE) -> 0 | V115: =SUMIFS('Berekening variant 1'!$JS$1:$JX$1,'Berekening variant 1'!$JS$6:$JX$6,">="&$M110) -> 0 | W115: =SUMIFS('Berekening variant 1'!$LC$1:$LH$1,'Berekening variant 1'!$LC$6:$LH$6,">"&$M110) -> 0 | X115: =SUMIFS('Berekening variant 1'!$GR$1:$IA$1,'Berekening variant 1'!$GR$6:$IA$6,">"&$M110) -> 32.33450583 | Y115: =SUMIFS('Berekening variant 1'!$AG$1:$DW$1,'Berekening variant 1'!$AG$6:$DW$6,">"&$M110) -> 27.92965997 | Z115: =SUMIFS('Berekening variant 1'!$JS$1:$JX$1,'Berekening variant 1'!$JS$6:$JX$6,">="&$M110,'Berekening variant 1'!$JS$8:$JX$8,TRUE) -> 0 | AA115: =SUMIFS('Berekening variant 1'!$LC$1:$LH$1,'Berekening variant 1'!$LC$6:$LH$6,">"&$M110,'Berekening variant 1'!$LC$8:$LH$8,TRUE) -> 0 | AB115: =SUMIFS('Berekening variant 1'!$GR$1:$IA$1,'Berekening variant 1'!$GR$6:$IA$6,">"&$M110,'Berekening variant 1'!$GR$8:$IA$8,TRUE) -> 29.66158952 | AC115: =SUMIFS('Berekening variant 1'!$AG$1:$DW$1,'Berekening variant 1'!$AG$6:$DW$6,">"&$M110,'Berekening variant 1'!$AG$8:$DW$8,TRUE) -> 7.069162251 | AD115: 0.06326186567 | AE115: 2.737902828 | AF115: 0.09873858004 | AG115: 1.227906703 | AH115: 7.008694797 | AI115: 7
J116: 22 | K116: FALSE | L116: TRUE | M116: =ROUND(AVERAGE(INDEX(M$95:M115,_xlfn.MAXIFS(J$95:J115,K$95:K115,TRUE),1),INDEX(M$95:M115,_xlfn.MAXIFS(J$95:J115,L$95:L115,TRUE),1)),0) -> 346 | N116: =SUMIFS('Berekening variant 1'!$JS$1:$JX$1,'Berekening variant 1'!$JS$5:$JX$5,">="&$M111,'Berekening variant 1'!$JS$6:$JX$6,"<"&$M111) -> 128.9960755 | O116: =SUMIFS('Berekening variant 1'!$LC$1:$LH$1,'Berekening variant 1'!$LC$5:$LH$5,">"&$M111,'Berekening variant 1'!$LC$6:$LH$6,"<="&$M111) -> 1190.663374 | P116: =SUMIFS('Berekening variant 1'!$GR$1:$IA$1,'Berekening variant 1'!$GR$5:$IA$5,">"&$M111,'Berekening variant 1'!$GR$6:$IA$6,"<="&$M111) -> 155.6216957 | Q116: =SUMIFS('Berekening variant 1'!$AG$1:$DW$1,'Berekening variant 1'!$AG$5:$DW$5,">"&$M111,'Berekening variant 1'!$AG$6:$DW$6,"<="&$M111) -> 0 | R116: =SUMIFS('Berekening variant 1'!$JS$1:$JX$1,'Berekening variant 1'!$JS$5:$JX$5,">="&$M111,'Berekening variant 1'!$JS$6:$JX$6,"<"&$M111,'Berekening variant 1'!$JS$8:$JX$8,TRUE) -> 73.89124062 | S116: =SUMIFS('Berekening variant 1'!$LC$1:$LH$1,'Berekening variant 1'!$LC$5:$LH$5,">"&$M111,'Berekening variant 1'!$LC$6:$LH$6,"<="&$M111,'Berekening variant 1'!$LC$8:$LH$8,TRUE) -> 376.5937582 | T116: =SUMIFS('Berekening variant 1'!$GR$1:$IA$1,'Berekening variant 1'!$GR$5:$IA$5,">"&$M111,'Berekening variant 1'!$GR$6:$IA$6,"<="&$M111,'Berekening variant 1'!$GR$8:$IA$8,TRUE) -> 6.296294819 | U116: =SUMIFS('Berekening variant 1'!$AG$1:$DW$1,'Berekening variant 1'!$AG$5:$DW$5,">"&$M111,'Berekening variant 1'!$AG$6:$DW$6,"<="&$M111,'Berekening variant 1'!$AG$8:$DW$8,TRUE) -> 0 | V116: =SUMIFS('Berekening variant 1'!$JS$1:$JX$1,'Berekening variant 1'!$JS$6:$JX$6,">="&$M111) -> 0 | W116: =SUMIFS('Berekening variant 1'!$LC$1:$LH$1,'Berekening variant 1'!$LC$6:$LH$6,">"&$M111) -> 0 | X116: =SUMIFS('Berekening variant 1'!$GR$1:$IA$1,'Berekening variant 1'!$GR$6:$IA$6,">"&$M111) -> 32.33450583 | Y116: =SUMIFS('Berekening variant 1'!$AG$1:$DW$1,'Berekening variant 1'!$AG$6:$DW$6,">"&$M111) -> 27.92965997 | Z116: =SUMIFS('Berekening variant 1'!$JS$1:$JX$1,'Berekening variant 1'!$JS$6:$JX$6,">="&$M111,'Berekening variant 1'!$JS$8:$JX$8,TRUE) -> 0 | AA116: =SUMIFS('Berekening variant 1'!$LC$1:$LH$1,'Berekening variant 1'!$LC$6:$LH$6,">"&$M111,'Berekening variant 1'!$LC$8:$LH$8,TRUE) -> 0 | AB116: =SUMIFS('Berekening variant 1'!$GR$1:$IA$1,'Berekening variant 1'!$GR$6:$IA$6,">"&$M111,'Berekening variant 1'!$GR$8:$IA$8,TRUE) -> 29.66158952 | AC116: =SUMIFS('Berekening variant 1'!$AG$1:$DW$1,'Berekening variant 1'!$AG$6:$DW$6,">"&$M111,'Berekening variant 1'!$AG$8:$DW$8,TRUE) -> 7.069162251 | AD116: 0.06326186567 | AE116: 2.737902828 | AF116: 0.09873858004 | AG116: 1.227906703 | AH116: 7.008694797 | AI116: 7
J117: 23 | K117: FALSE | L117: TRUE | M117: =ROUND(AVERAGE(INDEX(M$95:M116,_xlfn.MAXIFS(J$95:J116,K$95:K116,TRUE),1),INDEX(M$95:M116,_xlfn.MAXIFS(J$95:J116,L$95:L116,TRUE),1)),0) -> 346 | N117: =SUMIFS('Berekening variant 1'!$JS$1:$JX$1,'Berekening variant 1'!$JS$5:$JX$5,">="&$M112,'Berekening variant 1'!$JS$6:$JX$6,"<"&$M112) -> 128.9960755 | O117: =SUMIFS('Berekening variant 1'!$LC$1:$LH$1,'Berekening variant 1'!$LC$5:$LH$5,">"&$M112,'Berekening variant 1'!$LC$6:$LH$6,"<="&$M112) -> 1190.663374 | P117: =SUMIFS('Berekening variant 1'!$GR$1:$IA$1,'Berekening variant 1'!$GR$5:$IA$5,">"&$M112,'Berekening variant 1'!$GR$6:$IA$6,"<="&$M112) -> 155.6216957 | Q117: =SUMIFS('Berekening variant 1'!$AG$1:$DW$1,'Berekening variant 1'!$AG$5:$DW$5,">"&$M112,'Berekening variant 1'!$AG$6:$DW$6,"<="&$M112) -> 0 | R117: =SUMIFS('Berekening variant 1'!$JS$1:$JX$1,'Berekening variant 1'!$JS$5:$JX$5,">="&$M112,'Berekening variant 1'!$JS$6:$JX$6,"<"&$M112,'Berekening variant 1'!$JS$8:$JX$8,TRUE) -> 73.89124062 | S117: =SUMIFS('Berekening variant 1'!$LC$1:$LH$1,'Berekening variant 1'!$LC$5:$LH$5,">"&$M112,'Berekening variant 1'!$LC$6:$LH$6,"<="&$M112,'Berekening variant 1'!$LC$8:$LH$8,TRUE) -> 376.5937582 | T117: =SUMIFS('Berekening variant 1'!$GR$1:$IA$1,'Berekening variant 1'!$GR$5:$IA$5,">"&$M112,'Berekening variant 1'!$GR$6:$IA$6,"<="&$M112,'Berekening variant 1'!$GR$8:$IA$8,TRUE) -> 6.296294819 | U117: =SUMIFS('Berekening variant 1'!$AG$1:$DW$1,'Berekening variant 1'!$AG$5:$DW$5,">"&$M112,'Berekening variant 1'!$AG$6:$DW$6,"<="&$M112,'Berekening variant 1'!$AG$8:$DW$8,TRUE) -> 0 | V117: =SUMIFS('Berekening variant 1'!$JS$1:$JX$1,'Berekening variant 1'!$JS$6:$JX$6,">="&$M112) -> 0 | W117: =SUMIFS('Berekening variant 1'!$LC$1:$LH$1,'Berekening variant 1'!$LC$6:$LH$6,">"&$M112) -> 0 | X117: =SUMIFS('Berekening variant 1'!$GR$1:$IA$1,'Berekening variant 1'!$GR$6:$IA$6,">"&$M112) -> 32.33450583 | Y117: =SUMIFS('Berekening variant 1'!$AG$1:$DW$1,'Berekening variant 1'!$AG$6:$DW$6,">"&$M112) -> 27.92965997 | Z117: =SUMIFS('Berekening variant 1'!$JS$1:$JX$1,'Berekening variant 1'!$JS$6:$JX$6,">="&$M112,'Berekening variant 1'!$JS$8:$JX$8,TRUE) -> 0 | AA117: =SUMIFS('Berekening variant 1'!$LC$1:$LH$1,'Berekening variant 1'!$LC$6:$LH$6,">"&$M112,'Berekening variant 1'!$LC$8:$LH$8,TRUE) -> 0 | AB117: =SUMIFS('Berekening variant 1'!$GR$1:$IA$1,'Berekening variant 1'!$GR$6:$IA$6,">"&$M112,'Berekening variant 1'!$GR$8:$IA$8,TRUE) -> 29.66158952 | AC117: =SUMIFS('Berekening variant 1'!$AG$1:$DW$1,'Berekening variant 1'!$AG$6:$DW$6,">"&$M112,'Berekening variant 1'!$AG$8:$DW$8,TRUE) -> 7.069162251 | AD117: 0.06326186567 | AE117: 2.737902828 | AF117: 0.09873858004 | AG117: 1.227906703 | AH117: 7.008694797 | AI117: 7
J118: 24 | K118: FALSE | L118: TRUE | M118: =ROUND(AVERAGE(INDEX(M$95:M117,_xlfn.MAXIFS(J$95:J117,K$95:K117,TRUE),1),INDEX(M$95:M117,_xlfn.MAXIFS(J$95:J117,L$95:L117,TRUE),1)),0) -> 346 | N118: =SUMIFS('Berekening variant 1'!$JS$1:$JX$1,'Berekening variant 1'!$JS$5:$JX$5,">="&$M113,'Berekening variant 1'!$JS$6:$JX$6,"<"&$M113) -> 128.9960755 | O118: =SUMIFS('Berekening variant 1'!$LC$1:$LH$1,'Berekening variant 1'!$LC$5:$LH$5,">"&$M113,'Berekening variant 1'!$LC$6:$LH$6,"<="&$M113) -> 1190.663374 | P118: =SUMIFS('Berekening variant 1'!$GR$1:$IA$1,'Berekening variant 1'!$GR$5:$IA$5,">"&$M113,'Berekening variant 1'!$GR$6:$IA$6,"<="&$M113) -> 155.6216957 | Q118: =SUMIFS('Berekening variant 1'!$AG$1:$DW$1,'Berekening variant 1'!$AG$5:$DW$5,">"&$M113,'Berekening variant 1'!$AG$6:$DW$6,"<="&$M113) -> 0 | R118: =SUMIFS('Berekening variant 1'!$JS$1:$JX$1,'Berekening variant 1'!$JS$5:$JX$5,">="&$M113,'Berekening variant 1'!$JS$6:$JX$6,"<"&$M113,'Berekening variant 1'!$JS$8:$JX$8,TRUE) -> 73.89124062 | S118: =SUMIFS('Berekening variant 1'!$LC$1:$LH$1,'Berekening variant 1'!$LC$5:$LH$5,">"&$M113,'Berekening variant 1'!$LC$6:$LH$6,"<="&$M113,'Berekening variant 1'!$LC$8:$LH$8,TRUE) -> 376.5937582 | T118: =SUMIFS('Berekening variant 1'!$GR$1:$IA$1,'Berekening variant 1'!$GR$5:$IA$5,">"&$M113,'Berekening variant 1'!$GR$6:$IA$6,"<="&$M113,'Berekening variant 1'!$GR$8:$IA$8,TRUE) -> 6.296294819 | U118: =SUMIFS('Berekening variant 1'!$AG$1:$DW$1,'Berekening variant 1'!$AG$5:$DW$5,">"&$M113,'Berekening variant 1'!$AG$6:$DW$6,"<="&$M113,'Berekening variant 1'!$AG$8:$DW$8,TRUE) -> 0 | V118: =SUMIFS('Berekening variant 1'!$JS$1:$JX$1,'Berekening variant 1'!$JS$6:$JX$6,">="&$M113) -> 0 | W118: =SUMIFS('Berekening variant 1'!$LC$1:$LH$1,'Berekening variant 1'!$LC$6:$LH$6,">"&$M113) -> 0 | X118: =SUMIFS('Berekening variant 1'!$GR$1:$IA$1,'Berekening variant 1'!$GR$6:$IA$6,">"&$M113) -> 32.33450583 | Y118: =SUMIFS('Berekening variant 1'!$AG$1:$DW$1,'Berekening variant 1'!$AG$6:$DW$6,">"&$M113) -> 27.92965997 | Z118: =SUMIFS('Berekening variant 1'!$JS$1:$JX$1,'Berekening variant 1'!$JS$6:$JX$6,">="&$M113,'Berekening variant 1'!$JS$8:$JX$8,TRUE) -> 0 | AA118: =SUMIFS('Berekening variant 1'!$LC$1:$LH$1,'Berekening variant 1'!$LC$6:$LH$6,">"&$M113,'Berekening variant 1'!$LC$8:$LH$8,TRUE) -> 0 | AB118: =SUMIFS('Berekening variant 1'!$GR$1:$IA$1,'Berekening variant 1'!$GR$6:$IA$6,">"&$M113,'Berekening variant 1'!$GR$8:$IA$8,TRUE) -> 29.66158952 | AC118: =SUMIFS('Berekening variant 1'!$AG$1:$DW$1,'Berekening variant 1'!$AG$6:$DW$6,">"&$M113,'Berekening variant 1'!$AG$8:$DW$8,TRUE) -> 7.069162251 | AD118: 0.06326186567 | AE118: 2.737902828 | AF118: 0.09873858004 | AG118: 1.227906703 | AH118: 7.008694797 | AI118: 7
J119: 25 | K119: FALSE | L119: TRUE | M119: =ROUND(AVERAGE(INDEX(M$95:M118,_xlfn.MAXIFS(J$95:J118,K$95:K118,TRUE),1),INDEX(M$95:M118,_xlfn.MAXIFS(J$95:J118,L$95:L118,TRUE),1)),0) -> 346 | N119: =SUMIFS('Berekening variant 1'!$JS$1:$JX$1,'Berekening variant 1'!$JS$5:$JX$5,">="&$M114,'Berekening variant 1'!$JS$6:$JX$6,"<"&$M114) -> 128.9960755 | O119: =SUMIFS('Berekening variant 1'!$LC$1:$LH$1,'Berekening variant 1'!$LC$5:$LH$5,">"&$M114,'Berekening variant 1'!$LC$6:$LH$6,"<="&$M114) -> 1190.663374 | P119: =SUMIFS('Berekening variant 1'!$GR$1:$IA$1,'Berekening variant 1'!$GR$5:$IA$5,">"&$M114,'Berekening variant 1'!$GR$6:$IA$6,"<="&$M114) -> 155.6216957 | Q119: =SUMIFS('Berekening variant 1'!$AG$1:$DW$1,'Berekening variant 1'!$AG$5:$DW$5,">"&$M114,'Berekening variant 1'!$AG$6:$DW$6,"<="&$M114) -> 0 | R119: =SUMIFS('Berekening variant 1'!$JS$1:$JX$1,'Berekening variant 1'!$JS$5:$JX$5,">="&$M114,'Berekening variant 1'!$JS$6:$JX$6,"<"&$M114,'Berekening variant 1'!$JS$8:$JX$8,TRUE) -> 73.89124062 | S119: =SUMIFS('Berekening variant 1'!$LC$1:$LH$1,'Berekening variant 1'!$LC$5:$LH$5,">"&$M114,'Berekening variant 1'!$LC$6:$LH$6,"<="&$M114,'Berekening variant 1'!$LC$8:$LH$8,TRUE) -> 376.5937582 | T119: =SUMIFS('Berekening variant 1'!$GR$1:$IA$1,'Berekening variant 1'!$GR$5:$IA$5,">"&$M114,'Berekening variant 1'!$GR$6:$IA$6,"<="&$M114,'Berekening variant 1'!$GR$8:$IA$8,TRUE) -> 6.296294819 | U119: =SUMIFS('Berekening variant 1'!$AG$1:$DW$1,'Berekening variant 1'!$AG$5:$DW$5,">"&$M114,'Berekening variant 1'!$AG$6:$DW$6,"<="&$M114,'Berekening variant 1'!$AG$8:$DW$8,TRUE) -> 0 | V119: =SUMIFS('Berekening variant 1'!$JS$1:$JX$1,'Berekening variant 1'!$JS$6:$JX$6,">="&$M114) -> 0 | W119: =SUMIFS('Berekening variant 1'!$LC$1:$LH$1,'Berekening variant 1'!$LC$6:$LH$6,">"&$M114) -> 0 | X119: =SUMIFS('Berekening variant 1'!$GR$1:$IA$1,'Berekening variant 1'!$GR$6:$IA$6,">"&$M114) -> 32.33450583 | Y119: =SUMIFS('Berekening variant 1'!$AG$1:$DW$1,'Berekening variant 1'!$AG$6:$DW$6,">"&$M114) -> 27.92965997 | Z119: =SUMIFS('Berekening variant 1'!$JS$1:$JX$1,'Berekening variant 1'!$JS$6:$JX$6,">="&$M114,'Berekening variant 1'!$JS$8:$JX$8,TRUE) -> 0 | AA119: =SUMIFS('Berekening variant 1'!$LC$1:$LH$1,'Berekening variant 1'!$LC$6:$LH$6,">"&$M114,'Berekening variant 1'!$LC$8:$LH$8,TRUE) -> 0 | AB119: =SUMIFS('Berekening variant 1'!$GR$1:$IA$1,'Berekening variant 1'!$GR$6:$IA$6,">"&$M114,'Berekening variant 1'!$GR$8:$IA$8,TRUE) -> 29.66158952 | AC119: =SUMIFS('Berekening variant 1'!$AG$1:$DW$1,'Berekening variant 1'!$AG$6:$DW$6,">"&$M114,'Berekening variant 1'!$AG$8:$DW$8,TRUE) -> 7.069162251 | AD119: 0.06326186567 | AE119: 2.737902828 | AF119: 0.09873858004 | AG119: 1.227906703 | AH119: 7.008694797 | AI119: 7
N120: =SUMIFS('Berekening variant 1'!$JS$1:$JX$1,'Berekening variant 1'!$JS$5:$JX$5,">="&$M115,'Berekening variant 1'!$JS$6:$JX$6,"<"&$M115) -> 128.9960755 | O120: =SUMIFS('Berekening variant 1'!$LC$1:$LH$1,'Berekening variant 1'!$LC$5:$LH$5,">"&$M115,'Berekening variant 1'!$LC$6:$LH$6,"<="&$M115) -> 1190.663374 | P120: =SUMIFS('Berekening variant 1'!$GR$1:$IA$1,'Berekening variant 1'!$GR$5:$IA$5,">"&$M115,'Berekening variant 1'!$GR$6:$IA$6,"<="&$M115) -> 155.6216957 | Q120: =SUMIFS('Berekening variant 1'!$AG$1:$DW$1,'Berekening variant 1'!$AG$5:$DW$5,">"&$M115,'Berekening variant 1'!$AG$6:$DW$6,"<="&$M115) -> 0 | R120: =SUMIFS('Berekening variant 1'!$JS$1:$JX$1,'Berekening variant 1'!$JS$5:$JX$5,">="&$M115,'Berekening variant 1'!$JS$6:$JX$6,"<"&$M115,'Berekening variant 1'!$JS$8:$JX$8,TRUE) -> 73.89124062 | S120: =SUMIFS('Berekening variant 1'!$LC$1:$LH$1,'Berekening variant 1'!$LC$5:$LH$5,">"&$M115,'Berekening variant 1'!$LC$6:$LH$6,"<="&$M115,'Berekening variant 1'!$LC$8:$LH$8,TRUE) -> 376.5937582 | T120: =SUMIFS('Berekening variant 1'!$GR$1:$IA$1,'Berekening variant 1'!$GR$5:$IA$5,">"&$M115,'Berekening variant 1'!$GR$6:$IA$6,"<="&$M115,'Berekening variant 1'!$GR$8:$IA$8,TRUE) -> 6.296294819 | U120: =SUMIFS('Berekening variant 1'!$AG$1:$DW$1,'Berekening variant 1'!$AG$5:$DW$5,">"&$M115,'Berekening variant 1'!$AG$6:$DW$6,"<="&$M115,'Berekening variant 1'!$AG$8:$DW$8,TRUE) -> 0 | V120: =SUMIFS('Berekening variant 1'!$JS$1:$JX$1,'Berekening variant 1'!$JS$6:$JX$6,">="&$M115) -> 0 | W120: =SUMIFS('Berekening variant 1'!$LC$1:$LH$1,'Berekening variant 1'!$LC$6:$LH$6,">"&$M115) -> 0 | X120: =SUMIFS('Berekening variant 1'!$GR$1:$IA$1,'Berekening variant 1'!$GR$6:$IA$6,">"&$M115) -> 32.33450583 | Y120: =SUMIFS('Berekening variant 1'!$AG$1:$DW$1,'Berekening variant 1'!$AG$6:$DW$6,">"&$M115) -> 27.92965997 | Z120: =SUMIFS('Berekening variant 1'!$JS$1:$JX$1,'Berekening variant 1'!$JS$6:$JX$6,">="&$M115,'Berekening variant 1'!$JS$8:$JX$8,TRUE) -> 0 | AA120: =SUMIFS('Berekening variant 1'!$LC$1:$LH$1,'Berekening variant 1'!$LC$6:$LH$6,">"&$M115,'Berekening variant 1'!$LC$8:$LH$8,TRUE) -> 0 | AB120: =SUMIFS('Berekening variant 1'!$GR$1:$IA$1,'Berekening variant 1'!$GR$6:$IA$6,">"&$M115,'Berekening variant 1'!$GR$8:$IA$8,TRUE) -> 29.66158952 | AC120: =SUMIFS('Berekening variant 1'!$AG$1:$DW$1,'Berekening variant 1'!$AG$6:$DW$6,">"&$M115,'Berekening variant 1'!$AG$8:$DW$8,TRUE) -> 7.069162251 | AD120: 0.06326186567 | AE120: 2.737902828 | AF120: 0.09873858004 | AG120: 1.227906703 | AH120: 7.008694797 | AI120: 7
N121: =SUMIFS('Berekening variant 1'!$JS$1:$JX$1,'Berekening variant 1'!$JS$5:$JX$5,">="&$M116,'Berekening variant 1'!$JS$6:$JX$6,"<"&$M116) -> 128.9960755 | O121: =SUMIFS('Berekening variant 1'!$LC$1:$LH$1,'Berekening variant 1'!$LC$5:$LH$5,">"&$M116,'Berekening variant 1'!$LC$6:$LH$6,"<="&$M116) -> 1190.663374 | P121: =SUMIFS('Berekening variant 1'!$GR$1:$IA$1,'Berekening variant 1'!$GR$5:$IA$5,">"&$M116,'Berekening variant 1'!$GR$6:$IA$6,"<="&$M116) -> 155.6216957 | Q121: =SUMIFS('Berekening variant 1'!$AG$1:$DW$1,'Berekening variant 1'!$AG$5:$DW$5,">"&$M116,'Berekening variant 1'!$AG$6:$DW$6,"<="&$M116) -> 0 | R121: =SUMIFS('Berekening variant 1'!$JS$1:$JX$1,'Berekening variant 1'!$JS$5:$JX$5,">="&$M116,'Berekening variant 1'!$JS$6:$JX$6,"<"&$M116,'Berekening variant 1'!$JS$8:$JX$8,TRUE) -> 73.89124062 | S121: =SUMIFS('Berekening variant 1'!$LC$1:$LH$1,'Berekening variant 1'!$LC$5:$LH$5,">"&$M116,'Berekening variant 1'!$LC$6:$LH$6,"<="&$M116,'Berekening variant 1'!$LC$8:$LH$8,TRUE) -> 376.5937582 | T121: =SUMIFS('Berekening variant 1'!$GR$1:$IA$1,'Berekening variant 1'!$GR$5:$IA$5,">"&$M116,'Berekening variant 1'!$GR$6:$IA$6,"<="&$M116,'Berekening variant 1'!$GR$8:$IA$8,TRUE) -> 6.296294819 | U121: =SUMIFS('Berekening variant 1'!$AG$1:$DW$1,'Berekening variant 1'!$AG$5:$DW$5,">"&$M116,'Berekening variant 1'!$AG$6:$DW$6,"<="&$M116,'Berekening variant 1'!$AG$8:$DW$8,TRUE) -> 0 | V121: =SUMIFS('Berekening variant 1'!$JS$1:$JX$1,'Berekening variant 1'!$JS$6:$JX$6,">="&$M116) -> 0 | W121: =SUMIFS('Berekening variant 1'!$LC$1:$LH$1,'Berekening variant 1'!$LC$6:$LH$6,">"&$M116) -> 0 | X121: =SUMIFS('Berekening variant 1'!$GR$1:$IA$1,'Berekening variant 1'!$GR$6:$IA$6,">"&$M116) -> 32.33450583 | Y121: =SUMIFS('Berekening variant 1'!$AG$1:$DW$1,'Berekening variant 1'!$AG$6:$DW$6,">"&$M116) -> 27.92965997 | Z121: =SUMIFS('Berekening variant 1'!$JS$1:$JX$1,'Berekening variant 1'!$JS$6:$JX$6,">="&$M116,'Berekening variant 1'!$JS$8:$JX$8,TRUE) -> 0 | AA121: =SUMIFS('Berekening variant 1'!$LC$1:$LH$1,'Berekening variant 1'!$LC$6:$LH$6,">"&$M116,'Berekening variant 1'!$LC$8:$LH$8,TRUE) -> 0 | AB121: =SUMIFS('Berekening variant 1'!$GR$1:$IA$1,'Berekening variant 1'!$GR$6:$IA$6,">"&$M116,'Berekening variant 1'!$GR$8:$IA$8,TRUE) -> 29.66158952 | AC121: =SUMIFS('Berekening variant 1'!$AG$1:$DW$1,'Berekening variant 1'!$AG$6:$DW$6,">"&$M116,'Berekening variant 1'!$AG$8:$DW$8,TRUE) -> 7.069162251 | AD121: 0.06326186567 | AE121: 2.737902828 | AF121: 0.09873858004 | AG121: 1.227906703 | AH121: 7.008694797 | AI121: 7
J122: 2 sterren | N122: =SUMIFS('Berekening variant 1'!$JS$1:$JX$1,'Berekening variant 1'!$JS$5:$JX$5,">="&$M117,'Berekening variant 1'!$JS$6:$JX$6,"<"&$M117) -> 128.9960755 | O122: =SUMIFS('Berekening variant 1'!$LC$1:$LH$1,'Berekening variant 1'!$LC$5:$LH$5,">"&$M117,'Berekening variant 1'!$LC$6:$LH$6,"<="&$M117) -> 1190.663374 | P122: =SUMIFS('Berekening variant 1'!$GR$1:$IA$1,'Berekening variant 1'!$GR$5:$IA$5,">"&$M117,'Berekening variant 1'!$GR$6:$IA$6,"<="&$M117) -> 155.6216957 | Q122: =SUMIFS('Berekening variant 1'!$AG$1:$DW$1,'Berekening variant 1'!$AG$5:$DW$5,">"&$M117,'Berekening variant 1'!$AG$6:$DW$6,"<="&$M117) -> 0 | R122: =SUMIFS('Berekening variant 1'!$JS$1:$JX$1,'Berekening variant 1'!$JS$5:$JX$5,">="&$M117,'Berekening variant 1'!$JS$6:$JX$6,"<"&$M117,'Berekening variant 1'!$JS$8:$JX$8,TRUE) -> 73.89124062 | S122: =SUMIFS('Berekening variant 1'!$LC$1:$LH$1,'Berekening variant 1'!$LC$5:$LH$5,">"&$M117,'Berekening variant 1'!$LC$6:$LH$6,"<="&$M117,'Berekening variant 1'!$LC$8:$LH$8,TRUE) -> 376.5937582 | T122: =SUMIFS('Berekening variant 1'!$GR$1:$IA$1,'Berekening variant 1'!$GR$5:$IA$5,">"&$M117,'Berekening variant 1'!$GR$6:$IA$6,"<="&$M117,'Berekening variant 1'!$GR$8:$IA$8,TRUE) -> 6.296294819 | U122: =SUMIFS('Berekening variant 1'!$AG$1:$DW$1,'Berekening variant 1'!$AG$5:$DW$5,">"&$M117,'Berekening variant 1'!$AG$6:$DW$6,"<="&$M117,'Berekening variant 1'!$AG$8:$DW$8,TRUE) -> 0 | V122: =SUMIFS('Berekening variant 1'!$JS$1:$JX$1,'Berekening variant 1'!$JS$6:$JX$6,">="&$M117) -> 0 | W122: =SUMIFS('Berekening variant 1'!$LC$1:$LH$1,'Berekening variant 1'!$LC$6:$LH$6,">"&$M117) -> 0 | X122: =SUMIFS('Berekening variant 1'!$GR$1:$IA$1,'Berekening variant 1'!$GR$6:$IA$6,">"&$M117) -> 32.33450583 | Y122: =SUMIFS('Berekening variant 1'!$AG$1:$DW$1,'Berekening variant 1'!$AG$6:$DW$6,">"&$M117) -> 27.92965997 | Z122: =SUMIFS('Berekening variant 1'!$JS$1:$JX$1,'Berekening variant 1'!$JS$6:$JX$6,">="&$M117,'Berekening variant 1'!$JS$8:$JX$8,TRUE) -> 0 | AA122: =SUMIFS('Berekening variant 1'!$LC$1:$LH$1,'Berekening variant 1'!$LC$6:$LH$6,">"&$M117,'Berekening variant 1'!$LC$8:$LH$8,TRUE) -> 0 | AB122: =SUMIFS('Berekening variant 1'!$GR$1:$IA$1,'Berekening variant 1'!$GR$6:$IA$6,">"&$M117,'Berekening variant 1'!$GR$8:$IA$8,TRUE) -> 29.66158952 | AC122: =SUMIFS('Berekening variant 1'!$AG$1:$DW$1,'Berekening variant 1'!$AG$6:$DW$6,">"&$M117,'Berekening variant 1'!$AG$8:$DW$8,TRUE) -> 7.069162251 | AD122: 0.06326186567 | AE122: 2.737902828 | AF122: 0.09873858004 | AG122: 1.227906703 | AH122: 7.008694797 | AI122: 7
M123: breedte | N123: =SUMIFS('Berekening variant 1'!$JS$1:$JX$1,'Berekening variant 1'!$JS$5:$JX$5,">="&$M118,'Berekening variant 1'!$JS$6:$JX$6,"<"&$M118) -> 128.9960755 | O123: =SUMIFS('Berekening variant 1'!$LC$1:$LH$1,'Berekening variant 1'!$LC$5:$LH$5,">"&$M118,'Berekening variant 1'!$LC$6:$LH$6,"<="&$M118) -> 1190.663374 | P123: =SUMIFS('Berekening variant 1'!$GR$1:$IA$1,'Berekening variant 1'!$GR$5:$IA$5,">"&$M118,'Berekening variant 1'!$GR$6:$IA$6,"<="&$M118) -> 155.6216957 | Q123: =SUMIFS('Berekening variant 1'!$AG$1:$DW$1,'Berekening variant 1'!$AG$5:$DW$5,">"&$M118,'Berekening variant 1'!$AG$6:$DW$6,"<="&$M118) -> 0 | R123: =SUMIFS('Berekening variant 1'!$JS$1:$JX$1,'Berekening variant 1'!$JS$5:$JX$5,">="&$M118,'Berekening variant 1'!$JS$6:$JX$6,"<"&$M118,'Berekening variant 1'!$JS$8:$JX$8,TRUE) -> 73.89124062 | S123: =SUMIFS('Berekening variant 1'!$LC$1:$LH$1,'Berekening variant 1'!$LC$5:$LH$5,">"&$M118,'Berekening variant 1'!$LC$6:$LH$6,"<="&$M118,'Berekening variant 1'!$LC$8:$LH$8,TRUE) -> 376.5937582 | T123: =SUMIFS('Berekening variant 1'!$GR$1:$IA$1,'Berekening variant 1'!$GR$5:$IA$5,">"&$M118,'Berekening variant 1'!$GR$6:$IA$6,"<="&$M118,'Berekening variant 1'!$GR$8:$IA$8,TRUE) -> 6.296294819 | U123: =SUMIFS('Berekening variant 1'!$AG$1:$DW$1,'Berekening variant 1'!$AG$5:$DW$5,">"&$M118,'Berekening variant 1'!$AG$6:$DW$6,"<="&$M118,'Berekening variant 1'!$AG$8:$DW$8,TRUE) -> 0 | V123: =SUMIFS('Berekening variant 1'!$JS$1:$JX$1,'Berekening variant 1'!$JS$6:$JX$6,">="&$M118) -> 0 | W123: =SUMIFS('Berekening variant 1'!$LC$1:$LH$1,'Berekening variant 1'!$LC$6:$LH$6,">"&$M118) -> 0 | X123: =SUMIFS('Berekening variant 1'!$GR$1:$IA$1,'Berekening variant 1'!$GR$6:$IA$6,">"&$M118) -> 32.33450583 | Y123: =SUMIFS('Berekening variant 1'!$AG$1:$DW$1,'Berekening variant 1'!$AG$6:$DW$6,">"&$M118) -> 27.92965997 | Z123: =SUMIFS('Berekening variant 1'!$JS$1:$JX$1,'Berekening variant 1'!$JS$6:$JX$6,">="&$M118,'Berekening variant 1'!$JS$8:$JX$8,TRUE) -> 0 | AA123: =SUMIFS('Berekening variant 1'!$LC$1:$LH$1,'Berekening variant 1'!$LC$6:$LH$6,">"&$M118,'Berekening variant 1'!$LC$8:$LH$8,TRUE) -> 0 | AB123: =SUMIFS('Berekening variant 1'!$GR$1:$IA$1,'Berekening variant 1'!$GR$6:$IA$6,">"&$M118,'Berekening variant 1'!$GR$8:$IA$8,TRUE) -> 29.66158952 | AC123: =SUMIFS('Berekening variant 1'!$AG$1:$DW$1,'Berekening variant 1'!$AG$6:$DW$6,">"&$M118,'Berekening variant 1'!$AG$8:$DW$8,TRUE) -> 7.069162251 | AD123: 0.06326186567 | AE123: 2.737902828 | AF123: 0.09873858004 | AG123: 1.227906703 | AH123: 7.008694797 | AI123: 7
J124: 1 | K124: =AH129<AI129 -> FALSE | L124: TRUE | M124: 1000 | N124: =SUMIFS('Berekening variant 1'!$JS$1:$JX$1,'Berekening variant 1'!$JS$5:$JX$5,">="&$M119,'Berekening variant 1'!$JS$6:$JX$6,"<"&$M119) -> 128.9960755 | O124: =SUMIFS('Berekening variant 1'!$LC$1:$LH$1,'Berekening variant 1'!$LC$5:$LH$5,">"&$M119,'Berekening variant 1'!$LC$6:$LH$6,"<="&$M119) -> 1190.663374 | P124: =SUMIFS('Berekening variant 1'!$GR$1:$IA$1,'Berekening variant 1'!$GR$5:$IA$5,">"&$M119,'Berekening variant 1'!$GR$6:$IA$6,"<="&$M119) -> 155.6216957 | Q124: =SUMIFS('Berekening variant 1'!$AG$1:$DW$1,'Berekening variant 1'!$AG$5:$DW$5,">"&$M119,'Berekening variant 1'!$AG$6:$DW$6,"<="&$M119) -> 0 | R124: =SUMIFS('Berekening variant 1'!$JS$1:$JX$1,'Berekening variant 1'!$JS$5:$JX$5,">="&$M119,'Berekening variant 1'!$JS$6:$JX$6,"<"&$M119,'Berekening variant 1'!$JS$8:$JX$8,TRUE) -> 73.89124062 | S124: =SUMIFS('Berekening variant 1'!$LC$1:$LH$1,'Berekening variant 1'!$LC$5:$LH$5,">"&$M119,'Berekening variant 1'!$LC$6:$LH$6,"<="&$M119,'Berekening variant 1'!$LC$8:$LH$8,TRUE) -> 376.5937582 | T124: =SUMIFS('Berekening variant 1'!$GR$1:$IA$1,'Berekening variant 1'!$GR$5:$IA$5,">"&$M119,'Berekening variant 1'!$GR$6:$IA$6,"<="&$M119,'Berekening variant 1'!$GR$8:$IA$8,TRUE) -> 6.296294819 | U124: =SUMIFS('Berekening variant 1'!$AG$1:$DW$1,'Berekening variant 1'!$AG$5:$DW$5,">"&$M119,'Berekening variant 1'!$AG$6:$DW$6,"<="&$M119,'Berekening variant 1'!$AG$8:$DW$8,TRUE) -> 0 | V124: =SUMIFS('Berekening variant 1'!$JS$1:$JX$1,'Berekening variant 1'!$JS$6:$JX$6,">="&$M119) -> 0 | W124: =SUMIFS('Berekening variant 1'!$LC$1:$LH$1,'Berekening variant 1'!$LC$6:$LH$6,">"&$M119) -> 0 | X124: =SUMIFS('Berekening variant 1'!$GR$1:$IA$1,'Berekening variant 1'!$GR$6:$IA$6,">"&$M119) -> 32.33450583 | Y124: =SUMIFS('Berekening variant 1'!$AG$1:$DW$1,'Berekening variant 1'!$AG$6:$DW$6,">"&$M119) -> 27.92965997 | Z124: =SUMIFS('Berekening variant 1'!$JS$1:$JX$1,'Berekening variant 1'!$JS$6:$JX$6,">="&$M119,'Berekening variant 1'!$JS$8:$JX$8,TRUE) -> 0 | AA124: =SUMIFS('Berekening variant 1'!$LC$1:$LH$1,'Berekening variant 1'!$LC$6:$LH$6,">"&$M119,'Berekening variant 1'!$LC$8:$LH$8,TRUE) -> 0 | AB124: =SUMIFS('Berekening variant 1'!$GR$1:$IA$1,'Berekening variant 1'!$GR$6:$IA$6,">"&$M119,'Berekening variant 1'!$GR$8:$IA$8,TRUE) -> 29.66158952 | AC124: =SUMIFS('Berekening variant 1'!$AG$1:$DW$1,'Berekening variant 1'!$AG$6:$DW$6,">"&$M119,'Berekening variant 1'!$AG$8:$DW$8,TRUE) -> 7.069162251 | AD124: 0.06326186567 | AE124: 2.737902828 | AF124: 0.09873858004 | AG124: 1.227906703 | AH124: 7.008694797 | AI124: 7
J125: 2 | K125: TRUE | L125: =AH130>AI130 -> FALSE | M125: 0
J126: 3 | K126: =AH131<AI131 -> FALSE | L126: =AH131>AI131 -> TRUE | M126: =ROUND(AVERAGE(M124:M125),0) -> 500
J127: 4 | K127: =AH132<AI132 -> TRUE | L127: =AH132>AI132 -> FALSE | M127: =ROUND(AVERAGE(INDEX(M$124:M126,_xlfn.MAXIFS(J$124:J126,K$124:K126,TRUE),1),INDEX(M$124:M126,_xlfn.MAXIFS(J$124:J126,L$124:L126,TRUE),1)),0) -> 250 | N127: geel | V127: rood | AD127: zonder brommer per fietser | AF127: met brommer per fietser
J128: 5 | K128: =AH133<AI133 -> FALSE | L128: =AH133>AI133 -> TRUE | M128: =ROUND(AVERAGE(INDEX(M$124:M127,_xlfn.MAXIFS(J$124:J127,K$124:K127,TRUE),1),INDEX(M$124:M127,_xlfn.MAXIFS(J$124:J127,L$124:L127,TRUE),1)),0) -> 375 | N128: enkelvoudige inhaalbewegingen | O128: enkelvoudige tegemoetkomingen | P128: inhaalbeweging met enkelvoudige tegemoetkomingen | Q128: inhaalbeweging met dubbele tegemoetkomingen | R128: enkelvoudige inhaalbewegingen met brommer | S128: enkelvoudige tegemoetkomingen met brommer | T128: inhaalbeweging met enkelvoudige tegemoetkomingen met brommer | U128: inhaalbeweging met dubbele tegemoetkomingen met brommer | V128: enkelvoudige inhaalbewegingen | W128: enkelvoudige tegemoetkomingen | X128: inhaalbeweging met enkelvoudige tegemoetkomingen | Y128: inhaalbeweging met dubbele tegemoetkomingen | Z128: enkelvoudige inhaalbewegingen met brommer | AA128: enkelvoudige tegemoetkomingen met brommer | AB128: inhaalbeweging met enkelvoudige tegemoetkomingen met brommer | AC128: inhaalbeweging met dubbele tegemoetkomingen met brommer | AD128: rood | AE128: geel | AF128: rood | AG128: geel | AH128: rapportcijfer | AI128: doel
J129: 6 | K129: FALSE | L129: TRUE | M129: =ROUND(AVERAGE(INDEX(M$124:M128,_xlfn.MAXIFS(J$124:J128,K$124:K128,TRUE),1),INDEX(M$124:M128,_xlfn.MAXIFS(J$124:J128,L$124:L128,TRUE),1)),0) -> 313 | N129: =SUMIFS('Berekening variant 1'!$JS$1:$JX$1,'Berekening variant 1'!$JS$5:$JX$5,">="&$M124,'Berekening variant 1'!$JS$6:$JX$6,"<"&$M124) -> 0 | O129: =SUMIFS('Berekening variant 1'!$LC$1:$LH$1,'Berekening variant 1'!$LC$5:$LH$5,">"&$M124,'Berekening variant 1'!$LC$6:$LH$6,"<="&$M124) -> 0 | P129: =SUMIFS('Berekening variant 1'!$GR$1:$IA$1,'Berekening variant 1'!$GR$5:$IA$5,">"&$M124,'Berekening variant 1'!$GR$6:$IA$6,"<="&$M124) -> 0 | Q129: =SUMIFS('Berekening variant 1'!$AG$1:$DW$1,'Berekening variant 1'!$AG$5:$DW$5,">"&$M124,'Berekening variant 1'!$AG$6:$DW$6,"<="&$M124) -> 0 | R129: =SUMIFS('Berekening variant 1'!$JS$1:$JX$1,'Berekening variant 1'!$JS$5:$JX$5,">="&$M124,'Berekening variant 1'!$JS$6:$JX$6,"<"&$M124,'Berekening variant 1'!$JS$8:$JX$8,TRUE) -> 0 | S129: =SUMIFS('Berekening variant 1'!$LC$1:$LH$1,'Berekening variant 1'!$LC$5:$LH$5,">"&$M124,'Berekening variant 1'!$LC$6:$LH$6,"<="&$M124,'Berekening variant 1'!$LC$8:$LH$8,TRUE) -> 0 | T129: =SUMIFS('Berekening variant 1'!$GR$1:$IA$1,'Berekening variant 1'!$GR$5:$IA$5,">"&$M124,'Berekening variant 1'!$GR$6:$IA$6,"<="&$M124,'Berekening variant 1'!$GR$8:$IA$8,TRUE) -> 0 | U129: =SUMIFS('Berekening variant 1'!$AG$1:$DW$1,'Berekening variant 1'!$AG$5:$DW$5,">"&$M124,'Berekening variant 1'!$AG$6:$DW$6,"<="&$M124,'Berekening variant 1'!$AG$8:$DW$8,TRUE) -> 0 | V129: =SUMIFS('Berekening variant 1'!$JS$1:$JX$1,'Berekening variant 1'!$JS$6:$JX$6,">="&$M124) -> 0 | W129: =SUMIFS('Berekening variant 1'!$LC$1:$LH$1,'Berekening variant 1'!$LC$6:$LH$6,">"&$M124) -> 0 | X129: =SUMIFS('Berekening variant 1'!$GR$1:$IA$1,'Berekening variant 1'!$GR$6:$IA$6,">"&$M124) -> 0 | Y129: =SUMIFS('Berekening variant 1'!$AG$1:$DW$1,'Berekening variant 1'!$AG$6:$DW$6,">"&$M124) -> 0 | Z129: =SUMIFS('Berekening variant 1'!$JS$1:$JX$1,'Berekening variant 1'!$JS$6:$JX$6,">="&$M124,'Berekening variant 1'!$JS$8:$JX$8,TRUE) -> 0 | AA129: =SUMIFS('Berekening variant 1'!$LC$1:$LH$1,'Berekening variant 1'!$LC$6:$LH$6,">"&$M124,'Berekening variant 1'!$LC$8:$LH$8,TRUE) -> 0 | AB129: =SUMIFS('Berekening variant 1'!$GR$1:$IA$1,'Berekening variant 1'!$GR$6:$IA$6,">"&$M124,'Berekening variant 1'!$GR$8:$IA$8,TRUE) -> 0 | AC129: =SUMIFS('Berekening variant 1'!$AG$1:$DW$1,'Berekening variant 1'!$AG$6:$DW$6,">"&$M124,'Berekening variant 1'!$AG$8:$DW$8,TRUE) -> 0 | AD129: =(SUM(V129:Y129)-SUM(Z129:AC129))/int_uur -> 0 | AE129: =(SUM(N129:Q129)-SUM(R129:U129))/int_uur -> 0 | AF129: =SUM(Z129:AC129)/int_uur -> 0 | AG129: =SUM(R129:U129)/int_uur -> 0 | AH129: =$B$97+$B$98*SQRT($B$91*AD129+$B$92*AE129+$B$93*AF129+$B$94*AG129) -> 7.867 | AI129: =$F$93 -> 6.5
J130: 7 | K130: FALSE | L130: TRUE | M130: =ROUND(AVERAGE(INDEX(M$124:M129,_xlfn.MAXIFS(J$124:J129,K$124:K129,TRUE),1),INDEX(M$124:M129,_xlfn.MAXIFS(J$124:J129,L$124:L129,TRUE),1)),0) -> 282 | N130: =SUMIFS('Berekening variant 1'!$JS$1:$JX$1,'Berekening variant 1'!$JS$5:$JX$5,">="&$M125,'Berekening variant 1'!$JS$6:$JX$6,"<"&$M125) -> 0 | O130: =SUMIFS('Berekening variant 1'!$LC$1:$LH$1,'Berekening variant 1'!$LC$5:$LH$5,">"&$M125,'Berekening variant 1'!$LC$6:$LH$6,"<="&$M125) -> 0 | P130: =SUMIFS('Berekening variant 1'!$GR$1:$IA$1,'Berekening variant 1'!$GR$5:$IA$5,">"&$M125,'Berekening variant 1'!$GR$6:$IA$6,"<="&$M125) -> 0 | Q130: =SUMIFS('Berekening variant 1'!$AG$1:$DW$1,'Berekening variant 1'!$AG$5:$DW$5,">"&$M125,'Berekening variant 1'!$AG$6:$DW$6,"<="&$M125) -> 0 | R130: =SUMIFS('Berekening variant 1'!$JS$1:$JX$1,'Berekening variant 1'!$JS$5:$JX$5,">="&$M125,'Berekening variant 1'!$JS$6:$JX$6,"<"&$M125,'Berekening variant 1'!$JS$8:$JX$8,TRUE) -> 0 | S130: =SUMIFS('Berekening variant 1'!$LC$1:$LH$1,'Berekening variant 1'!$LC$5:$LH$5,">"&$M125,'Berekening variant 1'!$LC$6:$LH$6,"<="&$M125,'Berekening variant 1'!$LC$8:$LH$8,TRUE) -> 0 | T130: =SUMIFS('Berekening variant 1'!$GR$1:$IA$1,'Berekening variant 1'!$GR$5:$IA$5,">"&$M125,'Berekening variant 1'!$GR$6:$IA$6,"<="&$M125,'Berekening variant 1'!$GR$8:$IA$8,TRUE) -> 0 | U130: =SUMIFS('Berekening variant 1'!$AG$1:$DW$1,'Berekening variant 1'!$AG$5:$DW$5,">"&$M125,'Berekening variant 1'!$AG$6:$DW$6,"<="&$M125,'Berekening variant 1'!$AG$8:$DW$8,TRUE) -> 0 | V130: =SUMIFS('Berekening variant 1'!$JS$1:$JX$1,'Berekening variant 1'!$JS$6:$JX$6,">="&$M125) -> 438.540695 | W130: =SUMIFS('Berekening variant 1'!$LC$1:$LH$1,'Berekening variant 1'!$LC$6:$LH$6,">"&$M125) -> 5763.59913 | X130: =SUMIFS('Berekening variant 1'!$GR$1:$IA$1,'Berekening variant 1'!$GR$6:$IA$6,">"&$M125) -> 187.9562016 | Y130: =SUMIFS('Berekening variant 1'!$AG$1:$DW$1,'Berekening variant 1'!$AG$6:$DW$6,">"&$M125) -> 27.92965997 | Z130: =SUMIFS('Berekening variant 1'!$JS$1:$JX$1,'Berekening variant 1'!$JS$6:$JX$6,">="&$M125,'Berekening variant 1'!$JS$8:$JX$8,TRUE) -> 73.89124062 | AA130: =SUMIFS('Berekening variant 1'!$LC$1:$LH$1,'Berekening variant 1'!$LC$6:$LH$6,">"&$M125,'Berekening variant 1'!$LC$8:$LH$8,TRUE) -> 376.5937582 | AB130: =SUMIFS('Berekening variant 1'!$GR$1:$IA$1,'Berekening variant 1'!$GR$6:$IA$6,">"&$M125,'Berekening variant 1'!$GR$8:$IA$8,TRUE) -> 35.95788434 | AC130: =SUMIFS('Berekening variant 1'!$AG$1:$DW$1,'Berekening variant 1'!$AG$6:$DW$6,">"&$M125,'Berekening variant 1'!$AG$8:$DW$8,TRUE) -> 7.069162251 | AD130: 15.92611194 | AE130: 0 | AF130: 1.326645283 | AG130: 0 | AH130: =$B$97+$B$98*SQRT($B$91*AD130+$B$92*AE130+$B$93*AF130+$B$94*AG130) -> 5.197687043 | AI130: =$F$93 -> 6.5
J131: 8 | K131: FALSE | L131: TRUE | M131: =ROUND(AVERAGE(INDEX(M$124:M130,_xlfn.MAXIFS(J$124:J130,K$124:K130,TRUE),1),INDEX(M$124:M130,_xlfn.MAXIFS(J$124:J130,L$124:L130,TRUE),1)),0) -> 266 | N131: =SUMIFS('Berekening variant 1'!$JS$1:$JX$1,'Berekening variant 1'!$JS$5:$JX$5,">="&$M126,'Berekening variant 1'!$JS$6:$JX$6,"<"&$M126) -> 0 | O131: =SUMIFS('Berekening variant 1'!$LC$1:$LH$1,'Berekening variant 1'!$LC$5:$LH$5,">"&$M126,'Berekening variant 1'!$LC$6:$LH$6,"<="&$M126) -> 0 | P131: =SUMIFS('Berekening variant 1'!$GR$1:$IA$1,'Berekening variant 1'!$GR$5:$IA$5,">"&$M126,'Berekening variant 1'!$GR$6:$IA$6,"<="&$M126) -> 32.09322813 | Q131: =SUMIFS('Berekening variant 1'!$AG$1:$DW$1,'Berekening variant 1'!$AG$5:$DW$5,">"&$M126,'Berekening variant 1'!$AG$6:$DW$6,"<="&$M126) -> 10.30884034 | R131: =SUMIFS('Berekening variant 1'!$JS$1:$JX$1,'Berekening variant 1'!$JS$5:$JX$5,">="&$M126,'Berekening variant 1'!$JS$6:$JX$6,"<"&$M126,'Berekening variant 1'!$JS$8:$JX$8,TRUE) -> 0 | S131: =SUMIFS('Berekening variant 1'!$LC$1:$LH$1,'Berekening variant 1'!$LC$5:$LH$5,">"&$M126,'Berekening variant 1'!$LC$6:$LH$6,"<="&$M126,'Berekening variant 1'!$LC$8:$LH$8,TRUE) -> 0 | T131: =SUMIFS('Berekening variant 1'!$GR$1:$IA$1,'Berekening variant 1'!$GR$5:$IA$5,">"&$M126,'Berekening variant 1'!$GR$6:$IA$6,"<="&$M126,'Berekening variant 1'!$GR$8:$IA$8,TRUE) -> 29.49426603 | U131: =SUMIFS('Berekening variant 1'!$AG$1:$DW$1,'Berekening variant 1'!$AG$5:$DW$5,">"&$M126,'Berekening variant 1'!$AG$6:$DW$6,"<="&$M126,'Berekening variant 1'!$AG$8:$DW$8,TRUE) -> 5.175923499 | V131: =SUMIFS('Berekening variant 1'!$JS$1:$JX$1,'Berekening variant 1'!$JS$6:$JX$6,">="&$M126) -> 0 | W131: =SUMIFS('Berekening variant 1'!$LC$1:$LH$1,'Berekening variant 1'!$LC$6:$LH$6,">"&$M126) -> 0 | X131: =SUMIFS('Berekening variant 1'!$GR$1:$IA$1,'Berekening variant 1'!$GR$6:$IA$6,">"&$M126) -> 0.2412777053 | Y131: =SUMIFS('Berekening variant 1'!$AG$1:$DW$1,'Berekening variant 1'!$AG$6:$DW$6,">"&$M126) -> 2.58870603 | Z131: =SUMIFS('Berekening variant 1'!$JS$1:$JX$1,'Berekening variant 1'!$JS$6:$JX$6,">="&$M126,'Berekening variant 1'!$JS$8:$JX$8,TRUE) -> 0 | AA131: =SUMIFS('Berekening variant 1'!$LC$1:$LH$1,'Berekening variant 1'!$LC$6:$LH$6,">"&$M126,'Berekening variant 1'!$LC$8:$LH$8,TRUE) -> 0 | AB131: =SUMIFS('Berekening variant 1'!$GR$1:$IA$1,'Berekening variant 1'!$GR$6:$IA$6,">"&$M126,'Berekening variant 1'!$GR$8:$IA$8,TRUE) -> 0.167323499 | AC131: =SUMIFS('Berekening variant 1'!$AG$1:$DW$1,'Berekening variant 1'!$AG$6:$DW$6,">"&$M126,'Berekening variant 1'!$AG$8:$DW$8,TRUE) -> 1.893238752 | AD131: 0.002068337323 | AE131: 0.02078462082 | AF131: 0.005539145836 | AG131: 0.0931994342 | AH131: 7.666624793 | AI131: 6.5
J132: 9 | K132: TRUE | L132: FALSE | M132: =ROUND(AVERAGE(INDEX(M$124:M131,_xlfn.MAXIFS(J$124:J131,K$124:K131,TRUE),1),INDEX(M$124:M131,_xlfn.MAXIFS(J$124:J131,L$124:L131,TRUE),1)),0) -> 258 | N132: =SUMIFS('Berekening variant 1'!$JS$1:$JX$1,'Berekening variant 1'!$JS$5:$JX$5,">="&$M127,'Berekening variant 1'!$JS$6:$JX$6,"<"&$M127) -> 377.0343255 | O132: =SUMIFS('Berekening variant 1'!$LC$1:$LH$1,'Berekening variant 1'!$LC$5:$LH$5,">"&$M127,'Berekening variant 1'!$LC$6:$LH$6,"<="&$M127) -> 4914.580576 | P132: =SUMIFS('Berekening variant 1'!$GR$1:$IA$1,'Berekening variant 1'!$GR$5:$IA$5,">"&$M127,'Berekening variant 1'!$GR$6:$IA$6,"<="&$M127) -> 0 | Q132: =SUMIFS('Berekening variant 1'!$AG$1:$DW$1,'Berekening variant 1'!$AG$5:$DW$5,">"&$M127,'Berekening variant 1'!$AG$6:$DW$6,"<="&$M127) -> 0 | R132: =SUMIFS('Berekening variant 1'!$JS$1:$JX$1,'Berekening variant 1'!$JS$5:$JX$5,">="&$M127,'Berekening variant 1'!$JS$6:$JX$6,"<"&$M127,'Berekening variant 1'!$JS$8:$JX$8,TRUE) -> 67.48970596 | S132: =SUMIFS('Berekening variant 1'!$LC$1:$LH$1,'Berekening variant 1'!$LC$5:$LH$5,">"&$M127,'Berekening variant 1'!$LC$6:$LH$6,"<="&$M127,'Berekening variant 1'!$LC$8:$LH$8,TRUE) -> 341.6448206 | T132: =SUMIFS('Berekening variant 1'!$GR$1:$IA$1,'Berekening variant 1'!$GR$5:$IA$5,">"&$M127,'Berekening variant 1'!$GR$6:$IA$6,"<="&$M127,'Berekening variant 1'!$GR$8:$IA$8,TRUE) -> 0 | U132: =SUMIFS('Berekening variant 1'!$AG$1:$DW$1,'Berekening variant 1'!$AG$5:$DW$5,">"&$M127,'Berekening variant 1'!$AG$6:$DW$6,"<="&$M127,'Berekening variant 1'!$AG$8:$DW$8,TRUE) -> 0 | V132: =SUMIFS('Berekening variant 1'!$JS$1:$JX$1,'Berekening variant 1'!$JS$6:$JX$6,">="&$M127) -> 61.50636951 | W132: =SUMIFS('Berekening variant 1'!$LC$1:$LH$1,'Berekening variant 1'!$LC$6:$LH$6,">"&$M127) -> 849.0185538 | X132: =SUMIFS('Berekening variant 1'!$GR$1:$IA$1,'Berekening variant 1'!$GR$6:$IA$6,">"&$M127) -> 187.9562016 | Y132: =SUMIFS('Berekening variant 1'!$AG$1:$DW$1,'Berekening variant 1'!$AG$6:$DW$6,">"&$M127) -> 27.92965997 | Z132: =SUMIFS('Berekening variant 1'!$JS$1:$JX$1,'Berekening variant 1'!$JS$6:$JX$6,">="&$M127,'Berekening variant 1'!$JS$8:$JX$8,TRUE) -> 6.401534654 | AA132: =SUMIFS('Berekening variant 1'!$LC$1:$LH$1,'Berekening variant 1'!$LC$6:$LH$6,">"&$M127,'Berekening variant 1'!$LC$8:$LH$8,TRUE) -> 34.94893755 | AB132: =SUMIFS('Berekening variant 1'!$GR$1:$IA$1,'Berekening variant 1'!$GR$6:$IA$6,">"&$M127,'Berekening variant 1'!$GR$8:$IA$8,TRUE) -> 35.95788434 | AC132: =SUMIFS('Berekening variant 1'!$AG$1:$DW$1,'Berekening variant 1'!$AG$6:$DW$6,">"&$M127,'Berekening variant 1'!$AG$8:$DW$8,TRUE) -> 7.069162251 | AD132: 2.801164694 | AE132: 13.12494725 | AF132: 0.2268212871 | AG132: 1.099823996 | AH132: 6.311560592 | AI132: 6.5
J133: 10 | K133: FALSE | L133: TRUE | M133: =ROUND(AVERAGE(INDEX(M$124:M132,_xlfn.MAXIFS(J$124:J132,K$124:K132,TRUE),1),INDEX(M$124:M132,_xlfn.MAXIFS(J$124:J132,L$124:L132,TRUE),1)),0) -> 262 | N133: =SUMIFS('Berekening variant 1'!$JS$1:$JX$1,'Berekening variant 1'!$JS$5:$JX$5,">="&$M128,'Berekening variant 1'!$JS$6:$JX$6,"<"&$M128) -> 8.657288128 | O133: =SUMIFS('Berekening variant 1'!$LC$1:$LH$1,'Berekening variant 1'!$LC$5:$LH$5,">"&$M128,'Berekening variant 1'!$LC$6:$LH$6,"<="&$M128) -> 68.27342477 | P133: =SUMIFS('Berekening variant 1'!$GR$1:$IA$1,'Berekening variant 1'!$GR$5:$IA$5,">"&$M128,'Berekening variant 1'!$GR$6:$IA$6,"<="&$M128) -> 178.5825775 | Q133: =SUMIFS('Berekening variant 1'!$AG$1:$DW$1,'Berekening variant 1'!$AG$5:$DW$5,">"&$M128,'Berekening variant 1'!$AG$6:$DW$6,"<="&$M128) -> 15.0321136 | R133: =SUMIFS('Berekening variant 1'!$JS$1:$JX$1,'Berekening variant 1'!$JS$5:$JX$5,">="&$M128,'Berekening variant 1'!$JS$6:$JX$6,"<"&$M128,'Berekening variant 1'!$JS$8:$JX$8,TRUE) -> 6.401534654 | S133: =SUMIFS('Berekening variant 1'!$LC$1:$LH$1,'Berekening variant 1'!$LC$5:$LH$5,">"&$M128,'Berekening variant 1'!$LC$6:$LH$6,"<="&$M128,'Berekening variant 1'!$LC$8:$LH$8,TRUE) -> 34.94893755 | T133: =SUMIFS('Berekening variant 1'!$GR$1:$IA$1,'Berekening variant 1'!$GR$5:$IA$5,">"&$M128,'Berekening variant 1'!$GR$6:$IA$6,"<="&$M128,'Berekening variant 1'!$GR$8:$IA$8,TRUE) -> 29.2571766 | U133: =SUMIFS('Berekening variant 1'!$AG$1:$DW$1,'Berekening variant 1'!$AG$5:$DW$5,">"&$M128,'Berekening variant 1'!$AG$6:$DW$6,"<="&$M128,'Berekening variant 1'!$AG$8:$DW$8,TRUE) -> 0 | V133: =SUMIFS('Berekening variant 1'!$JS$1:$JX$1,'Berekening variant 1'!$JS$6:$JX$6,">="&$M128) -> 0 | W133: =SUMIFS('Berekening variant 1'!$LC$1:$LH$1,'Berekening variant 1'!$LC$6:$LH$6,">"&$M128) -> 0 | X133: =SUMIFS('Berekening variant 1'!$GR$1:$IA$1,'Berekening variant 1'!$GR$6:$IA$6,">"&$M128) -> 9.373624049 | Y133: =SUMIFS('Berekening variant 1'!$AG$1:$DW$1,'Berekening variant 1'!$AG$6:$DW$6,">"&$M128) -> 12.89754637 | Z133: =SUMIFS('Berekening variant 1'!$JS$1:$JX$1,'Berekening variant 1'!$JS$6:$JX$6,">="&$M128,'Berekening variant 1'!$JS$8:$JX$8,TRUE) -> 0 | AA133: =SUMIFS('Berekening variant 1'!$LC$1:$LH$1,'Berekening variant 1'!$LC$6:$LH$6,">"&$M128,'Berekening variant 1'!$LC$8:$LH$8,TRUE) -> 0 | AB133: =SUMIFS('Berekening variant 1'!$GR$1:$IA$1,'Berekening variant 1'!$GR$6:$IA$6,">"&$M128,'Berekening variant 1'!$GR$8:$IA$8,TRUE) -> 6.700707738 | AC133: =SUMIFS('Berekening variant 1'!$AG$1:$DW$1,'Berekening variant 1'!$AG$6:$DW$6,">"&$M128,'Berekening variant 1'!$AG$8:$DW$8,TRUE) -> 7.069162251 | AD133: 0.02285295814 | AE133: 0.5374670839 | AF133: 0.03701577954 | AG133: 0.1898055076 | AH133: 7.467532717 | AI133: 6.5
J134: 11 | K134: TRUE | L134: FALSE | M134: =ROUND(AVERAGE(INDEX(M$124:M133,_xlfn.MAXIFS(J$124:J133,K$124:K133,TRUE),1),INDEX(M$124:M133,_xlfn.MAXIFS(J$124:J133,L$124:L133,TRUE),1)),0) -> 260 | N134: =SUMIFS('Berekening variant 1'!$JS$1:$JX$1,'Berekening variant 1'!$JS$5:$JX$5,">="&$M129,'Berekening variant 1'!$JS$6:$JX$6,"<"&$M129) -> 120.9790056 | O134: =SUMIFS('Berekening variant 1'!$LC$1:$LH$1,'Berekening variant 1'!$LC$5:$LH$5,">"&$M129,'Berekening variant 1'!$LC$6:$LH$6,"<="&$M129) -> 1128.174085 | P134: =SUMIFS('Berekening variant 1'!$GR$1:$IA$1,'Berekening variant 1'!$GR$5:$IA$5,">"&$M129,'Berekening variant 1'!$GR$6:$IA$6,"<="&$M129) -> 118.8804163 | Q134: =SUMIFS('Berekening variant 1'!$AG$1:$DW$1,'Berekening variant 1'!$AG$5:$DW$5,">"&$M129,'Berekening variant 1'!$AG$6:$DW$6,"<="&$M129) -> 0 | R134: =SUMIFS('Berekening variant 1'!$JS$1:$JX$1,'Berekening variant 1'!$JS$5:$JX$5,">="&$M129,'Berekening variant 1'!$JS$6:$JX$6,"<"&$M129,'Berekening variant 1'!$JS$8:$JX$8,TRUE) -> 68.12992425 | S134: =SUMIFS('Berekening variant 1'!$LC$1:$LH$1,'Berekening variant 1'!$LC$5:$LH$5,">"&$M129,'Berekening variant 1'!$LC$6:$LH$6,"<="&$M129,'Berekening variant 1'!$LC$8:$LH$8,TRUE) -> 347.4289564 | T134: =SUMIFS('Berekening variant 1'!$GR$1:$IA$1,'Berekening variant 1'!$GR$5:$IA$5,">"&$M129,'Berekening variant 1'!$GR$6:$IA$6,"<="&$M129,'Berekening variant 1'!$GR$8:$IA$8,TRUE) -> 0 | U134: =SUMIFS('Berekening variant 1'!$AG$1:$DW$1,'Berekening variant 1'!$AG$5:$DW$5,">"&$M129,'Berekening variant 1'!$AG$6:$DW$6,"<="&$M129,'Berekening variant 1'!$AG$8:$DW$8,TRUE) -> 0 | V134: =SUMIFS('Berekening variant 1'!$JS$1:$JX$1,'Berekening variant 1'!$JS$6:$JX$6,">="&$M129) -> 8.017069836 | W134: =SUMIFS('Berekening variant 1'!$LC$1:$LH$1,'Berekening variant 1'!$LC$6:$LH$6,">"&$M129) -> 62.48928898 | X134: =SUMIFS('Berekening variant 1'!$GR$1:$IA$1,'Berekening variant 1'!$GR$6:$IA$6,">"&$M129) -> 69.0757853 | Y134: =SUMIFS('Berekening variant 1'!$AG$1:$DW$1,'Berekening variant 1'!$AG$6:$DW$6,">"&$M129) -> 27.92965997 | Z134: =SUMIFS('Berekening variant 1'!$JS$1:$JX$1,'Berekening variant 1'!$JS$6:$JX$6,">="&$M129,'Berekening variant 1'!$JS$8:$JX$8,TRUE) -> 5.761316363 | AA134: =SUMIFS('Berekening variant 1'!$LC$1:$LH$1,'Berekening variant 1'!$LC$6:$LH$6,">"&$M129,'Berekening variant 1'!$LC$8:$LH$8,TRUE) -> 29.16480176 | AB134: =SUMIFS('Berekening variant 1'!$GR$1:$IA$1,'Berekening variant 1'!$GR$6:$IA$6,">"&$M129,'Berekening variant 1'!$GR$8:$IA$8,TRUE) -> 35.95788434 | AC134: =SUMIFS('Berekening variant 1'!$AG$1:$DW$1,'Berekening variant 1'!$AG$6:$DW$6,">"&$M129,'Berekening variant 1'!$AG$8:$DW$8,TRUE) -> 7.069162251 | AD134: 0.2407490306 | AE134: 2.560415663 | AF134: 0.2095515181 | AG134: 1.117093765 | AH134: 6.907034983 | AI134: 6.5
J135: 12 | K135: TRUE | L135: FALSE | M135: =ROUND(AVERAGE(INDEX(M$124:M134,_xlfn.MAXIFS(J$124:J134,K$124:K134,TRUE),1),INDEX(M$124:M134,_xlfn.MAXIFS(J$124:J134,L$124:L134,TRUE),1)),0) -> 261 | N135: =SUMIFS('Berekening variant 1'!$JS$1:$JX$1,'Berekening variant 1'!$JS$5:$JX$5,">="&$M130,'Berekening variant 1'!$JS$6:$JX$6,"<"&$M130) -> 120.3387873 | O135: =SUMIFS('Berekening variant 1'!$LC$1:$LH$1,'Berekening variant 1'!$LC$5:$LH$5,">"&$M130,'Berekening variant 1'!$LC$6:$LH$6,"<="&$M130) -> 1122.38995 | P135: =SUMIFS('Berekening variant 1'!$GR$1:$IA$1,'Berekening variant 1'!$GR$5:$IA$5,">"&$M130,'Berekening variant 1'!$GR$6:$IA$6,"<="&$M130) -> 118.8804163 | Q135: =SUMIFS('Berekening variant 1'!$AG$1:$DW$1,'Berekening variant 1'!$AG$5:$DW$5,">"&$M130,'Berekening variant 1'!$AG$6:$DW$6,"<="&$M130) -> 0 | R135: =SUMIFS('Berekening variant 1'!$JS$1:$JX$1,'Berekening variant 1'!$JS$5:$JX$5,">="&$M130,'Berekening variant 1'!$JS$6:$JX$6,"<"&$M130,'Berekening variant 1'!$JS$8:$JX$8,TRUE) -> 67.48970596 | S135: =SUMIFS('Berekening variant 1'!$LC$1:$LH$1,'Berekening variant 1'!$LC$5:$LH$5,">"&$M130,'Berekening variant 1'!$LC$6:$LH$6,"<="&$M130,'Berekening variant 1'!$LC$8:$LH$8,TRUE) -> 341.6448206 | T135: =SUMIFS('Berekening variant 1'!$GR$1:$IA$1,'Berekening variant 1'!$GR$5:$IA$5,">"&$M130,'Berekening variant 1'!$GR$6:$IA$6,"<="&$M130,'Berekening variant 1'!$GR$8:$IA$8,TRUE) -> 0 | U135: =SUMIFS('Berekening variant 1'!$AG$1:$DW$1,'Berekening variant 1'!$AG$5:$DW$5,">"&$M130,'Berekening variant 1'!$AG$6:$DW$6,"<="&$M130,'Berekening variant 1'!$AG$8:$DW$8,TRUE) -> 0 | V135: =SUMIFS('Berekening variant 1'!$JS$1:$JX$1,'Berekening variant 1'!$JS$6:$JX$6,">="&$M130) -> 8.657288128 | W135: =SUMIFS('Berekening variant 1'!$LC$1:$LH$1,'Berekening variant 1'!$LC$6:$LH$6,">"&$M130) -> 68.27342477 | X135: =SUMIFS('Berekening variant 1'!$GR$1:$IA$1,'Berekening variant 1'!$GR$6:$IA$6,">"&$M130) -> 69.0757853 | Y135: =SUMIFS('Berekening variant 1'!$AG$1:$DW$1,'Berekening variant 1'!$AG$6:$DW$6,">"&$M130) -> 27.92965997 | Z135: =SUMIFS('Berekening variant 1'!$JS$1:$JX$1,'Berekening variant 1'!$JS$6:$JX$6,">="&$M130,'Berekening variant 1'!$JS$8:$JX$8,TRUE) -> 6.401534654 | AA135: =SUMIFS('Berekening variant 1'!$LC$1:$LH$1,'Berekening variant 1'!$LC$6:$LH$6,">"&$M130,'Berekening variant 1'!$LC$8:$LH$8,TRUE) -> 34.94893755 | AB135: =SUMIFS('Berekening variant 1'!$GR$1:$IA$1,'Berekening variant 1'!$GR$6:$IA$6,">"&$M130,'Berekening variant 1'!$GR$8:$IA$8,TRUE) -> 35.95788434 | AC135: =SUMIFS('Berekening variant 1'!$AG$1:$DW$1,'Berekening variant 1'!$AG$6:$DW$6,">"&$M130,'Berekening variant 1'!$AG$8:$DW$8,TRUE) -> 7.069162251 | AD135: 0.2407490306 | AE135: 2.560415663 | AF135: 0.2268212871 | AG135: 1.099823996 | AH135: 6.895737396 | AI135: 6.5
J136: 13 | K136: FALSE | L136: TRUE | M136: =ROUND(AVERAGE(INDEX(M$124:M135,_xlfn.MAXIFS(J$124:J135,K$124:K135,TRUE),1),INDEX(M$124:M135,_xlfn.MAXIFS(J$124:J135,L$124:L135,TRUE),1)),0) -> 262 | N136: =SUMIFS('Berekening variant 1'!$JS$1:$JX$1,'Berekening variant 1'!$JS$5:$JX$5,">="&$M131,'Berekening variant 1'!$JS$6:$JX$6,"<"&$M131) -> 429.8834069 | O136: =SUMIFS('Berekening variant 1'!$LC$1:$LH$1,'Berekening variant 1'!$LC$5:$LH$5,">"&$M131,'Berekening variant 1'!$LC$6:$LH$6,"<="&$M131) -> 1122.38995 | P136: =SUMIFS('Berekening variant 1'!$GR$1:$IA$1,'Berekening variant 1'!$GR$5:$IA$5,">"&$M131,'Berekening variant 1'!$GR$6:$IA$6,"<="&$M131) -> 118.8804163 | Q136: =SUMIFS('Berekening variant 1'!$AG$1:$DW$1,'Berekening variant 1'!$AG$5:$DW$5,">"&$M131,'Berekening variant 1'!$AG$6:$DW$6,"<="&$M131) -> 0 | R136: =SUMIFS('Berekening variant 1'!$JS$1:$JX$1,'Berekening variant 1'!$JS$5:$JX$5,">="&$M131,'Berekening variant 1'!$JS$6:$JX$6,"<"&$M131,'Berekening variant 1'!$JS$8:$JX$8,TRUE) -> 67.48970596 | S136: =SUMIFS('Berekening variant 1'!$LC$1:$LH$1,'Berekening variant 1'!$LC$5:$LH$5,">"&$M131,'Berekening variant 1'!$LC$6:$LH$6,"<="&$M131,'Berekening variant 1'!$LC$8:$LH$8,TRUE) -> 341.6448206 | T136: =SUMIFS('Berekening variant 1'!$GR$1:$IA$1,'Berekening variant 1'!$GR$5:$IA$5,">"&$M131,'Berekening variant 1'!$GR$6:$IA$6,"<="&$M131,'Berekening variant 1'!$GR$8:$IA$8,TRUE) -> 0 | U136: =SUMIFS('Berekening variant 1'!$AG$1:$DW$1,'Berekening variant 1'!$AG$5:$DW$5,">"&$M131,'Berekening variant 1'!$AG$6:$DW$6,"<="&$M131,'Berekening variant 1'!$AG$8:$DW$8,TRUE) -> 0 | V136: =SUMIFS('Berekening variant 1'!$JS$1:$JX$1,'Berekening variant 1'!$JS$6:$JX$6,">="&$M131) -> 8.657288128 | W136: =SUMIFS('Berekening variant 1'!$LC$1:$LH$1,'Berekening variant 1'!$LC$6:$LH$6,">"&$M131) -> 68.27342477 | X136: =SUMIFS('Berekening variant 1'!$GR$1:$IA$1,'Berekening variant 1'!$GR$6:$IA$6,">"&$M131) -> 69.0757853 | Y136: =SUMIFS('Berekening variant 1'!$AG$1:$DW$1,'Berekening variant 1'!$AG$6:$DW$6,">"&$M131) -> 27.92965997 | Z136: =SUMIFS('Berekening variant 1'!$JS$1:$JX$1,'Berekening variant 1'!$JS$6:$JX$6,">="&$M131,'Berekening variant 1'!$JS$8:$JX$8,TRUE) -> 6.401534654 | AA136: =SUMIFS('Berekening variant 1'!$LC$1:$LH$1,'Berekening variant 1'!$LC$6:$LH$6,">"&$M131,'Berekening variant 1'!$LC$8:$LH$8,TRUE) -> 34.94893755 | AB136: =SUMIFS('Berekening variant 1'!$GR$1:$IA$1,'Berekening variant 1'!$GR$6:$IA$6,">"&$M131,'Berekening variant 1'!$GR$8:$IA$8,TRUE) -> 35.95788434 | AC136: =SUMIFS('Berekening variant 1'!$AG$1:$DW$1,'Berekening variant 1'!$AG$6:$DW$6,">"&$M131,'Berekening variant 1'!$AG$8:$DW$8,TRUE) -> 7.069162251 | AD136: 0.2407490306 | AE136: 3.392524855 | AF136: 0.2268212871 | AG136: 1.099823996 | AH136: 6.869044899 | AI136: 6.5
J137: 14 | K137: FALSE | L137: TRUE | M137: =ROUND(AVERAGE(INDEX(M$124:M136,_xlfn.MAXIFS(J$124:J136,K$124:K136,TRUE),1),INDEX(M$124:M136,_xlfn.MAXIFS(J$124:J136,L$124:L136,TRUE),1)),0) -> 262 | N137: =SUMIFS('Berekening variant 1'!$JS$1:$JX$1,'Berekening variant 1'!$JS$5:$JX$5,">="&$M132,'Berekening variant 1'!$JS$6:$JX$6,"<"&$M132) -> 377.0343255 | O137: =SUMIFS('Berekening variant 1'!$LC$1:$LH$1,'Berekening variant 1'!$LC$5:$LH$5,">"&$M132,'Berekening variant 1'!$LC$6:$LH$6,"<="&$M132) -> 4914.580576 | P137: =SUMIFS('Berekening variant 1'!$GR$1:$IA$1,'Berekening variant 1'!$GR$5:$IA$5,">"&$M132,'Berekening variant 1'!$GR$6:$IA$6,"<="&$M132) -> 0 | Q137: =SUMIFS('Berekening variant 1'!$AG$1:$DW$1,'Berekening variant 1'!$AG$5:$DW$5,">"&$M132,'Berekening variant 1'!$AG$6:$DW$6,"<="&$M132) -> 0 | R137: =SUMIFS('Berekening variant 1'!$JS$1:$JX$1,'Berekening variant 1'!$JS$5:$JX$5,">="&$M132,'Berekening variant 1'!$JS$6:$JX$6,"<"&$M132,'Berekening variant 1'!$JS$8:$JX$8,TRUE) -> 67.48970596 | S137: =SUMIFS('Berekening variant 1'!$LC$1:$LH$1,'Berekening variant 1'!$LC$5:$LH$5,">"&$M132,'Berekening variant 1'!$LC$6:$LH$6,"<="&$M132,'Berekening variant 1'!$LC$8:$LH$8,TRUE) -> 341.6448206 | T137: =SUMIFS('Berekening variant 1'!$GR$1:$IA$1,'Berekening variant 1'!$GR$5:$IA$5,">"&$M132,'Berekening variant 1'!$GR$6:$IA$6,"<="&$M132,'Berekening variant 1'!$GR$8:$IA$8,TRUE) -> 0 | U137: =SUMIFS('Berekening variant 1'!$AG$1:$DW$1,'Berekening variant 1'!$AG$5:$DW$5,">"&$M132,'Berekening variant 1'!$AG$6:$DW$6,"<="&$M132,'Berekening variant 1'!$AG$8:$DW$8,TRUE) -> 0 | V137: =SUMIFS('Berekening variant 1'!$JS$1:$JX$1,'Berekening variant 1'!$JS$6:$JX$6,">="&$M132) -> 61.50636951 | W137: =SUMIFS('Berekening variant 1'!$LC$1:$LH$1,'Berekening variant 1'!$LC$6:$LH$6,">"&$M132) -> 849.0185538 | X137: =SUMIFS('Berekening variant 1'!$GR$1:$IA$1,'Berekening variant 1'!$GR$6:$IA$6,">"&$M132) -> 187.9562016 | Y137: =SUMIFS('Berekening variant 1'!$AG$1:$DW$1,'Berekening variant 1'!$AG$6:$DW$6,">"&$M132) -> 27.92965997 | Z137: =SUMIFS('Berekening variant 1'!$JS$1:$JX$1,'Berekening variant 1'!$JS$6:$JX$6,">="&$M132,'Berekening variant 1'!$JS$8:$JX$8,TRUE) -> 6.401534654 | AA137: =SUMIFS('Berekening variant 1'!$LC$1:$LH$1,'Berekening variant 1'!$LC$6:$LH$6,">"&$M132,'Berekening variant 1'!$LC$8:$LH$8,TRUE) -> 34.94893755 | AB137: =SUMIFS('Berekening variant 1'!$GR$1:$IA$1,'Berekening variant 1'!$GR$6:$IA$6,">"&$M132,'Berekening variant 1'!$GR$8:$IA$8,TRUE) -> 35.95788434 | AC137: =SUMIFS('Berekening variant 1'!$AG$1:$DW$1,'Berekening variant 1'!$AG$6:$DW$6,">"&$M132,'Berekening variant 1'!$AG$8:$DW$8,TRUE) -> 7.069162251 | AD137: 2.801164694 | AE137: 13.12494725 | AF137: 0.2268212871 | AG137: 1.099823996 | AH137: 6.311560592 | AI137: 6.5
J138: 15 | K138: FALSE | L138: TRUE | M138: =ROUND(AVERAGE(INDEX(M$124:M137,_xlfn.MAXIFS(J$124:J137,K$124:K137,TRUE),1),INDEX(M$124:M137,_xlfn.MAXIFS(J$124:J137,L$124:L137,TRUE),1)),0) -> 262 | N138: =SUMIFS('Berekening variant 1'!$JS$1:$JX$1,'Berekening variant 1'!$JS$5:$JX$5,">="&$M133,'Berekening variant 1'!$JS$6:$JX$6,"<"&$M133) -> 429.8834069 | O138: =SUMIFS('Berekening variant 1'!$LC$1:$LH$1,'Berekening variant 1'!$LC$5:$LH$5,">"&$M133,'Berekening variant 1'!$LC$6:$LH$6,"<="&$M133) -> 5695.325706 | P138: =SUMIFS('Berekening variant 1'!$GR$1:$IA$1,'Berekening variant 1'!$GR$5:$IA$5,">"&$M133,'Berekening variant 1'!$GR$6:$IA$6,"<="&$M133) -> 0 | Q138: =SUMIFS('Berekening variant 1'!$AG$1:$DW$1,'Berekening variant 1'!$AG$5:$DW$5,">"&$M133,'Berekening variant 1'!$AG$6:$DW$6,"<="&$M133) -> 0 | R138: =SUMIFS('Berekening variant 1'!$JS$1:$JX$1,'Berekening variant 1'!$JS$5:$JX$5,">="&$M133,'Berekening variant 1'!$JS$6:$JX$6,"<"&$M133,'Berekening variant 1'!$JS$8:$JX$8,TRUE) -> 67.48970596 | S138: =SUMIFS('Berekening variant 1'!$LC$1:$LH$1,'Berekening variant 1'!$LC$5:$LH$5,">"&$M133,'Berekening variant 1'!$LC$6:$LH$6,"<="&$M133,'Berekening variant 1'!$LC$8:$LH$8,TRUE) -> 341.6448206 | T138: =SUMIFS('Berekening variant 1'!$GR$1:$IA$1,'Berekening variant 1'!$GR$5:$IA$5,">"&$M133,'Berekening variant 1'!$GR$6:$IA$6,"<="&$M133,'Berekening variant 1'!$GR$8:$IA$8,TRUE) -> 0 | U138: =SUMIFS('Berekening variant 1'!$AG$1:$DW$1,'Berekening variant 1'!$AG$5:$DW$5,">"&$M133,'Berekening variant 1'!$AG$6:$DW$6,"<="&$M133,'Berekening variant 1'!$AG$8:$DW$8,TRUE) -> 0 | V138: =SUMIFS('Berekening variant 1'!$JS$1:$JX$1,'Berekening variant 1'!$JS$6:$JX$6,">="&$M133) -> 8.657288128 | W138: =SUMIFS('Berekening variant 1'!$LC$1:$LH$1,'Berekening variant 1'!$LC$6:$LH$6,">"&$M133) -> 68.27342477 | X138: =SUMIFS('Berekening variant 1'!$GR$1:$IA$1,'Berekening variant 1'!$GR$6:$IA$6,">"&$M133) -> 187.9562016 | Y138: =SUMIFS('Berekening variant 1'!$AG$1:$DW$1,'Berekening variant 1'!$AG$6:$DW$6,">"&$M133) -> 27.92965997 | Z138: =SUMIFS('Berekening variant 1'!$JS$1:$JX$1,'Berekening variant 1'!$JS$6:$JX$6,">="&$M133,'Berekening variant 1'!$JS$8:$JX$8,TRUE) -> 6.401534654 | AA138: =SUMIFS('Berekening variant 1'!$LC$1:$LH$1,'Berekening variant 1'!$LC$6:$LH$6,">"&$M133,'Berekening variant 1'!$LC$8:$LH$8,TRUE) -> 34.94893755 | AB138: =SUMIFS('Berekening variant 1'!$GR$1:$IA$1,'Berekening variant 1'!$GR$6:$IA$6,">"&$M133,'Berekening variant 1'!$GR$8:$IA$8,TRUE) -> 35.95788434 | AC138: =SUMIFS('Berekening variant 1'!$AG$1:$DW$1,'Berekening variant 1'!$AG$6:$DW$6,">"&$M133,'Berekening variant 1'!$AG$8:$DW$8,TRUE) -> 7.069162251 | AD138: 0.560320042 | AE138: 15.3657919 | AF138: 0.2268212871 | AG138: 1.099823996 | AH138: 6.505682299 | AI138: 6.5
J139: 16 | K139: FALSE | L139: TRUE | M139: =ROUND(AVERAGE(INDEX(M$124:M138,_xlfn.MAXIFS(J$124:J138,K$124:K138,TRUE),1),INDEX(M$124:M138,_xlfn.MAXIFS(J$124:J138,L$124:L138,TRUE),1)),0) -> 262 | N139: =SUMIFS('Berekening variant 1'!$JS$1:$JX$1,'Berekening variant 1'!$JS$5:$JX$5,">="&$M134,'Berekening variant 1'!$JS$6:$JX$6,"<"&$M134) -> 377.0343255 | O139: =SUMIFS('Berekening variant 1'!$LC$1:$LH$1,'Berekening variant 1'!$LC$5:$LH$5,">"&$M134,'Berekening variant 1'!$LC$6:$LH$6,"<="&$M134) -> 4914.580576 | P139: =SUMIFS('Berekening variant 1'!$GR$1:$IA$1,'Berekening variant 1'!$GR$5:$IA$5,">"&$M134,'Berekening variant 1'!$GR$6:$IA$6,"<="&$M134) -> 0 | Q139: =SUMIFS('Berekening variant 1'!$AG$1:$DW$1,'Berekening variant 1'!$AG$5:$DW$5,">"&$M134,'Berekening variant 1'!$AG$6:$DW$6,"<="&$M134) -> 0 | R139: =SUMIFS('Berekening variant 1'!$JS$1:$JX$1,'Berekening variant 1'!$JS$5:$JX$5,">="&$M134,'Berekening variant 1'!$JS$6:$JX$6,"<"&$M134,'Berekening variant 1'!$JS$8:$JX$8,TRUE) -> 67.48970596 | S139: =SUMIFS('Berekening variant 1'!$LC$1:$LH$1,'Berekening variant 1'!$LC$5:$LH$5,">"&$M134,'Berekening variant 1'!$LC$6:$LH$6,"<="&$M134,'Berekening variant 1'!$LC$8:$LH$8,TRUE) -> 341.6448206 | T139: =SUMIFS('Berekening variant 1'!$GR$1:$IA$1,'Berekening variant 1'!$GR$5:$IA$5,">"&$M134,'Berekening variant 1'!$GR$6:$IA$6,"<="&$M134,'Berekening variant 1'!$GR$8:$IA$8,TRUE) -> 0 | U139: =SUMIFS('Berekening variant 1'!$AG$1:$DW$1,'Berekening variant 1'!$AG$5:$DW$5,">"&$M134,'Berekening variant 1'!$AG$6:$DW$6,"<="&$M134,'Berekening variant 1'!$AG$8:$DW$8,TRUE) -> 0 | V139: =SUMIFS('Berekening variant 1'!$JS$1:$JX$1,'Berekening variant 1'!$JS$6:$JX$6,">="&$M134) -> 61.50636951 | W139: =SUMIFS('Berekening variant 1'!$LC$1:$LH$1,'Berekening variant 1'!$LC$6:$LH$6,">"&$M134) -> 849.0185538 | X139: =SUMIFS('Berekening variant 1'!$GR$1:$IA$1,'Berekening variant 1'!$GR$6:$IA$6,">"&$M134) -> 187.9562016 | Y139: =SUMIFS('Berekening variant 1'!$AG$1:$DW$1,'Berekening variant 1'!$AG$6:$DW$6,">"&$M134) -> 27.92965997 | Z139: =SUMIFS('Berekening variant 1'!$JS$1:$JX$1,'Berekening variant 1'!$JS$6:$JX$6,">="&$M134,'Berekening variant 1'!$JS$8:$JX$8,TRUE) -> 6.401534654 | AA139: =SUMIFS('Berekening variant 1'!$LC$1:$LH$1,'Berekening variant 1'!$LC$6:$LH$6,">"&$M134,'Berekening variant 1'!$LC$8:$LH$8,TRUE) -> 34.94893755 | AB139: =SUMIFS('Berekening variant 1'!$GR$1:$IA$1,'Berekening variant 1'!$GR$6:$IA$6,">"&$M134,'Berekening variant 1'!$GR$8:$IA$8,TRUE) -> 35.95788434 | AC139: =SUMIFS('Berekening variant 1'!$AG$1:$DW$1,'Berekening variant 1'!$AG$6:$DW$6,">"&$M134,'Berekening variant 1'!$AG$8:$DW$8,TRUE) -> 7.069162251 | AD139: 2.801164694 | AE139: 13.12494725 | AF139: 0.2268212871 | AG139: 1.099823996 | AH139: 6.311560592 | AI139: 6.5
J140: 17 | K140: FALSE | L140: TRUE | M140: =ROUND(AVERAGE(INDEX(M$124:M139,_xlfn.MAXIFS(J$124:J139,K$124:K139,TRUE),1),INDEX(M$124:M139,_xlfn.MAXIFS(J$124:J139,L$124:L139,TRUE),1)),0) -> 262 | N140: =SUMIFS('Berekening variant 1'!$JS$1:$JX$1,'Berekening variant 1'!$JS$5:$JX$5,">="&$M135,'Berekening variant 1'!$JS$6:$JX$6,"<"&$M135) -> 377.0343255 | O140: =SUMIFS('Berekening variant 1'!$LC$1:$LH$1,'Berekening variant 1'!$LC$5:$LH$5,">"&$M135,'Berekening variant 1'!$LC$6:$LH$6,"<="&$M135) -> 5695.325706 | P140: =SUMIFS('Berekening variant 1'!$GR$1:$IA$1,'Berekening variant 1'!$GR$5:$IA$5,">"&$M135,'Berekening variant 1'!$GR$6:$IA$6,"<="&$M135) -> 0 | Q140: =SUMIFS('Berekening variant 1'!$AG$1:$DW$1,'Berekening variant 1'!$AG$5:$DW$5,">"&$M135,'Berekening variant 1'!$AG$6:$DW$6,"<="&$M135) -> 0 | R140: =SUMIFS('Berekening variant 1'!$JS$1:$JX$1,'Berekening variant 1'!$JS$5:$JX$5,">="&$M135,'Berekening variant 1'!$JS$6:$JX$6,"<"&$M135,'Berekening variant 1'!$JS$8:$JX$8,TRUE) -> 67.48970596 | S140: =SUMIFS('Berekening variant 1'!$LC$1:$LH$1,'Berekening variant 1'!$LC$5:$LH$5,">"&$M135,'Berekening variant 1'!$LC$6:$LH$6,"<="&$M135,'Berekening variant 1'!$LC$8:$LH$8,TRUE) -> 341.6448206 | T140: =SUMIFS('Berekening variant 1'!$GR$1:$IA$1,'Berekening variant 1'!$GR$5:$IA$5,">"&$M135,'Berekening variant 1'!$GR$6:$IA$6,"<="&$M135,'Berekening variant 1'!$GR$8:$IA$8,TRUE) -> 0 | U140: =SUMIFS('Berekening variant 1'!$AG$1:$DW$1,'Berekening variant 1'!$AG$5:$DW$5,">"&$M135,'Berekening variant 1'!$AG$6:$DW$6,"<="&$M135,'Berekening variant 1'!$AG$8:$DW$8,TRUE) -> 0 | V140: =SUMIFS('Berekening variant 1'!$JS$1:$JX$1,'Berekening variant 1'!$JS$6:$JX$6,">="&$M135) -> 61.50636951 | W140: =SUMIFS('Berekening variant 1'!$LC$1:$LH$1,'Berekening variant 1'!$LC$6:$LH$6,">"&$M135) -> 68.27342477 | X140: =SUMIFS('Berekening variant 1'!$GR$1:$IA$1,'Berekening variant 1'!$GR$6:$IA$6,">"&$M135) -> 187.9562016 | Y140: =SUMIFS('Berekening variant 1'!$AG$1:$DW$1,'Berekening variant 1'!$AG$6:$DW$6,">"&$M135) -> 27.92965997 | Z140: =SUMIFS('Berekening variant 1'!$JS$1:$JX$1,'Berekening variant 1'!$JS$6:$JX$6,">="&$M135,'Berekening variant 1'!$JS$8:$JX$8,TRUE) -> 6.401534654 | AA140: =SUMIFS('Berekening variant 1'!$LC$1:$LH$1,'Berekening variant 1'!$LC$6:$LH$6,">"&$M135,'Berekening variant 1'!$LC$8:$LH$8,TRUE) -> 34.94893755 | AB140: =SUMIFS('Berekening variant 1'!$GR$1:$IA$1,'Berekening variant 1'!$GR$6:$IA$6,">"&$M135,'Berekening variant 1'!$GR$8:$IA$8,TRUE) -> 35.95788434 | AC140: =SUMIFS('Berekening variant 1'!$AG$1:$DW$1,'Berekening variant 1'!$AG$6:$DW$6,">"&$M135,'Berekening variant 1'!$AG$8:$DW$8,TRUE) -> 7.069162251 | AD140: 0.7023874651 | AE140: 15.22372447 | AF140: 0.2268212871 | AG140: 1.099823996 | AH140: 6.492560916 | AI140: 6.5
J141: 18 | K141: FALSE | L141: TRUE | M141: =ROUND(AVERAGE(INDEX(M$124:M140,_xlfn.MAXIFS(J$124:J140,K$124:K140,TRUE),1),INDEX(M$124:M140,_xlfn.MAXIFS(J$124:J140,L$124:L140,TRUE),1)),0) -> 262 | N141: =SUMIFS('Berekening variant 1'!$JS$1:$JX$1,'Berekening variant 1'!$JS$5:$JX$5,">="&$M136,'Berekening variant 1'!$JS$6:$JX$6,"<"&$M136) -> 429.8834069 | O141: =SUMIFS('Berekening variant 1'!$LC$1:$LH$1,'Berekening variant 1'!$LC$5:$LH$5,">"&$M136,'Berekening variant 1'!$LC$6:$LH$6,"<="&$M136) -> 5695.325706 | P141: =SUMIFS('Berekening variant 1'!$GR$1:$IA$1,'Berekening variant 1'!$GR$5:$IA$5,">"&$M136,'Berekening variant 1'!$GR$6:$IA$6,"<="&$M136) -> 0 | Q141: =SUMIFS('Berekening variant 1'!$AG$1:$DW$1,'Berekening variant 1'!$AG$5:$DW$5,">"&$M136,'Berekening variant 1'!$AG$6:$DW$6,"<="&$M136) -> 0 | R141: =SUMIFS('Berekening variant 1'!$JS$1:$JX$1,'Berekening variant 1'!$JS$5:$JX$5,">="&$M136,'Berekening variant 1'!$JS$6:$JX$6,"<"&$M136,'Berekening variant 1'!$JS$8:$JX$8,TRUE) -> 67.48970596 | S141: =SUMIFS('Berekening variant 1'!$LC$1:$LH$1,'Berekening variant 1'!$LC$5:$LH$5,">"&$M136,'Berekening variant 1'!$LC$6:$LH$6,"<="&$M136,'Berekening variant 1'!$LC$8:$LH$8,TRUE) -> 341.6448206 | T141: =SUMIFS('Berekening variant 1'!$GR$1:$IA$1,'Berekening variant 1'!$GR$5:$IA$5,">"&$M136,'Berekening variant 1'!$GR$6:$IA$6,"<="&$M136,'Berekening variant 1'!$GR$8:$IA$8,TRUE) -> 0 | U141: =SUMIFS('Berekening variant 1'!$AG$1:$DW$1,'Berekening variant 1'!$AG$5:$DW$5,">"&$M136,'Berekening variant 1'!$AG$6:$DW$6,"<="&$M136,'Berekening variant 1'!$AG$8:$DW$8,TRUE) -> 0 | V141: =SUMIFS('Berekening variant 1'!$JS$1:$JX$1,'Berekening variant 1'!$JS$6:$JX$6,">="&$M136) -> 8.657288128 | W141: =SUMIFS('Berekening variant 1'!$LC$1:$LH$1,'Berekening variant 1'!$LC$6:$LH$6,">"&$M136) -> 68.27342477 | X141: =SUMIFS('Berekening variant 1'!$GR$1:$IA$1,'Berekening variant 1'!$GR$6:$IA$6,">"&$M136) -> 187.9562016 | Y141: =SUMIFS('Berekening variant 1'!$AG$1:$DW$1,'Berekening variant 1'!$AG$6:$DW$6,">"&$M136) -> 27.92965997 | Z141: =SUMIFS('Berekening variant 1'!$JS$1:$JX$1,'Berekening variant 1'!$JS$6:$JX$6,">="&$M136,'Berekening variant 1'!$JS$8:$JX$8,TRUE) -> 6.401534654 | AA141: =SUMIFS('Berekening variant 1'!$LC$1:$LH$1,'Berekening variant 1'!$LC$6:$LH$6,">"&$M136,'Berekening variant 1'!$LC$8:$LH$8,TRUE) -> 34.94893755 | AB141: =SUMIFS('Berekening variant 1'!$GR$1:$IA$1,'Berekening variant 1'!$GR$6:$IA$6,">"&$M136,'Berekening variant 1'!$GR$8:$IA$8,TRUE) -> 35.95788434 | AC141: =SUMIFS('Berekening variant 1'!$AG$1:$DW$1,'Berekening variant 1'!$AG$6:$DW$6,">"&$M136,'Berekening variant 1'!$AG$8:$DW$8,TRUE) -> 7.069162251 | AD141: 0.560320042 | AE141: 15.3657919 | AF141: 0.2268212871 | AG141: 1.099823996 | AH141: 6.505682299 | AI141: 6.5
J142: 19 | K142: FALSE | L142: TRUE | M142: =ROUND(AVERAGE(INDEX(M$124:M141,_xlfn.MAXIFS(J$124:J141,K$124:K141,TRUE),1),INDEX(M$124:M141,_xlfn.MAXIFS(J$124:J141,L$124:L141,TRUE),1)),0) -> 262 | N142: =SUMIFS('Berekening variant 1'!$JS$1:$JX$1,'Berekening variant 1'!$JS$5:$JX$5,">="&$M137,'Berekening variant 1'!$JS$6:$JX$6,"<"&$M137) -> 429.8834069 | O142: =SUMIFS('Berekening variant 1'!$LC$1:$LH$1,'Berekening variant 1'!$LC$5:$LH$5,">"&$M137,'Berekening variant 1'!$LC$6:$LH$6,"<="&$M137) -> 5695.325706 | P142: =SUMIFS('Berekening variant 1'!$GR$1:$IA$1,'Berekening variant 1'!$GR$5:$IA$5,">"&$M137,'Berekening variant 1'!$GR$6:$IA$6,"<="&$M137) -> 0 | Q142: =SUMIFS('Berekening variant 1'!$AG$1:$DW$1,'Berekening variant 1'!$AG$5:$DW$5,">"&$M137,'Berekening variant 1'!$AG$6:$DW$6,"<="&$M137) -> 0 | R142: =SUMIFS('Berekening variant 1'!$JS$1:$JX$1,'Berekening variant 1'!$JS$5:$JX$5,">="&$M137,'Berekening variant 1'!$JS$6:$JX$6,"<"&$M137,'Berekening variant 1'!$JS$8:$JX$8,TRUE) -> 67.48970596 | S142: =SUMIFS('Berekening variant 1'!$LC$1:$LH$1,'Berekening variant 1'!$LC$5:$LH$5,">"&$M137,'Berekening variant 1'!$LC$6:$LH$6,"<="&$M137,'Berekening variant 1'!$LC$8:$LH$8,TRUE) -> 341.6448206 | T142: =SUMIFS('Berekening variant 1'!$GR$1:$IA$1,'Berekening variant 1'!$GR$5:$IA$5,">"&$M137,'Berekening variant 1'!$GR$6:$IA$6,"<="&$M137,'Berekening variant 1'!$GR$8:$IA$8,TRUE) -> 0 | U142: =SUMIFS('Berekening variant 1'!$AG$1:$DW$1,'Berekening variant 1'!$AG$5:$DW$5,">"&$M137,'Berekening variant 1'!$AG$6:$DW$6,"<="&$M137,'Berekening variant 1'!$AG$8:$DW$8,TRUE) -> 0 | V142: =SUMIFS('Berekening variant 1'!$JS$1:$JX$1,'Berekening variant 1'!$JS$6:$JX$6,">="&$M137) -> 8.657288128 | W142: =SUMIFS('Berekening variant 1'!$LC$1:$LH$1,'Berekening variant 1'!$LC$6:$LH$6,">"&$M137) -> 68.27342477 | X142: =SUMIFS('Berekening variant 1'!$GR$1:$IA$1,'Berekening variant 1'!$GR$6:$IA$6,">"&$M137) -> 187.9562016 | Y142: =SUMIFS('Berekening variant 1'!$AG$1:$DW$1,'Berekening variant 1'!$AG$6:$DW$6,">"&$M137) -> 27.92965997 | Z142: =SUMIFS('Berekening variant 1'!$JS$1:$JX$1,'Berekening variant 1'!$JS$6:$JX$6,">="&$M137,'Berekening variant 1'!$JS$8:$JX$8,TRUE) -> 6.401534654 | AA142: =SUMIFS('Berekening variant 1'!$LC$1:$LH$1,'Berekening variant 1'!$LC$6:$LH$6,">"&$M137,'Berekening variant 1'!$LC$8:$LH$8,TRUE) -> 34.94893755 | AB142: =SUMIFS('Berekening variant 1'!$GR$1:$IA$1,'Berekening variant 1'!$GR$6:$IA$6,">"&$M137,'Berekening variant 1'!$GR$8:$IA$8,TRUE) -> 35.95788434 | AC142: =SUMIFS('Berekening variant 1'!$AG$1:$DW$1,'Berekening variant 1'!$AG$6:$DW$6,">"&$M137,'Berekening variant 1'!$AG$8:$DW$8,TRUE) -> 7.069162251 | AD142: 0.560320042 | AE142: 15.3657919 | AF142: 0.2268212871 | AG142: 1.099823996 | AH142: 6.505682299 | AI142: 6.5
